Workbook

Sheet IRR and Growth
E1: 1 | F1: 2 | G1: 3 | H1: 4 | I1: 5 | J1: 6 | K1: 7 | L1: 8 | M1: 9 | N1: 10 | O1: 11 | P1: 12 | Q1: 13 | R1: 14 | S1: 15 | T1: 16 | U1: 17 | V1: 18 | W1: 19 | X1: 20 | Y1: 21 | Z1: 22 | AA1: 23 | AB1: 24 | AC1: 25 | AD1: 26 | AE1: 27 | AF1: 28 | AG1: 29 | AH1: 30 | AI1: 31 | AJ1: 32 | AK1: 33 | AL1: 34 | AM1: 35 | AN1: 36 | AO1: 37 | AP1: 38 | AQ1: 39 | AR1: 40
A2: Point 1: IRR is Compound Growth Rate
B3: Growth in Stocks for 67 Years | D3: =((144/1)^(1/66))-1 -> 0.07820778191
C5: Proof of Growth Rate
C6: Year | D6: 0 | E6: 2 | F6: 3 | G6: 4 | H6: 5 | I6: 6 | J6: 7 | K6: 8 | L6: 9 | M6: 10 | N6: 11 | O6: 12 | P6: 13 | Q6: 14 | R6: 15 | S6: 16 | T6: 17 | U6: 18 | V6: 19 | W6: 20 | X6: 21 | Y6: 22 | Z6: 23 | AA6: 24 | AB6: 25 | AC6: 26 | AD6: 27 | AE6: 28 | AF6: 29 | AG6: 30 | AH6: 31 | AI6: 32 | AJ6: 33 | AK6: 34 | AL6: 35 | AM6: 36 | AN6: 37 | AO6: 38 | AP6: 39 | AQ6: 40 | AR6: 41 | AS6: 42 | AT6: 43 | AU6: 44 | AV6: 45 | AW6: 46 | AX6: 47 | AY6: 48 | AZ6: 49 | BA6: 50 | BB6: 51 | BC6: 52 | BD6: 53 | BE6: 54 | BF6: 55 | BG6: 56 | BH6: 57 | BI6: 58 | BJ6: 59 | BK6: 60 | BL6: 61 | BM6: 62 | BN6: 63 | BO6: 64 | BP6: 65 | BQ6: 66 | BR6: 67
C7: Stocks | D7: -1 | E7: 0 | F7: 0 | G7: 0 | H7: 0 | I7: 0 | J7: 0 | K7: 0 | L7: 0 | M7: 0 | N7: 0 | O7: 0 | P7: 0 | Q7: 0 | R7: 0 | S7: 0 | T7: 0 | U7: 0 | V7: 0 | W7: 0 | X7: 0 | Y7: 0 | Z7: 0 | AA7: 0 | AB7: 0 | AC7: 0 | AD7: 0 | AE7: 0 | AF7: 0 | AG7: 0 | AH7: 0 | AI7: 0 | AJ7: 0 | AK7: 0 | AL7: 0 | AM7: 0 | AN7: 0 | AO7: 0 | AP7: 0 | AQ7: 0 | AR7: 0 | AS7: 0 | AT7: 0 | AU7: 0 | AV7: 0 | AW7: 0 | AX7: 0 | AY7: 0 | AZ7: 0 | BA7: 0 | BB7: 0 | BC7: 0 | BD7: 0 | BE7: 0 | BF7: 0 | BG7: 0 | BH7: 0 | BI7: 0 | BJ7: 0 | BK7: 0 | BL7: 0 | BM7: 0 | BN7: 0 | BO7: 0 | BP7: 0 | BQ7: 0 | BR7: 144
C8: Rate | D8: =IRR(7:7) -> 0.07820778191
C10: Growth | D10: 0.02
D11: 1 | E11: 2 | F11: 3 | G11: 4 | H11: 5 | I11: 6 | J11: 7 | K11: 8 | L11: 9 | M11: 10 | N11: 11 | O11: 12 | P11: 13 | Q11: 14 | R11: 15 | S11: 16 | T11: 17 | U11: 18 | V11: 19 | W11: 20
C12: Cash Flow with Growth | D12: 10000000 | E12: =D12*(1+$D$10) -> 10200000 | F12: 10404000 | G12: 10612080 | H12: 10824321.6 | I12: 11040808.03 | J12: 11261624.19 | K12: 11486856.68 | L12: 11716593.81 | M12: 11950925.69 | N12: 12189944.2 | O12: 12433743.08 | P12: 12682417.95 | Q12: 12936066.3 | R12: 13194787.63 | S12: 13458683.38 | T12: 13727857.05 | U12: 14002414.19 | V12: 14282462.48 | W12: 14568111.73
C14: In and Out | D14: =-D12 -> -10000000 | E14: 0 | F14: 0 | G14: 0 | H14: 0 | I14: 0 | J14: 0 | K14: 0 | L14: 0 | M14: 0 | N14: 0 | O14: 0 | P14: 0 | Q14: 0 | R14: 0 | S14: 0 | T14: 0 | U14: 0 | V14: 0 | W14: =W12 -> 14568111.73
C15: IRR | D15: =IRR(14:14) -> 0.02

Sheet IRR Reconciliation
D1: 0 | E1: 1 | F1: 2 | G1: 3 | H1: 4 | I1: 5 | J1: 6 | K1: 7 | L1: 8 | M1: 9 | N1: 10 | O1: 11 | P1: 12 | Q1: 13 | R1: 14 | S1: 15 | T1: 16 | U1: 17 | V1: 18 | W1: 19 | X1: 20
A2: Basic Assumptions
C3: Inflation Rate | D3: 0.03
C4: EPC | D4: 1000
C5: EBITDA | E5: 120 | F5: =E5*(1+$D$3) -> 123.6 | G5: =F5*(1+$D$3) -> 127.308 | H5: 131.12724 | I5: 135.0610572 | J5: 139.1128889 | K5: 143.2862756 | L5: 147.5848639 | M5: 152.0124098 | N5: 156.5727821 | O5: 161.2699655 | P5: 166.1080645 | Q5: 171.0913064 | R5: 176.2240456 | S5: 181.510767 | T5: 186.95609 | U5: 192.5647727 | V5: 198.3417159 | W5: 204.2919673 | X5: 210.4207264
C7: Project Cash Flow | D7: =D5-D4 -> -1000 | E7: =E5-E4 -> 120 | F7: 123.6 | G7: 127.308 | H7: 131.12724 | I7: 135.0610572 | J7: 139.1128889 | K7: 143.2862756 | L7: 147.5848639 | M7: 152.0124098 | N7: 156.5727821 | O7: 161.2699655 | P7: 166.1080645 | Q7: 171.0913064 | R7: 176.2240456 | S7: 181.510767 | T7: 186.95609 | U7: 192.5647727 | V7: 198.3417159 | W7: 204.2919673 | X7: 210.4207264
C9: Project IRR | D9: =IRR(7:7) -> 0.1317715162
C11: Re-investment Rate | D11: 0.05
C12: MIRR | D12: =MIRR(D7:X7,D11,D11) -> 0.08469218983
C14: Note: IRR is a little less than yield
C15: Yield in RE is | D15: =E5/D4 -> 0.12
A17: Alternative Depreciation
B18: Straight Line Depreciation | D18: 20 | E18: =$D$4/$D$18 -> 50 | F18: =$D$4/$D$18 -> 50 | G18: 50 | H18: 50 | I18: 50 | J18: 50 | K18: 50 | L18: 50 | M18: 50 | N18: 50 | O18: 50 | P18: 50 | Q18: 50 | R18: 50 | S18: 50 | T18: 50 | U18: 50 | V18: 50 | W18: 50 | X18: 50
B20: Economic Depreciation (PPMT with IRR) | D20: =D9 -> 0.1317715162 | E20: =PPMT($D$9,'IRR and Growth'!E1,20,$D$7) -> 12.10043371 | F20: =PPMT($D$9,'IRR and Growth'!F1,20,$D$7) -> 13.6949262 | G20: =PPMT($D$9,'IRR and Growth'!G1,20,$D$7) -> 15.49952739 | H20: =PPMT($D$9,'IRR and Growth'!H1,20,$D$7) -> 17.54192362 | I20: =PPMT($D$9,'IRR and Growth'!I1,20,$D$7) -> 19.85344949 | J20: =PPMT($D$9,'IRR and Growth'!J1,20,$D$7) -> 22.46956863 | K20: =PPMT($D$9,'IRR and Growth'!K1,20,$D$7) -> 25.43041776 | L20: =PPMT($D$9,'IRR and Growth'!L1,20,$D$7) -> 28.78142246 | M20: =PPMT($D$9,'IRR and Growth'!M1,20,$D$7) -> 32.57399414 | N20: =PPMT($D$9,'IRR and Growth'!N1,20,$D$7) -> 36.86631873 | O20: =PPMT($D$9,'IRR and Growth'!O1,20,$D$7) -> 41.72424945 | P20: =PPMT($D$9,'IRR and Growth'!P1,20,$D$7) -> 47.22231706 | Q20: =PPMT($D$9,'IRR and Growth'!Q1,20,$D$7) -> 53.44487337 | R20: =PPMT($D$9,'IRR and Growth'!R1,20,$D$7) -> 60.48738537 | S20: =PPMT($D$9,'IRR and Growth'!S1,20,$D$7) -> 68.45789985 | T20: =PPMT($D$9,'IRR and Growth'!T1,20,$D$7) -> 77.47870111 | U20: =PPMT($D$9,'IRR and Growth'!U1,20,$D$7) -> 87.68818702 | V20: =PPMT($D$9,'IRR and Growth'!V1,20,$D$7) -> 99.24299238 | W20: =PPMT($D$9,'IRR and Growth'!W1,20,$D$7) -> 112.320392 | X20: =PPMT($D$9,'IRR and Growth'!X1,20,$D$7) -> 127.1210203
B22: Economic Depreciation with Inflation
C23: Inflation Rate | D23: =D3 -> 0.03
C24: Real IRR | D24: =(1+D20)/(1+D3)-1 -> 0.09880729725
C25: PMT with Inflation (Start Early) | D25: =PMT(D24,20,$D$7) -> 116.5048544 | E25: =D25*(1+$D$3) -> 120 | F25: =E25*(1+$D$3) -> 123.6 | G25: 127.308 | H25: 131.12724 | I25: 135.0610572 | J25: 139.1128889 | K25: 143.2862756 | L25: 147.5848638 | M25: 152.0124098 | N25: 156.5727821 | O25: 161.2699655 | P25: 166.1080645 | Q25: 171.0913064 | R25: 176.2240456 | S25: 181.510767 | T25: 186.95609 | U25: 192.5647727 | V25: 198.3417159 | W25: 204.2919673 | X25: 210.4207264
C26: Opening Balance | E26: =D28 -> 1000 | F26: =E28 -> 1011.771516 | G26: 1021.494183 | H26: 1028.79002 | I26: 1033.228001 | J26: 1034.316964 | K26: 1031.49759 | L26: 1024.133315 | M26: 1011.500051 | N26: 992.7745367 | O26: 967.0211605 | P26: 933.1770395 | Q26: 890.0351284 | R26: 836.2251003 | S26: 770.191704 | T26: 690.1702656 | U26: 594.1589579 | V26: 479.8874119 | W26: 344.7811879 | X26: 185.9215605
C27: Depreciation | E27: =E25-E29 -> -11.77151617 | F27: -9.722666704 | G27: -7.295837237 | H27: -4.437980772 | I27: -1.088963027 | J27: 2.81937438 | K27: 7.364274284 | L27: 12.63326414 | M27: 18.72551442 | N27: 25.75337614 | O27: 33.84412103 | P27: 43.14191113 | Q27: 53.81002811 | R27: 66.03339629 | S27: 80.02143841 | T27: 96.01130768 | U27: 114.271546 | V27: 135.106224 | W27: 158.8596275 | X27: 185.9215605
C28: Closing Balance | D28: =D4 -> 1000 | E28: =E26-E27 -> 1011.771516 | F28: =F26-F27 -> 1021.494183 | G28: 1028.79002 | H28: 1033.228001 | I28: 1034.316964 | J28: 1031.49759 | K28: 1024.133315 | L28: 1011.500051 | M28: 992.7745367 | N28: 967.0211605 | O28: 933.1770395 | P28: 890.0351284 | Q28: 836.2251003 | R28: 770.191704 | S28: 690.1702656 | T28: 594.1589579 | U28: 479.8874119 | V28: 344.7811879 | W28: 185.9215605 | X28: -9.151790437e-12
C29: Nominal Return | D29: =D20 -> 0.1317715162 | E29: =E26*$D$29 -> 131.7715162 | F29: =F26*$D$29 -> 133.3226667 | G29: 134.6038372 | H29: 135.5652208 | I29: 136.1500202 | J29: 136.2935145 | K29: 135.9220013 | L29: 134.9515997 | M29: 133.2868953 | N29: 130.8194059 | O29: 127.4258445 | P29: 122.9661533 | Q29: 117.2812783 | R29: 110.1906493 | S29: 101.4893286 | T29: 90.94478231 | U29: 78.29322673 | V29: 63.23549186 | W29: 45.43233988 | X29: 24.49916591
B31: Applied
C32: =CHOOSE($D$32,B18,B20,C27) -> Straight Line Depreciation | D32: 1 | E32: =CHOOSE($D$32,E18,E20,E27) -> 50 | F32: =CHOOSE($D$32,F18,F20,F27) -> 50 | G32: 50 | H32: 50 | I32: 50 | J32: 50 | K32: 50 | L32: 50 | M32: 50 | N32: 50 | O32: 50 | P32: 50 | Q32: 50 | R32: 50 | S32: 50 | T32: 50 | U32: 50 | V32: 50 | W32: 50 | X32: 50
A34: Return Calculation
B35: Profit and Loss
C36: EBITDA | E36: =E5 -> 120 | F36: 123.6 | G36: 127.308 | H36: 131.12724 | I36: 135.0610572 | J36: 139.1128889 | K36: 143.2862756 | L36: 147.5848639 | M36: 152.0124098 | N36: 156.5727821 | O36: 161.2699655 | P36: 166.1080645 | Q36: 171.0913064 | R36: 176.2240456 | S36: 181.510767 | T36: 186.95609 | U36: 192.5647727 | V36: 198.3417159 | W36: 204.2919673 | X36: 210.4207264
C37: Less: Depreciation | E37: =E32 -> 50 | F37: =F32 -> 50 | G37: 50 | H37: 50 | I37: 50 | J37: 50 | K37: 50 | L37: 50 | M37: 50 | N37: 50 | O37: 50 | P37: 50 | Q37: 50 | R37: 50 | S37: 50 | T37: 50 | U37: 50 | V37: 50 | W37: 50 | X37: 50
C38: EBIT | E38: =E36-E37 -> 70 | F38: =F36-F37 -> 73.6 | G38: 77.308 | H38: 81.12724 | I38: 85.0610572 | J38: 89.11288892 | K38: 93.28627558 | L38: 97.58486385 | M38: 102.0124098 | N38: 106.5727821 | O38: 111.2699655 | P38: 116.1080645 | Q38: 121.0913064 | R38: 126.2240456 | S38: 131.510767 | T38: 136.95609 | U38: 142.5647727 | V38: 148.3417159 | W38: 154.2919673 | X38: 160.4207264
C39: Less: Interest
C40: EBT | E40: =E38-E39 -> 70 | F40: =F38-F39 -> 73.6 | G40: 77.308 | H40: 81.12724 | I40: 85.0610572 | J40: 89.11288892 | K40: 93.28627558 | L40: 97.58486385 | M40: 102.0124098 | N40: 106.5727821 | O40: 111.2699655 | P40: 116.1080645 | Q40: 121.0913064 | R40: 126.2240456 | S40: 131.510767 | T40: 136.95609 | U40: 142.5647727 | V40: 148.3417159 | W40: 154.2919673 | X40: 160.4207264
C41: Less: Taxes
C42: Earnings | E42: =E40-E41 -> 70 | F42: =F40-F41 -> 73.6 | G42: 77.308 | H42: 81.12724 | I42: 85.0610572 | J42: 89.11288892 | K42: 93.28627558 | L42: 97.58486385 | M42: 102.0124098 | N42: 106.5727821 | O42: 111.2699655 | P42: 116.1080645 | Q42: 121.0913064 | R42: 126.2240456 | S42: 131.510767 | T42: 136.95609 | U42: 142.5647727 | V42: 148.3417159 | W42: 154.2919673 | X42: 160.4207264
B44: Cash Flow Statement
C45: EBITDA | E45: =E36 -> 120 | F45: =F36 -> 123.6 | G45: 127.308 | H45: 131.12724 | I45: 135.0610572 | J45: 139.1128889 | K45: 143.2862756 | L45: 147.5848639 | M45: 152.0124098 | N45: 156.5727821 | O45: 161.2699655 | P45: 166.1080645 | Q45: 171.0913064 | R45: 176.2240456 | S45: 181.510767 | T45: 186.95609 | U45: 192.5647727 | V45: 198.3417159 | W45: 204.2919673 | X45: 210.4207264
C46: Less: Interest
C47: Less: Repayment
C48: Dividends | E48: =E45 -> 120 | F48: =F45 -> 123.6 | G48: 127.308 | H48: 131.12724 | I48: 135.0610572 | J48: 139.1128889 | K48: 143.2862756 | L48: 147.5848639 | M48: 152.0124098 | N48: 156.5727821 | O48: 161.2699655 | P48: 166.1080645 | Q48: 171.0913064 | R48: 176.2240456 | S48: 181.510767 | T48: 186.95609 | U48: 192.5647727 | V48: 198.3417159 | W48: 204.2919673 | X48: 210.4207264
B50: Balance Sheet
C51: Assets | D51: =D4 -> 1000 | E51: =D51 -> 1000 | F51: =E51 -> 1000 | G51: 1000 | H51: 1000 | I51: 1000 | J51: 1000 | K51: 1000 | L51: 1000 | M51: 1000 | N51: 1000 | O51: 1000 | P51: 1000 | Q51: 1000 | R51: 1000 | S51: 1000 | T51: 1000 | U51: 1000 | V51: 1000 | W51: 1000 | X51: 1000
C52: Less: Accum Depreciation | E52: =D52+E37 -> 50 | F52: =E52+F37 -> 100 | G52: 150 | H52: 200 | I52: 250 | J52: 300 | K52: 350 | L52: 400 | M52: 450 | N52: 500 | O52: 550 | P52: 600 | Q52: 650 | R52: 700 | S52: 750 | T52: 800 | U52: 850 | V52: 900 | W52: 950 | X52: 1000
C53: Net Assets | E53: =E51-E52 -> 950 | F53: =F51-F52 -> 900 | G53: 850 | H53: 800 | I53: 750 | J53: 700 | K53: 650 | L53: 600 | M53: 550 | N53: 500 | O53: 450 | P53: 400 | Q53: 350 | R53: 300 | S53: 250 | T53: 200 | U53: 150 | V53: 100 | W53: 50 | X53: 0
C54: Equity Balance
C55: Opening Balance | E55: =D59 -> 1000 | F55: =E59 -> 950 | G55: 900 | H55: 850 | I55: 800 | J55: 750 | K55: 700 | L55: 650 | M55: 600 | N55: 550 | O55: 500 | P55: 450 | Q55: 400 | R55: 350 | S55: 300 | T55: 250 | U55: 200 | V55: 150 | W55: 100 | X55: 50
C56: Add: Income | D56: =D42 -> 0 | E56: 70 | F56: 73.6 | G56: 77.308 | H56: 81.12724 | I56: 85.0610572 | J56: 89.11288892 | K56: 93.28627558 | L56: 97.58486385 | M56: 102.0124098 | N56: 106.5727821 | O56: 111.2699655 | P56: 116.1080645 | Q56: 121.0913064 | R56: 126.2240456 | S56: 131.510767 | T56: 136.95609 | U56: 142.5647727 | V56: 148.3417159 | W56: 154.2919673 | X56: 160.4207264
C57: Less: Dividends | D57: =D48 -> 0 | E57: 120 | F57: 123.6 | G57: 127.308 | H57: 131.12724 | I57: 135.0610572 | J57: 139.1128889 | K57: 143.2862756 | L57: 147.5848639 | M57: 152.0124098 | N57: 156.5727821 | O57: 161.2699655 | P57: 166.1080645 | Q57: 171.0913064 | R57: 176.2240456 | S57: 181.510767 | T57: 186.95609 | U57: 192.5647727 | V57: 198.3417159 | W57: 204.2919673 | X57: 210.4207264
C58: Add: Investment | D58: =D4 -> 1000 | E58: 0 | F58: 0 | G58: 0 | H58: 0 | I58: 0 | J58: 0 | K58: 0 | L58: 0 | M58: 0 | N58: 0 | O58: 0 | P58: 0 | Q58: 0 | R58: 0 | S58: 0 | T58: 0 | U58: 0 | V58: 0 | W58: 0 | X58: 0
C59: Closing Balance | D59: =D55+D56-D57+D58 -> 1000 | E59: =E55+E56-E57+E58 -> 950 | F59: =F55+F56-F57+F58 -> 900 | G59: 850 | H59: 800 | I59: 750 | J59: 700 | K59: 650 | L59: 600 | M59: 550 | N59: 500 | O59: 450 | P59: 400 | Q59: 350 | R59: 300 | S59: 250 | T59: 200 | U59: 150 | V59: 100 | W59: 50 | X59: -5.684341886e-14
C61: ROIC | E61: =E42/D59 -> 0.07 | F61: 0.07747368421 | G61: 0.08589777778 | H61: 0.09544381176 | I61: 0.1063263215 | J61: 0.1188171852 | K61: 0.133266108 | L61: 0.1501305598 | M61: 0.1700206829 | N61: 0.1937686947 | O61: 0.222539931 | P61: 0.2580179211 | Q61: 0.3027282661 | R61: 0.3606401303 | S61: 0.4383692233 | T61: 0.54782436 | U61: 0.7128238635 | V61: 0.9889447725 | W61: 1.542919673 | X61: 3.208414527
C62: Average ROIC | D62: =AVERAGE(E61:X61) -> 0.4892183747
A64: Reconciliation
C65: IRR | D65: =D9 -> 0.1317715162
C66: Discount Rate | D66: =D65 -> 0.1317715162
C68: Discount Rate = IRR | E68: =1/(1+$D$66)^'IRR and Growth'!E1 -> 0.8835705668 | F68: =1/(1+$D$66)^'IRR and Growth'!F1 -> 0.7806969465 | G68: =1/(1+$D$66)^'IRR and Growth'!G1 -> 0.6898008435 | H68: =1/(1+$D$66)^'IRR and Growth'!H1 -> 0.6094877222 | I68: =1/(1+$D$66)^'IRR and Growth'!I1 -> 0.5385254122 | J68: =1/(1+$D$66)^'IRR and Growth'!J1 -> 0.4758252037 | K68: =1/(1+$D$66)^'IRR and Growth'!K1 -> 0.4204251449 | L68: =1/(1+$D$66)^'IRR and Growth'!L1 -> 0.3714752835 | M68: =1/(1+$D$66)^'IRR and Growth'!M1 -> 0.3282246268 | N68: =1/(1+$D$66)^'IRR and Growth'!N1 -> 0.2900096196 | O68: =1/(1+$D$66)^'IRR and Growth'!O1 -> 0.2562439639 | P68: =1/(1+$D$66)^'IRR and Growth'!P1 -> 0.2264096244 | Q68: =1/(1+$D$66)^'IRR and Growth'!Q1 -> 0.2000488802 | R68: =1/(1+$D$66)^'IRR and Growth'!R1 -> 0.1767573024 | S68: =1/(1+$D$66)^'IRR and Growth'!S1 -> 0.1561775499 | T68: =1/(1+$D$66)^'IRR and Growth'!T1 -> 0.1379938863 | U68: =1/(1+$D$66)^'IRR and Growth'!U1 -> 0.1219273363 | V68: =1/(1+$D$66)^'IRR and Growth'!V1 -> 0.1077314057 | W68: =1/(1+$D$66)^'IRR and Growth'!W1 -> 0.09518829915 | X68: =1/(1+$D$66)^'IRR and Growth'!X1 -> 0.08410557943
C69: Investment (BOY) | E69: =D59 -> 1000 | F69: 950 | G69: 900 | H69: 850 | I69: 800 | J69: 750 | K69: 700 | L69: 650 | M69: 600 | N69: 550 | O69: 500 | P69: 450 | Q69: 400 | R69: 350 | S69: 300 | T69: 250 | U69: 200 | V69: 150 | W69: 100 | X69: 50
C71: PV of Investment | E71: =E69*E68 -> 883.5705668 | F71: =F69*F68 -> 741.6620991 | G71: 620.8207591 | H71: 518.0645639 | I71: 430.8203297 | J71: 356.8689027 | K71: 294.2976014 | L71: 241.4589343 | M71: 196.9347761 | N71: 159.5052908 | O71: 128.121982 | P71: 101.884331 | Q71: 80.01955207 | R71: 61.86505586 | S71: 46.85326497 | T71: 34.49847157 | U71: 24.38546726 | V71: 16.15971085 | W71: 9.518829915 | X71: 4.205278972
C72: Weight | E72: =E71/SUM(71:71) -> 0.1784444619 | F72: =F71/SUM(71:71) -> 0.1497848606 | G72: 0.1253799419 | H72: 0.1046274693 | I72: 0.08700776689 | J72: 0.07207265804 | K72: 0.05943586069 | L72: 0.04876465018 | M72: 0.03977262424 | N72: 0.0322134268 | O72: 0.02587530525 | P72: 0.02057639231 | Q72: 0.01616061744 | R72: 0.01249416517 | S72: 0.009462408515 | T72: 0.006967254712 | U72: 0.004924848956 | V72: 0.003263588688 | W72: 0.001922407271 | X72: 0.000849291241
C74: Weighted Average ROIC | D74: =SUMPRODUCT(72:72,61:61) -> 0.1317715162
A76: Portfolio of Assets
C77: IRR | D77: =D66 -> 0.1317715162
F79: ROIC | G79: EBIT | H79: Investment
C80: Asset 1 | D80: Age | E80: 1 | F80: =LOOKUP(E80,$1:$1,$61:$61) -> 0.07 | G80: =LOOKUP(E80,$1:$1,$38:$38) -> 70 | H80: =LOOKUP(E80,$1:$1,$69:$69) -> 1000 | M80: Straight Line
C81: Asset 2 | D81: Age | E81: 10 | F81: =LOOKUP(E81,$1:$1,$61:$61) -> 0.1937686947 | G81: =LOOKUP(E81,$1:$1,$38:$38) -> 106.5727821 | H81: =LOOKUP(E81,$1:$1,$69:$69) -> 550 | M81: Economic
C82: Asset 3 | D82: Age | E82: 12 | F82: =LOOKUP(E82,$1:$1,$61:$61) -> 0.2580179211 | G82: =LOOKUP(E82,$1:$1,$38:$38) -> 116.1080645 | H82: =LOOKUP(E82,$1:$1,$69:$69) -> 450 | M82: Inflated
C83: Asset 4 | D83: Age | E83: 19 | F83: =LOOKUP(E83,$1:$1,$61:$61) -> 1.542919673 | G83: =LOOKUP(E83,$1:$1,$38:$38) -> 154.2919673 | H83: =LOOKUP(E83,$1:$1,$69:$69) -> 100
F85: =AVERAGE(F80:F83) -> 0.5161765723 | G85: =SUM(G80:G84) -> 446.9728139 | H85: =SUM(H80:H84) -> 2100
D86: Average ROI | H86: =G85/H85 -> 0.2128441971
F88: ROIC | G88: EBIT | H88: Investment
C89: Asset 1 | D89: Age | E89: 1 | F89: =LOOKUP(E89,$1:$1,$61:$61) -> 0.07 | G89: =LOOKUP(E89,$1:$1,$38:$38) -> 70 | H89: =LOOKUP(E89,$1:$1,$69:$69) -> 1000
C90: Asset 1 | D90: Age | E90: 2 | F90: 0.07747368421 | G90: =LOOKUP(E90,$1:$1,$38:$38) -> 73.6 | H90: 950
C91: Asset 1 | D91: Age | E91: 3 | F91: 0.08589777778 | G91: =LOOKUP(E91,$1:$1,$38:$38) -> 77.308 | H91: 900
C92: Asset 1 | D92: Age | E92: 4 | F92: 0.09544381176 | G92: =LOOKUP(E92,$1:$1,$38:$38) -> 81.12724 | H92: 850
C93: Asset 1 | D93: Age | E93: 5 | F93: 0.1063263215 | G93: =LOOKUP(E93,$1:$1,$38:$38) -> 85.0610572 | H93: 800
C94: Asset 2 | D94: Age | E94: 6 | F94: 0.1188171852 | G94: =LOOKUP(E94,$1:$1,$38:$38) -> 89.11288892 | H94: 750
C95: Asset 2 | D95: Age | E95: 7 | F95: 0.133266108 | G95: =LOOKUP(E95,$1:$1,$38:$38) -> 93.28627558 | H95: 700
C96: Asset 2 | D96: Age | E96: 8 | F96: 0.1501305598 | G96: 97.58486385 | H96: 650
C97: Asset 2 | D97: Age | E97: 9 | F97: 0.1700206829 | G97: 102.0124098 | H97: 600
C98: Asset 2 | D98: Age | E98: 10 | F98: 0.1937686947 | G98: 106.5727821 | H98: 550
C99: Asset 2 | D99: Age | E99: 11 | F99: 0.222539931 | G99: 111.2699655 | H99: 500
C100: Asset 2 | D100: Age | E100: 12 | F100: 0.2580179211 | G100: 116.1080645 | H100: 450
C101: Asset 2 | D101: Age | E101: 13 | F101: 0.3027282661 | G101: 121.0913064 | H101: 400
C102: Asset 2 | D102: Age | E102: 14 | F102: 0.3606401303 | G102: 126.2240456 | H102: 350
C103: Asset 2 | D103: Age | E103: 15 | F103: 0.4383692233 | G103: 131.510767 | H103: 300
C104: Asset 2 | D104: Age | E104: 16 | F104: 0.54782436 | G104: 136.95609 | H104: 250
C105: Asset 2 | D105: Age | E105: 17 | F105: 0.7128238635 | G105: 142.5647727 | H105: 200
C106: Asset 2 | D106: Age | E106: 19 | F106: 1.542919673 | G106: 154.2919673 | H106: 100
C107: Asset 2 | D107: Age | E107: 20 | F107: 3.208414527 | G107: 160.4207264 | H107: 50
F109: =AVERAGE(F88:F107) -> 0.4629169854 | G109: =SUM(G89:G108) -> 2076.103223 | H109: =SUM(H89:H108) -> 10350
F111: Average ROI | H111: =G109/H109 -> 0.2005896834

Sheet No Growth Model
A1: Time Line
B2: Year | E2: 0 | F2: 1 | G2: 2 | H2: 3 | I2: 4 | J2: 5 | K2: 6 | L2: 7 | M2: 8 | N2: 9 | O2: 10 | P2: 11 | Q2: 12 | R2: 13 | S2: 14 | T2: 15 | U2: 16 | V2: 17 | W2: 18 | X2: 19 | Y2: 20 | Z2: 21 | AA2: 22 | AB2: 23 | AC2: 24 | AD2: 25 | AE2: 26 | AF2: 27 | AG2: 28 | AH2: 29 | AI2: 30 | AJ2: 31 | AK2: 32 | AL2: 33 | AM2: 34 | AN2: 35 | AO2: 36 | AP2: 37 | AQ2: 38 | AR2: 39 | AS2: 40 | AT2: 41 | AU2: 42 | AV2: 43 | AW2: 44 | AX2: 45 | AY2: 46 | AZ2: 47 | BA2: 48 | BB2: 49 | BC2: 50 | BD2: 51 | BE2: 52 | BF2: 53 | BG2: 54 | BH2: 55 | BI2: 56 | BJ2: 57 | BK2: 58 | BL2: 59 | BM2: 60 | BN2: 61 | BO2: 62 | BP2: 63 | BQ2: 64 | BR2: 65 | BS2: 66 | BT2: 67 | BU2: 68 | BV2: 69 | BW2: 70 | BX2: 71 | BY2: 72 | BZ2: 73 | CA2: 74 | CB2: 75 | CC2: 76 | CD2: 77 | CE2: 78 | CF2: 79 | CG2: 80 | CH2: 81 | CI2: 82 | CJ2: 83 | CK2: 84 | CL2: 85 | CM2: 86 | CN2: 87 | CO2: 88 | CP2: 89 | CQ2: 90 | CR2: 91 | CS2: 92 | CT2: 93 | CU2: 94 | CV2: 95 | CW2: 96 | CX2: 97 | CY2: 98 | CZ2: 99 | DA2: 100 | DB2: 101 | DC2: 102 | DD2: 103 | DE2: 104 | DF2: 105 | DG2: 106 | DH2: 107 | DI2: 108 | DJ2: 109 | DK2: 110 | DL2: 111 | DM2: 112 | DN2: 113 | DO2: 114 | DP2: 115 | DQ2: 116 | DR2: 117 | DS2: 118 | DT2: 119 | DU2: 120 | DV2: 121 | DW2: 122 | DX2: 123 | DY2: 124 | DZ2: 125 | EA2: 126 | EB2: 127 | EC2: 128 | ED2: 129 | EE2: 130 | EF2: 131 | EG2: 132 | EH2: 133 | EI2: 134 | EJ2: 135 | EK2: 136 | EL2: 137 | EM2: 138 | EN2: 139 | EO2: 140 | EP2: 141 | EQ2: 142 | ER2: 143 | ES2: 144 | ET2: 145 | EU2: 146 | EV2: 147 | EW2: 148 | EX2: 149 | EY2: 150 | EZ2: 151 | FA2: 152 | FB2: 153 | FC2: 154 | FD2: 155 | FE2: 156 | FF2: 157 | FG2: 158 | FH2: 159 | FI2: 160 | FJ2: 161 | FK2: 162 | FL2: 163 | FM2: 164 | FN2: 165 | FO2: 166 | FP2: 167 | FQ2: 168 | FR2: 169 | FS2: 170 | FT2: 171 | FU2: 172 | FV2: 173 | FW2: 174 | FX2: 175 | FY2: 176 | FZ2: 177 | GA2: 178 | GB2: 179 | GC2: 180 | GD2: 181 | GE2: 182 | GF2: 183 | GG2: 184 | GH2: 185 | GI2: 186 | GJ2: 187 | GK2: 188 | GL2: 189 | GM2: 190 | GN2: 191 | GO2: 192 | GP2: 193 | GQ2: 194 | GR2: 195 | GS2: 196 | GT2: 197 | GU2: 198 | GV2: 199 | GW2: 200 | GX2: 201 | GY2: 202 | GZ2: 203 | HA2: 204 | HB2: 205 | HC2: 206 | HD2: 207 | HE2: 208 | HF2: 209 | HG2: 210 | HH2: 211 | HI2: 212 | HJ2: 213 | HK2: 214 | HL2: 215 | HM2: 216 | HN2: 217 | HO2: 218 | HP2: 219 | HQ2: 220 | HR2: 221 | HS2: 222 | HT2: 223 | HU2: 224 | HV2: 225 | HW2: 226 | HX2: 227 | HY2: 228 | HZ2: 229 | IA2: 230 | IB2: 231 | IC2: 232 | ID2: 233 | IE2: 234 | IF2: 235 | IG2: 236 | IH2: 237 | II2: 238 | IJ2: 239 | IK2: 240 | IL2: 241 | IM2: 242 | IN2: 243 | IO2: 244 | IP2: 245 | IQ2: 246 | IR2: 247 | IS2: 248 | IT2: 249 | IU2: 250 | IV2: 251 | IW2: 252 | IX2: 253 | IY2: 254 | IZ2: 255 | JA2: 256 | JB2: 257 | JC2: 258 | JD2: 259 | JE2: 260 | JF2: 261 | JG2: 262 | JH2: 263 | JI2: 264 | JJ2: 265 | JK2: 266 | JL2: 267 | JM2: 268 | JN2: 269 | JO2: 270 | JP2: 271 | JQ2: 272 | JR2: 273 | JS2: 274 | JT2: 275 | JU2: 276 | JV2: 277 | JW2: 278 | JX2: 279 | JY2: 280 | JZ2: 281 | KA2: 282 | KB2: 283 | KC2: 284 | KD2: 285 | KE2: 286 | KF2: 287 | KG2: 288 | KH2: 289 | KI2: 290 | KJ2: 291 | KK2: 292 | KL2: 293 | KM2: 294 | KN2: 295 | KO2: 296 | KP2: 297 | KQ2: 298 | KR2: 299 | KS2: 300 | KT2: 301 | KU2: 302 | KV2: 303 | KW2: 304 | KX2: 305 | KY2: 306 | KZ2: 307 | LA2: 308 | LB2: 309 | LC2: 310 | LD2: 311 | LE2: 312 | LF2: 313 | LG2: 314 | LH2: 315 | LI2: 316 | LJ2: 317 | LK2: 318 | LL2: 319 | LM2: 320 | LN2: 321 | LO2: 322 | LP2: 323 | LQ2: 324 | LR2: 325 | LS2: 326 | LT2: 327 | LU2: 328 | LV2: 329 | LW2: 330 | LX2: 331 | LY2: 332 | LZ2: 333 | MA2: 334 | MB2: 335 | MC2: 336 | MD2: 337 | ME2: 338 | MF2: 339 | MG2: 340 | MH2: 341 | MI2: 342 | MJ2: 343 | MK2: 344 | ML2: 345 | MM2: 346 | MN2: 347 | MO2: 348 | MP2: 349 | MQ2: 350 | MR2: 351 | MS2: 352 | MT2: 353 | MU2: 354 | MV2: 355 | MW2: 356 | MX2: 357 | MY2: 358 | MZ2: 359 | NA2: 360 | NB2: 361 | NC2: 362 | ND2: 363 | NE2: 364 | NF2: 365 | NG2: 366 | NH2: 367 | NI2: 368 | NJ2: 369 | NK2: 370 | NL2: 371 | NM2: 372 | NN2: 373 | NO2: 374 | NP2: 375 | NQ2: 376 | NR2: 377 | NS2: 378 | NT2: 379 | NU2: 380 | NV2: 381 | NW2: 382 | NX2: 383 | NY2: 384 | NZ2: 385 | OA2: 386 | OB2: 387 | OC2: 388 | OD2: 389 | OE2: 390 | OF2: 391 | OG2: 392 | OH2: 393 | OI2: 394 | OJ2: 395 | OK2: 396 | OL2: 397 | OM2: 398 | ON2: 399 | OO2: 400
A3: Assumptions
B4: Start of Valuation | E4: 6
B5: Terminal Period for Valuation | E5: 13
B6: Cap Exp = Depreciation | E6: TRUE
B8: Life | E8: 5
B9: Inflation | E9: 0
F10: 1 | G10: 2 | H10: 3 | I10: 4 | J10: 5 | K10: 6 | L10: 7 | M10: 8 | N10: 9 | O10: 10 | P10: 11 | Q10: 12 | R10: 13 | S10: 14 | T10: 15 | U10: 16 | V10: 17 | W10: 18 | X10: 19 | Y10: 20
F11: =F10<=$E$8 -> TRUE | G11: =G10<=$E$8 -> TRUE | H11: TRUE | I11: TRUE | J11: TRUE | K11: FALSE | L11: FALSE | M11: FALSE | N11: FALSE | O11: FALSE | P11: FALSE | Q11: FALSE | R11: FALSE | S11: FALSE | T11: FALSE | U11: FALSE | V11: FALSE | W11: FALSE | X11: FALSE | Y11: FALSE
B12: EBITDA | F12: 501 | G12: =F12*G11 -> 501 | H12: =G12*H11 -> 501 | I12: 501 | J12: 501 | K12: 0 | L12: 0 | M12: 0 | N12: 0 | O12: 0 | P12: =O12*P11 -> 0 | Q12: =P12*Q11 -> 0 | R12: =Q12*R11 -> 0 | S12: =R12*S11 -> 0 | T12: =S12*T11 -> 0 | U12: =T12*U11 -> 0 | V12: =U12*V11 -> 0 | W12: =V12*W11 -> 0 | X12: =W12*X11 -> 0 | Y12: =X12*Y11 -> 0
B13: Cap Exp | E13: 1000
B14: Cash Flow | E14: =E12-E13 -> -1000 | F14: =F12-F13 -> 501 | G14: 501 | H14: 501 | I14: 501 | J14: 501 | K14: 0 | L14: 0 | M14: 0 | N14: 0 | O14: 0 | P14: 0 | Q14: 0 | R14: 0 | S14: 0 | T14: 0 | U14: 0 | V14: 0 | W14: 0 | X14: 0 | Y14: 0
B15: IRR | E15: =IRR(14:14) -> 0.411617482
B16: Yield | F16: =F12/E13 -> 0.501
B18: Econ Depreciation | F18: =IFERROR(PPMT($E$15,F10,$E$8,-1),0) -> 0.08938251797 | G18: =IFERROR(PPMT($E$15,G10,$E$8,-1),0) -> 0.126173925 | H18: 0.1781093182 | I18: 0.2514222273 | J18: 0.3549120115 | K18: 0 | L18: 0 | M18: 0 | N18: 0 | O18: 0 | P18: 0 | Q18: 0 | R18: 0 | S18: 0 | T18: 0 | U18: 0 | V18: 0 | W18: 0 | X18: 0 | Y18: 0
B20: Retirement Distribution | E20: =1/(E8*2) -> 0.1
F22: 1 | G22: 2 | H22: 3 | I22: 4 | J22: 5 | K22: 6 | L22: 7 | M22: 8 | N22: 9 | O22: 10 | P22: 11 | Q22: 12 | R22: 13 | S22: 14 | T22: 15 | U22: 16 | V22: 17 | W22: 18 | X22: 19 | Y22: 20
B23: Switch | E23: =E8*2 -> 10 | F23: =F22<=$E$23 -> TRUE | G23: =G22<=$E$23 -> TRUE | H23: TRUE | I23: TRUE | J23: TRUE | K23: TRUE | L23: TRUE | M23: TRUE | N23: TRUE | O23: TRUE | P23: FALSE | Q23: FALSE | R23: FALSE | S23: FALSE | T23: FALSE | U23: FALSE | V23: FALSE | W23: FALSE | X23: FALSE | Y23: FALSE
B24: Retirement %
A26: Corporate Model
B27: Asset
C28: Opening Balance | F28: =E31 -> 1000 | G28: =F31 -> 1000 | H28: 1000 | I28: 1000 | J28: 1000 | K28: 1000 | L28: 1000 | M28: 1000 | N28: 1000 | O28: 1000 | P28: 1000 | Q28: 1000 | R28: 1000 | S28: 1000 | T28: 1000 | U28: 1000 | V28: 1000 | W28: 1000 | X28: 1000 | Y28: 1000 | Z28: 1000 | AA28: 1000 | AB28: 1000 | AC28: 1000 | AD28: 1000 | AE28: 1000 | AF28: 1000 | AG28: 1000 | AH28: 1000 | AI28: 1000 | AJ28: 1000 | AK28: 1000 | AL28: 1000 | AM28: 1000 | AN28: 1000 | AO28: 1000 | AP28: 1000 | AQ28: 1000 | AR28: 1000 | AS28: 1000 | AT28: 1000 | AU28: 1000 | AV28: 1000 | AW28: 1000 | AX28: 1000 | AY28: 1000 | AZ28: 1000 | BA28: 1000 | BB28: 1000 | BC28: 1000 | BD28: 1000 | BE28: 1000 | BF28: 1000 | BG28: 1000 | BH28: 1000 | BI28: 1000 | BJ28: 1000 | BK28: 1000 | BL28: 1000 | BM28: 1000 | BN28: 1000 | BO28: 1000 | BP28: 1000 | BQ28: 1000 | BR28: 1000 | BS28: =BR31 -> 1000 | BT28: 1000 | BU28: 1000 | BV28: 1000 | BW28: 1000 | BX28: 1000 | BY28: 1000 | BZ28: 1000 | CA28: 1000 | CB28: 1000 | CC28: 1000 | CD28: 1000 | CE28: 1000 | CF28: 1000 | CG28: 1000 | CH28: 1000 | CI28: 1000 | CJ28: 1000 | CK28: 1000 | CL28: 1000 | CM28: 1000 | CN28: 1000 | CO28: 1000 | CP28: 1000 | CQ28: 1000 | CR28: 1000 | CS28: 1000 | CT28: 1000 | CU28: 1000 | CV28: 1000 | CW28: 1000 | CX28: 1000 | CY28: 1000 | CZ28: 1000 | DA28: 1000 | DB28: 1000 | DC28: 1000 | DD28: 1000 | DE28: 1000 | DF28: 1000 | DG28: 1000 | DH28: 1000 | DI28: 1000 | DJ28: 1000 | DK28: 1000 | DL28: 1000 | DM28: 1000 | DN28: 1000 | DO28: 1000 | DP28: 1000 | DQ28: 1000 | DR28: 1000 | DS28: 1000 | DT28: 1000 | DU28: 1000 | DV28: 1000 | DW28: 1000 | DX28: 1000 | DY28: 1000 | DZ28: 1000 | EA28: 1000 | EB28: 1000 | EC28: 1000 | ED28: 1000 | EE28: =ED31 -> 1000 | EF28: 1000 | EG28: 1000 | EH28: 1000 | EI28: 1000 | EJ28: 1000 | EK28: 1000 | EL28: 1000 | EM28: 1000 | EN28: 1000 | EO28: 1000 | EP28: 1000 | EQ28: 1000 | ER28: 1000 | ES28: 1000 | ET28: 1000 | EU28: 1000 | EV28: 1000 | EW28: 1000 | EX28: 1000 | EY28: 1000 | EZ28: 1000 | FA28: 1000 | FB28: 1000 | FC28: 1000 | FD28: 1000 | FE28: 1000 | FF28: 1000 | FG28: 1000 | FH28: 1000 | FI28: 1000 | FJ28: 1000 | FK28: 1000 | FL28: 1000 | FM28: 1000 | FN28: 1000 | FO28: 1000 | FP28: 1000 | FQ28: 1000 | FR28: 1000 | FS28: 1000 | FT28: 1000 | FU28: 1000 | FV28: 1000 | FW28: 1000 | FX28: 1000 | FY28: 1000 | FZ28: 1000 | GA28: 1000 | GB28: 1000 | GC28: 1000 | GD28: 1000 | GE28: 1000 | GF28: 1000 | GG28: 1000 | GH28: 1000 | GI28: 1000 | GJ28: 1000 | GK28: 1000 | GL28: 1000 | GM28: 1000 | GN28: 1000 | GO28: 1000 | GP28: 1000 | GQ28: =GP31 -> 1000 | GR28: 1000 | GS28: 1000 | GT28: 1000 | GU28: 1000 | GV28: 1000 | GW28: 1000 | GX28: 1000 | GY28: 1000 | GZ28: 1000 | HA28: 1000 | HB28: 1000 | HC28: 1000 | HD28: 1000 | HE28: 1000 | HF28: 1000 | HG28: 1000 | HH28: 1000 | HI28: 1000 | HJ28: 1000 | HK28: 1000 | HL28: 1000 | HM28: 1000 | HN28: 1000 | HO28: 1000 | HP28: 1000 | HQ28: 1000 | HR28: 1000 | HS28: 1000 | HT28: 1000 | HU28: 1000 | HV28: 1000 | HW28: 1000 | HX28: 1000 | HY28: 1000 | HZ28: 1000 | IA28: 1000 | IB28: 1000 | IC28: 1000 | ID28: 1000 | IE28: 1000 | IF28: 1000 | IG28: 1000 | IH28: 1000 | II28: 1000 | IJ28: 1000 | IK28: 1000 | IL28: 1000 | IM28: 1000 | IN28: 1000 | IO28: 1000 | IP28: 1000 | IQ28: 1000 | IR28: 1000 | IS28: 1000 | IT28: 1000 | IU28: 1000 | IV28: 1000 | IW28: 1000 | IX28: 1000 | IY28: 1000 | IZ28: 1000 | JA28: 1000 | JB28: 1000 | JC28: =JB31 -> 1000 | JD28: 1000 | JE28: 1000 | JF28: 1000 | JG28: 1000 | JH28: 1000 | JI28: 1000 | JJ28: 1000 | JK28: 1000 | JL28: 1000 | JM28: 1000 | JN28: 1000 | JO28: 1000 | JP28: 1000 | JQ28: 1000 | JR28: 1000 | JS28: 1000 | JT28: 1000 | JU28: 1000 | JV28: 1000 | JW28: 1000 | JX28: 1000 | JY28: 1000 | JZ28: 1000 | KA28: 1000 | KB28: 1000 | KC28: 1000 | KD28: 1000 | KE28: 1000 | KF28: 1000 | KG28: 1000 | KH28: 1000 | KI28: 1000 | KJ28: 1000 | KK28: 1000 | KL28: 1000 | KM28: 1000 | KN28: 1000 | KO28: 1000 | KP28: 1000 | KQ28: 1000 | KR28: 1000 | KS28: 1000 | KT28: 1000 | KU28: 1000 | KV28: 1000 | KW28: 1000 | KX28: 1000 | KY28: 1000 | KZ28: 1000 | LA28: 1000 | LB28: 1000 | LC28: 1000 | LD28: 1000 | LE28: 1000 | LF28: 1000 | LG28: 1000 | LH28: 1000 | LI28: 1000 | LJ28: 1000 | LK28: 1000 | LL28: 1000 | LM28: 1000 | LN28: 1000 | LO28: =LN31 -> 1000 | LP28: 1000 | LQ28: 1000 | LR28: 1000 | LS28: 1000 | LT28: 1000 | LU28: 1000 | LV28: 1000 | LW28: 1000 | LX28: 1000 | LY28: 1000 | LZ28: 1000 | MA28: 1000 | MB28: 1000 | MC28: 1000 | MD28: 1000 | ME28: 1000 | MF28: 1000 | MG28: 1000 | MH28: 1000 | MI28: 1000 | MJ28: 1000 | MK28: 1000 | ML28: 1000 | MM28: 1000 | MN28: 1000 | MO28: 1000 | MP28: 1000 | MQ28: 1000 | MR28: 1000 | MS28: 1000 | MT28: 1000 | MU28: 1000 | MV28: 1000 | MW28: 1000 | MX28: 1000 | MY28: 1000 | MZ28: 1000 | NA28: 1000 | NB28: 1000 | NC28: 1000 | ND28: 1000 | NE28: 1000 | NF28: 1000 | NG28: 1000 | NH28: 1000 | NI28: 1000 | NJ28: 1000 | NK28: 1000 | NL28: 1000 | NM28: 1000 | NN28: 1000 | NO28: 1000 | NP28: 1000 | NQ28: 1000 | NR28: 1000 | NS28: 1000 | NT28: 1000 | NU28: 1000 | NV28: 1000 | NW28: 1000 | NX28: 1000 | NY28: 1000 | NZ28: 1000 | OA28: =NZ31 -> 1000 | OB28: 1000 | OC28: 1000 | OD28: 1000 | OE28: 1000 | OF28: 1000 | OG28: 1000 | OH28: 1000 | OI28: 1000 | OJ28: 1000 | OK28: 1000 | OL28: 1000 | OM28: 1000 | ON28: 1000 | OO28: 1000
C29: Add: Capital Expenditures | E29: =E13 -> 1000 | F29: =F30 -> FALSE | G29: =G30 -> FALSE | H29: =H30 -> FALSE | I29: FALSE | J29: 1000 | K29: FALSE | L29: FALSE | M29: FALSE | N29: FALSE | O29: 1000 | P29: FALSE | Q29: FALSE | R29: FALSE | S29: FALSE | T29: 1000 | U29: FALSE | V29: FALSE | W29: FALSE | X29: FALSE | Y29: 1000 | Z29: FALSE | AA29: FALSE | AB29: FALSE | AC29: FALSE | AD29: 1000 | AE29: FALSE | AF29: FALSE | AG29: FALSE | AH29: FALSE | AI29: 1000 | AJ29: FALSE | AK29: FALSE | AL29: FALSE | AM29: FALSE | AN29: 1000 | AO29: FALSE | AP29: FALSE | AQ29: FALSE | AR29: FALSE | AS29: 1000 | AT29: FALSE | AU29: FALSE | AV29: FALSE | AW29: FALSE | AX29: 1000 | AY29: FALSE | AZ29: FALSE | BA29: FALSE | BB29: FALSE | BC29: 1000 | BD29: =BD30 -> FALSE | BE29: =BE30 -> FALSE | BF29: =BF30 -> FALSE | BG29: =BG30 -> FALSE | BH29: =BH30 -> 1000 | BI29: =BI30 -> FALSE | BJ29: =BJ30 -> FALSE | BK29: =BK30 -> FALSE | BL29: =BL30 -> FALSE | BM29: =BM30 -> 1000 | BN29: =BN30 -> FALSE | BO29: =BO30 -> FALSE | BP29: =BP30 -> FALSE | BQ29: =BQ30 -> FALSE | BR29: =BR30 -> 1000 | BS29: =BS30 -> FALSE | BT29: =BT30 -> FALSE | BU29: =BU30 -> FALSE | BV29: =BV30 -> FALSE | BW29: =BW30 -> 1000 | BX29: =BX30 -> FALSE | BY29: =BY30 -> FALSE | BZ29: =BZ30 -> FALSE | CA29: =CA30 -> FALSE | CB29: =CB30 -> 1000 | CC29: =CC30 -> FALSE | CD29: =CD30 -> FALSE | CE29: =CE30 -> FALSE | CF29: =CF30 -> FALSE | CG29: =CG30 -> 1000 | CH29: =CH30 -> FALSE | CI29: =CI30 -> FALSE | CJ29: =CJ30 -> FALSE | CK29: =CK30 -> FALSE | CL29: =CL30 -> 1000 | CM29: =CM30 -> FALSE | CN29: =CN30 -> FALSE | CO29: =CO30 -> FALSE | CP29: =CP30 -> FALSE | CQ29: =CQ30 -> 1000 | CR29: =CR30 -> FALSE | CS29: =CS30 -> FALSE | CT29: =CT30 -> FALSE | CU29: =CU30 -> FALSE | CV29: =CV30 -> 1000 | CW29: =CW30 -> FALSE | CX29: =CX30 -> FALSE | CY29: =CY30 -> FALSE | CZ29: =CZ30 -> FALSE | DA29: =DA30 -> 1000 | DB29: =DB30 -> FALSE | DC29: =DC30 -> FALSE | DD29: =DD30 -> FALSE | DE29: =DE30 -> FALSE | DF29: =DF30 -> 1000 | DG29: =DG30 -> FALSE | DH29: =DH30 -> FALSE | DI29: =DI30 -> FALSE | DJ29: =DJ30 -> FALSE | DK29: =DK30 -> 1000 | DL29: =DL30 -> FALSE | DM29: =DM30 -> FALSE | DN29: =DN30 -> FALSE | DO29: =DO30 -> FALSE | DP29: =DP30 -> 1000 | DQ29: =DQ30 -> FALSE | DR29: =DR30 -> FALSE | DS29: =DS30 -> FALSE | DT29: =DT30 -> FALSE | DU29: =DU30 -> 1000 | DV29: =DV30 -> FALSE | DW29: =DW30 -> FALSE | DX29: =DX30 -> FALSE | DY29: =DY30 -> FALSE | DZ29: =DZ30 -> 1000 | EA29: =EA30 -> FALSE | EB29: =EB30 -> FALSE | EC29: =EC30 -> FALSE | ED29: =ED30 -> FALSE | EE29: =EE30 -> 1000 | EF29: =EF30 -> FALSE | EG29: =EG30 -> FALSE | EH29: =EH30 -> FALSE | EI29: =EI30 -> FALSE | EJ29: =EJ30 -> 1000 | EK29: =EK30 -> FALSE | EL29: =EL30 -> FALSE | EM29: =EM30 -> FALSE | EN29: =EN30 -> FALSE | EO29: =EO30 -> 1000 | EP29: =EP30 -> FALSE | EQ29: =EQ30 -> FALSE | ER29: =ER30 -> FALSE | ES29: =ES30 -> FALSE | ET29: =ET30 -> 1000 | EU29: =EU30 -> FALSE | EV29: =EV30 -> FALSE | EW29: =EW30 -> FALSE | EX29: =EX30 -> FALSE | EY29: =EY30 -> 1000 | EZ29: =EZ30 -> FALSE | FA29: =FA30 -> FALSE | FB29: =FB30 -> FALSE | FC29: =FC30 -> FALSE | FD29: =FD30 -> 1000 | FE29: =FE30 -> FALSE | FF29: =FF30 -> FALSE | FG29: =FG30 -> FALSE | FH29: =FH30 -> FALSE | FI29: =FI30 -> 1000 | FJ29: =FJ30 -> FALSE | FK29: =FK30 -> FALSE | FL29: =FL30 -> FALSE | FM29: =FM30 -> FALSE | FN29: =FN30 -> 1000 | FO29: =FO30 -> FALSE | FP29: =FP30 -> FALSE | FQ29: =FQ30 -> FALSE | FR29: =FR30 -> FALSE | FS29: =FS30 -> 1000 | FT29: =FT30 -> FALSE | FU29: =FU30 -> FALSE | FV29: =FV30 -> FALSE | FW29: =FW30 -> FALSE | FX29: =FX30 -> 1000 | FY29: =FY30 -> FALSE | FZ29: =FZ30 -> FALSE | GA29: =GA30 -> FALSE | GB29: =GB30 -> FALSE | GC29: =GC30 -> 1000 | GD29: =GD30 -> FALSE | GE29: =GE30 -> FALSE | GF29: =GF30 -> FALSE | GG29: =GG30 -> FALSE | GH29: =GH30 -> 1000 | GI29: =GI30 -> FALSE | GJ29: =GJ30 -> FALSE | GK29: =GK30 -> FALSE | GL29: =GL30 -> FALSE | GM29: =GM30 -> 1000 | GN29: =GN30 -> FALSE | GO29: =GO30 -> FALSE | GP29: =GP30 -> FALSE | GQ29: =GQ30 -> FALSE | GR29: =GR30 -> 1000 | GS29: =GS30 -> FALSE | GT29: =GT30 -> FALSE | GU29: =GU30 -> FALSE | GV29: =GV30 -> FALSE | GW29: =GW30 -> 1000 | GX29: =GX30 -> FALSE | GY29: =GY30 -> FALSE | GZ29: =GZ30 -> FALSE | HA29: =HA30 -> FALSE | HB29: =HB30 -> 1000 | HC29: =HC30 -> FALSE | HD29: =HD30 -> FALSE | HE29: =HE30 -> FALSE | HF29: =HF30 -> FALSE | HG29: =HG30 -> 1000 | HH29: =HH30 -> FALSE | HI29: =HI30 -> FALSE | HJ29: =HJ30 -> FALSE | HK29: =HK30 -> FALSE | HL29: =HL30 -> 1000 | HM29: =HM30 -> FALSE | HN29: =HN30 -> FALSE | HO29: =HO30 -> FALSE | HP29: =HP30 -> FALSE | HQ29: =HQ30 -> 1000 | HR29: =HR30 -> FALSE | HS29: =HS30 -> FALSE | HT29: =HT30 -> FALSE | HU29: =HU30 -> FALSE | HV29: =HV30 -> 1000 | HW29: =HW30 -> FALSE | HX29: =HX30 -> FALSE | HY29: =HY30 -> FALSE | HZ29: =HZ30 -> FALSE | IA29: =IA30 -> 1000 | IB29: =IB30 -> FALSE | IC29: =IC30 -> FALSE | ID29: =ID30 -> FALSE | IE29: =IE30 -> FALSE | IF29: =IF30 -> 1000 | IG29: =IG30 -> FALSE | IH29: =IH30 -> FALSE | II29: =II30 -> FALSE | IJ29: =IJ30 -> FALSE | IK29: =IK30 -> 1000 | IL29: =IL30 -> FALSE | IM29: =IM30 -> FALSE | IN29: =IN30 -> FALSE | IO29: =IO30 -> FALSE | IP29: =IP30 -> 1000 | IQ29: =IQ30 -> FALSE | IR29: =IR30 -> FALSE | IS29: =IS30 -> FALSE | IT29: =IT30 -> FALSE | IU29: =IU30 -> 1000 | IV29: =IV30 -> FALSE | IW29: =IW30 -> FALSE | IX29: =IX30 -> FALSE | IY29: =IY30 -> FALSE | IZ29: =IZ30 -> 1000 | JA29: =JA30 -> FALSE | JB29: =JB30 -> FALSE | JC29: =JC30 -> FALSE | JD29: =JD30 -> FALSE | JE29: =JE30 -> 1000 | JF29: =JF30 -> FALSE | JG29: =JG30 -> FALSE | JH29: =JH30 -> FALSE | JI29: =JI30 -> FALSE | JJ29: =JJ30 -> 1000 | JK29: =JK30 -> FALSE | JL29: =JL30 -> FALSE | JM29: =JM30 -> FALSE | JN29: =JN30 -> FALSE | JO29: =JO30 -> 1000 | JP29: =JP30 -> FALSE | JQ29: =JQ30 -> FALSE | JR29: =JR30 -> FALSE | JS29: =JS30 -> FALSE | JT29: =JT30 -> 1000 | JU29: =JU30 -> FALSE | JV29: =JV30 -> FALSE | JW29: =JW30 -> FALSE | JX29: =JX30 -> FALSE | JY29: =JY30 -> 1000 | JZ29: =JZ30 -> FALSE | KA29: =KA30 -> FALSE | KB29: =KB30 -> FALSE | KC29: =KC30 -> FALSE | KD29: =KD30 -> 1000 | KE29: =KE30 -> FALSE | KF29: =KF30 -> FALSE | KG29: =KG30 -> FALSE | KH29: =KH30 -> FALSE | KI29: =KI30 -> 1000 | KJ29: =KJ30 -> FALSE | KK29: =KK30 -> FALSE | KL29: =KL30 -> FALSE | KM29: =KM30 -> FALSE | KN29: =KN30 -> 1000 | KO29: =KO30 -> FALSE | KP29: =KP30 -> FALSE | KQ29: =KQ30 -> FALSE | KR29: =KR30 -> FALSE | KS29: =KS30 -> 1000 | KT29: =KT30 -> FALSE | KU29: =KU30 -> FALSE | KV29: =KV30 -> FALSE | KW29: =KW30 -> FALSE | KX29: =KX30 -> 1000 | KY29: =KY30 -> FALSE | KZ29: =KZ30 -> FALSE | LA29: =LA30 -> FALSE | LB29: =LB30 -> FALSE | LC29: =LC30 -> 1000 | LD29: =LD30 -> FALSE | LE29: =LE30 -> FALSE | LF29: =LF30 -> FALSE | LG29: =LG30 -> FALSE | LH29: =LH30 -> 1000 | LI29: =LI30 -> FALSE | LJ29: =LJ30 -> FALSE | LK29: =LK30 -> FALSE | LL29: =LL30 -> FALSE | LM29: =LM30 -> 1000 | LN29: =LN30 -> FALSE | LO29: =LO30 -> FALSE | LP29: =LP30 -> FALSE | LQ29: =LQ30 -> FALSE | LR29: =LR30 -> 1000 | LS29: =LS30 -> FALSE | LT29: =LT30 -> FALSE | LU29: =LU30 -> FALSE | LV29: =LV30 -> FALSE | LW29: =LW30 -> 1000 | LX29: =LX30 -> FALSE | LY29: =LY30 -> FALSE | LZ29: =LZ30 -> FALSE | MA29: =MA30 -> FALSE | MB29: =MB30 -> 1000 | MC29: =MC30 -> FALSE | MD29: =MD30 -> FALSE | ME29: =ME30 -> FALSE | MF29: =MF30 -> FALSE | MG29: =MG30 -> 1000 | MH29: =MH30 -> FALSE | MI29: =MI30 -> FALSE | MJ29: =MJ30 -> FALSE | MK29: =MK30 -> FALSE | ML29: =ML30 -> 1000 | MM29: =MM30 -> FALSE | MN29: =MN30 -> FALSE | MO29: =MO30 -> FALSE | MP29: =MP30 -> FALSE | MQ29: =MQ30 -> 1000 | MR29: =MR30 -> FALSE | MS29: =MS30 -> FALSE | MT29: =MT30 -> FALSE | MU29: =MU30 -> FALSE | MV29: =MV30 -> 1000 | MW29: =MW30 -> FALSE | MX29: =MX30 -> FALSE | MY29: =MY30 -> FALSE | MZ29: =MZ30 -> FALSE | NA29: =NA30 -> 1000 | NB29: =NB30 -> FALSE | NC29: =NC30 -> FALSE | ND29: =ND30 -> FALSE | NE29: =NE30 -> FALSE | NF29: =NF30 -> 1000 | NG29: =NG30 -> FALSE | NH29: =NH30 -> FALSE | NI29: =NI30 -> FALSE | NJ29: =NJ30 -> FALSE | NK29: =NK30 -> 1000 | NL29: =NL30 -> FALSE | NM29: =NM30 -> FALSE | NN29: =NN30 -> FALSE | NO29: =NO30 -> FALSE | NP29: =NP30 -> 1000 | NQ29: =NQ30 -> FALSE | NR29: =NR30 -> FALSE | NS29: =NS30 -> FALSE | NT29: =NT30 -> FALSE | NU29: =NU30 -> 1000 | NV29: =NV30 -> FALSE | NW29: =NW30 -> FALSE | NX29: =NX30 -> FALSE | NY29: =NY30 -> FALSE | NZ29: =NZ30 -> 1000 | OA29: =OA30 -> FALSE | OB29: =OB30 -> FALSE | OC29: =OC30 -> FALSE | OD29: =OD30 -> FALSE | OE29: =OE30 -> 1000 | OF29: =OF30 -> FALSE | OG29: =OG30 -> FALSE | OH29: =OH30 -> FALSE | OI29: =OI30 -> FALSE | OJ29: =OJ30 -> 1000 | OK29: =OK30 -> FALSE | OL29: =OL30 -> FALSE | OM29: =OM30 -> FALSE | ON29: =ON30 -> FALSE | OO29: =OO30 -> 1000
C30: Less: Retirement | F30: =IF(F2>=$E$8,OFFSET(F30,-1,-$E$8)) -> FALSE | G30: =IF(G2>=$E$8,OFFSET(G30,-1,-$E$8)) -> FALSE | H30: FALSE | I30: FALSE | J30: 1000 | K30: FALSE | L30: FALSE | M30: FALSE | N30: FALSE | O30: 1000 | P30: FALSE | Q30: FALSE | R30: FALSE | S30: FALSE | T30: 1000 | U30: FALSE | V30: FALSE | W30: FALSE | X30: FALSE | Y30: 1000 | Z30: FALSE | AA30: FALSE | AB30: FALSE | AC30: FALSE | AD30: 1000 | AE30: FALSE | AF30: FALSE | AG30: FALSE | AH30: FALSE | AI30: 1000 | AJ30: FALSE | AK30: FALSE | AL30: FALSE | AM30: FALSE | AN30: 1000 | AO30: FALSE | AP30: FALSE | AQ30: FALSE | AR30: FALSE | AS30: 1000 | AT30: FALSE | AU30: FALSE | AV30: FALSE | AW30: FALSE | AX30: 1000 | AY30: FALSE | AZ30: FALSE | BA30: FALSE | BB30: FALSE | BC30: 1000 | BD30: FALSE | BE30: FALSE | BF30: FALSE | BG30: FALSE | BH30: 1000 | BI30: FALSE | BJ30: FALSE | BK30: FALSE | BL30: FALSE | BM30: 1000 | BN30: FALSE | BO30: FALSE | BP30: FALSE | BQ30: FALSE | BR30: 1000 | BS30: =IF(BS2>=$E$8,OFFSET(BS30,-1,-$E$8)) -> FALSE | BT30: FALSE | BU30: FALSE | BV30: FALSE | BW30: 1000 | BX30: FALSE | BY30: FALSE | BZ30: FALSE | CA30: FALSE | CB30: 1000 | CC30: FALSE | CD30: FALSE | CE30: FALSE | CF30: FALSE | CG30: 1000 | CH30: FALSE | CI30: FALSE | CJ30: FALSE | CK30: FALSE | CL30: 1000 | CM30: FALSE | CN30: FALSE | CO30: FALSE | CP30: FALSE | CQ30: 1000 | CR30: FALSE | CS30: FALSE | CT30: FALSE | CU30: FALSE | CV30: 1000 | CW30: FALSE | CX30: FALSE | CY30: FALSE | CZ30: FALSE | DA30: 1000 | DB30: FALSE | DC30: FALSE | DD30: FALSE | DE30: FALSE | DF30: 1000 | DG30: FALSE | DH30: FALSE | DI30: FALSE | DJ30: FALSE | DK30: 1000 | DL30: FALSE | DM30: FALSE | DN30: FALSE | DO30: FALSE | DP30: 1000 | DQ30: FALSE | DR30: FALSE | DS30: FALSE | DT30: FALSE | DU30: 1000 | DV30: FALSE | DW30: FALSE | DX30: FALSE | DY30: FALSE | DZ30: 1000 | EA30: FALSE | EB30: FALSE | EC30: FALSE | ED30: FALSE | EE30: =IF(EE2>=$E$8,OFFSET(EE30,-1,-$E$8)) -> 1000 | EF30: FALSE | EG30: FALSE | EH30: FALSE | EI30: FALSE | EJ30: 1000 | EK30: FALSE | EL30: FALSE | EM30: FALSE | EN30: FALSE | EO30: 1000 | EP30: FALSE | EQ30: FALSE | ER30: FALSE | ES30: FALSE | ET30: 1000 | EU30: FALSE | EV30: FALSE | EW30: FALSE | EX30: FALSE | EY30: 1000 | EZ30: FALSE | FA30: FALSE | FB30: FALSE | FC30: FALSE | FD30: 1000 | FE30: FALSE | FF30: FALSE | FG30: FALSE | FH30: FALSE | FI30: 1000 | FJ30: FALSE | FK30: FALSE | FL30: FALSE | FM30: FALSE | FN30: 1000 | FO30: FALSE | FP30: FALSE | FQ30: FALSE | FR30: FALSE | FS30: 1000 | FT30: FALSE | FU30: FALSE | FV30: FALSE | FW30: FALSE | FX30: 1000 | FY30: FALSE | FZ30: FALSE | GA30: FALSE | GB30: FALSE | GC30: 1000 | GD30: FALSE | GE30: FALSE | GF30: FALSE | GG30: FALSE | GH30: 1000 | GI30: FALSE | GJ30: FALSE | GK30: FALSE | GL30: FALSE | GM30: 1000 | GN30: FALSE | GO30: FALSE | GP30: FALSE | GQ30: =IF(GQ2>=$E$8,OFFSET(GQ30,-1,-$E$8)) -> FALSE | GR30: 1000 | GS30: FALSE | GT30: FALSE | GU30: FALSE | GV30: FALSE | GW30: 1000 | GX30: FALSE | GY30: FALSE | GZ30: FALSE | HA30: FALSE | HB30: 1000 | HC30: FALSE | HD30: FALSE | HE30: FALSE | HF30: FALSE | HG30: 1000 | HH30: FALSE | HI30: FALSE | HJ30: FALSE | HK30: FALSE | HL30: 1000 | HM30: FALSE | HN30: FALSE | HO30: FALSE | HP30: FALSE | HQ30: 1000 | HR30: FALSE | HS30: FALSE | HT30: FALSE | HU30: FALSE | HV30: 1000 | HW30: FALSE | HX30: FALSE | HY30: FALSE | HZ30: FALSE | IA30: 1000 | IB30: FALSE | IC30: FALSE | ID30: FALSE | IE30: FALSE | IF30: 1000 | IG30: FALSE | IH30: FALSE | II30: FALSE | IJ30: FALSE | IK30: 1000 | IL30: FALSE | IM30: FALSE | IN30: FALSE | IO30: FALSE | IP30: 1000 | IQ30: FALSE | IR30: FALSE | IS30: FALSE | IT30: FALSE | IU30: 1000 | IV30: FALSE | IW30: FALSE | IX30: FALSE | IY30: FALSE | IZ30: 1000 | JA30: FALSE | JB30: FALSE | JC30: =IF(JC2>=$E$8,OFFSET(JC30,-1,-$E$8)) -> FALSE | JD30: FALSE | JE30: 1000 | JF30: FALSE | JG30: FALSE | JH30: FALSE | JI30: FALSE | JJ30: 1000 | JK30: FALSE | JL30: FALSE | JM30: FALSE | JN30: FALSE | JO30: 1000 | JP30: FALSE | JQ30: FALSE | JR30: FALSE | JS30: FALSE | JT30: 1000 | JU30: FALSE | JV30: FALSE | JW30: FALSE | JX30: FALSE | JY30: 1000 | JZ30: FALSE | KA30: FALSE | KB30: FALSE | KC30: FALSE | KD30: 1000 | KE30: FALSE | KF30: FALSE | KG30: FALSE | KH30: FALSE | KI30: 1000 | KJ30: FALSE | KK30: FALSE | KL30: FALSE | KM30: FALSE | KN30: 1000 | KO30: FALSE | KP30: FALSE | KQ30: FALSE | KR30: FALSE | KS30: 1000 | KT30: FALSE | KU30: FALSE | KV30: FALSE | KW30: FALSE | KX30: 1000 | KY30: FALSE | KZ30: FALSE | LA30: FALSE | LB30: FALSE | LC30: 1000 | LD30: FALSE | LE30: FALSE | LF30: FALSE | LG30: FALSE | LH30: 1000 | LI30: FALSE | LJ30: FALSE | LK30: FALSE | LL30: FALSE | LM30: 1000 | LN30: FALSE | LO30: =IF(LO2>=$E$8,OFFSET(LO30,-1,-$E$8)) -> FALSE | LP30: FALSE | LQ30: FALSE | LR30: 1000 | LS30: FALSE | LT30: FALSE | LU30: FALSE | LV30: FALSE | LW30: 1000 | LX30: FALSE | LY30: FALSE | LZ30: FALSE | MA30: FALSE | MB30: 1000 | MC30: FALSE | MD30: FALSE | ME30: FALSE | MF30: FALSE | MG30: 1000 | MH30: FALSE | MI30: FALSE | MJ30: FALSE | MK30: FALSE | ML30: 1000 | MM30: FALSE | MN30: FALSE | MO30: FALSE | MP30: FALSE | MQ30: 1000 | MR30: FALSE | MS30: FALSE | MT30: FALSE | MU30: FALSE | MV30: 1000 | MW30: FALSE | MX30: FALSE | MY30: FALSE | MZ30: FALSE | NA30: 1000 | NB30: FALSE | NC30: FALSE | ND30: FALSE | NE30: FALSE | NF30: 1000 | NG30: FALSE | NH30: FALSE | NI30: FALSE | NJ30: FALSE | NK30: 1000 | NL30: FALSE | NM30: FALSE | NN30: FALSE | NO30: FALSE | NP30: 1000 | NQ30: FALSE | NR30: FALSE | NS30: FALSE | NT30: FALSE | NU30: 1000 | NV30: FALSE | NW30: FALSE | NX30: FALSE | NY30: FALSE | NZ30: 1000 | OA30: =IF(OA2>=$E$8,OFFSET(OA30,-1,-$E$8)) -> FALSE | OB30: FALSE | OC30: FALSE | OD30: FALSE | OE30: 1000 | OF30: FALSE | OG30: FALSE | OH30: FALSE | OI30: FALSE | OJ30: 1000 | OK30: FALSE | OL30: FALSE | OM30: FALSE | ON30: FALSE | OO30: 1000
C31: Closing Balance | E31: =E28+E29-E30 -> 1000 | F31: =F28+F29-F30 -> 1000 | G31: =G28+G29-G30 -> 1000 | H31: 1000 | I31: 1000 | J31: 1000 | K31: 1000 | L31: 1000 | M31: 1000 | N31: 1000 | O31: 1000 | P31: 1000 | Q31: 1000 | R31: 1000 | S31: 1000 | T31: 1000 | U31: 1000 | V31: 1000 | W31: 1000 | X31: 1000 | Y31: 1000 | Z31: 1000 | AA31: 1000 | AB31: 1000 | AC31: 1000 | AD31: 1000 | AE31: 1000 | AF31: 1000 | AG31: 1000 | AH31: 1000 | AI31: 1000 | AJ31: 1000 | AK31: 1000 | AL31: 1000 | AM31: 1000 | AN31: 1000 | AO31: 1000 | AP31: 1000 | AQ31: 1000 | AR31: 1000 | AS31: 1000 | AT31: 1000 | AU31: 1000 | AV31: 1000 | AW31: 1000 | AX31: 1000 | AY31: 1000 | AZ31: 1000 | BA31: 1000 | BB31: 1000 | BC31: 1000 | BD31: =BD28+BD29-BD30 -> 1000 | BE31: =BE28+BE29-BE30 -> 1000 | BF31: =BF28+BF29-BF30 -> 1000 | BG31: =BG28+BG29-BG30 -> 1000 | BH31: =BH28+BH29-BH30 -> 1000 | BI31: =BI28+BI29-BI30 -> 1000 | BJ31: =BJ28+BJ29-BJ30 -> 1000 | BK31: =BK28+BK29-BK30 -> 1000 | BL31: =BL28+BL29-BL30 -> 1000 | BM31: =BM28+BM29-BM30 -> 1000 | BN31: =BN28+BN29-BN30 -> 1000 | BO31: =BO28+BO29-BO30 -> 1000 | BP31: =BP28+BP29-BP30 -> 1000 | BQ31: =BQ28+BQ29-BQ30 -> 1000 | BR31: =BR28+BR29-BR30 -> 1000 | BS31: =BS28+BS29-BS30 -> 1000 | BT31: =BT28+BT29-BT30 -> 1000 | BU31: =BU28+BU29-BU30 -> 1000 | BV31: =BV28+BV29-BV30 -> 1000 | BW31: =BW28+BW29-BW30 -> 1000 | BX31: =BX28+BX29-BX30 -> 1000 | BY31: =BY28+BY29-BY30 -> 1000 | BZ31: =BZ28+BZ29-BZ30 -> 1000 | CA31: =CA28+CA29-CA30 -> 1000 | CB31: =CB28+CB29-CB30 -> 1000 | CC31: =CC28+CC29-CC30 -> 1000 | CD31: =CD28+CD29-CD30 -> 1000 | CE31: =CE28+CE29-CE30 -> 1000 | CF31: =CF28+CF29-CF30 -> 1000 | CG31: =CG28+CG29-CG30 -> 1000 | CH31: =CH28+CH29-CH30 -> 1000 | CI31: =CI28+CI29-CI30 -> 1000 | CJ31: =CJ28+CJ29-CJ30 -> 1000 | CK31: =CK28+CK29-CK30 -> 1000 | CL31: =CL28+CL29-CL30 -> 1000 | CM31: =CM28+CM29-CM30 -> 1000 | CN31: =CN28+CN29-CN30 -> 1000 | CO31: =CO28+CO29-CO30 -> 1000 | CP31: =CP28+CP29-CP30 -> 1000 | CQ31: =CQ28+CQ29-CQ30 -> 1000 | CR31: =CR28+CR29-CR30 -> 1000 | CS31: =CS28+CS29-CS30 -> 1000 | CT31: =CT28+CT29-CT30 -> 1000 | CU31: =CU28+CU29-CU30 -> 1000 | CV31: =CV28+CV29-CV30 -> 1000 | CW31: =CW28+CW29-CW30 -> 1000 | CX31: =CX28+CX29-CX30 -> 1000 | CY31: =CY28+CY29-CY30 -> 1000 | CZ31: =CZ28+CZ29-CZ30 -> 1000 | DA31: =DA28+DA29-DA30 -> 1000 | DB31: =DB28+DB29-DB30 -> 1000 | DC31: =DC28+DC29-DC30 -> 1000 | DD31: =DD28+DD29-DD30 -> 1000 | DE31: =DE28+DE29-DE30 -> 1000 | DF31: =DF28+DF29-DF30 -> 1000 | DG31: =DG28+DG29-DG30 -> 1000 | DH31: =DH28+DH29-DH30 -> 1000 | DI31: =DI28+DI29-DI30 -> 1000 | DJ31: =DJ28+DJ29-DJ30 -> 1000 | DK31: =DK28+DK29-DK30 -> 1000 | DL31: =DL28+DL29-DL30 -> 1000 | DM31: =DM28+DM29-DM30 -> 1000 | DN31: =DN28+DN29-DN30 -> 1000 | DO31: =DO28+DO29-DO30 -> 1000 | DP31: =DP28+DP29-DP30 -> 1000 | DQ31: =DQ28+DQ29-DQ30 -> 1000 | DR31: =DR28+DR29-DR30 -> 1000 | DS31: =DS28+DS29-DS30 -> 1000 | DT31: =DT28+DT29-DT30 -> 1000 | DU31: =DU28+DU29-DU30 -> 1000 | DV31: =DV28+DV29-DV30 -> 1000 | DW31: =DW28+DW29-DW30 -> 1000 | DX31: =DX28+DX29-DX30 -> 1000 | DY31: =DY28+DY29-DY30 -> 1000 | DZ31: =DZ28+DZ29-DZ30 -> 1000 | EA31: =EA28+EA29-EA30 -> 1000 | EB31: =EB28+EB29-EB30 -> 1000 | EC31: =EC28+EC29-EC30 -> 1000 | ED31: =ED28+ED29-ED30 -> 1000 | EE31: =EE28+EE29-EE30 -> 1000 | EF31: =EF28+EF29-EF30 -> 1000 | EG31: =EG28+EG29-EG30 -> 1000 | EH31: =EH28+EH29-EH30 -> 1000 | EI31: =EI28+EI29-EI30 -> 1000 | EJ31: =EJ28+EJ29-EJ30 -> 1000 | EK31: =EK28+EK29-EK30 -> 1000 | EL31: =EL28+EL29-EL30 -> 1000 | EM31: =EM28+EM29-EM30 -> 1000 | EN31: =EN28+EN29-EN30 -> 1000 | EO31: =EO28+EO29-EO30 -> 1000 | EP31: =EP28+EP29-EP30 -> 1000 | EQ31: =EQ28+EQ29-EQ30 -> 1000 | ER31: =ER28+ER29-ER30 -> 1000 | ES31: =ES28+ES29-ES30 -> 1000 | ET31: =ET28+ET29-ET30 -> 1000 | EU31: =EU28+EU29-EU30 -> 1000 | EV31: =EV28+EV29-EV30 -> 1000 | EW31: =EW28+EW29-EW30 -> 1000 | EX31: =EX28+EX29-EX30 -> 1000 | EY31: =EY28+EY29-EY30 -> 1000 | EZ31: =EZ28+EZ29-EZ30 -> 1000 | FA31: =FA28+FA29-FA30 -> 1000 | FB31: =FB28+FB29-FB30 -> 1000 | FC31: =FC28+FC29-FC30 -> 1000 | FD31: =FD28+FD29-FD30 -> 1000 | FE31: =FE28+FE29-FE30 -> 1000 | FF31: =FF28+FF29-FF30 -> 1000 | FG31: =FG28+FG29-FG30 -> 1000 | FH31: =FH28+FH29-FH30 -> 1000 | FI31: =FI28+FI29-FI30 -> 1000 | FJ31: =FJ28+FJ29-FJ30 -> 1000 | FK31: =FK28+FK29-FK30 -> 1000 | FL31: =FL28+FL29-FL30 -> 1000 | FM31: =FM28+FM29-FM30 -> 1000 | FN31: =FN28+FN29-FN30 -> 1000 | FO31: =FO28+FO29-FO30 -> 1000 | FP31: =FP28+FP29-FP30 -> 1000 | FQ31: =FQ28+FQ29-FQ30 -> 1000 | FR31: =FR28+FR29-FR30 -> 1000 | FS31: =FS28+FS29-FS30 -> 1000 | FT31: =FT28+FT29-FT30 -> 1000 | FU31: =FU28+FU29-FU30 -> 1000 | FV31: =FV28+FV29-FV30 -> 1000 | FW31: =FW28+FW29-FW30 -> 1000 | FX31: =FX28+FX29-FX30 -> 1000 | FY31: =FY28+FY29-FY30 -> 1000 | FZ31: =FZ28+FZ29-FZ30 -> 1000 | GA31: =GA28+GA29-GA30 -> 1000 | GB31: =GB28+GB29-GB30 -> 1000 | GC31: =GC28+GC29-GC30 -> 1000 | GD31: =GD28+GD29-GD30 -> 1000 | GE31: =GE28+GE29-GE30 -> 1000 | GF31: =GF28+GF29-GF30 -> 1000 | GG31: =GG28+GG29-GG30 -> 1000 | GH31: =GH28+GH29-GH30 -> 1000 | GI31: =GI28+GI29-GI30 -> 1000 | GJ31: =GJ28+GJ29-GJ30 -> 1000 | GK31: =GK28+GK29-GK30 -> 1000 | GL31: =GL28+GL29-GL30 -> 1000 | GM31: =GM28+GM29-GM30 -> 1000 | GN31: =GN28+GN29-GN30 -> 1000 | GO31: =GO28+GO29-GO30 -> 1000 | GP31: =GP28+GP29-GP30 -> 1000 | GQ31: =GQ28+GQ29-GQ30 -> 1000 | GR31: =GR28+GR29-GR30 -> 1000 | GS31: =GS28+GS29-GS30 -> 1000 | GT31: =GT28+GT29-GT30 -> 1000 | GU31: =GU28+GU29-GU30 -> 1000 | GV31: =GV28+GV29-GV30 -> 1000 | GW31: =GW28+GW29-GW30 -> 1000 | GX31: =GX28+GX29-GX30 -> 1000 | GY31: =GY28+GY29-GY30 -> 1000 | GZ31: =GZ28+GZ29-GZ30 -> 1000 | HA31: =HA28+HA29-HA30 -> 1000 | HB31: =HB28+HB29-HB30 -> 1000 | HC31: =HC28+HC29-HC30 -> 1000 | HD31: =HD28+HD29-HD30 -> 1000 | HE31: =HE28+HE29-HE30 -> 1000 | HF31: =HF28+HF29-HF30 -> 1000 | HG31: =HG28+HG29-HG30 -> 1000 | HH31: =HH28+HH29-HH30 -> 1000 | HI31: =HI28+HI29-HI30 -> 1000 | HJ31: =HJ28+HJ29-HJ30 -> 1000 | HK31: =HK28+HK29-HK30 -> 1000 | HL31: =HL28+HL29-HL30 -> 1000 | HM31: =HM28+HM29-HM30 -> 1000 | HN31: =HN28+HN29-HN30 -> 1000 | HO31: =HO28+HO29-HO30 -> 1000 | HP31: =HP28+HP29-HP30 -> 1000 | HQ31: =HQ28+HQ29-HQ30 -> 1000 | HR31: =HR28+HR29-HR30 -> 1000 | HS31: =HS28+HS29-HS30 -> 1000 | HT31: =HT28+HT29-HT30 -> 1000 | HU31: =HU28+HU29-HU30 -> 1000 | HV31: =HV28+HV29-HV30 -> 1000 | HW31: =HW28+HW29-HW30 -> 1000 | HX31: =HX28+HX29-HX30 -> 1000 | HY31: =HY28+HY29-HY30 -> 1000 | HZ31: =HZ28+HZ29-HZ30 -> 1000 | IA31: =IA28+IA29-IA30 -> 1000 | IB31: =IB28+IB29-IB30 -> 1000 | IC31: =IC28+IC29-IC30 -> 1000 | ID31: =ID28+ID29-ID30 -> 1000 | IE31: =IE28+IE29-IE30 -> 1000 | IF31: =IF28+IF29-IF30 -> 1000 | IG31: =IG28+IG29-IG30 -> 1000 | IH31: =IH28+IH29-IH30 -> 1000 | II31: =II28+II29-II30 -> 1000 | IJ31: =IJ28+IJ29-IJ30 -> 1000 | IK31: =IK28+IK29-IK30 -> 1000 | IL31: =IL28+IL29-IL30 -> 1000 | IM31: =IM28+IM29-IM30 -> 1000 | IN31: =IN28+IN29-IN30 -> 1000 | IO31: =IO28+IO29-IO30 -> 1000 | IP31: =IP28+IP29-IP30 -> 1000 | IQ31: =IQ28+IQ29-IQ30 -> 1000 | IR31: =IR28+IR29-IR30 -> 1000 | IS31: =IS28+IS29-IS30 -> 1000 | IT31: =IT28+IT29-IT30 -> 1000 | IU31: =IU28+IU29-IU30 -> 1000 | IV31: =IV28+IV29-IV30 -> 1000 | IW31: =IW28+IW29-IW30 -> 1000 | IX31: =IX28+IX29-IX30 -> 1000 | IY31: =IY28+IY29-IY30 -> 1000 | IZ31: =IZ28+IZ29-IZ30 -> 1000 | JA31: =JA28+JA29-JA30 -> 1000 | JB31: =JB28+JB29-JB30 -> 1000 | JC31: =JC28+JC29-JC30 -> 1000 | JD31: =JD28+JD29-JD30 -> 1000 | JE31: =JE28+JE29-JE30 -> 1000 | JF31: =JF28+JF29-JF30 -> 1000 | JG31: =JG28+JG29-JG30 -> 1000 | JH31: =JH28+JH29-JH30 -> 1000 | JI31: =JI28+JI29-JI30 -> 1000 | JJ31: =JJ28+JJ29-JJ30 -> 1000 | JK31: =JK28+JK29-JK30 -> 1000 | JL31: =JL28+JL29-JL30 -> 1000 | JM31: =JM28+JM29-JM30 -> 1000 | JN31: =JN28+JN29-JN30 -> 1000 | JO31: =JO28+JO29-JO30 -> 1000 | JP31: =JP28+JP29-JP30 -> 1000 | JQ31: =JQ28+JQ29-JQ30 -> 1000 | JR31: =JR28+JR29-JR30 -> 1000 | JS31: =JS28+JS29-JS30 -> 1000 | JT31: =JT28+JT29-JT30 -> 1000 | JU31: =JU28+JU29-JU30 -> 1000 | JV31: =JV28+JV29-JV30 -> 1000 | JW31: =JW28+JW29-JW30 -> 1000 | JX31: =JX28+JX29-JX30 -> 1000 | JY31: =JY28+JY29-JY30 -> 1000 | JZ31: =JZ28+JZ29-JZ30 -> 1000 | KA31: =KA28+KA29-KA30 -> 1000 | KB31: =KB28+KB29-KB30 -> 1000 | KC31: =KC28+KC29-KC30 -> 1000 | KD31: =KD28+KD29-KD30 -> 1000 | KE31: =KE28+KE29-KE30 -> 1000 | KF31: =KF28+KF29-KF30 -> 1000 | KG31: =KG28+KG29-KG30 -> 1000 | KH31: =KH28+KH29-KH30 -> 1000 | KI31: =KI28+KI29-KI30 -> 1000 | KJ31: =KJ28+KJ29-KJ30 -> 1000 | KK31: =KK28+KK29-KK30 -> 1000 | KL31: =KL28+KL29-KL30 -> 1000 | KM31: =KM28+KM29-KM30 -> 1000 | KN31: =KN28+KN29-KN30 -> 1000 | KO31: =KO28+KO29-KO30 -> 1000 | KP31: =KP28+KP29-KP30 -> 1000 | KQ31: =KQ28+KQ29-KQ30 -> 1000 | KR31: =KR28+KR29-KR30 -> 1000 | KS31: =KS28+KS29-KS30 -> 1000 | KT31: =KT28+KT29-KT30 -> 1000 | KU31: =KU28+KU29-KU30 -> 1000 | KV31: =KV28+KV29-KV30 -> 1000 | KW31: =KW28+KW29-KW30 -> 1000 | KX31: =KX28+KX29-KX30 -> 1000 | KY31: =KY28+KY29-KY30 -> 1000 | KZ31: =KZ28+KZ29-KZ30 -> 1000 | LA31: =LA28+LA29-LA30 -> 1000 | LB31: =LB28+LB29-LB30 -> 1000 | LC31: =LC28+LC29-LC30 -> 1000 | LD31: =LD28+LD29-LD30 -> 1000 | LE31: =LE28+LE29-LE30 -> 1000 | LF31: =LF28+LF29-LF30 -> 1000 | LG31: =LG28+LG29-LG30 -> 1000 | LH31: =LH28+LH29-LH30 -> 1000 | LI31: =LI28+LI29-LI30 -> 1000 | LJ31: =LJ28+LJ29-LJ30 -> 1000 | LK31: =LK28+LK29-LK30 -> 1000 | LL31: =LL28+LL29-LL30 -> 1000 | LM31: =LM28+LM29-LM30 -> 1000 | LN31: =LN28+LN29-LN30 -> 1000 | LO31: =LO28+LO29-LO30 -> 1000 | LP31: =LP28+LP29-LP30 -> 1000 | LQ31: =LQ28+LQ29-LQ30 -> 1000 | LR31: =LR28+LR29-LR30 -> 1000 | LS31: =LS28+LS29-LS30 -> 1000 | LT31: =LT28+LT29-LT30 -> 1000 | LU31: =LU28+LU29-LU30 -> 1000 | LV31: =LV28+LV29-LV30 -> 1000 | LW31: =LW28+LW29-LW30 -> 1000 | LX31: =LX28+LX29-LX30 -> 1000 | LY31: =LY28+LY29-LY30 -> 1000 | LZ31: =LZ28+LZ29-LZ30 -> 1000 | MA31: =MA28+MA29-MA30 -> 1000 | MB31: =MB28+MB29-MB30 -> 1000 | MC31: =MC28+MC29-MC30 -> 1000 | MD31: =MD28+MD29-MD30 -> 1000 | ME31: =ME28+ME29-ME30 -> 1000 | MF31: =MF28+MF29-MF30 -> 1000 | MG31: =MG28+MG29-MG30 -> 1000 | MH31: =MH28+MH29-MH30 -> 1000 | MI31: =MI28+MI29-MI30 -> 1000 | MJ31: =MJ28+MJ29-MJ30 -> 1000 | MK31: =MK28+MK29-MK30 -> 1000 | ML31: =ML28+ML29-ML30 -> 1000 | MM31: =MM28+MM29-MM30 -> 1000 | MN31: =MN28+MN29-MN30 -> 1000 | MO31: =MO28+MO29-MO30 -> 1000 | MP31: =MP28+MP29-MP30 -> 1000 | MQ31: =MQ28+MQ29-MQ30 -> 1000 | MR31: =MR28+MR29-MR30 -> 1000 | MS31: =MS28+MS29-MS30 -> 1000 | MT31: =MT28+MT29-MT30 -> 1000 | MU31: =MU28+MU29-MU30 -> 1000 | MV31: =MV28+MV29-MV30 -> 1000 | MW31: =MW28+MW29-MW30 -> 1000 | MX31: =MX28+MX29-MX30 -> 1000 | MY31: =MY28+MY29-MY30 -> 1000 | MZ31: =MZ28+MZ29-MZ30 -> 1000 | NA31: =NA28+NA29-NA30 -> 1000 | NB31: =NB28+NB29-NB30 -> 1000 | NC31: =NC28+NC29-NC30 -> 1000 | ND31: =ND28+ND29-ND30 -> 1000 | NE31: =NE28+NE29-NE30 -> 1000 | NF31: =NF28+NF29-NF30 -> 1000 | NG31: =NG28+NG29-NG30 -> 1000 | NH31: =NH28+NH29-NH30 -> 1000 | NI31: =NI28+NI29-NI30 -> 1000 | NJ31: =NJ28+NJ29-NJ30 -> 1000 | NK31: =NK28+NK29-NK30 -> 1000 | NL31: =NL28+NL29-NL30 -> 1000 | NM31: =NM28+NM29-NM30 -> 1000 | NN31: =NN28+NN29-NN30 -> 1000 | NO31: =NO28+NO29-NO30 -> 1000 | NP31: =NP28+NP29-NP30 -> 1000 | NQ31: =NQ28+NQ29-NQ30 -> 1000 | NR31: =NR28+NR29-NR30 -> 1000 | NS31: =NS28+NS29-NS30 -> 1000 | NT31: =NT28+NT29-NT30 -> 1000 | NU31: =NU28+NU29-NU30 -> 1000 | NV31: =NV28+NV29-NV30 -> 1000 | NW31: =NW28+NW29-NW30 -> 1000 | NX31: =NX28+NX29-NX30 -> 1000 | NY31: =NY28+NY29-NY30 -> 1000 | NZ31: =NZ28+NZ29-NZ30 -> 1000 | OA31: =OA28+OA29-OA30 -> 1000 | OB31: =OB28+OB29-OB30 -> 1000 | OC31: =OC28+OC29-OC30 -> 1000 | OD31: =OD28+OD29-OD30 -> 1000 | OE31: =OE28+OE29-OE30 -> 1000 | OF31: =OF28+OF29-OF30 -> 1000 | OG31: =OG28+OG29-OG30 -> 1000 | OH31: =OH28+OH29-OH30 -> 1000 | OI31: =OI28+OI29-OI30 -> 1000 | OJ31: =OJ28+OJ29-OJ30 -> 1000 | OK31: =OK28+OK29-OK30 -> 1000 | OL31: =OL28+OL29-OL30 -> 1000 | OM31: =OM28+OM29-OM30 -> 1000 | ON31: =ON28+ON29-ON30 -> 1000 | OO31: =OO28+OO29-OO30 -> 1000
C33: Age | F33: =IF(E29,1,E33+1) -> 1 | G33: =IF(F29,1,F33+1) -> 2 | H33: 3 | I33: 4 | J33: 5 | K33: 1 | L33: 2 | M33: 3 | N33: 4 | O33: 5 | P33: 1 | Q33: 2 | R33: 3 | S33: 4 | T33: 5 | U33: 1 | V33: 2 | W33: 3 | X33: 4 | Y33: 5 | Z33: 1 | AA33: 2 | AB33: 3 | AC33: 4 | AD33: 5 | AE33: 1 | AF33: 2 | AG33: 3 | AH33: 4 | AI33: 5 | AJ33: 1 | AK33: 2 | AL33: 3 | AM33: 4 | AN33: 5 | AO33: 1 | AP33: 2 | AQ33: 3 | AR33: 4 | AS33: 5 | AT33: 1 | AU33: 2 | AV33: 3 | AW33: 4 | AX33: 5 | AY33: 1 | AZ33: 2 | BA33: 3 | BB33: 4 | BC33: 5 | BD33: 1 | BE33: 2 | BF33: 3 | BG33: 4 | BH33: 5 | BI33: 1 | BJ33: 2 | BK33: 3 | BL33: 4 | BM33: 5 | BN33: 1 | BO33: 2 | BP33: 3 | BQ33: 4 | BR33: 5 | BS33: =IF(BR29,1,BR33+1) -> 1 | BT33: 2 | BU33: 3 | BV33: 4 | BW33: 5 | BX33: 1 | BY33: 2 | BZ33: 3 | CA33: 4 | CB33: 5 | CC33: 1 | CD33: 2 | CE33: 3 | CF33: 4 | CG33: 5 | CH33: 1 | CI33: 2 | CJ33: 3 | CK33: 4 | CL33: 5 | CM33: 1 | CN33: 2 | CO33: 3 | CP33: 4 | CQ33: 5 | CR33: 1 | CS33: 2 | CT33: 3 | CU33: 4 | CV33: 5 | CW33: 1 | CX33: 2 | CY33: 3 | CZ33: 4 | DA33: 5 | DB33: 1 | DC33: 2 | DD33: 3 | DE33: 4 | DF33: 5 | DG33: 1 | DH33: 2 | DI33: 3 | DJ33: 4 | DK33: 5 | DL33: 1 | DM33: 2 | DN33: 3 | DO33: 4 | DP33: 5 | DQ33: 1 | DR33: 2 | DS33: 3 | DT33: 4 | DU33: 5 | DV33: 1 | DW33: 2 | DX33: 3 | DY33: 4 | DZ33: 5 | EA33: 1 | EB33: 2 | EC33: 3 | ED33: 4 | EE33: =IF(ED29,1,ED33+1) -> 5 | EF33: 1 | EG33: 2 | EH33: 3 | EI33: 4 | EJ33: 5 | EK33: 1 | EL33: 2 | EM33: 3 | EN33: 4 | EO33: 5 | EP33: 1 | EQ33: 2 | ER33: 3 | ES33: 4 | ET33: 5 | EU33: 1 | EV33: 2 | EW33: 3 | EX33: 4 | EY33: 5 | EZ33: 1 | FA33: 2 | FB33: 3 | FC33: 4 | FD33: 5 | FE33: 1 | FF33: 2 | FG33: 3 | FH33: 4 | FI33: 5 | FJ33: 1 | FK33: 2 | FL33: 3 | FM33: 4 | FN33: 5 | FO33: 1 | FP33: 2 | FQ33: 3 | FR33: 4 | FS33: 5 | FT33: 1 | FU33: 2 | FV33: 3 | FW33: 4 | FX33: 5 | FY33: 1 | FZ33: 2 | GA33: 3 | GB33: 4 | GC33: 5 | GD33: 1 | GE33: 2 | GF33: 3 | GG33: 4 | GH33: 5 | GI33: 1 | GJ33: 2 | GK33: 3 | GL33: 4 | GM33: 5 | GN33: 1 | GO33: 2 | GP33: 3 | GQ33: =IF(GP29,1,GP33+1) -> 4 | GR33: 5 | GS33: 1 | GT33: 2 | GU33: 3 | GV33: 4 | GW33: 5 | GX33: 1 | GY33: 2 | GZ33: 3 | HA33: 4 | HB33: 5 | HC33: 1 | HD33: 2 | HE33: 3 | HF33: 4 | HG33: 5 | HH33: 1 | HI33: 2 | HJ33: 3 | HK33: 4 | HL33: 5 | HM33: 1 | HN33: 2 | HO33: 3 | HP33: 4 | HQ33: 5 | HR33: 1 | HS33: 2 | HT33: 3 | HU33: 4 | HV33: 5 | HW33: 1 | HX33: 2 | HY33: 3 | HZ33: 4 | IA33: 5 | IB33: 1 | IC33: 2 | ID33: 3 | IE33: 4 | IF33: 5 | IG33: 1 | IH33: 2 | II33: 3 | IJ33: 4 | IK33: 5 | IL33: 1 | IM33: 2 | IN33: 3 | IO33: 4 | IP33: 5 | IQ33: 1 | IR33: 2 | IS33: 3 | IT33: 4 | IU33: 5 | IV33: 1 | IW33: 2 | IX33: 3 | IY33: 4 | IZ33: 5 | JA33: 1 | JB33: 2 | JC33: =IF(JB29,1,JB33+1) -> 3 | JD33: 4 | JE33: 5 | JF33: 1 | JG33: 2 | JH33: 3 | JI33: 4 | JJ33: 5 | JK33: 1 | JL33: 2 | JM33: 3 | JN33: 4 | JO33: 5 | JP33: 1 | JQ33: 2 | JR33: 3 | JS33: 4 | JT33: 5 | JU33: 1 | JV33: 2 | JW33: 3 | JX33: 4 | JY33: 5 | JZ33: 1 | KA33: 2 | KB33: 3 | KC33: 4 | KD33: 5 | KE33: 1 | KF33: 2 | KG33: 3 | KH33: 4 | KI33: 5 | KJ33: 1 | KK33: 2 | KL33: 3 | KM33: 4 | KN33: 5 | KO33: 1 | KP33: 2 | KQ33: 3 | KR33: 4 | KS33: 5 | KT33: 1 | KU33: 2 | KV33: 3 | KW33: 4 | KX33: 5 | KY33: 1 | KZ33: 2 | LA33: 3 | LB33: 4 | LC33: 5 | LD33: 1 | LE33: 2 | LF33: 3 | LG33: 4 | LH33: 5 | LI33: 1 | LJ33: 2 | LK33: 3 | LL33: 4 | LM33: 5 | LN33: 1 | LO33: =IF(LN29,1,LN33+1) -> 2 | LP33: 3 | LQ33: 4 | LR33: 5 | LS33: 1 | LT33: 2 | LU33: 3 | LV33: 4 | LW33: 5 | LX33: 1 | LY33: 2 | LZ33: 3 | MA33: 4 | MB33: 5 | MC33: 1 | MD33: 2 | ME33: 3 | MF33: 4 | MG33: 5 | MH33: 1 | MI33: 2 | MJ33: 3 | MK33: 4 | ML33: 5 | MM33: 1 | MN33: 2 | MO33: 3 | MP33: 4 | MQ33: 5 | MR33: 1 | MS33: 2 | MT33: 3 | MU33: 4 | MV33: 5 | MW33: 1 | MX33: 2 | MY33: 3 | MZ33: 4 | NA33: 5 | NB33: 1 | NC33: 2 | ND33: 3 | NE33: 4 | NF33: 5 | NG33: 1 | NH33: 2 | NI33: 3 | NJ33: 4 | NK33: 5 | NL33: 1 | NM33: 2 | NN33: 3 | NO33: 4 | NP33: 5 | NQ33: 1 | NR33: 2 | NS33: 3 | NT33: 4 | NU33: 5 | NV33: 1 | NW33: 2 | NX33: 3 | NY33: 4 | NZ33: 5 | OA33: =IF(NZ29,1,NZ33+1) -> 1 | OB33: 2 | OC33: 3 | OD33: 4 | OE33: 5 | OF33: 1 | OG33: 2 | OH33: 3 | OI33: 4 | OJ33: 5 | OK33: 1 | OL33: 2 | OM33: 3 | ON33: 4 | OO33: 5
C34: SL Depreciation | F34: =F28/$E$8 -> 200 | G34: =G28/$E$8 -> 200 | H34: 200 | I34: 200 | J34: 200 | K34: 200 | L34: 200 | M34: 200 | N34: 200 | O34: 200 | P34: 200 | Q34: 200 | R34: 200 | S34: 200 | T34: 200 | U34: 200 | V34: 200 | W34: 200 | X34: 200 | Y34: 200 | Z34: 200 | AA34: 200 | AB34: 200 | AC34: 200 | AD34: 200 | AE34: 200 | AF34: 200 | AG34: 200 | AH34: 200 | AI34: 200 | AJ34: 200 | AK34: 200 | AL34: 200 | AM34: 200 | AN34: 200 | AO34: 200 | AP34: 200 | AQ34: 200 | AR34: 200 | AS34: 200 | AT34: 200 | AU34: 200 | AV34: 200 | AW34: 200 | AX34: 200 | AY34: 200 | AZ34: 200 | BA34: 200 | BB34: 200 | BC34: 200 | BD34: 200 | BE34: 200 | BF34: 200 | BG34: 200 | BH34: 200 | BI34: 200 | BJ34: 200 | BK34: 200 | BL34: 200 | BM34: 200 | BN34: 200 | BO34: 200 | BP34: 200 | BQ34: 200 | BR34: 200 | BS34: =BS28/$E$8 -> 200 | BT34: 200 | BU34: 200 | BV34: 200 | BW34: 200 | BX34: 200 | BY34: 200 | BZ34: 200 | CA34: 200 | CB34: 200 | CC34: 200 | CD34: 200 | CE34: 200 | CF34: 200 | CG34: 200 | CH34: 200 | CI34: 200 | CJ34: 200 | CK34: 200 | CL34: 200 | CM34: 200 | CN34: 200 | CO34: 200 | CP34: 200 | CQ34: 200 | CR34: 200 | CS34: 200 | CT34: 200 | CU34: 200 | CV34: 200 | CW34: 200 | CX34: 200 | CY34: 200 | CZ34: 200 | DA34: 200 | DB34: 200 | DC34: 200 | DD34: 200 | DE34: 200 | DF34: 200 | DG34: 200 | DH34: 200 | DI34: 200 | DJ34: 200 | DK34: 200 | DL34: 200 | DM34: 200 | DN34: 200 | DO34: 200 | DP34: 200 | DQ34: 200 | DR34: 200 | DS34: 200 | DT34: 200 | DU34: 200 | DV34: 200 | DW34: 200 | DX34: 200 | DY34: 200 | DZ34: 200 | EA34: 200 | EB34: 200 | EC34: 200 | ED34: 200 | EE34: =EE28/$E$8 -> 200 | EF34: 200 | EG34: 200 | EH34: 200 | EI34: 200 | EJ34: 200 | EK34: 200 | EL34: 200 | EM34: 200 | EN34: 200 | EO34: 200 | EP34: 200 | EQ34: 200 | ER34: 200 | ES34: 200 | ET34: 200 | EU34: 200 | EV34: 200 | EW34: 200 | EX34: 200 | EY34: 200 | EZ34: 200 | FA34: 200 | FB34: 200 | FC34: 200 | FD34: 200 | FE34: 200 | FF34: 200 | FG34: 200 | FH34: 200 | FI34: 200 | FJ34: 200 | FK34: 200 | FL34: 200 | FM34: 200 | FN34: 200 | FO34: 200 | FP34: 200 | FQ34: 200 | FR34: 200 | FS34: 200 | FT34: 200 | FU34: 200 | FV34: 200 | FW34: 200 | FX34: 200 | FY34: 200 | FZ34: 200 | GA34: 200 | GB34: 200 | GC34: 200 | GD34: 200 | GE34: 200 | GF34: 200 | GG34: 200 | GH34: 200 | GI34: 200 | GJ34: 200 | GK34: 200 | GL34: 200 | GM34: 200 | GN34: 200 | GO34: 200 | GP34: 200 | GQ34: =GQ28/$E$8 -> 200 | GR34: 200 | GS34: 200 | GT34: 200 | GU34: 200 | GV34: 200 | GW34: 200 | GX34: 200 | GY34: 200 | GZ34: 200 | HA34: 200 | HB34: 200 | HC34: 200 | HD34: 200 | HE34: 200 | HF34: 200 | HG34: 200 | HH34: 200 | HI34: 200 | HJ34: 200 | HK34: 200 | HL34: 200 | HM34: 200 | HN34: 200 | HO34: 200 | HP34: 200 | HQ34: 200 | HR34: 200 | HS34: 200 | HT34: 200 | HU34: 200 | HV34: 200 | HW34: 200 | HX34: 200 | HY34: 200 | HZ34: 200 | IA34: 200 | IB34: 200 | IC34: 200 | ID34: 200 | IE34: 200 | IF34: 200 | IG34: 200 | IH34: 200 | II34: 200 | IJ34: 200 | IK34: 200 | IL34: 200 | IM34: 200 | IN34: 200 | IO34: 200 | IP34: 200 | IQ34: 200 | IR34: 200 | IS34: 200 | IT34: 200 | IU34: 200 | IV34: 200 | IW34: 200 | IX34: 200 | IY34: 200 | IZ34: 200 | JA34: 200 | JB34: 200 | JC34: =JC28/$E$8 -> 200 | JD34: 200 | JE34: 200 | JF34: 200 | JG34: 200 | JH34: 200 | JI34: 200 | JJ34: 200 | JK34: 200 | JL34: 200 | JM34: 200 | JN34: 200 | JO34: 200 | JP34: 200 | JQ34: 200 | JR34: 200 | JS34: 200 | JT34: 200 | JU34: 200 | JV34: 200 | JW34: 200 | JX34: 200 | JY34: 200 | JZ34: 200 | KA34: 200 | KB34: 200 | KC34: 200 | KD34: 200 | KE34: 200 | KF34: 200 | KG34: 200 | KH34: 200 | KI34: 200 | KJ34: 200 | KK34: 200 | KL34: 200 | KM34: 200 | KN34: 200 | KO34: 200 | KP34: 200 | KQ34: 200 | KR34: 200 | KS34: 200 | KT34: 200 | KU34: 200 | KV34: 200 | KW34: 200 | KX34: 200 | KY34: 200 | KZ34: 200 | LA34: 200 | LB34: 200 | LC34: 200 | LD34: 200 | LE34: 200 | LF34: 200 | LG34: 200 | LH34: 200 | LI34: 200 | LJ34: 200 | LK34: 200 | LL34: 200 | LM34: 200 | LN34: 200 | LO34: =LO28/$E$8 -> 200 | LP34: 200 | LQ34: 200 | LR34: 200 | LS34: 200 | LT34: 200 | LU34: 200 | LV34: 200 | LW34: 200 | LX34: 200 | LY34: 200 | LZ34: 200 | MA34: 200 | MB34: 200 | MC34: 200 | MD34: 200 | ME34: 200 | MF34: 200 | MG34: 200 | MH34: 200 | MI34: 200 | MJ34: 200 | MK34: 200 | ML34: 200 | MM34: 200 | MN34: 200 | MO34: 200 | MP34: 200 | MQ34: 200 | MR34: 200 | MS34: 200 | MT34: 200 | MU34: 200 | MV34: 200 | MW34: 200 | MX34: 200 | MY34: 200 | MZ34: 200 | NA34: 200 | NB34: 200 | NC34: 200 | ND34: 200 | NE34: 200 | NF34: 200 | NG34: 200 | NH34: 200 | NI34: 200 | NJ34: 200 | NK34: 200 | NL34: 200 | NM34: 200 | NN34: 200 | NO34: 200 | NP34: 200 | NQ34: 200 | NR34: 200 | NS34: 200 | NT34: 200 | NU34: 200 | NV34: 200 | NW34: 200 | NX34: 200 | NY34: 200 | NZ34: 200 | OA34: =OA28/$E$8 -> 200 | OB34: 200 | OC34: 200 | OD34: 200 | OE34: 200 | OF34: 200 | OG34: 200 | OH34: 200 | OI34: 200 | OJ34: 200 | OK34: 200 | OL34: 200 | OM34: 200 | ON34: 200 | OO34: 200
C35: Economic Depreciation Rate | F35: =LOOKUP(F33,10:10,18:18) -> 0.08938251797 | G35: 0.126173925 | H35: 0.1781093182 | I35: 0.2514222273 | J35: 0.3549120115 | K35: 0.08938251797 | L35: 0.126173925 | M35: 0.1781093182 | N35: 0.2514222273 | O35: 0.3549120115 | P35: 0.08938251797 | Q35: 0.126173925 | R35: 0.1781093182 | S35: 0.2514222273 | T35: 0.3549120115 | U35: 0.08938251797 | V35: 0.126173925 | W35: 0.1781093182 | X35: 0.2514222273 | Y35: 0.3549120115 | Z35: 0.08938251797 | AA35: 0.126173925 | AB35: 0.1781093182 | AC35: 0.2514222273 | AD35: 0.3549120115 | AE35: 0.08938251797 | AF35: 0.126173925 | AG35: 0.1781093182 | AH35: 0.2514222273 | AI35: 0.3549120115 | AJ35: 0.08938251797 | AK35: 0.126173925 | AL35: =LOOKUP(AL33,10:10,18:18) -> 0.1781093182 | AM35: 0.2514222273 | AN35: 0.3549120115 | AO35: 0.08938251797 | AP35: 0.126173925 | AQ35: 0.1781093182 | AR35: 0.2514222273 | AS35: 0.3549120115 | AT35: 0.08938251797 | AU35: 0.126173925 | AV35: 0.1781093182 | AW35: 0.2514222273 | AX35: 0.3549120115 | AY35: 0.08938251797 | AZ35: 0.126173925 | BA35: 0.1781093182 | BB35: 0.2514222273 | BC35: 0.3549120115 | BD35: =LOOKUP(BD33,10:10,18:18) -> 0.08938251797 | BE35: 0.126173925 | BF35: 0.1781093182 | BG35: 0.2514222273 | BH35: 0.3549120115 | BI35: 0.08938251797 | BJ35: 0.126173925 | BK35: 0.1781093182 | BL35: 0.2514222273 | BM35: 0.3549120115 | BN35: 0.08938251797 | BO35: 0.126173925 | BP35: 0.1781093182 | BQ35: 0.2514222273 | BR35: 0.3549120115 | BS35: 0.08938251797 | BT35: 0.126173925 | BU35: 0.1781093182 | BV35: 0.2514222273 | BW35: 0.3549120115 | BX35: 0.08938251797 | BY35: 0.126173925 | BZ35: 0.1781093182 | CA35: 0.2514222273 | CB35: 0.3549120115 | CC35: 0.08938251797 | CD35: 0.126173925 | CE35: 0.1781093182 | CF35: 0.2514222273 | CG35: 0.3549120115 | CH35: 0.08938251797 | CI35: 0.126173925 | CJ35: 0.1781093182 | CK35: 0.2514222273 | CL35: 0.3549120115 | CM35: 0.08938251797 | CN35: 0.126173925 | CO35: 0.1781093182 | CP35: 0.2514222273 | CQ35: 0.3549120115 | CR35: 0.08938251797 | CS35: 0.126173925 | CT35: 0.1781093182 | CU35: 0.2514222273 | CV35: 0.3549120115 | CW35: 0.08938251797 | CX35: 0.126173925 | CY35: 0.1781093182 | CZ35: 0.2514222273 | DA35: 0.3549120115 | DB35: 0.08938251797 | DC35: 0.126173925 | DD35: 0.1781093182 | DE35: 0.2514222273 | DF35: 0.3549120115 | DG35: 0.08938251797 | DH35: 0.126173925 | DI35: 0.1781093182 | DJ35: 0.2514222273 | DK35: 0.3549120115 | DL35: 0.08938251797 | DM35: 0.126173925 | DN35: 0.1781093182 | DO35: 0.2514222273 | DP35: =LOOKUP(DP33,10:10,18:18) -> 0.3549120115 | DQ35: 0.08938251797 | DR35: 0.126173925 | DS35: 0.1781093182 | DT35: 0.2514222273 | DU35: 0.3549120115 | DV35: 0.08938251797 | DW35: 0.126173925 | DX35: 0.1781093182 | DY35: 0.2514222273 | DZ35: 0.3549120115 | EA35: 0.08938251797 | EB35: 0.126173925 | EC35: 0.1781093182 | ED35: 0.2514222273 | EE35: 0.3549120115 | EF35: 0.08938251797 | EG35: 0.126173925 | EH35: 0.1781093182 | EI35: 0.2514222273 | EJ35: 0.3549120115 | EK35: 0.08938251797 | EL35: 0.126173925 | EM35: 0.1781093182 | EN35: 0.2514222273 | EO35: 0.3549120115 | EP35: 0.08938251797 | EQ35: 0.126173925 | ER35: 0.1781093182 | ES35: 0.2514222273 | ET35: 0.3549120115 | EU35: 0.08938251797 | EV35: 0.126173925 | EW35: 0.1781093182 | EX35: 0.2514222273 | EY35: 0.3549120115 | EZ35: 0.08938251797 | FA35: 0.126173925 | FB35: 0.1781093182 | FC35: 0.2514222273 | FD35: 0.3549120115 | FE35: 0.08938251797 | FF35: 0.126173925 | FG35: 0.1781093182 | FH35: 0.2514222273 | FI35: 0.3549120115 | FJ35: 0.08938251797 | FK35: 0.126173925 | FL35: 0.1781093182 | FM35: 0.2514222273 | FN35: 0.3549120115 | FO35: 0.08938251797 | FP35: 0.126173925 | FQ35: 0.1781093182 | FR35: 0.2514222273 | FS35: 0.3549120115 | FT35: 0.08938251797 | FU35: 0.126173925 | FV35: 0.1781093182 | FW35: 0.2514222273 | FX35: 0.3549120115 | FY35: 0.08938251797 | FZ35: 0.126173925 | GA35: 0.1781093182 | GB35: =LOOKUP(GB33,10:10,18:18) -> 0.2514222273 | GC35: 0.3549120115 | GD35: 0.08938251797 | GE35: 0.126173925 | GF35: 0.1781093182 | GG35: 0.2514222273 | GH35: 0.3549120115 | GI35: 0.08938251797 | GJ35: 0.126173925 | GK35: 0.1781093182 | GL35: 0.2514222273 | GM35: 0.3549120115 | GN35: 0.08938251797 | GO35: 0.126173925 | GP35: 0.1781093182 | GQ35: 0.2514222273 | GR35: 0.3549120115 | GS35: 0.08938251797 | GT35: 0.126173925 | GU35: 0.1781093182 | GV35: 0.2514222273 | GW35: 0.3549120115 | GX35: 0.08938251797 | GY35: 0.126173925 | GZ35: 0.1781093182 | HA35: 0.2514222273 | HB35: 0.3549120115 | HC35: 0.08938251797 | HD35: 0.126173925 | HE35: 0.1781093182 | HF35: 0.2514222273 | HG35: 0.3549120115 | HH35: 0.08938251797 | HI35: 0.126173925 | HJ35: 0.1781093182 | HK35: 0.2514222273 | HL35: 0.3549120115 | HM35: 0.08938251797 | HN35: 0.126173925 | HO35: 0.1781093182 | HP35: 0.2514222273 | HQ35: 0.3549120115 | HR35: 0.08938251797 | HS35: 0.126173925 | HT35: 0.1781093182 | HU35: 0.2514222273 | HV35: 0.3549120115 | HW35: 0.08938251797 | HX35: 0.126173925 | HY35: 0.1781093182 | HZ35: 0.2514222273 | IA35: 0.3549120115 | IB35: 0.08938251797 | IC35: 0.126173925 | ID35: 0.1781093182 | IE35: 0.2514222273 | IF35: 0.3549120115 | IG35: 0.08938251797 | IH35: 0.126173925 | II35: 0.1781093182 | IJ35: 0.2514222273 | IK35: 0.3549120115 | IL35: 0.08938251797 | IM35: 0.126173925 | IN35: =LOOKUP(IN33,10:10,18:18) -> 0.1781093182 | IO35: 0.2514222273 | IP35: 0.3549120115 | IQ35: 0.08938251797 | IR35: 0.126173925 | IS35: 0.1781093182 | IT35: 0.2514222273 | IU35: 0.3549120115 | IV35: 0.08938251797 | IW35: 0.126173925 | IX35: 0.1781093182 | IY35: 0.2514222273 | IZ35: 0.3549120115 | JA35: 0.08938251797 | JB35: 0.126173925 | JC35: 0.1781093182 | JD35: 0.2514222273 | JE35: 0.3549120115 | JF35: 0.08938251797 | JG35: 0.126173925 | JH35: 0.1781093182 | JI35: 0.2514222273 | JJ35: 0.3549120115 | JK35: 0.08938251797 | JL35: 0.126173925 | JM35: 0.1781093182 | JN35: 0.2514222273 | JO35: 0.3549120115 | JP35: 0.08938251797 | JQ35: 0.126173925 | JR35: 0.1781093182 | JS35: 0.2514222273 | JT35: 0.3549120115 | JU35: 0.08938251797 | JV35: 0.126173925 | JW35: 0.1781093182 | JX35: 0.2514222273 | JY35: 0.3549120115 | JZ35: 0.08938251797 | KA35: 0.126173925 | KB35: 0.1781093182 | KC35: 0.2514222273 | KD35: 0.3549120115 | KE35: 0.08938251797 | KF35: 0.126173925 | KG35: 0.1781093182 | KH35: 0.2514222273 | KI35: 0.3549120115 | KJ35: 0.08938251797 | KK35: 0.126173925 | KL35: 0.1781093182 | KM35: 0.2514222273 | KN35: 0.3549120115 | KO35: 0.08938251797 | KP35: 0.126173925 | KQ35: 0.1781093182 | KR35: 0.2514222273 | KS35: 0.3549120115 | KT35: 0.08938251797 | KU35: 0.126173925 | KV35: 0.1781093182 | KW35: 0.2514222273 | KX35: 0.3549120115 | KY35: 0.08938251797 | KZ35: =LOOKUP(KZ33,10:10,18:18) -> 0.126173925 | LA35: 0.1781093182 | LB35: 0.2514222273 | LC35: 0.3549120115 | LD35: 0.08938251797 | LE35: 0.126173925 | LF35: 0.1781093182 | LG35: 0.2514222273 | LH35: 0.3549120115 | LI35: 0.08938251797 | LJ35: 0.126173925 | LK35: 0.1781093182 | LL35: 0.2514222273 | LM35: 0.3549120115 | LN35: 0.08938251797 | LO35: 0.126173925 | LP35: 0.1781093182 | LQ35: 0.2514222273 | LR35: 0.3549120115 | LS35: 0.08938251797 | LT35: 0.126173925 | LU35: 0.1781093182 | LV35: 0.2514222273 | LW35: 0.3549120115 | LX35: 0.08938251797 | LY35: 0.126173925 | LZ35: 0.1781093182 | MA35: 0.2514222273 | MB35: 0.3549120115 | MC35: 0.08938251797 | MD35: 0.126173925 | ME35: 0.1781093182 | MF35: 0.2514222273 | MG35: 0.3549120115 | MH35: 0.08938251797 | MI35: 0.126173925 | MJ35: 0.1781093182 | MK35: 0.2514222273 | ML35: 0.3549120115 | MM35: 0.08938251797 | MN35: 0.126173925 | MO35: 0.1781093182 | MP35: 0.2514222273 | MQ35: 0.3549120115 | MR35: 0.08938251797 | MS35: 0.126173925 | MT35: 0.1781093182 | MU35: 0.2514222273 | MV35: 0.3549120115 | MW35: 0.08938251797 | MX35: 0.126173925 | MY35: 0.1781093182 | MZ35: 0.2514222273 | NA35: 0.3549120115 | NB35: 0.08938251797 | NC35: 0.126173925 | ND35: 0.1781093182 | NE35: 0.2514222273 | NF35: 0.3549120115 | NG35: 0.08938251797 | NH35: 0.126173925 | NI35: 0.1781093182 | NJ35: 0.2514222273 | NK35: 0.3549120115 | NL35: =LOOKUP(NL33,10:10,18:18) -> 0.08938251797 | NM35: 0.126173925 | NN35: 0.1781093182 | NO35: 0.2514222273 | NP35: 0.3549120115 | NQ35: 0.08938251797 | NR35: 0.126173925 | NS35: 0.1781093182 | NT35: 0.2514222273 | NU35: 0.3549120115 | NV35: 0.08938251797 | NW35: 0.126173925 | NX35: 0.1781093182 | NY35: 0.2514222273 | NZ35: 0.3549120115 | OA35: 0.08938251797 | OB35: 0.126173925 | OC35: 0.1781093182 | OD35: 0.2514222273 | OE35: 0.3549120115 | OF35: 0.08938251797 | OG35: 0.126173925 | OH35: 0.1781093182 | OI35: 0.2514222273 | OJ35: 0.3549120115 | OK35: 0.08938251797 | OL35: 0.126173925 | OM35: 0.1781093182 | ON35: 0.2514222273 | OO35: 0.3549120115
C36: Economic Depreciation | F36: =F35*F28 -> 89.38251797 | G36: =G35*G28 -> 126.173925 | H36: 178.1093182 | I36: 251.4222273 | J36: 354.9120115 | K36: 89.38251797 | L36: 126.173925 | M36: 178.1093182 | N36: 251.4222273 | O36: 354.9120115 | P36: 89.38251797 | Q36: 126.173925 | R36: 178.1093182 | S36: 251.4222273 | T36: 354.9120115 | U36: 89.38251797 | V36: 126.173925 | W36: 178.1093182 | X36: 251.4222273 | Y36: 354.9120115 | Z36: 89.38251797 | AA36: 126.173925 | AB36: 178.1093182 | AC36: 251.4222273 | AD36: 354.9120115 | AE36: 89.38251797 | AF36: 126.173925 | AG36: 178.1093182 | AH36: 251.4222273 | AI36: 354.9120115 | AJ36: 89.38251797 | AK36: 126.173925 | AL36: 178.1093182 | AM36: 251.4222273 | AN36: 354.9120115 | AO36: 89.38251797 | AP36: 126.173925 | AQ36: 178.1093182 | AR36: 251.4222273 | AS36: 354.9120115 | AT36: 89.38251797 | AU36: 126.173925 | AV36: 178.1093182 | AW36: 251.4222273 | AX36: 354.9120115 | AY36: 89.38251797 | AZ36: 126.173925 | BA36: 178.1093182 | BB36: 251.4222273 | BC36: 354.9120115 | BD36: =BD35*BD28 -> 89.38251797 | BE36: =BE35*BE28 -> 126.173925 | BF36: =BF35*BF28 -> 178.1093182 | BG36: =BG35*BG28 -> 251.4222273 | BH36: =BH35*BH28 -> 354.9120115 | BI36: =BI35*BI28 -> 89.38251797 | BJ36: =BJ35*BJ28 -> 126.173925 | BK36: =BK35*BK28 -> 178.1093182 | BL36: =BL35*BL28 -> 251.4222273 | BM36: =BM35*BM28 -> 354.9120115 | BN36: =BN35*BN28 -> 89.38251797 | BO36: =BO35*BO28 -> 126.173925 | BP36: =BP35*BP28 -> 178.1093182 | BQ36: =BQ35*BQ28 -> 251.4222273 | BR36: =BR35*BR28 -> 354.9120115 | BS36: =BS35*BS28 -> 89.38251797 | BT36: =BT35*BT28 -> 126.173925 | BU36: =BU35*BU28 -> 178.1093182 | BV36: =BV35*BV28 -> 251.4222273 | BW36: =BW35*BW28 -> 354.9120115 | BX36: =BX35*BX28 -> 89.38251797 | BY36: =BY35*BY28 -> 126.173925 | BZ36: =BZ35*BZ28 -> 178.1093182 | CA36: =CA35*CA28 -> 251.4222273 | CB36: =CB35*CB28 -> 354.9120115 | CC36: =CC35*CC28 -> 89.38251797 | CD36: =CD35*CD28 -> 126.173925 | CE36: =CE35*CE28 -> 178.1093182 | CF36: =CF35*CF28 -> 251.4222273 | CG36: =CG35*CG28 -> 354.9120115 | CH36: =CH35*CH28 -> 89.38251797 | CI36: =CI35*CI28 -> 126.173925 | CJ36: =CJ35*CJ28 -> 178.1093182 | CK36: =CK35*CK28 -> 251.4222273 | CL36: =CL35*CL28 -> 354.9120115 | CM36: =CM35*CM28 -> 89.38251797 | CN36: =CN35*CN28 -> 126.173925 | CO36: =CO35*CO28 -> 178.1093182 | CP36: =CP35*CP28 -> 251.4222273 | CQ36: =CQ35*CQ28 -> 354.9120115 | CR36: =CR35*CR28 -> 89.38251797 | CS36: =CS35*CS28 -> 126.173925 | CT36: =CT35*CT28 -> 178.1093182 | CU36: =CU35*CU28 -> 251.4222273 | CV36: =CV35*CV28 -> 354.9120115 | CW36: =CW35*CW28 -> 89.38251797 | CX36: =CX35*CX28 -> 126.173925 | CY36: =CY35*CY28 -> 178.1093182 | CZ36: =CZ35*CZ28 -> 251.4222273 | DA36: =DA35*DA28 -> 354.9120115 | DB36: =DB35*DB28 -> 89.38251797 | DC36: =DC35*DC28 -> 126.173925 | DD36: =DD35*DD28 -> 178.1093182 | DE36: =DE35*DE28 -> 251.4222273 | DF36: =DF35*DF28 -> 354.9120115 | DG36: =DG35*DG28 -> 89.38251797 | DH36: =DH35*DH28 -> 126.173925 | DI36: =DI35*DI28 -> 178.1093182 | DJ36: =DJ35*DJ28 -> 251.4222273 | DK36: =DK35*DK28 -> 354.9120115 | DL36: =DL35*DL28 -> 89.38251797 | DM36: =DM35*DM28 -> 126.173925 | DN36: =DN35*DN28 -> 178.1093182 | DO36: =DO35*DO28 -> 251.4222273 | DP36: =DP35*DP28 -> 354.9120115 | DQ36: =DQ35*DQ28 -> 89.38251797 | DR36: =DR35*DR28 -> 126.173925 | DS36: =DS35*DS28 -> 178.1093182 | DT36: =DT35*DT28 -> 251.4222273 | DU36: =DU35*DU28 -> 354.9120115 | DV36: =DV35*DV28 -> 89.38251797 | DW36: =DW35*DW28 -> 126.173925 | DX36: =DX35*DX28 -> 178.1093182 | DY36: =DY35*DY28 -> 251.4222273 | DZ36: =DZ35*DZ28 -> 354.9120115 | EA36: =EA35*EA28 -> 89.38251797 | EB36: =EB35*EB28 -> 126.173925 | EC36: =EC35*EC28 -> 178.1093182 | ED36: =ED35*ED28 -> 251.4222273 | EE36: =EE35*EE28 -> 354.9120115 | EF36: =EF35*EF28 -> 89.38251797 | EG36: =EG35*EG28 -> 126.173925 | EH36: =EH35*EH28 -> 178.1093182 | EI36: =EI35*EI28 -> 251.4222273 | EJ36: =EJ35*EJ28 -> 354.9120115 | EK36: =EK35*EK28 -> 89.38251797 | EL36: =EL35*EL28 -> 126.173925 | EM36: =EM35*EM28 -> 178.1093182 | EN36: =EN35*EN28 -> 251.4222273 | EO36: =EO35*EO28 -> 354.9120115 | EP36: =EP35*EP28 -> 89.38251797 | EQ36: =EQ35*EQ28 -> 126.173925 | ER36: =ER35*ER28 -> 178.1093182 | ES36: =ES35*ES28 -> 251.4222273 | ET36: =ET35*ET28 -> 354.9120115 | EU36: =EU35*EU28 -> 89.38251797 | EV36: =EV35*EV28 -> 126.173925 | EW36: =EW35*EW28 -> 178.1093182 | EX36: =EX35*EX28 -> 251.4222273 | EY36: =EY35*EY28 -> 354.9120115 | EZ36: =EZ35*EZ28 -> 89.38251797 | FA36: =FA35*FA28 -> 126.173925 | FB36: =FB35*FB28 -> 178.1093182 | FC36: =FC35*FC28 -> 251.4222273 | FD36: =FD35*FD28 -> 354.9120115 | FE36: =FE35*FE28 -> 89.38251797 | FF36: =FF35*FF28 -> 126.173925 | FG36: =FG35*FG28 -> 178.1093182 | FH36: =FH35*FH28 -> 251.4222273 | FI36: =FI35*FI28 -> 354.9120115 | FJ36: =FJ35*FJ28 -> 89.38251797 | FK36: =FK35*FK28 -> 126.173925 | FL36: =FL35*FL28 -> 178.1093182 | FM36: =FM35*FM28 -> 251.4222273 | FN36: =FN35*FN28 -> 354.9120115 | FO36: =FO35*FO28 -> 89.38251797 | FP36: =FP35*FP28 -> 126.173925 | FQ36: =FQ35*FQ28 -> 178.1093182 | FR36: =FR35*FR28 -> 251.4222273 | FS36: =FS35*FS28 -> 354.9120115 | FT36: =FT35*FT28 -> 89.38251797 | FU36: =FU35*FU28 -> 126.173925 | FV36: =FV35*FV28 -> 178.1093182 | FW36: =FW35*FW28 -> 251.4222273 | FX36: =FX35*FX28 -> 354.9120115 | FY36: =FY35*FY28 -> 89.38251797 | FZ36: =FZ35*FZ28 -> 126.173925 | GA36: =GA35*GA28 -> 178.1093182 | GB36: =GB35*GB28 -> 251.4222273 | GC36: =GC35*GC28 -> 354.9120115 | GD36: =GD35*GD28 -> 89.38251797 | GE36: =GE35*GE28 -> 126.173925 | GF36: =GF35*GF28 -> 178.1093182 | GG36: =GG35*GG28 -> 251.4222273 | GH36: =GH35*GH28 -> 354.9120115 | GI36: =GI35*GI28 -> 89.38251797 | GJ36: =GJ35*GJ28 -> 126.173925 | GK36: =GK35*GK28 -> 178.1093182 | GL36: =GL35*GL28 -> 251.4222273 | GM36: =GM35*GM28 -> 354.9120115 | GN36: =GN35*GN28 -> 89.38251797 | GO36: =GO35*GO28 -> 126.173925 | GP36: =GP35*GP28 -> 178.1093182 | GQ36: =GQ35*GQ28 -> 251.4222273 | GR36: =GR35*GR28 -> 354.9120115 | GS36: =GS35*GS28 -> 89.38251797 | GT36: =GT35*GT28 -> 126.173925 | GU36: =GU35*GU28 -> 178.1093182 | GV36: =GV35*GV28 -> 251.4222273 | GW36: =GW35*GW28 -> 354.9120115 | GX36: =GX35*GX28 -> 89.38251797 | GY36: =GY35*GY28 -> 126.173925 | GZ36: =GZ35*GZ28 -> 178.1093182 | HA36: =HA35*HA28 -> 251.4222273 | HB36: =HB35*HB28 -> 354.9120115 | HC36: =HC35*HC28 -> 89.38251797 | HD36: =HD35*HD28 -> 126.173925 | HE36: =HE35*HE28 -> 178.1093182 | HF36: =HF35*HF28 -> 251.4222273 | HG36: =HG35*HG28 -> 354.9120115 | HH36: =HH35*HH28 -> 89.38251797 | HI36: =HI35*HI28 -> 126.173925 | HJ36: =HJ35*HJ28 -> 178.1093182 | HK36: =HK35*HK28 -> 251.4222273 | HL36: =HL35*HL28 -> 354.9120115 | HM36: =HM35*HM28 -> 89.38251797 | HN36: =HN35*HN28 -> 126.173925 | HO36: =HO35*HO28 -> 178.1093182 | HP36: =HP35*HP28 -> 251.4222273 | HQ36: =HQ35*HQ28 -> 354.9120115 | HR36: =HR35*HR28 -> 89.38251797 | HS36: =HS35*HS28 -> 126.173925 | HT36: =HT35*HT28 -> 178.1093182 | HU36: =HU35*HU28 -> 251.4222273 | HV36: =HV35*HV28 -> 354.9120115 | HW36: =HW35*HW28 -> 89.38251797 | HX36: =HX35*HX28 -> 126.173925 | HY36: =HY35*HY28 -> 178.1093182 | HZ36: =HZ35*HZ28 -> 251.4222273 | IA36: =IA35*IA28 -> 354.9120115 | IB36: =IB35*IB28 -> 89.38251797 | IC36: =IC35*IC28 -> 126.173925 | ID36: =ID35*ID28 -> 178.1093182 | IE36: =IE35*IE28 -> 251.4222273 | IF36: =IF35*IF28 -> 354.9120115 | IG36: =IG35*IG28 -> 89.38251797 | IH36: =IH35*IH28 -> 126.173925 | II36: =II35*II28 -> 178.1093182 | IJ36: =IJ35*IJ28 -> 251.4222273 | IK36: =IK35*IK28 -> 354.9120115 | IL36: =IL35*IL28 -> 89.38251797 | IM36: =IM35*IM28 -> 126.173925 | IN36: =IN35*IN28 -> 178.1093182 | IO36: =IO35*IO28 -> 251.4222273 | IP36: =IP35*IP28 -> 354.9120115 | IQ36: =IQ35*IQ28 -> 89.38251797 | IR36: =IR35*IR28 -> 126.173925 | IS36: =IS35*IS28 -> 178.1093182 | IT36: =IT35*IT28 -> 251.4222273 | IU36: =IU35*IU28 -> 354.9120115 | IV36: =IV35*IV28 -> 89.38251797 | IW36: =IW35*IW28 -> 126.173925 | IX36: =IX35*IX28 -> 178.1093182 | IY36: =IY35*IY28 -> 251.4222273 | IZ36: =IZ35*IZ28 -> 354.9120115 | JA36: =JA35*JA28 -> 89.38251797 | JB36: =JB35*JB28 -> 126.173925 | JC36: =JC35*JC28 -> 178.1093182 | JD36: =JD35*JD28 -> 251.4222273 | JE36: =JE35*JE28 -> 354.9120115 | JF36: =JF35*JF28 -> 89.38251797 | JG36: =JG35*JG28 -> 126.173925 | JH36: =JH35*JH28 -> 178.1093182 | JI36: =JI35*JI28 -> 251.4222273 | JJ36: =JJ35*JJ28 -> 354.9120115 | JK36: =JK35*JK28 -> 89.38251797 | JL36: =JL35*JL28 -> 126.173925 | JM36: =JM35*JM28 -> 178.1093182 | JN36: =JN35*JN28 -> 251.4222273 | JO36: =JO35*JO28 -> 354.9120115 | JP36: =JP35*JP28 -> 89.38251797 | JQ36: =JQ35*JQ28 -> 126.173925 | JR36: =JR35*JR28 -> 178.1093182 | JS36: =JS35*JS28 -> 251.4222273 | JT36: =JT35*JT28 -> 354.9120115 | JU36: =JU35*JU28 -> 89.38251797 | JV36: =JV35*JV28 -> 126.173925 | JW36: =JW35*JW28 -> 178.1093182 | JX36: =JX35*JX28 -> 251.4222273 | JY36: =JY35*JY28 -> 354.9120115 | JZ36: =JZ35*JZ28 -> 89.38251797 | KA36: =KA35*KA28 -> 126.173925 | KB36: =KB35*KB28 -> 178.1093182 | KC36: =KC35*KC28 -> 251.4222273 | KD36: =KD35*KD28 -> 354.9120115 | KE36: =KE35*KE28 -> 89.38251797 | KF36: =KF35*KF28 -> 126.173925 | KG36: =KG35*KG28 -> 178.1093182 | KH36: =KH35*KH28 -> 251.4222273 | KI36: =KI35*KI28 -> 354.9120115 | KJ36: =KJ35*KJ28 -> 89.38251797 | KK36: =KK35*KK28 -> 126.173925 | KL36: =KL35*KL28 -> 178.1093182 | KM36: =KM35*KM28 -> 251.4222273 | KN36: =KN35*KN28 -> 354.9120115 | KO36: =KO35*KO28 -> 89.38251797 | KP36: =KP35*KP28 -> 126.173925 | KQ36: =KQ35*KQ28 -> 178.1093182 | KR36: =KR35*KR28 -> 251.4222273 | KS36: =KS35*KS28 -> 354.9120115 | KT36: =KT35*KT28 -> 89.38251797 | KU36: =KU35*KU28 -> 126.173925 | KV36: =KV35*KV28 -> 178.1093182 | KW36: =KW35*KW28 -> 251.4222273 | KX36: =KX35*KX28 -> 354.9120115 | KY36: =KY35*KY28 -> 89.38251797 | KZ36: =KZ35*KZ28 -> 126.173925 | LA36: =LA35*LA28 -> 178.1093182 | LB36: =LB35*LB28 -> 251.4222273 | LC36: =LC35*LC28 -> 354.9120115 | LD36: =LD35*LD28 -> 89.38251797 | LE36: =LE35*LE28 -> 126.173925 | LF36: =LF35*LF28 -> 178.1093182 | LG36: =LG35*LG28 -> 251.4222273 | LH36: =LH35*LH28 -> 354.9120115 | LI36: =LI35*LI28 -> 89.38251797 | LJ36: =LJ35*LJ28 -> 126.173925 | LK36: =LK35*LK28 -> 178.1093182 | LL36: =LL35*LL28 -> 251.4222273 | LM36: =LM35*LM28 -> 354.9120115 | LN36: =LN35*LN28 -> 89.38251797 | LO36: =LO35*LO28 -> 126.173925 | LP36: =LP35*LP28 -> 178.1093182 | LQ36: =LQ35*LQ28 -> 251.4222273 | LR36: =LR35*LR28 -> 354.9120115 | LS36: =LS35*LS28 -> 89.38251797 | LT36: =LT35*LT28 -> 126.173925 | LU36: =LU35*LU28 -> 178.1093182 | LV36: =LV35*LV28 -> 251.4222273 | LW36: =LW35*LW28 -> 354.9120115 | LX36: =LX35*LX28 -> 89.38251797 | LY36: =LY35*LY28 -> 126.173925 | LZ36: =LZ35*LZ28 -> 178.1093182 | MA36: =MA35*MA28 -> 251.4222273 | MB36: =MB35*MB28 -> 354.9120115 | MC36: =MC35*MC28 -> 89.38251797 | MD36: =MD35*MD28 -> 126.173925 | ME36: =ME35*ME28 -> 178.1093182 | MF36: =MF35*MF28 -> 251.4222273 | MG36: =MG35*MG28 -> 354.9120115 | MH36: =MH35*MH28 -> 89.38251797 | MI36: =MI35*MI28 -> 126.173925 | MJ36: =MJ35*MJ28 -> 178.1093182 | MK36: =MK35*MK28 -> 251.4222273 | ML36: =ML35*ML28 -> 354.9120115 | MM36: =MM35*MM28 -> 89.38251797 | MN36: =MN35*MN28 -> 126.173925 | MO36: =MO35*MO28 -> 178.1093182 | MP36: =MP35*MP28 -> 251.4222273 | MQ36: =MQ35*MQ28 -> 354.9120115 | MR36: =MR35*MR28 -> 89.38251797 | MS36: =MS35*MS28 -> 126.173925 | MT36: =MT35*MT28 -> 178.1093182 | MU36: =MU35*MU28 -> 251.4222273 | MV36: =MV35*MV28 -> 354.9120115 | MW36: =MW35*MW28 -> 89.38251797 | MX36: =MX35*MX28 -> 126.173925 | MY36: =MY35*MY28 -> 178.1093182 | MZ36: =MZ35*MZ28 -> 251.4222273 | NA36: =NA35*NA28 -> 354.9120115 | NB36: =NB35*NB28 -> 89.38251797 | NC36: =NC35*NC28 -> 126.173925 | ND36: =ND35*ND28 -> 178.1093182 | NE36: =NE35*NE28 -> 251.4222273 | NF36: =NF35*NF28 -> 354.9120115 | NG36: =NG35*NG28 -> 89.38251797 | NH36: =NH35*NH28 -> 126.173925 | NI36: =NI35*NI28 -> 178.1093182 | NJ36: =NJ35*NJ28 -> 251.4222273 | NK36: =NK35*NK28 -> 354.9120115 | NL36: =NL35*NL28 -> 89.38251797 | NM36: =NM35*NM28 -> 126.173925 | NN36: =NN35*NN28 -> 178.1093182 | NO36: =NO35*NO28 -> 251.4222273 | NP36: =NP35*NP28 -> 354.9120115 | NQ36: =NQ35*NQ28 -> 89.38251797 | NR36: =NR35*NR28 -> 126.173925 | NS36: =NS35*NS28 -> 178.1093182 | NT36: =NT35*NT28 -> 251.4222273 | NU36: =NU35*NU28 -> 354.9120115 | NV36: =NV35*NV28 -> 89.38251797 | NW36: =NW35*NW28 -> 126.173925 | NX36: =NX35*NX28 -> 178.1093182 | NY36: =NY35*NY28 -> 251.4222273 | NZ36: =NZ35*NZ28 -> 354.9120115 | OA36: =OA35*OA28 -> 89.38251797 | OB36: =OB35*OB28 -> 126.173925 | OC36: =OC35*OC28 -> 178.1093182 | OD36: =OD35*OD28 -> 251.4222273 | OE36: =OE35*OE28 -> 354.9120115 | OF36: =OF35*OF28 -> 89.38251797 | OG36: =OG35*OG28 -> 126.173925 | OH36: =OH35*OH28 -> 178.1093182 | OI36: =OI35*OI28 -> 251.4222273 | OJ36: =OJ35*OJ28 -> 354.9120115 | OK36: =OK35*OK28 -> 89.38251797 | OL36: =OL35*OL28 -> 126.173925 | OM36: =OM35*OM28 -> 178.1093182 | ON36: =ON35*ON28 -> 251.4222273 | OO36: =OO35*OO28 -> 354.9120115
B38: Case with SL Depreciation
C39: EBITDA | E39: =F16 -> 0.501 | F39: =F31*$E$39 -> 501 | G39: =G31*$E$39 -> 501 | H39: 501 | I39: 501 | J39: 501 | K39: 501 | L39: 501 | M39: 501 | N39: 501 | O39: 501 | P39: 501 | Q39: 501 | R39: 501 | S39: 501 | T39: 501 | U39: 501 | V39: 501 | W39: 501 | X39: 501 | Y39: 501 | Z39: 501 | AA39: 501 | AB39: 501 | AC39: 501 | AD39: 501 | AE39: 501 | AF39: 501 | AG39: 501 | AH39: 501 | AI39: 501 | AJ39: 501 | AK39: 501 | AL39: 501 | AM39: 501 | AN39: 501 | AO39: 501 | AP39: 501 | AQ39: 501 | AR39: 501 | AS39: 501 | AT39: 501 | AU39: 501 | AV39: 501 | AW39: 501 | AX39: 501 | AY39: 501 | AZ39: 501 | BA39: 501 | BB39: 501 | BC39: 501 | BD39: 501 | BE39: 501 | BF39: 501 | BG39: 501 | BH39: 501 | BI39: 501 | BJ39: 501 | BK39: 501 | BL39: 501 | BM39: 501 | BN39: 501 | BO39: 501 | BP39: 501 | BQ39: 501 | BR39: 501 | BS39: =BS31*$E$39 -> 501 | BT39: 501 | BU39: 501 | BV39: 501 | BW39: 501 | BX39: 501 | BY39: 501 | BZ39: 501 | CA39: 501 | CB39: 501 | CC39: 501 | CD39: 501 | CE39: 501 | CF39: 501 | CG39: 501 | CH39: 501 | CI39: 501 | CJ39: 501 | CK39: 501 | CL39: 501 | CM39: 501 | CN39: 501 | CO39: 501 | CP39: 501 | CQ39: 501 | CR39: 501 | CS39: 501 | CT39: 501 | CU39: 501 | CV39: 501 | CW39: 501 | CX39: 501 | CY39: 501 | CZ39: 501 | DA39: 501 | DB39: 501 | DC39: 501 | DD39: 501 | DE39: 501 | DF39: 501 | DG39: 501 | DH39: 501 | DI39: 501 | DJ39: 501 | DK39: 501 | DL39: 501 | DM39: 501 | DN39: 501 | DO39: 501 | DP39: 501 | DQ39: 501 | DR39: 501 | DS39: 501 | DT39: 501 | DU39: 501 | DV39: 501 | DW39: 501 | DX39: 501 | DY39: 501 | DZ39: 501 | EA39: 501 | EB39: 501 | EC39: 501 | ED39: 501 | EE39: =EE31*$E$39 -> 501 | EF39: 501 | EG39: 501 | EH39: 501 | EI39: 501 | EJ39: 501 | EK39: 501 | EL39: 501 | EM39: 501 | EN39: 501 | EO39: 501 | EP39: 501 | EQ39: 501 | ER39: 501 | ES39: 501 | ET39: 501 | EU39: 501 | EV39: 501 | EW39: 501 | EX39: 501 | EY39: 501 | EZ39: 501 | FA39: 501 | FB39: 501 | FC39: 501 | FD39: 501 | FE39: 501 | FF39: 501 | FG39: 501 | FH39: 501 | FI39: 501 | FJ39: 501 | FK39: 501 | FL39: 501 | FM39: 501 | FN39: 501 | FO39: 501 | FP39: 501 | FQ39: 501 | FR39: 501 | FS39: 501 | FT39: 501 | FU39: 501 | FV39: 501 | FW39: 501 | FX39: 501 | FY39: 501 | FZ39: 501 | GA39: 501 | GB39: 501 | GC39: 501 | GD39: 501 | GE39: 501 | GF39: 501 | GG39: 501 | GH39: 501 | GI39: 501 | GJ39: 501 | GK39: 501 | GL39: 501 | GM39: 501 | GN39: 501 | GO39: 501 | GP39: 501 | GQ39: =GQ31*$E$39 -> 501 | GR39: 501 | GS39: 501 | GT39: 501 | GU39: 501 | GV39: 501 | GW39: 501 | GX39: 501 | GY39: 501 | GZ39: 501 | HA39: 501 | HB39: 501 | HC39: 501 | HD39: 501 | HE39: 501 | HF39: 501 | HG39: 501 | HH39: 501 | HI39: 501 | HJ39: 501 | HK39: 501 | HL39: 501 | HM39: 501 | HN39: 501 | HO39: 501 | HP39: 501 | HQ39: 501 | HR39: 501 | HS39: 501 | HT39: 501 | HU39: 501 | HV39: 501 | HW39: 501 | HX39: 501 | HY39: 501 | HZ39: 501 | IA39: 501 | IB39: 501 | IC39: 501 | ID39: 501 | IE39: 501 | IF39: 501 | IG39: 501 | IH39: 501 | II39: 501 | IJ39: 501 | IK39: 501 | IL39: 501 | IM39: 501 | IN39: 501 | IO39: 501 | IP39: 501 | IQ39: 501 | IR39: 501 | IS39: 501 | IT39: 501 | IU39: 501 | IV39: 501 | IW39: 501 | IX39: 501 | IY39: 501 | IZ39: 501 | JA39: 501 | JB39: 501 | JC39: =JC31*$E$39 -> 501 | JD39: 501 | JE39: 501 | JF39: 501 | JG39: 501 | JH39: 501 | JI39: 501 | JJ39: 501 | JK39: 501 | JL39: 501 | JM39: 501 | JN39: 501 | JO39: 501 | JP39: 501 | JQ39: 501 | JR39: 501 | JS39: 501 | JT39: 501 | JU39: 501 | JV39: 501 | JW39: 501 | JX39: 501 | JY39: 501 | JZ39: 501 | KA39: 501 | KB39: 501 | KC39: 501 | KD39: 501 | KE39: 501 | KF39: 501 | KG39: 501 | KH39: 501 | KI39: 501 | KJ39: 501 | KK39: 501 | KL39: 501 | KM39: 501 | KN39: 501 | KO39: 501 | KP39: 501 | KQ39: 501 | KR39: 501 | KS39: 501 | KT39: 501 | KU39: 501 | KV39: 501 | KW39: 501 | KX39: 501 | KY39: 501 | KZ39: 501 | LA39: 501 | LB39: 501 | LC39: 501 | LD39: 501 | LE39: 501 | LF39: 501 | LG39: 501 | LH39: 501 | LI39: 501 | LJ39: 501 | LK39: 501 | LL39: 501 | LM39: 501 | LN39: 501 | LO39: =LO31*$E$39 -> 501 | LP39: 501 | LQ39: 501 | LR39: 501 | LS39: 501 | LT39: 501 | LU39: 501 | LV39: 501 | LW39: 501 | LX39: 501 | LY39: 501 | LZ39: 501 | MA39: 501 | MB39: 501 | MC39: 501 | MD39: 501 | ME39: 501 | MF39: 501 | MG39: 501 | MH39: 501 | MI39: 501 | MJ39: 501 | MK39: 501 | ML39: 501 | MM39: 501 | MN39: 501 | MO39: 501 | MP39: 501 | MQ39: 501 | MR39: 501 | MS39: 501 | MT39: 501 | MU39: 501 | MV39: 501 | MW39: 501 | MX39: 501 | MY39: 501 | MZ39: 501 | NA39: 501 | NB39: 501 | NC39: 501 | ND39: 501 | NE39: 501 | NF39: 501 | NG39: 501 | NH39: 501 | NI39: 501 | NJ39: 501 | NK39: 501 | NL39: 501 | NM39: 501 | NN39: 501 | NO39: 501 | NP39: 501 | NQ39: 501 | NR39: 501 | NS39: 501 | NT39: 501 | NU39: 501 | NV39: 501 | NW39: 501 | NX39: 501 | NY39: 501 | NZ39: 501 | OA39: =OA31*$E$39 -> 501 | OB39: 501 | OC39: 501 | OD39: 501 | OE39: 501 | OF39: 501 | OG39: 501 | OH39: 501 | OI39: 501 | OJ39: 501 | OK39: 501 | OL39: 501 | OM39: 501 | ON39: 501 | OO39: 501
C40: SL Depreciation | F40: =F34 -> 200 | G40: =G34 -> 200 | H40: 200 | I40: 200 | J40: 200 | K40: 200 | L40: 200 | M40: 200 | N40: 200 | O40: 200 | P40: 200 | Q40: 200 | R40: 200 | S40: 200 | T40: 200 | U40: 200 | V40: 200 | W40: 200 | X40: 200 | Y40: 200 | Z40: 200 | AA40: 200 | AB40: 200 | AC40: 200 | AD40: 200 | AE40: 200 | AF40: 200 | AG40: 200 | AH40: 200 | AI40: 200 | AJ40: 200 | AK40: 200 | AL40: 200 | AM40: 200 | AN40: 200 | AO40: 200 | AP40: 200 | AQ40: 200 | AR40: 200 | AS40: 200 | AT40: 200 | AU40: 200 | AV40: 200 | AW40: 200 | AX40: 200 | AY40: 200 | AZ40: 200 | BA40: 200 | BB40: 200 | BC40: 200 | BD40: 200 | BE40: 200 | BF40: 200 | BG40: 200 | BH40: 200 | BI40: 200 | BJ40: 200 | BK40: 200 | BL40: 200 | BM40: 200 | BN40: 200 | BO40: 200 | BP40: 200 | BQ40: 200 | BR40: 200 | BS40: =BS34 -> 200 | BT40: 200 | BU40: 200 | BV40: 200 | BW40: 200 | BX40: 200 | BY40: 200 | BZ40: 200 | CA40: 200 | CB40: 200 | CC40: 200 | CD40: 200 | CE40: 200 | CF40: 200 | CG40: 200 | CH40: 200 | CI40: 200 | CJ40: 200 | CK40: 200 | CL40: 200 | CM40: 200 | CN40: 200 | CO40: 200 | CP40: 200 | CQ40: 200 | CR40: 200 | CS40: 200 | CT40: 200 | CU40: 200 | CV40: 200 | CW40: 200 | CX40: 200 | CY40: 200 | CZ40: 200 | DA40: 200 | DB40: 200 | DC40: 200 | DD40: 200 | DE40: 200 | DF40: 200 | DG40: 200 | DH40: 200 | DI40: 200 | DJ40: 200 | DK40: 200 | DL40: 200 | DM40: 200 | DN40: 200 | DO40: 200 | DP40: 200 | DQ40: 200 | DR40: 200 | DS40: 200 | DT40: 200 | DU40: 200 | DV40: 200 | DW40: 200 | DX40: 200 | DY40: 200 | DZ40: 200 | EA40: 200 | EB40: 200 | EC40: 200 | ED40: 200 | EE40: =EE34 -> 200 | EF40: 200 | EG40: 200 | EH40: 200 | EI40: 200 | EJ40: 200 | EK40: 200 | EL40: 200 | EM40: 200 | EN40: 200 | EO40: 200 | EP40: 200 | EQ40: 200 | ER40: 200 | ES40: 200 | ET40: 200 | EU40: 200 | EV40: 200 | EW40: 200 | EX40: 200 | EY40: 200 | EZ40: 200 | FA40: 200 | FB40: 200 | FC40: 200 | FD40: 200 | FE40: 200 | FF40: 200 | FG40: 200 | FH40: 200 | FI40: 200 | FJ40: 200 | FK40: 200 | FL40: 200 | FM40: 200 | FN40: 200 | FO40: 200 | FP40: 200 | FQ40: 200 | FR40: 200 | FS40: 200 | FT40: 200 | FU40: 200 | FV40: 200 | FW40: 200 | FX40: 200 | FY40: 200 | FZ40: 200 | GA40: 200 | GB40: 200 | GC40: 200 | GD40: 200 | GE40: 200 | GF40: 200 | GG40: 200 | GH40: 200 | GI40: 200 | GJ40: 200 | GK40: 200 | GL40: 200 | GM40: 200 | GN40: 200 | GO40: 200 | GP40: 200 | GQ40: =GQ34 -> 200 | GR40: 200 | GS40: 200 | GT40: 200 | GU40: 200 | GV40: 200 | GW40: 200 | GX40: 200 | GY40: 200 | GZ40: 200 | HA40: 200 | HB40: 200 | HC40: 200 | HD40: 200 | HE40: 200 | HF40: 200 | HG40: 200 | HH40: 200 | HI40: 200 | HJ40: 200 | HK40: 200 | HL40: 200 | HM40: 200 | HN40: 200 | HO40: 200 | HP40: 200 | HQ40: 200 | HR40: 200 | HS40: 200 | HT40: 200 | HU40: 200 | HV40: 200 | HW40: 200 | HX40: 200 | HY40: 200 | HZ40: 200 | IA40: 200 | IB40: 200 | IC40: 200 | ID40: 200 | IE40: 200 | IF40: 200 | IG40: 200 | IH40: 200 | II40: 200 | IJ40: 200 | IK40: 200 | IL40: 200 | IM40: 200 | IN40: 200 | IO40: 200 | IP40: 200 | IQ40: 200 | IR40: 200 | IS40: 200 | IT40: 200 | IU40: 200 | IV40: 200 | IW40: 200 | IX40: 200 | IY40: 200 | IZ40: 200 | JA40: 200 | JB40: 200 | JC40: =JC34 -> 200 | JD40: 200 | JE40: 200 | JF40: 200 | JG40: 200 | JH40: 200 | JI40: 200 | JJ40: 200 | JK40: 200 | JL40: 200 | JM40: 200 | JN40: 200 | JO40: 200 | JP40: 200 | JQ40: 200 | JR40: 200 | JS40: 200 | JT40: 200 | JU40: 200 | JV40: 200 | JW40: 200 | JX40: 200 | JY40: 200 | JZ40: 200 | KA40: 200 | KB40: 200 | KC40: 200 | KD40: 200 | KE40: 200 | KF40: 200 | KG40: 200 | KH40: 200 | KI40: 200 | KJ40: 200 | KK40: 200 | KL40: 200 | KM40: 200 | KN40: 200 | KO40: 200 | KP40: 200 | KQ40: 200 | KR40: 200 | KS40: 200 | KT40: 200 | KU40: 200 | KV40: 200 | KW40: 200 | KX40: 200 | KY40: 200 | KZ40: 200 | LA40: 200 | LB40: 200 | LC40: 200 | LD40: 200 | LE40: 200 | LF40: 200 | LG40: 200 | LH40: 200 | LI40: 200 | LJ40: 200 | LK40: 200 | LL40: 200 | LM40: 200 | LN40: 200 | LO40: =LO34 -> 200 | LP40: 200 | LQ40: 200 | LR40: 200 | LS40: 200 | LT40: 200 | LU40: 200 | LV40: 200 | LW40: 200 | LX40: 200 | LY40: 200 | LZ40: 200 | MA40: 200 | MB40: 200 | MC40: 200 | MD40: 200 | ME40: 200 | MF40: 200 | MG40: 200 | MH40: 200 | MI40: 200 | MJ40: 200 | MK40: 200 | ML40: 200 | MM40: 200 | MN40: 200 | MO40: 200 | MP40: 200 | MQ40: 200 | MR40: 200 | MS40: 200 | MT40: 200 | MU40: 200 | MV40: 200 | MW40: 200 | MX40: 200 | MY40: 200 | MZ40: 200 | NA40: 200 | NB40: 200 | NC40: 200 | ND40: 200 | NE40: 200 | NF40: 200 | NG40: 200 | NH40: 200 | NI40: 200 | NJ40: 200 | NK40: 200 | NL40: 200 | NM40: 200 | NN40: 200 | NO40: 200 | NP40: 200 | NQ40: 200 | NR40: 200 | NS40: 200 | NT40: 200 | NU40: 200 | NV40: 200 | NW40: 200 | NX40: 200 | NY40: 200 | NZ40: 200 | OA40: =OA34 -> 200 | OB40: 200 | OC40: 200 | OD40: 200 | OE40: 200 | OF40: 200 | OG40: 200 | OH40: 200 | OI40: 200 | OJ40: 200 | OK40: 200 | OL40: 200 | OM40: 200 | ON40: 200 | OO40: 200
C41: EBIT | F41: =F39-F40 -> 301 | G41: =G39-G40 -> 301 | H41: 301 | I41: 301 | J41: 301 | K41: 301 | L41: 301 | M41: 301 | N41: 301 | O41: 301 | P41: 301 | Q41: 301 | R41: 301 | S41: 301 | T41: 301 | U41: 301 | V41: 301 | W41: 301 | X41: 301 | Y41: 301 | Z41: 301 | AA41: 301 | AB41: 301 | AC41: 301 | AD41: 301 | AE41: 301 | AF41: 301 | AG41: 301 | AH41: 301 | AI41: 301 | AJ41: 301 | AK41: 301 | AL41: 301 | AM41: 301 | AN41: 301 | AO41: 301 | AP41: 301 | AQ41: 301 | AR41: 301 | AS41: 301 | AT41: 301 | AU41: 301 | AV41: 301 | AW41: 301 | AX41: 301 | AY41: 301 | AZ41: 301 | BA41: 301 | BB41: 301 | BC41: 301 | BD41: =BD39-BD40 -> 301 | BE41: =BE39-BE40 -> 301 | BF41: =BF39-BF40 -> 301 | BG41: =BG39-BG40 -> 301 | BH41: =BH39-BH40 -> 301 | BI41: =BI39-BI40 -> 301 | BJ41: =BJ39-BJ40 -> 301 | BK41: =BK39-BK40 -> 301 | BL41: =BL39-BL40 -> 301 | BM41: =BM39-BM40 -> 301 | BN41: =BN39-BN40 -> 301 | BO41: =BO39-BO40 -> 301 | BP41: =BP39-BP40 -> 301 | BQ41: =BQ39-BQ40 -> 301 | BR41: =BR39-BR40 -> 301 | BS41: =BS39-BS40 -> 301 | BT41: =BT39-BT40 -> 301 | BU41: =BU39-BU40 -> 301 | BV41: =BV39-BV40 -> 301 | BW41: =BW39-BW40 -> 301 | BX41: =BX39-BX40 -> 301 | BY41: =BY39-BY40 -> 301 | BZ41: =BZ39-BZ40 -> 301 | CA41: =CA39-CA40 -> 301 | CB41: =CB39-CB40 -> 301 | CC41: =CC39-CC40 -> 301 | CD41: =CD39-CD40 -> 301 | CE41: =CE39-CE40 -> 301 | CF41: =CF39-CF40 -> 301 | CG41: =CG39-CG40 -> 301 | CH41: =CH39-CH40 -> 301 | CI41: =CI39-CI40 -> 301 | CJ41: =CJ39-CJ40 -> 301 | CK41: =CK39-CK40 -> 301 | CL41: =CL39-CL40 -> 301 | CM41: =CM39-CM40 -> 301 | CN41: =CN39-CN40 -> 301 | CO41: =CO39-CO40 -> 301 | CP41: =CP39-CP40 -> 301 | CQ41: =CQ39-CQ40 -> 301 | CR41: =CR39-CR40 -> 301 | CS41: =CS39-CS40 -> 301 | CT41: =CT39-CT40 -> 301 | CU41: =CU39-CU40 -> 301 | CV41: =CV39-CV40 -> 301 | CW41: =CW39-CW40 -> 301 | CX41: =CX39-CX40 -> 301 | CY41: =CY39-CY40 -> 301 | CZ41: =CZ39-CZ40 -> 301 | DA41: =DA39-DA40 -> 301 | DB41: =DB39-DB40 -> 301 | DC41: =DC39-DC40 -> 301 | DD41: =DD39-DD40 -> 301 | DE41: =DE39-DE40 -> 301 | DF41: =DF39-DF40 -> 301 | DG41: =DG39-DG40 -> 301 | DH41: =DH39-DH40 -> 301 | DI41: =DI39-DI40 -> 301 | DJ41: =DJ39-DJ40 -> 301 | DK41: =DK39-DK40 -> 301 | DL41: =DL39-DL40 -> 301 | DM41: =DM39-DM40 -> 301 | DN41: =DN39-DN40 -> 301 | DO41: =DO39-DO40 -> 301 | DP41: =DP39-DP40 -> 301 | DQ41: =DQ39-DQ40 -> 301 | DR41: =DR39-DR40 -> 301 | DS41: =DS39-DS40 -> 301 | DT41: =DT39-DT40 -> 301 | DU41: =DU39-DU40 -> 301 | DV41: =DV39-DV40 -> 301 | DW41: =DW39-DW40 -> 301 | DX41: =DX39-DX40 -> 301 | DY41: =DY39-DY40 -> 301 | DZ41: =DZ39-DZ40 -> 301 | EA41: =EA39-EA40 -> 301 | EB41: =EB39-EB40 -> 301 | EC41: =EC39-EC40 -> 301 | ED41: =ED39-ED40 -> 301 | EE41: =EE39-EE40 -> 301 | EF41: =EF39-EF40 -> 301 | EG41: =EG39-EG40 -> 301 | EH41: =EH39-EH40 -> 301 | EI41: =EI39-EI40 -> 301 | EJ41: =EJ39-EJ40 -> 301 | EK41: =EK39-EK40 -> 301 | EL41: =EL39-EL40 -> 301 | EM41: =EM39-EM40 -> 301 | EN41: =EN39-EN40 -> 301 | EO41: =EO39-EO40 -> 301 | EP41: =EP39-EP40 -> 301 | EQ41: =EQ39-EQ40 -> 301 | ER41: =ER39-ER40 -> 301 | ES41: =ES39-ES40 -> 301 | ET41: =ET39-ET40 -> 301 | EU41: =EU39-EU40 -> 301 | EV41: =EV39-EV40 -> 301 | EW41: =EW39-EW40 -> 301 | EX41: =EX39-EX40 -> 301 | EY41: =EY39-EY40 -> 301 | EZ41: =EZ39-EZ40 -> 301 | FA41: =FA39-FA40 -> 301 | FB41: =FB39-FB40 -> 301 | FC41: =FC39-FC40 -> 301 | FD41: =FD39-FD40 -> 301 | FE41: =FE39-FE40 -> 301 | FF41: =FF39-FF40 -> 301 | FG41: =FG39-FG40 -> 301 | FH41: =FH39-FH40 -> 301 | FI41: =FI39-FI40 -> 301 | FJ41: =FJ39-FJ40 -> 301 | FK41: =FK39-FK40 -> 301 | FL41: =FL39-FL40 -> 301 | FM41: =FM39-FM40 -> 301 | FN41: =FN39-FN40 -> 301 | FO41: =FO39-FO40 -> 301 | FP41: =FP39-FP40 -> 301 | FQ41: =FQ39-FQ40 -> 301 | FR41: =FR39-FR40 -> 301 | FS41: =FS39-FS40 -> 301 | FT41: =FT39-FT40 -> 301 | FU41: =FU39-FU40 -> 301 | FV41: =FV39-FV40 -> 301 | FW41: =FW39-FW40 -> 301 | FX41: =FX39-FX40 -> 301 | FY41: =FY39-FY40 -> 301 | FZ41: =FZ39-FZ40 -> 301 | GA41: =GA39-GA40 -> 301 | GB41: =GB39-GB40 -> 301 | GC41: =GC39-GC40 -> 301 | GD41: =GD39-GD40 -> 301 | GE41: =GE39-GE40 -> 301 | GF41: =GF39-GF40 -> 301 | GG41: =GG39-GG40 -> 301 | GH41: =GH39-GH40 -> 301 | GI41: =GI39-GI40 -> 301 | GJ41: =GJ39-GJ40 -> 301 | GK41: =GK39-GK40 -> 301 | GL41: =GL39-GL40 -> 301 | GM41: =GM39-GM40 -> 301 | GN41: =GN39-GN40 -> 301 | GO41: =GO39-GO40 -> 301 | GP41: =GP39-GP40 -> 301 | GQ41: =GQ39-GQ40 -> 301 | GR41: =GR39-GR40 -> 301 | GS41: =GS39-GS40 -> 301 | GT41: =GT39-GT40 -> 301 | GU41: =GU39-GU40 -> 301 | GV41: =GV39-GV40 -> 301 | GW41: =GW39-GW40 -> 301 | GX41: =GX39-GX40 -> 301 | GY41: =GY39-GY40 -> 301 | GZ41: =GZ39-GZ40 -> 301 | HA41: =HA39-HA40 -> 301 | HB41: =HB39-HB40 -> 301 | HC41: =HC39-HC40 -> 301 | HD41: =HD39-HD40 -> 301 | HE41: =HE39-HE40 -> 301 | HF41: =HF39-HF40 -> 301 | HG41: =HG39-HG40 -> 301 | HH41: =HH39-HH40 -> 301 | HI41: =HI39-HI40 -> 301 | HJ41: =HJ39-HJ40 -> 301 | HK41: =HK39-HK40 -> 301 | HL41: =HL39-HL40 -> 301 | HM41: =HM39-HM40 -> 301 | HN41: =HN39-HN40 -> 301 | HO41: =HO39-HO40 -> 301 | HP41: =HP39-HP40 -> 301 | HQ41: =HQ39-HQ40 -> 301 | HR41: =HR39-HR40 -> 301 | HS41: =HS39-HS40 -> 301 | HT41: =HT39-HT40 -> 301 | HU41: =HU39-HU40 -> 301 | HV41: =HV39-HV40 -> 301 | HW41: =HW39-HW40 -> 301 | HX41: =HX39-HX40 -> 301 | HY41: =HY39-HY40 -> 301 | HZ41: =HZ39-HZ40 -> 301 | IA41: =IA39-IA40 -> 301 | IB41: =IB39-IB40 -> 301 | IC41: =IC39-IC40 -> 301 | ID41: =ID39-ID40 -> 301 | IE41: =IE39-IE40 -> 301 | IF41: =IF39-IF40 -> 301 | IG41: =IG39-IG40 -> 301 | IH41: =IH39-IH40 -> 301 | II41: =II39-II40 -> 301 | IJ41: =IJ39-IJ40 -> 301 | IK41: =IK39-IK40 -> 301 | IL41: =IL39-IL40 -> 301 | IM41: =IM39-IM40 -> 301 | IN41: =IN39-IN40 -> 301 | IO41: =IO39-IO40 -> 301 | IP41: =IP39-IP40 -> 301 | IQ41: =IQ39-IQ40 -> 301 | IR41: =IR39-IR40 -> 301 | IS41: =IS39-IS40 -> 301 | IT41: =IT39-IT40 -> 301 | IU41: =IU39-IU40 -> 301 | IV41: =IV39-IV40 -> 301 | IW41: =IW39-IW40 -> 301 | IX41: =IX39-IX40 -> 301 | IY41: =IY39-IY40 -> 301 | IZ41: =IZ39-IZ40 -> 301 | JA41: =JA39-JA40 -> 301 | JB41: =JB39-JB40 -> 301 | JC41: =JC39-JC40 -> 301 | JD41: =JD39-JD40 -> 301 | JE41: =JE39-JE40 -> 301 | JF41: =JF39-JF40 -> 301 | JG41: =JG39-JG40 -> 301 | JH41: =JH39-JH40 -> 301 | JI41: =JI39-JI40 -> 301 | JJ41: =JJ39-JJ40 -> 301 | JK41: =JK39-JK40 -> 301 | JL41: =JL39-JL40 -> 301 | JM41: =JM39-JM40 -> 301 | JN41: =JN39-JN40 -> 301 | JO41: =JO39-JO40 -> 301 | JP41: =JP39-JP40 -> 301 | JQ41: =JQ39-JQ40 -> 301 | JR41: =JR39-JR40 -> 301 | JS41: =JS39-JS40 -> 301 | JT41: =JT39-JT40 -> 301 | JU41: =JU39-JU40 -> 301 | JV41: =JV39-JV40 -> 301 | JW41: =JW39-JW40 -> 301 | JX41: =JX39-JX40 -> 301 | JY41: =JY39-JY40 -> 301 | JZ41: =JZ39-JZ40 -> 301 | KA41: =KA39-KA40 -> 301 | KB41: =KB39-KB40 -> 301 | KC41: =KC39-KC40 -> 301 | KD41: =KD39-KD40 -> 301 | KE41: =KE39-KE40 -> 301 | KF41: =KF39-KF40 -> 301 | KG41: =KG39-KG40 -> 301 | KH41: =KH39-KH40 -> 301 | KI41: =KI39-KI40 -> 301 | KJ41: =KJ39-KJ40 -> 301 | KK41: =KK39-KK40 -> 301 | KL41: =KL39-KL40 -> 301 | KM41: =KM39-KM40 -> 301 | KN41: =KN39-KN40 -> 301 | KO41: =KO39-KO40 -> 301 | KP41: =KP39-KP40 -> 301 | KQ41: =KQ39-KQ40 -> 301 | KR41: =KR39-KR40 -> 301 | KS41: =KS39-KS40 -> 301 | KT41: =KT39-KT40 -> 301 | KU41: =KU39-KU40 -> 301 | KV41: =KV39-KV40 -> 301 | KW41: =KW39-KW40 -> 301 | KX41: =KX39-KX40 -> 301 | KY41: =KY39-KY40 -> 301 | KZ41: =KZ39-KZ40 -> 301 | LA41: =LA39-LA40 -> 301 | LB41: =LB39-LB40 -> 301 | LC41: =LC39-LC40 -> 301 | LD41: =LD39-LD40 -> 301 | LE41: =LE39-LE40 -> 301 | LF41: =LF39-LF40 -> 301 | LG41: =LG39-LG40 -> 301 | LH41: =LH39-LH40 -> 301 | LI41: =LI39-LI40 -> 301 | LJ41: =LJ39-LJ40 -> 301 | LK41: =LK39-LK40 -> 301 | LL41: =LL39-LL40 -> 301 | LM41: =LM39-LM40 -> 301 | LN41: =LN39-LN40 -> 301 | LO41: =LO39-LO40 -> 301 | LP41: =LP39-LP40 -> 301 | LQ41: =LQ39-LQ40 -> 301 | LR41: =LR39-LR40 -> 301 | LS41: =LS39-LS40 -> 301 | LT41: =LT39-LT40 -> 301 | LU41: =LU39-LU40 -> 301 | LV41: =LV39-LV40 -> 301 | LW41: =LW39-LW40 -> 301 | LX41: =LX39-LX40 -> 301 | LY41: =LY39-LY40 -> 301 | LZ41: =LZ39-LZ40 -> 301 | MA41: =MA39-MA40 -> 301 | MB41: =MB39-MB40 -> 301 | MC41: =MC39-MC40 -> 301 | MD41: =MD39-MD40 -> 301 | ME41: =ME39-ME40 -> 301 | MF41: =MF39-MF40 -> 301 | MG41: =MG39-MG40 -> 301 | MH41: =MH39-MH40 -> 301 | MI41: =MI39-MI40 -> 301 | MJ41: =MJ39-MJ40 -> 301 | MK41: =MK39-MK40 -> 301 | ML41: =ML39-ML40 -> 301 | MM41: =MM39-MM40 -> 301 | MN41: =MN39-MN40 -> 301 | MO41: =MO39-MO40 -> 301 | MP41: =MP39-MP40 -> 301 | MQ41: =MQ39-MQ40 -> 301 | MR41: =MR39-MR40 -> 301 | MS41: =MS39-MS40 -> 301 | MT41: =MT39-MT40 -> 301 | MU41: =MU39-MU40 -> 301 | MV41: =MV39-MV40 -> 301 | MW41: =MW39-MW40 -> 301 | MX41: =MX39-MX40 -> 301 | MY41: =MY39-MY40 -> 301 | MZ41: =MZ39-MZ40 -> 301 | NA41: =NA39-NA40 -> 301 | NB41: =NB39-NB40 -> 301 | NC41: =NC39-NC40 -> 301 | ND41: =ND39-ND40 -> 301 | NE41: =NE39-NE40 -> 301 | NF41: =NF39-NF40 -> 301 | NG41: =NG39-NG40 -> 301 | NH41: =NH39-NH40 -> 301 | NI41: =NI39-NI40 -> 301 | NJ41: =NJ39-NJ40 -> 301 | NK41: =NK39-NK40 -> 301 | NL41: =NL39-NL40 -> 301 | NM41: =NM39-NM40 -> 301 | NN41: =NN39-NN40 -> 301 | NO41: =NO39-NO40 -> 301 | NP41: =NP39-NP40 -> 301 | NQ41: =NQ39-NQ40 -> 301 | NR41: =NR39-NR40 -> 301 | NS41: =NS39-NS40 -> 301 | NT41: =NT39-NT40 -> 301 | NU41: =NU39-NU40 -> 301 | NV41: =NV39-NV40 -> 301 | NW41: =NW39-NW40 -> 301 | NX41: =NX39-NX40 -> 301 | NY41: =NY39-NY40 -> 301 | NZ41: =NZ39-NZ40 -> 301 | OA41: =OA39-OA40 -> 301 | OB41: =OB39-OB40 -> 301 | OC41: =OC39-OC40 -> 301 | OD41: =OD39-OD40 -> 301 | OE41: =OE39-OE40 -> 301 | OF41: =OF39-OF40 -> 301 | OG41: =OG39-OG40 -> 301 | OH41: =OH39-OH40 -> 301 | OI41: =OI39-OI40 -> 301 | OJ41: =OJ39-OJ40 -> 301 | OK41: =OK39-OK40 -> 301 | OL41: =OL39-OL40 -> 301 | OM41: =OM39-OM40 -> 301 | ON41: =ON39-ON40 -> 301 | OO41: =OO39-OO40 -> 301
C43: Net Plant | E43: =E31 -> 1000 | F43: =E43 -> 1000 | G43: =F43-F40+F29 -> 800 | H43: =G43-G40+G29 -> 600 | I43: 400 | J43: 200 | K43: 1000 | L43: 800 | M43: 600 | N43: 400 | O43: 200 | P43: 1000 | Q43: 800 | R43: 600 | S43: 400 | T43: 200 | U43: 1000 | V43: 800 | W43: 600 | X43: 400 | Y43: 200 | Z43: 1000 | AA43: 800 | AB43: 600 | AC43: 400 | AD43: 200 | AE43: 1000 | AF43: 800 | AG43: 600 | AH43: 400 | AI43: 200 | AJ43: 1000 | AK43: 800 | AL43: 600 | AM43: 400 | AN43: 200 | AO43: 1000 | AP43: 800 | AQ43: 600 | AR43: 400 | AS43: 200 | AT43: 1000 | AU43: 800 | AV43: 600 | AW43: 400 | AX43: 200 | AY43: 1000 | AZ43: 800 | BA43: 600 | BB43: 400 | BC43: 200 | BD43: 1000 | BE43: 800 | BF43: 600 | BG43: 400 | BH43: 200 | BI43: 1000 | BJ43: 800 | BK43: 600 | BL43: 400 | BM43: 200 | BN43: 1000 | BO43: 800 | BP43: 600 | BQ43: 400 | BR43: 200 | BS43: 1000 | BT43: =BS43-BS40+BS29 -> 800 | BU43: 600 | BV43: 400 | BW43: 200 | BX43: 1000 | BY43: 800 | BZ43: 600 | CA43: 400 | CB43: 200 | CC43: 1000 | CD43: 800 | CE43: 600 | CF43: 400 | CG43: 200 | CH43: 1000 | CI43: 800 | CJ43: 600 | CK43: 400 | CL43: 200 | CM43: 1000 | CN43: 800 | CO43: 600 | CP43: 400 | CQ43: 200 | CR43: 1000 | CS43: 800 | CT43: 600 | CU43: 400 | CV43: 200 | CW43: 1000 | CX43: 800 | CY43: 600 | CZ43: 400 | DA43: 200 | DB43: 1000 | DC43: 800 | DD43: 600 | DE43: 400 | DF43: 200 | DG43: 1000 | DH43: 800 | DI43: 600 | DJ43: 400 | DK43: 200 | DL43: 1000 | DM43: 800 | DN43: 600 | DO43: 400 | DP43: 200 | DQ43: 1000 | DR43: 800 | DS43: 600 | DT43: 400 | DU43: 200 | DV43: 1000 | DW43: 800 | DX43: 600 | DY43: 400 | DZ43: 200 | EA43: 1000 | EB43: 800 | EC43: 600 | ED43: 400 | EE43: 200 | EF43: =EE43-EE40+EE29 -> 1000 | EG43: 800 | EH43: 600 | EI43: 400 | EJ43: 200 | EK43: 1000 | EL43: 800 | EM43: 600 | EN43: 400 | EO43: 200 | EP43: 1000 | EQ43: 800 | ER43: 600 | ES43: 400 | ET43: 200 | EU43: 1000 | EV43: 800 | EW43: 600 | EX43: 400 | EY43: 200 | EZ43: 1000 | FA43: 800 | FB43: 600 | FC43: 400 | FD43: 200 | FE43: 1000 | FF43: 800 | FG43: 600 | FH43: 400 | FI43: 200 | FJ43: 1000 | FK43: 800 | FL43: 600 | FM43: 400 | FN43: 200 | FO43: 1000 | FP43: 800 | FQ43: 600 | FR43: 400 | FS43: 200 | FT43: 1000 | FU43: 800 | FV43: 600 | FW43: 400 | FX43: 200 | FY43: 1000 | FZ43: 800 | GA43: 600 | GB43: 400 | GC43: 200 | GD43: 1000 | GE43: 800 | GF43: 600 | GG43: 400 | GH43: 200 | GI43: 1000 | GJ43: 800 | GK43: 600 | GL43: 400 | GM43: 200 | GN43: 1000 | GO43: 800 | GP43: 600 | GQ43: 400 | GR43: =GQ43-GQ40+GQ29 -> 200 | GS43: 1000 | GT43: 800 | GU43: 600 | GV43: 400 | GW43: 200 | GX43: 1000 | GY43: 800 | GZ43: 600 | HA43: 400 | HB43: 200 | HC43: 1000 | HD43: 800 | HE43: 600 | HF43: 400 | HG43: 200 | HH43: 1000 | HI43: 800 | HJ43: 600 | HK43: 400 | HL43: 200 | HM43: 1000 | HN43: 800 | HO43: 600 | HP43: 400 | HQ43: 200 | HR43: 1000 | HS43: 800 | HT43: 600 | HU43: 400 | HV43: 200 | HW43: 1000 | HX43: 800 | HY43: 600 | HZ43: 400 | IA43: 200 | IB43: 1000 | IC43: 800 | ID43: 600 | IE43: 400 | IF43: 200 | IG43: 1000 | IH43: 800 | II43: 600 | IJ43: 400 | IK43: 200 | IL43: 1000 | IM43: 800 | IN43: 600 | IO43: 400 | IP43: 200 | IQ43: 1000 | IR43: 800 | IS43: 600 | IT43: 400 | IU43: 200 | IV43: 1000 | IW43: 800 | IX43: 600 | IY43: 400 | IZ43: 200 | JA43: 1000 | JB43: 800 | JC43: 600 | JD43: =JC43-JC40+JC29 -> 400 | JE43: 200 | JF43: 1000 | JG43: 800 | JH43: 600 | JI43: 400 | JJ43: 200 | JK43: 1000 | JL43: 800 | JM43: 600 | JN43: 400 | JO43: 200 | JP43: 1000 | JQ43: 800 | JR43: 600 | JS43: 400 | JT43: 200 | JU43: 1000 | JV43: 800 | JW43: 600 | JX43: 400 | JY43: 200 | JZ43: 1000 | KA43: 800 | KB43: 600 | KC43: 400 | KD43: 200 | KE43: 1000 | KF43: 800 | KG43: 600 | KH43: 400 | KI43: 200 | KJ43: 1000 | KK43: 800 | KL43: 600 | KM43: 400 | KN43: 200 | KO43: 1000 | KP43: 800 | KQ43: 600 | KR43: 400 | KS43: 200 | KT43: 1000 | KU43: 800 | KV43: 600 | KW43: 400 | KX43: 200 | KY43: 1000 | KZ43: 800 | LA43: 600 | LB43: 400 | LC43: 200 | LD43: 1000 | LE43: 800 | LF43: 600 | LG43: 400 | LH43: 200 | LI43: 1000 | LJ43: 800 | LK43: 600 | LL43: 400 | LM43: 200 | LN43: 1000 | LO43: 800 | LP43: =LO43-LO40+LO29 -> 600 | LQ43: 400 | LR43: 200 | LS43: 1000 | LT43: 800 | LU43: 600 | LV43: 400 | LW43: 200 | LX43: 1000 | LY43: 800 | LZ43: 600 | MA43: 400 | MB43: 200 | MC43: 1000 | MD43: 800 | ME43: 600 | MF43: 400 | MG43: 200 | MH43: 1000 | MI43: 800 | MJ43: 600 | MK43: 400 | ML43: 200 | MM43: 1000 | MN43: 800 | MO43: 600 | MP43: 400 | MQ43: 200 | MR43: 1000 | MS43: 800 | MT43: 600 | MU43: 400 | MV43: 200 | MW43: 1000 | MX43: 800 | MY43: 600 | MZ43: 400 | NA43: 200 | NB43: 1000 | NC43: 800 | ND43: 600 | NE43: 400 | NF43: 200 | NG43: 1000 | NH43: 800 | NI43: 600 | NJ43: 400 | NK43: 200 | NL43: 1000 | NM43: 800 | NN43: 600 | NO43: 400 | NP43: 200 | NQ43: 1000 | NR43: 800 | NS43: 600 | NT43: 400 | NU43: 200 | NV43: 1000 | NW43: 800 | NX43: 600 | NY43: 400 | NZ43: 200 | OA43: 1000 | OB43: =OA43-OA40+OA29 -> 800 | OC43: 600 | OD43: 400 | OE43: 200 | OF43: 1000 | OG43: 800 | OH43: 600 | OI43: 400 | OJ43: 200 | OK43: 1000 | OL43: 800 | OM43: 600 | ON43: 400 | OO43: 200
C45: ROIC - Straight Line | F45: =F41/F43 -> 0.301 | G45: =G41/G43 -> 0.37625 | H45: 0.5016666667 | I45: 0.7525 | J45: 1.505 | K45: 0.301 | L45: 0.37625 | M45: 0.5016666667 | N45: 0.7525 | O45: 1.505 | P45: 0.301 | Q45: 0.37625 | R45: 0.5016666667 | S45: 0.7525 | T45: 1.505 | U45: 0.301 | V45: 0.37625 | W45: 0.5016666667 | X45: 0.7525 | Y45: 1.505 | Z45: 0.301 | AA45: 0.37625 | AB45: 0.5016666667 | AC45: 0.7525 | AD45: 1.505 | AE45: 0.301 | AF45: 0.37625 | AG45: 0.5016666667 | AH45: 0.7525 | AI45: 1.505 | AJ45: 0.301 | AK45: 0.37625 | AL45: 0.5016666667 | AM45: 0.7525 | AN45: 1.505 | AO45: 0.301 | AP45: 0.37625 | AQ45: 0.5016666667 | AR45: 0.7525 | AS45: 1.505 | AT45: 0.301 | AU45: 0.37625 | AV45: 0.5016666667 | AW45: 0.7525 | AX45: 1.505 | AY45: 0.301 | AZ45: 0.37625 | BA45: 0.5016666667 | BB45: 0.7525 | BC45: 1.505 | BD45: 0.301 | BE45: 0.37625 | BF45: 0.5016666667 | BG45: 0.7525 | BH45: 1.505 | BI45: 0.301 | BJ45: 0.37625 | BK45: 0.5016666667 | BL45: 0.7525 | BM45: 1.505 | BN45: 0.301 | BO45: 0.37625 | BP45: 0.5016666667 | BQ45: 0.7525 | BR45: 1.505 | BS45: =BS41/BS43 -> 0.301 | BT45: 0.37625 | BU45: 0.5016666667 | BV45: 0.7525 | BW45: 1.505 | BX45: 0.301 | BY45: 0.37625 | BZ45: 0.5016666667 | CA45: 0.7525 | CB45: 1.505 | CC45: 0.301 | CD45: 0.37625 | CE45: 0.5016666667 | CF45: 0.7525 | CG45: 1.505 | CH45: 0.301 | CI45: 0.37625 | CJ45: 0.5016666667 | CK45: 0.7525 | CL45: 1.505 | CM45: 0.301 | CN45: 0.37625 | CO45: 0.5016666667 | CP45: 0.7525 | CQ45: 1.505 | CR45: 0.301 | CS45: 0.37625 | CT45: 0.5016666667 | CU45: 0.7525 | CV45: 1.505 | CW45: 0.301 | CX45: 0.37625 | CY45: 0.5016666667 | CZ45: 0.7525 | DA45: 1.505 | DB45: 0.301 | DC45: 0.37625 | DD45: 0.5016666667 | DE45: 0.7525 | DF45: 1.505 | DG45: 0.301 | DH45: 0.37625 | DI45: 0.5016666667 | DJ45: 0.7525 | DK45: 1.505 | DL45: 0.301 | DM45: 0.37625 | DN45: 0.5016666667 | DO45: 0.7525 | DP45: 1.505 | DQ45: 0.301 | DR45: 0.37625 | DS45: 0.5016666667 | DT45: 0.7525 | DU45: 1.505 | DV45: 0.301 | DW45: 0.37625 | DX45: 0.5016666667 | DY45: 0.7525 | DZ45: 1.505 | EA45: 0.301 | EB45: 0.37625 | EC45: 0.5016666667 | ED45: 0.7525 | EE45: =EE41/EE43 -> 1.505 | EF45: 0.301 | EG45: 0.37625 | EH45: 0.5016666667 | EI45: 0.7525 | EJ45: 1.505 | EK45: 0.301 | EL45: 0.37625 | EM45: 0.5016666667 | EN45: 0.7525 | EO45: 1.505 | EP45: 0.301 | EQ45: 0.37625 | ER45: 0.5016666667 | ES45: 0.7525 | ET45: 1.505 | EU45: 0.301 | EV45: 0.37625 | EW45: 0.5016666667 | EX45: 0.7525 | EY45: 1.505 | EZ45: 0.301 | FA45: 0.37625 | FB45: 0.5016666667 | FC45: 0.7525 | FD45: 1.505 | FE45: 0.301 | FF45: 0.37625 | FG45: 0.5016666667 | FH45: 0.7525 | FI45: 1.505 | FJ45: 0.301 | FK45: 0.37625 | FL45: 0.5016666667 | FM45: 0.7525 | FN45: 1.505 | FO45: 0.301 | FP45: 0.37625 | FQ45: 0.5016666667 | FR45: 0.7525 | FS45: 1.505 | FT45: 0.301 | FU45: 0.37625 | FV45: 0.5016666667 | FW45: 0.7525 | FX45: 1.505 | FY45: 0.301 | FZ45: 0.37625 | GA45: 0.5016666667 | GB45: 0.7525 | GC45: 1.505 | GD45: 0.301 | GE45: 0.37625 | GF45: 0.5016666667 | GG45: 0.7525 | GH45: 1.505 | GI45: 0.301 | GJ45: 0.37625 | GK45: 0.5016666667 | GL45: 0.7525 | GM45: 1.505 | GN45: 0.301 | GO45: 0.37625 | GP45: 0.5016666667 | GQ45: =GQ41/GQ43 -> 0.7525 | GR45: 1.505 | GS45: 0.301 | GT45: 0.37625 | GU45: 0.5016666667 | GV45: 0.7525 | GW45: 1.505 | GX45: 0.301 | GY45: 0.37625 | GZ45: 0.5016666667 | HA45: 0.7525 | HB45: 1.505 | HC45: 0.301 | HD45: 0.37625 | HE45: 0.5016666667 | HF45: 0.7525 | HG45: 1.505 | HH45: 0.301 | HI45: 0.37625 | HJ45: 0.5016666667 | HK45: 0.7525 | HL45: 1.505 | HM45: 0.301 | HN45: 0.37625 | HO45: 0.5016666667 | HP45: 0.7525 | HQ45: 1.505 | HR45: 0.301 | HS45: 0.37625 | HT45: 0.5016666667 | HU45: 0.7525 | HV45: 1.505 | HW45: 0.301 | HX45: 0.37625 | HY45: 0.5016666667 | HZ45: 0.7525 | IA45: 1.505 | IB45: 0.301 | IC45: 0.37625 | ID45: 0.5016666667 | IE45: 0.7525 | IF45: 1.505 | IG45: 0.301 | IH45: 0.37625 | II45: 0.5016666667 | IJ45: 0.7525 | IK45: 1.505 | IL45: 0.301 | IM45: 0.37625 | IN45: 0.5016666667 | IO45: 0.7525 | IP45: 1.505 | IQ45: 0.301 | IR45: 0.37625 | IS45: 0.5016666667 | IT45: 0.7525 | IU45: 1.505 | IV45: 0.301 | IW45: 0.37625 | IX45: 0.5016666667 | IY45: 0.7525 | IZ45: 1.505 | JA45: 0.301 | JB45: 0.37625 | JC45: =JC41/JC43 -> 0.5016666667 | JD45: 0.7525 | JE45: 1.505 | JF45: 0.301 | JG45: 0.37625 | JH45: 0.5016666667 | JI45: 0.7525 | JJ45: 1.505 | JK45: 0.301 | JL45: 0.37625 | JM45: 0.5016666667 | JN45: 0.7525 | JO45: 1.505 | JP45: 0.301 | JQ45: 0.37625 | JR45: 0.5016666667 | JS45: 0.7525 | JT45: 1.505 | JU45: 0.301 | JV45: 0.37625 | JW45: 0.5016666667 | JX45: 0.7525 | JY45: 1.505 | JZ45: 0.301 | KA45: 0.37625 | KB45: 0.5016666667 | KC45: 0.7525 | KD45: 1.505 | KE45: 0.301 | KF45: 0.37625 | KG45: 0.5016666667 | KH45: 0.7525 | KI45: 1.505 | KJ45: 0.301 | KK45: 0.37625 | KL45: 0.5016666667 | KM45: 0.7525 | KN45: 1.505 | KO45: 0.301 | KP45: 0.37625 | KQ45: 0.5016666667 | KR45: 0.7525 | KS45: 1.505 | KT45: 0.301 | KU45: 0.37625 | KV45: 0.5016666667 | KW45: 0.7525 | KX45: 1.505 | KY45: 0.301 | KZ45: 0.37625 | LA45: 0.5016666667 | LB45: 0.7525 | LC45: 1.505 | LD45: 0.301 | LE45: 0.37625 | LF45: 0.5016666667 | LG45: 0.7525 | LH45: 1.505 | LI45: 0.301 | LJ45: 0.37625 | LK45: 0.5016666667 | LL45: 0.7525 | LM45: 1.505 | LN45: 0.301 | LO45: =LO41/LO43 -> 0.37625 | LP45: 0.5016666667 | LQ45: 0.7525 | LR45: 1.505 | LS45: 0.301 | LT45: 0.37625 | LU45: 0.5016666667 | LV45: 0.7525 | LW45: 1.505 | LX45: 0.301 | LY45: 0.37625 | LZ45: 0.5016666667 | MA45: 0.7525 | MB45: 1.505 | MC45: 0.301 | MD45: 0.37625 | ME45: 0.5016666667 | MF45: 0.7525 | MG45: 1.505 | MH45: 0.301 | MI45: 0.37625 | MJ45: 0.5016666667 | MK45: 0.7525 | ML45: 1.505 | MM45: 0.301 | MN45: 0.37625 | MO45: 0.5016666667 | MP45: 0.7525 | MQ45: 1.505 | MR45: 0.301 | MS45: 0.37625 | MT45: 0.5016666667 | MU45: 0.7525 | MV45: 1.505 | MW45: 0.301 | MX45: 0.37625 | MY45: 0.5016666667 | MZ45: 0.7525 | NA45: 1.505 | NB45: 0.301 | NC45: 0.37625 | ND45: 0.5016666667 | NE45: 0.7525 | NF45: 1.505 | NG45: 0.301 | NH45: 0.37625 | NI45: 0.5016666667 | NJ45: 0.7525 | NK45: 1.505 | NL45: 0.301 | NM45: 0.37625 | NN45: 0.5016666667 | NO45: 0.7525 | NP45: 1.505 | NQ45: 0.301 | NR45: 0.37625 | NS45: 0.5016666667 | NT45: 0.7525 | NU45: 1.505 | NV45: 0.301 | NW45: 0.37625 | NX45: 0.5016666667 | NY45: 0.7525 | NZ45: 1.505 | OA45: =OA41/OA43 -> 0.301 | OB45: 0.37625 | OC45: 0.5016666667 | OD45: 0.7525 | OE45: 1.505 | OF45: 0.301 | OG45: 0.37625 | OH45: 0.5016666667 | OI45: 0.7525 | OJ45: 1.505 | OK45: 0.301 | OL45: 0.37625 | OM45: 0.5016666667 | ON45: 0.7525 | OO45: 1.505
B47: Case with Economic Depreciation
C48: EBITDA | F48: =F39 -> 501 | G48: =G39 -> 501 | H48: 501 | I48: 501 | J48: 501 | K48: 501 | L48: 501 | M48: 501 | N48: 501 | O48: 501 | P48: 501 | Q48: 501 | R48: 501 | S48: 501 | T48: 501 | U48: 501 | V48: 501 | W48: 501 | X48: 501 | Y48: 501 | Z48: 501 | AA48: 501 | AB48: 501 | AC48: 501 | AD48: 501 | AE48: 501 | AF48: 501 | AG48: 501 | AH48: 501 | AI48: 501 | AJ48: 501 | AK48: 501 | AL48: 501 | AM48: 501 | AN48: 501 | AO48: 501 | AP48: 501 | AQ48: 501 | AR48: 501 | AS48: 501 | AT48: 501 | AU48: 501 | AV48: 501 | AW48: 501 | AX48: 501 | AY48: 501 | AZ48: 501 | BA48: 501 | BB48: 501 | BC48: 501 | BD48: 501 | BE48: 501 | BF48: 501 | BG48: 501 | BH48: 501 | BI48: 501 | BJ48: 501 | BK48: 501 | BL48: 501 | BM48: 501 | BN48: 501 | BO48: 501 | BP48: 501 | BQ48: 501 | BR48: 501 | BS48: =BS39 -> 501 | BT48: 501 | BU48: 501 | BV48: 501 | BW48: 501 | BX48: 501 | BY48: 501 | BZ48: 501 | CA48: 501 | CB48: 501 | CC48: 501 | CD48: 501 | CE48: 501 | CF48: 501 | CG48: 501 | CH48: 501 | CI48: 501 | CJ48: 501 | CK48: 501 | CL48: 501 | CM48: 501 | CN48: 501 | CO48: 501 | CP48: 501 | CQ48: 501 | CR48: 501 | CS48: 501 | CT48: 501 | CU48: 501 | CV48: 501 | CW48: 501 | CX48: 501 | CY48: 501 | CZ48: 501 | DA48: 501 | DB48: 501 | DC48: 501 | DD48: 501 | DE48: 501 | DF48: 501 | DG48: 501 | DH48: 501 | DI48: 501 | DJ48: 501 | DK48: 501 | DL48: 501 | DM48: 501 | DN48: 501 | DO48: 501 | DP48: 501 | DQ48: 501 | DR48: 501 | DS48: 501 | DT48: 501 | DU48: 501 | DV48: 501 | DW48: 501 | DX48: 501 | DY48: 501 | DZ48: 501 | EA48: 501 | EB48: 501 | EC48: 501 | ED48: 501 | EE48: =EE39 -> 501 | EF48: 501 | EG48: 501 | EH48: 501 | EI48: 501 | EJ48: 501 | EK48: 501 | EL48: 501 | EM48: 501 | EN48: 501 | EO48: 501 | EP48: 501 | EQ48: 501 | ER48: 501 | ES48: 501 | ET48: 501 | EU48: 501 | EV48: 501 | EW48: 501 | EX48: 501 | EY48: 501 | EZ48: 501 | FA48: 501 | FB48: 501 | FC48: 501 | FD48: 501 | FE48: 501 | FF48: 501 | FG48: 501 | FH48: 501 | FI48: 501 | FJ48: 501 | FK48: 501 | FL48: 501 | FM48: 501 | FN48: 501 | FO48: 501 | FP48: 501 | FQ48: 501 | FR48: 501 | FS48: 501 | FT48: 501 | FU48: 501 | FV48: 501 | FW48: 501 | FX48: 501 | FY48: 501 | FZ48: 501 | GA48: 501 | GB48: 501 | GC48: 501 | GD48: 501 | GE48: 501 | GF48: 501 | GG48: 501 | GH48: 501 | GI48: 501 | GJ48: 501 | GK48: 501 | GL48: 501 | GM48: 501 | GN48: 501 | GO48: 501 | GP48: 501 | GQ48: =GQ39 -> 501 | GR48: 501 | GS48: 501 | GT48: 501 | GU48: 501 | GV48: 501 | GW48: 501 | GX48: 501 | GY48: 501 | GZ48: 501 | HA48: 501 | HB48: 501 | HC48: 501 | HD48: 501 | HE48: 501 | HF48: 501 | HG48: 501 | HH48: 501 | HI48: 501 | HJ48: 501 | HK48: 501 | HL48: 501 | HM48: 501 | HN48: 501 | HO48: 501 | HP48: 501 | HQ48: 501 | HR48: 501 | HS48: 501 | HT48: 501 | HU48: 501 | HV48: 501 | HW48: 501 | HX48: 501 | HY48: 501 | HZ48: 501 | IA48: 501 | IB48: 501 | IC48: 501 | ID48: 501 | IE48: 501 | IF48: 501 | IG48: 501 | IH48: 501 | II48: 501 | IJ48: 501 | IK48: 501 | IL48: 501 | IM48: 501 | IN48: 501 | IO48: 501 | IP48: 501 | IQ48: 501 | IR48: 501 | IS48: 501 | IT48: 501 | IU48: 501 | IV48: 501 | IW48: 501 | IX48: 501 | IY48: 501 | IZ48: 501 | JA48: 501 | JB48: 501 | JC48: =JC39 -> 501 | JD48: 501 | JE48: 501 | JF48: 501 | JG48: 501 | JH48: 501 | JI48: 501 | JJ48: 501 | JK48: 501 | JL48: 501 | JM48: 501 | JN48: 501 | JO48: 501 | JP48: 501 | JQ48: 501 | JR48: 501 | JS48: 501 | JT48: 501 | JU48: 501 | JV48: 501 | JW48: 501 | JX48: 501 | JY48: 501 | JZ48: 501 | KA48: 501 | KB48: 501 | KC48: 501 | KD48: 501 | KE48: 501 | KF48: 501 | KG48: 501 | KH48: 501 | KI48: 501 | KJ48: 501 | KK48: 501 | KL48: 501 | KM48: 501 | KN48: 501 | KO48: 501 | KP48: 501 | KQ48: 501 | KR48: 501 | KS48: 501 | KT48: 501 | KU48: 501 | KV48: 501 | KW48: 501 | KX48: 501 | KY48: 501 | KZ48: 501 | LA48: 501 | LB48: 501 | LC48: 501 | LD48: 501 | LE48: 501 | LF48: 501 | LG48: 501 | LH48: 501 | LI48: 501 | LJ48: 501 | LK48: 501 | LL48: 501 | LM48: 501 | LN48: 501 | LO48: =LO39 -> 501 | LP48: 501 | LQ48: 501 | LR48: 501 | LS48: 501 | LT48: 501 | LU48: 501 | LV48: 501 | LW48: 501 | LX48: 501 | LY48: 501 | LZ48: 501 | MA48: 501 | MB48: 501 | MC48: 501 | MD48: 501 | ME48: 501 | MF48: 501 | MG48: 501 | MH48: 501 | MI48: 501 | MJ48: 501 | MK48: 501 | ML48: 501 | MM48: 501 | MN48: 501 | MO48: 501 | MP48: 501 | MQ48: 501 | MR48: 501 | MS48: 501 | MT48: 501 | MU48: 501 | MV48: 501 | MW48: 501 | MX48: 501 | MY48: 501 | MZ48: 501 | NA48: 501 | NB48: 501 | NC48: 501 | ND48: 501 | NE48: 501 | NF48: 501 | NG48: 501 | NH48: 501 | NI48: 501 | NJ48: 501 | NK48: 501 | NL48: 501 | NM48: 501 | NN48: 501 | NO48: 501 | NP48: 501 | NQ48: 501 | NR48: 501 | NS48: 501 | NT48: 501 | NU48: 501 | NV48: 501 | NW48: 501 | NX48: 501 | NY48: 501 | NZ48: 501 | OA48: =OA39 -> 501 | OB48: 501 | OC48: 501 | OD48: 501 | OE48: 501 | OF48: 501 | OG48: 501 | OH48: 501 | OI48: 501 | OJ48: 501 | OK48: 501 | OL48: 501 | OM48: 501 | ON48: 501 | OO48: 501
C49: Econ Depreciation | F49: =depreciation(E29:OO29,F18:Y18) -> 89.38251495 | G49: 126.1739273 | H49: 178.109314 | I49: 251.422226 | J49: 354.9120178 | K49: 89.38251495 | L49: 126.1739273 | M49: 178.109314 | N49: 251.422226 | O49: 354.9120178 | P49: 89.38251495 | Q49: 126.1739273 | R49: 178.109314 | S49: 251.422226 | T49: 354.9120178 | U49: 89.38251495 | V49: 126.1739273 | W49: 178.109314 | X49: 251.422226 | Y49: 354.9120178 | Z49: 89.38251495 | AA49: 126.1739273 | AB49: 178.109314 | AC49: 251.422226 | AD49: 354.9120178 | AE49: 89.38251495 | AF49: 126.1739273 | AG49: 178.109314 | AH49: 251.422226 | AI49: 354.9120178 | AJ49: 89.38251495 | AK49: 126.1739273 | AL49: 178.109314 | AM49: 251.422226 | AN49: 354.9120178 | AO49: 89.38251495 | AP49: 126.1739273 | AQ49: 178.109314 | AR49: 251.422226 | AS49: 354.9120178 | AT49: 89.38251495 | AU49: 126.1739273 | AV49: 178.109314 | AW49: 251.422226 | AX49: 354.9120178 | AY49: 89.38251495 | AZ49: 126.1739273 | BA49: 178.109314 | BB49: 251.422226 | BC49: 354.9120178 | BD49: 89.38251495 | BE49: 126.1739273 | BF49: 178.109314 | BG49: 251.422226 | BH49: 354.9120178 | BI49: 89.38251495 | BJ49: 126.1739273 | BK49: 178.109314 | BL49: 251.422226 | BM49: 354.9120178 | BN49: 89.38251495 | BO49: 126.1739273 | BP49: 178.109314 | BQ49: 251.422226 | BR49: 354.9120178 | BS49: 89.38251495 | BT49: 126.1739273 | BU49: 178.109314 | BV49: 251.422226 | BW49: 354.9120178 | BX49: 89.38251495 | BY49: 126.1739273 | BZ49: 178.109314 | CA49: 251.422226 | CB49: 354.9120178 | CC49: 89.38251495 | CD49: 126.1739273 | CE49: 178.109314 | CF49: 251.422226 | CG49: 354.9120178 | CH49: 89.38251495 | CI49: 126.1739273 | CJ49: 178.109314 | CK49: 251.422226 | CL49: 354.9120178 | CM49: 89.38251495 | CN49: 126.1739273 | CO49: 178.109314 | CP49: 251.422226 | CQ49: 354.9120178 | CR49: 89.38251495 | CS49: 126.1739273 | CT49: 178.109314 | CU49: 251.422226 | CV49: 354.9120178 | CW49: 89.38251495 | CX49: 126.1739273 | CY49: 178.109314 | CZ49: 251.422226 | DA49: 354.9120178 | DB49: 89.38251495 | DC49: 126.1739273 | DD49: 178.109314 | DE49: 251.422226 | DF49: 354.9120178 | DG49: 89.38251495 | DH49: 126.1739273 | DI49: 178.109314 | DJ49: 251.422226 | DK49: 354.9120178 | DL49: 89.38251495 | DM49: 126.1739273 | DN49: 178.109314 | DO49: 251.422226 | DP49: 354.9120178 | DQ49: 89.38251495 | DR49: 126.1739273 | DS49: 178.109314 | DT49: 251.422226 | DU49: 354.9120178 | DV49: 89.38251495 | DW49: 126.1739273 | DX49: 178.109314 | DY49: 251.422226 | DZ49: 354.9120178 | EA49: 89.38251495 | EB49: 126.1739273 | EC49: 178.109314 | ED49: 251.422226 | EE49: 354.9120178 | EF49: 89.38251495 | EG49: 126.1739273 | EH49: 178.109314 | EI49: 251.422226 | EJ49: 354.9120178 | EK49: 89.38251495 | EL49: 126.1739273 | EM49: 178.109314 | EN49: 251.422226 | EO49: 354.9120178 | EP49: 89.38251495 | EQ49: 126.1739273 | ER49: 178.109314 | ES49: 251.422226 | ET49: 354.9120178 | EU49: 89.38251495 | EV49: 126.1739273 | EW49: 178.109314 | EX49: 251.422226 | EY49: 354.9120178 | EZ49: 89.38251495 | FA49: 126.1739273 | FB49: 178.109314 | FC49: 251.422226 | FD49: 354.9120178 | FE49: 89.38251495 | FF49: 126.1739273 | FG49: 178.109314 | FH49: 251.422226 | FI49: 354.9120178 | FJ49: 89.38251495 | FK49: 126.1739273 | FL49: 178.109314 | FM49: 251.422226 | FN49: 354.9120178 | FO49: 89.38251495 | FP49: 126.1739273 | FQ49: 178.109314 | FR49: 251.422226 | FS49: 354.9120178 | FT49: 89.38251495 | FU49: 126.1739273 | FV49: 178.109314 | FW49: 251.422226 | FX49: 354.9120178 | FY49: 89.38251495 | FZ49: 126.1739273 | GA49: 178.109314 | GB49: 251.422226 | GC49: 354.9120178 | GD49: 89.38251495 | GE49: 126.1739273 | GF49: 178.109314 | GG49: 251.422226 | GH49: 354.9120178 | GI49: 89.38251495 | GJ49: 126.1739273 | GK49: 178.109314 | GL49: 251.422226 | GM49: 354.9120178 | GN49: 89.38251495 | GO49: 126.1739273 | GP49: 178.109314 | GQ49: 251.422226 | GR49: 354.9120178 | GS49: 89.38251495 | GT49: 126.1739273 | GU49: 178.109314 | GV49: 251.422226 | GW49: 354.9120178 | GX49: 89.38251495 | GY49: 126.1739273 | GZ49: 178.109314 | HA49: 251.422226 | HB49: 354.9120178 | HC49: 89.38251495 | HD49: 126.1739273 | HE49: 178.109314 | HF49: 251.422226 | HG49: 354.9120178 | HH49: 89.38251495 | HI49: 126.1739273 | HJ49: 178.109314 | HK49: 251.422226 | HL49: 354.9120178 | HM49: 89.38251495 | HN49: 126.1739273 | HO49: 178.109314 | HP49: 251.422226 | HQ49: 354.9120178 | HR49: 89.38251495 | HS49: 126.1739273 | HT49: 178.109314 | HU49: 251.422226 | HV49: 354.9120178 | HW49: 89.38251495 | HX49: 126.1739273 | HY49: 178.109314 | HZ49: 251.422226 | IA49: 354.9120178 | IB49: 89.38251495 | IC49: 126.1739273 | ID49: 178.109314 | IE49: 251.422226 | IF49: 354.9120178 | IG49: 89.38251495 | IH49: 126.1739273 | II49: 178.109314 | IJ49: 251.422226 | IK49: 354.9120178 | IL49: 89.38251495 | IM49: 126.1739273 | IN49: 178.109314 | IO49: 251.422226 | IP49: 354.9120178 | IQ49: 89.38251495 | IR49: 126.1739273 | IS49: 178.109314 | IT49: 251.422226 | IU49: 354.9120178 | IV49: 89.38251495 | IW49: 126.1739273 | IX49: 178.109314 | IY49: 251.422226 | IZ49: 354.9120178 | JA49: 89.38251495 | JB49: 126.1739273 | JC49: 178.109314 | JD49: 251.422226 | JE49: 354.9120178 | JF49: 89.38251495 | JG49: 126.1739273 | JH49: 178.109314 | JI49: 251.422226 | JJ49: 354.9120178 | JK49: 89.38251495 | JL49: 126.1739273 | JM49: 178.109314 | JN49: 251.422226 | JO49: 354.9120178 | JP49: 89.38251495 | JQ49: 126.1739273 | JR49: 178.109314 | JS49: 251.422226 | JT49: 354.9120178 | JU49: 89.38251495 | JV49: 126.1739273 | JW49: 178.109314 | JX49: 251.422226 | JY49: 354.9120178 | JZ49: 89.38251495 | KA49: 126.1739273 | KB49: 178.109314 | KC49: 251.422226 | KD49: 354.9120178 | KE49: 89.38251495 | KF49: 126.1739273 | KG49: 178.109314 | KH49: 251.422226 | KI49: 354.9120178 | KJ49: 89.38251495 | KK49: 126.1739273 | KL49: 178.109314 | KM49: 251.422226 | KN49: 354.9120178 | KO49: 89.38251495 | KP49: 126.1739273 | KQ49: 178.109314 | KR49: 251.422226 | KS49: 354.9120178 | KT49: 89.38251495 | KU49: 126.1739273 | KV49: 178.109314 | KW49: 251.422226 | KX49: 354.9120178 | KY49: 89.38251495 | KZ49: 126.1739273 | LA49: 178.109314 | LB49: 251.422226 | LC49: 354.9120178 | LD49: 89.38251495 | LE49: 126.1739273 | LF49: 178.109314 | LG49: 251.422226 | LH49: 354.9120178 | LI49: 89.38251495 | LJ49: 126.1739273 | LK49: 178.109314 | LL49: 251.422226 | LM49: 354.9120178 | LN49: 89.38251495 | LO49: 126.1739273 | LP49: 178.109314 | LQ49: 251.422226 | LR49: 354.9120178 | LS49: 89.38251495 | LT49: 126.1739273 | LU49: 178.109314 | LV49: 251.422226 | LW49: 354.9120178 | LX49: 89.38251495 | LY49: 126.1739273 | LZ49: 178.109314 | MA49: 251.422226 | MB49: 354.9120178 | MC49: 89.38251495 | MD49: 126.1739273 | ME49: 178.109314 | MF49: 251.422226 | MG49: 354.9120178 | MH49: 89.38251495 | MI49: 126.1739273 | MJ49: 178.109314 | MK49: 251.422226 | ML49: 354.9120178 | MM49: 89.38251495 | MN49: 126.1739273 | MO49: 178.109314 | MP49: 251.422226 | MQ49: 354.9120178 | MR49: 89.38251495 | MS49: 126.1739273 | MT49: 178.109314 | MU49: 251.422226 | MV49: 354.9120178 | MW49: 89.38251495 | MX49: 126.1739273 | MY49: 178.109314 | MZ49: 251.422226 | NA49: 354.9120178 | NB49: 89.38251495 | NC49: 126.1739273 | ND49: 178.109314 | NE49: 251.422226 | NF49: 354.9120178 | NG49: 89.38251495 | NH49: 126.1739273 | NI49: 178.109314 | NJ49: 251.422226 | NK49: 354.9120178 | NL49: 89.38251495 | NM49: 126.1739273 | NN49: 178.109314 | NO49: 251.422226 | NP49: 354.9120178 | NQ49: 89.38251495 | NR49: 126.1739273 | NS49: 178.109314 | NT49: 251.422226 | NU49: 354.9120178 | NV49: 89.38251495 | NW49: 126.1739273 | NX49: 178.109314 | NY49: 251.422226 | NZ49: 354.9120178 | OA49: 89.38251495 | OB49: 126.1739273 | OC49: 178.109314 | OD49: 251.422226 | OE49: 354.9120178 | OF49: 89.38251495 | OG49: 126.1739273 | OH49: 178.109314 | OI49: 251.422226 | OJ49: 354.9120178 | OK49: 89.38251495 | OL49: 126.1739273 | OM49: 178.109314 | ON49: 251.422226 | OO49: 354.9120178
C50: EBIT | F50: =F48-F49 -> 411.617485 | G50: =G48-G49 -> 374.8260727 | H50: 322.890686 | I50: 249.577774 | J50: 146.0879822 | K50: 411.617485 | L50: 374.8260727 | M50: 322.890686 | N50: 249.577774 | O50: 146.0879822 | P50: 411.617485 | Q50: 374.8260727 | R50: 322.890686 | S50: 249.577774 | T50: 146.0879822 | U50: 411.617485 | V50: 374.8260727 | W50: 322.890686 | X50: 249.577774 | Y50: 146.0879822 | Z50: 411.617485 | AA50: 374.8260727 | AB50: 322.890686 | AC50: 249.577774 | AD50: 146.0879822 | AE50: 411.617485 | AF50: 374.8260727 | AG50: 322.890686 | AH50: 249.577774 | AI50: 146.0879822 | AJ50: 411.617485 | AK50: 374.8260727 | AL50: 322.890686 | AM50: 249.577774 | AN50: 146.0879822 | AO50: 411.617485 | AP50: 374.8260727 | AQ50: 322.890686 | AR50: 249.577774 | AS50: 146.0879822 | AT50: 411.617485 | AU50: 374.8260727 | AV50: 322.890686 | AW50: 249.577774 | AX50: 146.0879822 | AY50: 411.617485 | AZ50: 374.8260727 | BA50: 322.890686 | BB50: 249.577774 | BC50: 146.0879822 | BD50: =BD48-BD49 -> 411.617485 | BE50: =BE48-BE49 -> 374.8260727 | BF50: =BF48-BF49 -> 322.890686 | BG50: =BG48-BG49 -> 249.577774 | BH50: =BH48-BH49 -> 146.0879822 | BI50: =BI48-BI49 -> 411.617485 | BJ50: =BJ48-BJ49 -> 374.8260727 | BK50: =BK48-BK49 -> 322.890686 | BL50: =BL48-BL49 -> 249.577774 | BM50: =BM48-BM49 -> 146.0879822 | BN50: =BN48-BN49 -> 411.617485 | BO50: =BO48-BO49 -> 374.8260727 | BP50: =BP48-BP49 -> 322.890686 | BQ50: =BQ48-BQ49 -> 249.577774 | BR50: =BR48-BR49 -> 146.0879822 | BS50: =BS48-BS49 -> 411.617485 | BT50: =BT48-BT49 -> 374.8260727 | BU50: =BU48-BU49 -> 322.890686 | BV50: =BV48-BV49 -> 249.577774 | BW50: =BW48-BW49 -> 146.0879822 | BX50: =BX48-BX49 -> 411.617485 | BY50: =BY48-BY49 -> 374.8260727 | BZ50: =BZ48-BZ49 -> 322.890686 | CA50: =CA48-CA49 -> 249.577774 | CB50: =CB48-CB49 -> 146.0879822 | CC50: =CC48-CC49 -> 411.617485 | CD50: =CD48-CD49 -> 374.8260727 | CE50: =CE48-CE49 -> 322.890686 | CF50: =CF48-CF49 -> 249.577774 | CG50: =CG48-CG49 -> 146.0879822 | CH50: =CH48-CH49 -> 411.617485 | CI50: =CI48-CI49 -> 374.8260727 | CJ50: =CJ48-CJ49 -> 322.890686 | CK50: =CK48-CK49 -> 249.577774 | CL50: =CL48-CL49 -> 146.0879822 | CM50: =CM48-CM49 -> 411.617485 | CN50: =CN48-CN49 -> 374.8260727 | CO50: =CO48-CO49 -> 322.890686 | CP50: =CP48-CP49 -> 249.577774 | CQ50: =CQ48-CQ49 -> 146.0879822 | CR50: =CR48-CR49 -> 411.617485 | CS50: =CS48-CS49 -> 374.8260727 | CT50: =CT48-CT49 -> 322.890686 | CU50: =CU48-CU49 -> 249.577774 | CV50: =CV48-CV49 -> 146.0879822 | CW50: =CW48-CW49 -> 411.617485 | CX50: =CX48-CX49 -> 374.8260727 | CY50: =CY48-CY49 -> 322.890686 | CZ50: =CZ48-CZ49 -> 249.577774 | DA50: =DA48-DA49 -> 146.0879822 | DB50: =DB48-DB49 -> 411.617485 | DC50: =DC48-DC49 -> 374.8260727 | DD50: =DD48-DD49 -> 322.890686 | DE50: =DE48-DE49 -> 249.577774 | DF50: =DF48-DF49 -> 146.0879822 | DG50: =DG48-DG49 -> 411.617485 | DH50: =DH48-DH49 -> 374.8260727 | DI50: =DI48-DI49 -> 322.890686 | DJ50: =DJ48-DJ49 -> 249.577774 | DK50: =DK48-DK49 -> 146.0879822 | DL50: =DL48-DL49 -> 411.617485 | DM50: =DM48-DM49 -> 374.8260727 | DN50: =DN48-DN49 -> 322.890686 | DO50: =DO48-DO49 -> 249.577774 | DP50: =DP48-DP49 -> 146.0879822 | DQ50: =DQ48-DQ49 -> 411.617485 | DR50: =DR48-DR49 -> 374.8260727 | DS50: =DS48-DS49 -> 322.890686 | DT50: =DT48-DT49 -> 249.577774 | DU50: =DU48-DU49 -> 146.0879822 | DV50: =DV48-DV49 -> 411.617485 | DW50: =DW48-DW49 -> 374.8260727 | DX50: =DX48-DX49 -> 322.890686 | DY50: =DY48-DY49 -> 249.577774 | DZ50: =DZ48-DZ49 -> 146.0879822 | EA50: =EA48-EA49 -> 411.617485 | EB50: =EB48-EB49 -> 374.8260727 | EC50: =EC48-EC49 -> 322.890686 | ED50: =ED48-ED49 -> 249.577774 | EE50: =EE48-EE49 -> 146.0879822 | EF50: =EF48-EF49 -> 411.617485 | EG50: =EG48-EG49 -> 374.8260727 | EH50: =EH48-EH49 -> 322.890686 | EI50: =EI48-EI49 -> 249.577774 | EJ50: =EJ48-EJ49 -> 146.0879822 | EK50: =EK48-EK49 -> 411.617485 | EL50: =EL48-EL49 -> 374.8260727 | EM50: =EM48-EM49 -> 322.890686 | EN50: =EN48-EN49 -> 249.577774 | EO50: =EO48-EO49 -> 146.0879822 | EP50: =EP48-EP49 -> 411.617485 | EQ50: =EQ48-EQ49 -> 374.8260727 | ER50: =ER48-ER49 -> 322.890686 | ES50: =ES48-ES49 -> 249.577774 | ET50: =ET48-ET49 -> 146.0879822 | EU50: =EU48-EU49 -> 411.617485 | EV50: =EV48-EV49 -> 374.8260727 | EW50: =EW48-EW49 -> 322.890686 | EX50: =EX48-EX49 -> 249.577774 | EY50: =EY48-EY49 -> 146.0879822 | EZ50: =EZ48-EZ49 -> 411.617485 | FA50: =FA48-FA49 -> 374.8260727 | FB50: =FB48-FB49 -> 322.890686 | FC50: =FC48-FC49 -> 249.577774 | FD50: =FD48-FD49 -> 146.0879822 | FE50: =FE48-FE49 -> 411.617485 | FF50: =FF48-FF49 -> 374.8260727 | FG50: =FG48-FG49 -> 322.890686 | FH50: =FH48-FH49 -> 249.577774 | FI50: =FI48-FI49 -> 146.0879822 | FJ50: =FJ48-FJ49 -> 411.617485 | FK50: =FK48-FK49 -> 374.8260727 | FL50: =FL48-FL49 -> 322.890686 | FM50: =FM48-FM49 -> 249.577774 | FN50: =FN48-FN49 -> 146.0879822 | FO50: =FO48-FO49 -> 411.617485 | FP50: =FP48-FP49 -> 374.8260727 | FQ50: =FQ48-FQ49 -> 322.890686 | FR50: =FR48-FR49 -> 249.577774 | FS50: =FS48-FS49 -> 146.0879822 | FT50: =FT48-FT49 -> 411.617485 | FU50: =FU48-FU49 -> 374.8260727 | FV50: =FV48-FV49 -> 322.890686 | FW50: =FW48-FW49 -> 249.577774 | FX50: =FX48-FX49 -> 146.0879822 | FY50: =FY48-FY49 -> 411.617485 | FZ50: =FZ48-FZ49 -> 374.8260727 | GA50: =GA48-GA49 -> 322.890686 | GB50: =GB48-GB49 -> 249.577774 | GC50: =GC48-GC49 -> 146.0879822 | GD50: =GD48-GD49 -> 411.617485 | GE50: =GE48-GE49 -> 374.8260727 | GF50: =GF48-GF49 -> 322.890686 | GG50: =GG48-GG49 -> 249.577774 | GH50: =GH48-GH49 -> 146.0879822 | GI50: =GI48-GI49 -> 411.617485 | GJ50: =GJ48-GJ49 -> 374.8260727 | GK50: =GK48-GK49 -> 322.890686 | GL50: =GL48-GL49 -> 249.577774 | GM50: =GM48-GM49 -> 146.0879822 | GN50: =GN48-GN49 -> 411.617485 | GO50: =GO48-GO49 -> 374.8260727 | GP50: =GP48-GP49 -> 322.890686 | GQ50: =GQ48-GQ49 -> 249.577774 | GR50: =GR48-GR49 -> 146.0879822 | GS50: =GS48-GS49 -> 411.617485 | GT50: =GT48-GT49 -> 374.8260727 | GU50: =GU48-GU49 -> 322.890686 | GV50: =GV48-GV49 -> 249.577774 | GW50: =GW48-GW49 -> 146.0879822 | GX50: =GX48-GX49 -> 411.617485 | GY50: =GY48-GY49 -> 374.8260727 | GZ50: =GZ48-GZ49 -> 322.890686 | HA50: =HA48-HA49 -> 249.577774 | HB50: =HB48-HB49 -> 146.0879822 | HC50: =HC48-HC49 -> 411.617485 | HD50: =HD48-HD49 -> 374.8260727 | HE50: =HE48-HE49 -> 322.890686 | HF50: =HF48-HF49 -> 249.577774 | HG50: =HG48-HG49 -> 146.0879822 | HH50: =HH48-HH49 -> 411.617485 | HI50: =HI48-HI49 -> 374.8260727 | HJ50: =HJ48-HJ49 -> 322.890686 | HK50: =HK48-HK49 -> 249.577774 | HL50: =HL48-HL49 -> 146.0879822 | HM50: =HM48-HM49 -> 411.617485 | HN50: =HN48-HN49 -> 374.8260727 | HO50: =HO48-HO49 -> 322.890686 | HP50: =HP48-HP49 -> 249.577774 | HQ50: =HQ48-HQ49 -> 146.0879822 | HR50: =HR48-HR49 -> 411.617485 | HS50: =HS48-HS49 -> 374.8260727 | HT50: =HT48-HT49 -> 322.890686 | HU50: =HU48-HU49 -> 249.577774 | HV50: =HV48-HV49 -> 146.0879822 | HW50: =HW48-HW49 -> 411.617485 | HX50: =HX48-HX49 -> 374.8260727 | HY50: =HY48-HY49 -> 322.890686 | HZ50: =HZ48-HZ49 -> 249.577774 | IA50: =IA48-IA49 -> 146.0879822 | IB50: =IB48-IB49 -> 411.617485 | IC50: =IC48-IC49 -> 374.8260727 | ID50: =ID48-ID49 -> 322.890686 | IE50: =IE48-IE49 -> 249.577774 | IF50: =IF48-IF49 -> 146.0879822 | IG50: =IG48-IG49 -> 411.617485 | IH50: =IH48-IH49 -> 374.8260727 | II50: =II48-II49 -> 322.890686 | IJ50: =IJ48-IJ49 -> 249.577774 | IK50: =IK48-IK49 -> 146.0879822 | IL50: =IL48-IL49 -> 411.617485 | IM50: =IM48-IM49 -> 374.8260727 | IN50: =IN48-IN49 -> 322.890686 | IO50: =IO48-IO49 -> 249.577774 | IP50: =IP48-IP49 -> 146.0879822 | IQ50: =IQ48-IQ49 -> 411.617485 | IR50: =IR48-IR49 -> 374.8260727 | IS50: =IS48-IS49 -> 322.890686 | IT50: =IT48-IT49 -> 249.577774 | IU50: =IU48-IU49 -> 146.0879822 | IV50: =IV48-IV49 -> 411.617485 | IW50: =IW48-IW49 -> 374.8260727 | IX50: =IX48-IX49 -> 322.890686 | IY50: =IY48-IY49 -> 249.577774 | IZ50: =IZ48-IZ49 -> 146.0879822 | JA50: =JA48-JA49 -> 411.617485 | JB50: =JB48-JB49 -> 374.8260727 | JC50: =JC48-JC49 -> 322.890686 | JD50: =JD48-JD49 -> 249.577774 | JE50: =JE48-JE49 -> 146.0879822 | JF50: =JF48-JF49 -> 411.617485 | JG50: =JG48-JG49 -> 374.8260727 | JH50: =JH48-JH49 -> 322.890686 | JI50: =JI48-JI49 -> 249.577774 | JJ50: =JJ48-JJ49 -> 146.0879822 | JK50: =JK48-JK49 -> 411.617485 | JL50: =JL48-JL49 -> 374.8260727 | JM50: =JM48-JM49 -> 322.890686 | JN50: =JN48-JN49 -> 249.577774 | JO50: =JO48-JO49 -> 146.0879822 | JP50: =JP48-JP49 -> 411.617485 | JQ50: =JQ48-JQ49 -> 374.8260727 | JR50: =JR48-JR49 -> 322.890686 | JS50: =JS48-JS49 -> 249.577774 | JT50: =JT48-JT49 -> 146.0879822 | JU50: =JU48-JU49 -> 411.617485 | JV50: =JV48-JV49 -> 374.8260727 | JW50: =JW48-JW49 -> 322.890686 | JX50: =JX48-JX49 -> 249.577774 | JY50: =JY48-JY49 -> 146.0879822 | JZ50: =JZ48-JZ49 -> 411.617485 | KA50: =KA48-KA49 -> 374.8260727 | KB50: =KB48-KB49 -> 322.890686 | KC50: =KC48-KC49 -> 249.577774 | KD50: =KD48-KD49 -> 146.0879822 | KE50: =KE48-KE49 -> 411.617485 | KF50: =KF48-KF49 -> 374.8260727 | KG50: =KG48-KG49 -> 322.890686 | KH50: =KH48-KH49 -> 249.577774 | KI50: =KI48-KI49 -> 146.0879822 | KJ50: =KJ48-KJ49 -> 411.617485 | KK50: =KK48-KK49 -> 374.8260727 | KL50: =KL48-KL49 -> 322.890686 | KM50: =KM48-KM49 -> 249.577774 | KN50: =KN48-KN49 -> 146.0879822 | KO50: =KO48-KO49 -> 411.617485 | KP50: =KP48-KP49 -> 374.8260727 | KQ50: =KQ48-KQ49 -> 322.890686 | KR50: =KR48-KR49 -> 249.577774 | KS50: =KS48-KS49 -> 146.0879822 | KT50: =KT48-KT49 -> 411.617485 | KU50: =KU48-KU49 -> 374.8260727 | KV50: =KV48-KV49 -> 322.890686 | KW50: =KW48-KW49 -> 249.577774 | KX50: =KX48-KX49 -> 146.0879822 | KY50: =KY48-KY49 -> 411.617485 | KZ50: =KZ48-KZ49 -> 374.8260727 | LA50: =LA48-LA49 -> 322.890686 | LB50: =LB48-LB49 -> 249.577774 | LC50: =LC48-LC49 -> 146.0879822 | LD50: =LD48-LD49 -> 411.617485 | LE50: =LE48-LE49 -> 374.8260727 | LF50: =LF48-LF49 -> 322.890686 | LG50: =LG48-LG49 -> 249.577774 | LH50: =LH48-LH49 -> 146.0879822 | LI50: =LI48-LI49 -> 411.617485 | LJ50: =LJ48-LJ49 -> 374.8260727 | LK50: =LK48-LK49 -> 322.890686 | LL50: =LL48-LL49 -> 249.577774 | LM50: =LM48-LM49 -> 146.0879822 | LN50: =LN48-LN49 -> 411.617485 | LO50: =LO48-LO49 -> 374.8260727 | LP50: =LP48-LP49 -> 322.890686 | LQ50: =LQ48-LQ49 -> 249.577774 | LR50: =LR48-LR49 -> 146.0879822 | LS50: =LS48-LS49 -> 411.617485 | LT50: =LT48-LT49 -> 374.8260727 | LU50: =LU48-LU49 -> 322.890686 | LV50: =LV48-LV49 -> 249.577774 | LW50: =LW48-LW49 -> 146.0879822 | LX50: =LX48-LX49 -> 411.617485 | LY50: =LY48-LY49 -> 374.8260727 | LZ50: =LZ48-LZ49 -> 322.890686 | MA50: =MA48-MA49 -> 249.577774 | MB50: =MB48-MB49 -> 146.0879822 | MC50: =MC48-MC49 -> 411.617485 | MD50: =MD48-MD49 -> 374.8260727 | ME50: =ME48-ME49 -> 322.890686 | MF50: =MF48-MF49 -> 249.577774 | MG50: =MG48-MG49 -> 146.0879822 | MH50: =MH48-MH49 -> 411.617485 | MI50: =MI48-MI49 -> 374.8260727 | MJ50: =MJ48-MJ49 -> 322.890686 | MK50: =MK48-MK49 -> 249.577774 | ML50: =ML48-ML49 -> 146.0879822 | MM50: =MM48-MM49 -> 411.617485 | MN50: =MN48-MN49 -> 374.8260727 | MO50: =MO48-MO49 -> 322.890686 | MP50: =MP48-MP49 -> 249.577774 | MQ50: =MQ48-MQ49 -> 146.0879822 | MR50: =MR48-MR49 -> 411.617485 | MS50: =MS48-MS49 -> 374.8260727 | MT50: =MT48-MT49 -> 322.890686 | MU50: =MU48-MU49 -> 249.577774 | MV50: =MV48-MV49 -> 146.0879822 | MW50: =MW48-MW49 -> 411.617485 | MX50: =MX48-MX49 -> 374.8260727 | MY50: =MY48-MY49 -> 322.890686 | MZ50: =MZ48-MZ49 -> 249.577774 | NA50: =NA48-NA49 -> 146.0879822 | NB50: =NB48-NB49 -> 411.617485 | NC50: =NC48-NC49 -> 374.8260727 | ND50: =ND48-ND49 -> 322.890686 | NE50: =NE48-NE49 -> 249.577774 | NF50: =NF48-NF49 -> 146.0879822 | NG50: =NG48-NG49 -> 411.617485 | NH50: =NH48-NH49 -> 374.8260727 | NI50: =NI48-NI49 -> 322.890686 | NJ50: =NJ48-NJ49 -> 249.577774 | NK50: =NK48-NK49 -> 146.0879822 | NL50: =NL48-NL49 -> 411.617485 | NM50: =NM48-NM49 -> 374.8260727 | NN50: =NN48-NN49 -> 322.890686 | NO50: =NO48-NO49 -> 249.577774 | NP50: =NP48-NP49 -> 146.0879822 | NQ50: =NQ48-NQ49 -> 411.617485 | NR50: =NR48-NR49 -> 374.8260727 | NS50: =NS48-NS49 -> 322.890686 | NT50: =NT48-NT49 -> 249.577774 | NU50: =NU48-NU49 -> 146.0879822 | NV50: =NV48-NV49 -> 411.617485 | NW50: =NW48-NW49 -> 374.8260727 | NX50: =NX48-NX49 -> 322.890686 | NY50: =NY48-NY49 -> 249.577774 | NZ50: =NZ48-NZ49 -> 146.0879822 | OA50: =OA48-OA49 -> 411.617485 | OB50: =OB48-OB49 -> 374.8260727 | OC50: =OC48-OC49 -> 322.890686 | OD50: =OD48-OD49 -> 249.577774 | OE50: =OE48-OE49 -> 146.0879822 | OF50: =OF48-OF49 -> 411.617485 | OG50: =OG48-OG49 -> 374.8260727 | OH50: =OH48-OH49 -> 322.890686 | OI50: =OI48-OI49 -> 249.577774 | OJ50: =OJ48-OJ49 -> 146.0879822 | OK50: =OK48-OK49 -> 411.617485 | OL50: =OL48-OL49 -> 374.8260727 | OM50: =OM48-OM49 -> 322.890686 | ON50: =ON48-ON49 -> 249.577774 | OO50: =OO48-OO49 -> 146.0879822
C52: Net Plant | E52: =E31 -> 1000 | F52: =E52 -> 1000 | G52: =F52-F49+F29 -> 910.617485 | H52: =G52-G49+G29 -> 784.4435577 | I52: 606.3342438 | J52: 354.9120178 | K52: 1000 | L52: 910.617485 | M52: 784.4435577 | N52: 606.3342438 | O52: 354.9120178 | P52: 1000 | Q52: 910.617485 | R52: 784.4435577 | S52: 606.3342438 | T52: 354.9120178 | U52: 1000 | V52: 910.617485 | W52: 784.4435577 | X52: 606.3342438 | Y52: 354.9120178 | Z52: 1000 | AA52: 910.617485 | AB52: 784.4435577 | AC52: 606.3342438 | AD52: 354.9120178 | AE52: 1000 | AF52: 910.617485 | AG52: 784.4435577 | AH52: 606.3342438 | AI52: 354.9120178 | AJ52: 1000 | AK52: 910.617485 | AL52: 784.4435577 | AM52: 606.3342438 | AN52: 354.9120178 | AO52: 1000 | AP52: 910.617485 | AQ52: 784.4435577 | AR52: 606.3342438 | AS52: 354.9120178 | AT52: 1000 | AU52: 910.617485 | AV52: 784.4435577 | AW52: 606.3342438 | AX52: 354.9120178 | AY52: 1000 | AZ52: 910.617485 | BA52: 784.4435577 | BB52: 606.3342438 | BC52: 354.9120178 | BD52: 1000 | BE52: 910.617485 | BF52: 784.4435577 | BG52: 606.3342438 | BH52: 354.9120178 | BI52: 1000 | BJ52: 910.617485 | BK52: 784.4435577 | BL52: 606.3342438 | BM52: 354.9120178 | BN52: 1000 | BO52: 910.617485 | BP52: 784.4435577 | BQ52: 606.3342438 | BR52: 354.9120178 | BS52: 1000 | BT52: =BS52-BS49+BS29 -> 910.617485 | BU52: 784.4435577 | BV52: 606.3342438 | BW52: 354.9120178 | BX52: 1000 | BY52: 910.617485 | BZ52: 784.4435577 | CA52: 606.3342438 | CB52: 354.9120178 | CC52: 1000 | CD52: 910.617485 | CE52: 784.4435577 | CF52: 606.3342438 | CG52: 354.9120178 | CH52: 1000 | CI52: 910.617485 | CJ52: 784.4435577 | CK52: 606.3342438 | CL52: 354.9120178 | CM52: 1000 | CN52: 910.617485 | CO52: 784.4435577 | CP52: 606.3342438 | CQ52: 354.9120178 | CR52: 1000 | CS52: 910.617485 | CT52: 784.4435577 | CU52: 606.3342438 | CV52: 354.9120178 | CW52: 1000 | CX52: 910.617485 | CY52: 784.4435577 | CZ52: 606.3342438 | DA52: 354.9120178 | DB52: 1000 | DC52: 910.617485 | DD52: 784.4435577 | DE52: 606.3342438 | DF52: 354.9120178 | DG52: 1000 | DH52: 910.617485 | DI52: 784.4435577 | DJ52: 606.3342438 | DK52: 354.9120178 | DL52: 1000 | DM52: 910.617485 | DN52: 784.4435577 | DO52: 606.3342438 | DP52: 354.9120178 | DQ52: 1000 | DR52: 910.617485 | DS52: 784.4435577 | DT52: 606.3342438 | DU52: 354.9120178 | DV52: 1000 | DW52: 910.617485 | DX52: 784.4435577 | DY52: 606.3342438 | DZ52: 354.9120178 | EA52: 1000 | EB52: 910.617485 | EC52: 784.4435577 | ED52: 606.3342438 | EE52: 354.9120178 | EF52: =EE52-EE49+EE29 -> 1000 | EG52: 910.617485 | EH52: 784.4435577 | EI52: 606.3342438 | EJ52: 354.9120178 | EK52: 1000 | EL52: 910.617485 | EM52: 784.4435577 | EN52: 606.3342438 | EO52: 354.9120178 | EP52: 1000 | EQ52: 910.617485 | ER52: 784.4435577 | ES52: 606.3342438 | ET52: 354.9120178 | EU52: 1000 | EV52: 910.617485 | EW52: 784.4435577 | EX52: 606.3342438 | EY52: 354.9120178 | EZ52: 1000 | FA52: 910.617485 | FB52: 784.4435577 | FC52: 606.3342438 | FD52: 354.9120178 | FE52: 1000 | FF52: 910.617485 | FG52: 784.4435577 | FH52: 606.3342438 | FI52: 354.9120178 | FJ52: 1000 | FK52: 910.617485 | FL52: 784.4435577 | FM52: 606.3342438 | FN52: 354.9120178 | FO52: 1000 | FP52: 910.617485 | FQ52: 784.4435577 | FR52: 606.3342438 | FS52: 354.9120178 | FT52: 1000 | FU52: 910.617485 | FV52: 784.4435577 | FW52: 606.3342438 | FX52: 354.9120178 | FY52: 1000 | FZ52: 910.617485 | GA52: 784.4435577 | GB52: 606.3342438 | GC52: 354.9120178 | GD52: 1000 | GE52: 910.617485 | GF52: 784.4435577 | GG52: 606.3342438 | GH52: 354.9120178 | GI52: 1000 | GJ52: 910.617485 | GK52: 784.4435577 | GL52: 606.3342438 | GM52: 354.9120178 | GN52: 1000 | GO52: 910.617485 | GP52: 784.4435577 | GQ52: 606.3342438 | GR52: =GQ52-GQ49+GQ29 -> 354.9120178 | GS52: 1000 | GT52: 910.617485 | GU52: 784.4435577 | GV52: 606.3342438 | GW52: 354.9120178 | GX52: 1000 | GY52: 910.617485 | GZ52: 784.4435577 | HA52: 606.3342438 | HB52: 354.9120178 | HC52: 1000 | HD52: 910.617485 | HE52: 784.4435577 | HF52: 606.3342438 | HG52: 354.9120178 | HH52: 1000 | HI52: 910.617485 | HJ52: 784.4435577 | HK52: 606.3342438 | HL52: 354.9120178 | HM52: 1000 | HN52: 910.617485 | HO52: 784.4435577 | HP52: 606.3342438 | HQ52: 354.9120178 | HR52: 1000 | HS52: 910.617485 | HT52: 784.4435577 | HU52: 606.3342438 | HV52: 354.9120178 | HW52: 1000 | HX52: 910.617485 | HY52: 784.4435577 | HZ52: 606.3342438 | IA52: 354.9120178 | IB52: 1000 | IC52: 910.617485 | ID52: 784.4435577 | IE52: 606.3342438 | IF52: 354.9120178 | IG52: 1000 | IH52: 910.617485 | II52: 784.4435577 | IJ52: 606.3342438 | IK52: 354.9120178 | IL52: 1000 | IM52: 910.617485 | IN52: 784.4435577 | IO52: 606.3342438 | IP52: 354.9120178 | IQ52: 1000 | IR52: 910.617485 | IS52: 784.4435577 | IT52: 606.3342438 | IU52: 354.9120178 | IV52: 1000 | IW52: 910.617485 | IX52: 784.4435577 | IY52: 606.3342438 | IZ52: 354.9120178 | JA52: 1000 | JB52: 910.617485 | JC52: 784.4435577 | JD52: =JC52-JC49+JC29 -> 606.3342438 | JE52: 354.9120178 | JF52: 1000 | JG52: 910.617485 | JH52: 784.4435577 | JI52: 606.3342438 | JJ52: 354.9120178 | JK52: 1000 | JL52: 910.617485 | JM52: 784.4435577 | JN52: 606.3342438 | JO52: 354.9120178 | JP52: 1000 | JQ52: 910.617485 | JR52: 784.4435577 | JS52: 606.3342438 | JT52: 354.9120178 | JU52: 1000 | JV52: 910.617485 | JW52: 784.4435577 | JX52: 606.3342438 | JY52: 354.9120178 | JZ52: 1000 | KA52: 910.617485 | KB52: 784.4435577 | KC52: 606.3342438 | KD52: 354.9120178 | KE52: 1000 | KF52: 910.617485 | KG52: 784.4435577 | KH52: 606.3342438 | KI52: 354.9120178 | KJ52: 1000 | KK52: 910.617485 | KL52: 784.4435577 | KM52: 606.3342438 | KN52: 354.9120178 | KO52: 1000 | KP52: 910.617485 | KQ52: 784.4435577 | KR52: 606.3342438 | KS52: 354.9120178 | KT52: 1000 | KU52: 910.617485 | KV52: 784.4435577 | KW52: 606.3342438 | KX52: 354.9120178 | KY52: 1000 | KZ52: 910.617485 | LA52: 784.4435577 | LB52: 606.3342438 | LC52: 354.9120178 | LD52: 1000 | LE52: 910.617485 | LF52: 784.4435577 | LG52: 606.3342438 | LH52: 354.9120178 | LI52: 1000 | LJ52: 910.617485 | LK52: 784.4435577 | LL52: 606.3342438 | LM52: 354.9120178 | LN52: 1000 | LO52: 910.617485 | LP52: =LO52-LO49+LO29 -> 784.4435577 | LQ52: 606.3342438 | LR52: 354.9120178 | LS52: 1000 | LT52: 910.617485 | LU52: 784.4435577 | LV52: 606.3342438 | LW52: 354.9120178 | LX52: 1000 | LY52: 910.617485 | LZ52: 784.4435577 | MA52: 606.3342438 | MB52: 354.9120178 | MC52: 1000 | MD52: 910.617485 | ME52: 784.4435577 | MF52: 606.3342438 | MG52: 354.9120178 | MH52: 1000 | MI52: 910.617485 | MJ52: 784.4435577 | MK52: 606.3342438 | ML52: 354.9120178 | MM52: 1000 | MN52: 910.617485 | MO52: 784.4435577 | MP52: 606.3342438 | MQ52: 354.9120178 | MR52: 1000 | MS52: 910.617485 | MT52: 784.4435577 | MU52: 606.3342438 | MV52: 354.9120178 | MW52: 1000 | MX52: 910.617485 | MY52: 784.4435577 | MZ52: 606.3342438 | NA52: 354.9120178 | NB52: 1000 | NC52: 910.617485 | ND52: 784.4435577 | NE52: 606.3342438 | NF52: 354.9120178 | NG52: 1000 | NH52: 910.617485 | NI52: 784.4435577 | NJ52: 606.3342438 | NK52: 354.9120178 | NL52: 1000 | NM52: 910.617485 | NN52: 784.4435577 | NO52: 606.3342438 | NP52: 354.9120178 | NQ52: 1000 | NR52: 910.617485 | NS52: 784.4435577 | NT52: 606.3342438 | NU52: 354.9120178 | NV52: 1000 | NW52: 910.617485 | NX52: 784.4435577 | NY52: 606.3342438 | NZ52: 354.9120178 | OA52: 1000 | OB52: =OA52-OA49+OA29 -> 910.617485 | OC52: 784.4435577 | OD52: 606.3342438 | OE52: 354.9120178 | OF52: 1000 | OG52: 910.617485 | OH52: 784.4435577 | OI52: 606.3342438 | OJ52: 354.9120178 | OK52: 1000 | OL52: 910.617485 | OM52: 784.4435577 | ON52: 606.3342438 | OO52: 354.9120178
C54: ROIC - Economic Depreciation | F54: =F50/F52 -> 0.411617485 | G54: =G50/G52 -> 0.4116174781 | H54: 0.4116174871 | I54: 0.411617481 | J54: 0.4116174568 | K54: 0.411617485 | L54: 0.4116174781 | M54: 0.4116174871 | N54: 0.411617481 | O54: 0.4116174568 | P54: 0.411617485 | Q54: 0.4116174781 | R54: 0.4116174871 | S54: 0.411617481 | T54: 0.4116174568 | U54: 0.411617485 | V54: 0.4116174781 | W54: 0.4116174871 | X54: 0.411617481 | Y54: 0.4116174568 | Z54: 0.411617485 | AA54: 0.4116174781 | AB54: 0.4116174871 | AC54: 0.411617481 | AD54: 0.4116174568 | AE54: 0.411617485 | AF54: 0.4116174781 | AG54: 0.4116174871 | AH54: 0.411617481 | AI54: 0.4116174568 | AJ54: 0.411617485 | AK54: 0.4116174781 | AL54: 0.4116174871 | AM54: 0.411617481 | AN54: 0.4116174568 | AO54: 0.411617485 | AP54: 0.4116174781 | AQ54: 0.4116174871 | AR54: 0.411617481 | AS54: 0.4116174568 | AT54: 0.411617485 | AU54: 0.4116174781 | AV54: 0.4116174871 | AW54: 0.411617481 | AX54: 0.4116174568 | AY54: 0.411617485 | AZ54: 0.4116174781 | BA54: 0.4116174871 | BB54: 0.411617481 | BC54: 0.4116174568 | BD54: 0.411617485 | BE54: 0.4116174781 | BF54: 0.4116174871 | BG54: 0.411617481 | BH54: 0.4116174568 | BI54: 0.411617485 | BJ54: 0.4116174781 | BK54: 0.4116174871 | BL54: 0.411617481 | BM54: 0.4116174568 | BN54: 0.411617485 | BO54: 0.4116174781 | BP54: 0.4116174871 | BQ54: 0.411617481 | BR54: 0.4116174568 | BS54: =BS50/BS52 -> 0.411617485 | BT54: 0.4116174781 | BU54: 0.4116174871 | BV54: 0.411617481 | BW54: 0.4116174568 | BX54: 0.411617485 | BY54: 0.4116174781 | BZ54: 0.4116174871 | CA54: 0.411617481 | CB54: 0.4116174568 | CC54: 0.411617485 | CD54: 0.4116174781 | CE54: 0.4116174871 | CF54: 0.411617481 | CG54: 0.4116174568 | CH54: 0.411617485 | CI54: 0.4116174781 | CJ54: 0.4116174871 | CK54: 0.411617481 | CL54: 0.4116174568 | CM54: 0.411617485 | CN54: 0.4116174781 | CO54: 0.4116174871 | CP54: 0.411617481 | CQ54: 0.4116174568 | CR54: 0.411617485 | CS54: 0.4116174781 | CT54: 0.4116174871 | CU54: 0.411617481 | CV54: 0.4116174568 | CW54: 0.411617485 | CX54: 0.4116174781 | CY54: 0.4116174871 | CZ54: 0.411617481 | DA54: 0.4116174568 | DB54: 0.411617485 | DC54: 0.4116174781 | DD54: 0.4116174871 | DE54: 0.411617481 | DF54: 0.4116174568 | DG54: 0.411617485 | DH54: 0.4116174781 | DI54: 0.4116174871 | DJ54: 0.411617481 | DK54: 0.4116174568 | DL54: 0.411617485 | DM54: 0.4116174781 | DN54: 0.4116174871 | DO54: 0.411617481 | DP54: 0.4116174568 | DQ54: 0.411617485 | DR54: 0.4116174781 | DS54: 0.4116174871 | DT54: 0.411617481 | DU54: 0.4116174568 | DV54: 0.411617485 | DW54: 0.4116174781 | DX54: 0.4116174871 | DY54: 0.411617481 | DZ54: 0.4116174568 | EA54: 0.411617485 | EB54: 0.4116174781 | EC54: 0.4116174871 | ED54: 0.411617481 | EE54: =EE50/EE52 -> 0.4116174568 | EF54: 0.411617485 | EG54: 0.4116174781 | EH54: 0.4116174871 | EI54: 0.411617481 | EJ54: 0.4116174568 | EK54: 0.411617485 | EL54: 0.4116174781 | EM54: 0.4116174871 | EN54: 0.411617481 | EO54: 0.4116174568 | EP54: 0.411617485 | EQ54: 0.4116174781 | ER54: 0.4116174871 | ES54: 0.411617481 | ET54: 0.4116174568 | EU54: 0.411617485 | EV54: 0.4116174781 | EW54: 0.4116174871 | EX54: 0.411617481 | EY54: 0.4116174568 | EZ54: 0.411617485 | FA54: 0.4116174781 | FB54: 0.4116174871 | FC54: 0.411617481 | FD54: 0.4116174568 | FE54: 0.411617485 | FF54: 0.4116174781 | FG54: 0.4116174871 | FH54: 0.411617481 | FI54: 0.4116174568 | FJ54: 0.411617485 | FK54: 0.4116174781 | FL54: 0.4116174871 | FM54: 0.411617481 | FN54: 0.4116174568 | FO54: 0.411617485 | FP54: 0.4116174781 | FQ54: 0.4116174871 | FR54: 0.411617481 | FS54: 0.4116174568 | FT54: 0.411617485 | FU54: 0.4116174781 | FV54: 0.4116174871 | FW54: 0.411617481 | FX54: 0.4116174568 | FY54: 0.411617485 | FZ54: 0.4116174781 | GA54: 0.4116174871 | GB54: 0.411617481 | GC54: 0.4116174568 | GD54: 0.411617485 | GE54: 0.4116174781 | GF54: 0.4116174871 | GG54: 0.411617481 | GH54: 0.4116174568 | GI54: 0.411617485 | GJ54: 0.4116174781 | GK54: 0.4116174871 | GL54: 0.411617481 | GM54: 0.4116174568 | GN54: 0.411617485 | GO54: 0.4116174781 | GP54: 0.4116174871 | GQ54: =GQ50/GQ52 -> 0.411617481 | GR54: 0.4116174568 | GS54: 0.411617485 | GT54: 0.4116174781 | GU54: 0.4116174871 | GV54: 0.411617481 | GW54: 0.4116174568 | GX54: 0.411617485 | GY54: 0.4116174781 | GZ54: 0.4116174871 | HA54: 0.411617481 | HB54: 0.4116174568 | HC54: 0.411617485 | HD54: 0.4116174781 | HE54: 0.4116174871 | HF54: 0.411617481 | HG54: 0.4116174568 | HH54: 0.411617485 | HI54: 0.4116174781 | HJ54: 0.4116174871 | HK54: 0.411617481 | HL54: 0.4116174568 | HM54: 0.411617485 | HN54: 0.4116174781 | HO54: 0.4116174871 | HP54: 0.411617481 | HQ54: 0.4116174568 | HR54: 0.411617485 | HS54: 0.4116174781 | HT54: 0.4116174871 | HU54: 0.411617481 | HV54: 0.4116174568 | HW54: 0.411617485 | HX54: 0.4116174781 | HY54: 0.4116174871 | HZ54: 0.411617481 | IA54: 0.4116174568 | IB54: 0.411617485 | IC54: 0.4116174781 | ID54: 0.4116174871 | IE54: 0.411617481 | IF54: 0.4116174568 | IG54: 0.411617485 | IH54: 0.4116174781 | II54: 0.4116174871 | IJ54: 0.411617481 | IK54: 0.4116174568 | IL54: 0.411617485 | IM54: 0.4116174781 | IN54: 0.4116174871 | IO54: 0.411617481 | IP54: 0.4116174568 | IQ54: 0.411617485 | IR54: 0.4116174781 | IS54: 0.4116174871 | IT54: 0.411617481 | IU54: 0.4116174568 | IV54: 0.411617485 | IW54: 0.4116174781 | IX54: 0.4116174871 | IY54: 0.411617481 | IZ54: 0.4116174568 | JA54: 0.411617485 | JB54: 0.4116174781 | JC54: =JC50/JC52 -> 0.4116174871 | JD54: 0.411617481 | JE54: 0.4116174568 | JF54: 0.411617485 | JG54: 0.4116174781 | JH54: 0.4116174871 | JI54: 0.411617481 | JJ54: 0.4116174568 | JK54: 0.411617485 | JL54: 0.4116174781 | JM54: 0.4116174871 | JN54: 0.411617481 | JO54: 0.4116174568 | JP54: 0.411617485 | JQ54: 0.4116174781 | JR54: 0.4116174871 | JS54: 0.411617481 | JT54: 0.4116174568 | JU54: 0.411617485 | JV54: 0.4116174781 | JW54: 0.4116174871 | JX54: 0.411617481 | JY54: 0.4116174568 | JZ54: 0.411617485 | KA54: 0.4116174781 | KB54: 0.4116174871 | KC54: 0.411617481 | KD54: 0.4116174568 | KE54: 0.411617485 | KF54: 0.4116174781 | KG54: 0.4116174871 | KH54: 0.411617481 | KI54: 0.4116174568 | KJ54: 0.411617485 | KK54: 0.4116174781 | KL54: 0.4116174871 | KM54: 0.411617481 | KN54: 0.4116174568 | KO54: 0.411617485 | KP54: 0.4116174781 | KQ54: 0.4116174871 | KR54: 0.411617481 | KS54: 0.4116174568 | KT54: 0.411617485 | KU54: 0.4116174781 | KV54: 0.4116174871 | KW54: 0.411617481 | KX54: 0.4116174568 | KY54: 0.411617485 | KZ54: 0.4116174781 | LA54: 0.4116174871 | LB54: 0.411617481 | LC54: 0.4116174568 | LD54: 0.411617485 | LE54: 0.4116174781 | LF54: 0.4116174871 | LG54: 0.411617481 | LH54: 0.4116174568 | LI54: 0.411617485 | LJ54: 0.4116174781 | LK54: 0.4116174871 | LL54: 0.411617481 | LM54: 0.4116174568 | LN54: 0.411617485 | LO54: =LO50/LO52 -> 0.4116174781 | LP54: 0.4116174871 | LQ54: 0.411617481 | LR54: 0.4116174568 | LS54: 0.411617485 | LT54: 0.4116174781 | LU54: 0.4116174871 | LV54: 0.411617481 | LW54: 0.4116174568 | LX54: 0.411617485 | LY54: 0.4116174781 | LZ54: 0.4116174871 | MA54: 0.411617481 | MB54: 0.4116174568 | MC54: 0.411617485 | MD54: 0.4116174781 | ME54: 0.4116174871 | MF54: 0.411617481 | MG54: 0.4116174568 | MH54: 0.411617485 | MI54: 0.4116174781 | MJ54: 0.4116174871 | MK54: 0.411617481 | ML54: 0.4116174568 | MM54: 0.411617485 | MN54: 0.4116174781 | MO54: 0.4116174871 | MP54: 0.411617481 | MQ54: 0.4116174568 | MR54: 0.411617485 | MS54: 0.4116174781 | MT54: 0.4116174871 | MU54: 0.411617481 | MV54: 0.4116174568 | MW54: 0.411617485 | MX54: 0.4116174781 | MY54: 0.4116174871 | MZ54: 0.411617481 | NA54: 0.4116174568 | NB54: 0.411617485 | NC54: 0.4116174781 | ND54: 0.4116174871 | NE54: 0.411617481 | NF54: 0.4116174568 | NG54: 0.411617485 | NH54: 0.4116174781 | NI54: 0.4116174871 | NJ54: 0.411617481 | NK54: 0.4116174568 | NL54: 0.411617485 | NM54: 0.4116174781 | NN54: 0.4116174871 | NO54: 0.411617481 | NP54: 0.4116174568 | NQ54: 0.411617485 | NR54: 0.4116174781 | NS54: 0.4116174871 | NT54: 0.411617481 | NU54: 0.4116174568 | NV54: 0.411617485 | NW54: 0.4116174781 | NX54: 0.4116174871 | NY54: 0.411617481 | NZ54: 0.4116174568 | OA54: =OA50/OA52 -> 0.411617485 | OB54: 0.4116174781 | OC54: 0.4116174871 | OD54: 0.411617481 | OE54: 0.4116174568 | OF54: 0.411617485 | OG54: 0.4116174781 | OH54: 0.4116174871 | OI54: 0.411617481 | OJ54: 0.4116174568 | OK54: 0.411617485 | OL54: 0.4116174781 | OM54: 0.4116174871 | ON54: 0.411617481 | OO54: 0.4116174568
C56: Free Cash Flow | E56: =E48-E29 -> -1000 | F56: =F48-F29 -> 501 | G56: =G48-G29 -> 501 | H56: 501 | I56: 501 | J56: -499 | K56: 501 | L56: 501 | M56: 501 | N56: 501 | O56: -499 | P56: 501 | Q56: 501 | R56: 501 | S56: 501 | T56: -499 | U56: 501 | V56: 501 | W56: 501 | X56: 501 | Y56: -499 | Z56: 501 | AA56: 501 | AB56: 501 | AC56: 501 | AD56: -499 | AE56: 501 | AF56: 501 | AG56: 501 | AH56: 501 | AI56: -499 | AJ56: 501 | AK56: 501 | AL56: 501 | AM56: 501 | AN56: -499 | AO56: 501 | AP56: 501 | AQ56: 501 | AR56: 501 | AS56: -499 | AT56: 501 | AU56: 501 | AV56: 501 | AW56: 501 | AX56: -499 | AY56: 501 | AZ56: 501 | BA56: 501 | BB56: 501 | BC56: -499 | BD56: 501 | BE56: 501 | BF56: 501 | BG56: 501 | BH56: -499 | BI56: 501 | BJ56: 501 | BK56: 501 | BL56: 501 | BM56: -499 | BN56: 501 | BO56: 501 | BP56: 501 | BQ56: 501 | BR56: -499 | BS56: =BS48-BS29 -> 501 | BT56: 501 | BU56: 501 | BV56: 501 | BW56: -499 | BX56: 501 | BY56: 501 | BZ56: 501 | CA56: 501 | CB56: -499 | CC56: 501 | CD56: 501 | CE56: 501 | CF56: 501 | CG56: -499 | CH56: 501 | CI56: 501 | CJ56: 501 | CK56: 501 | CL56: -499 | CM56: 501 | CN56: 501 | CO56: 501 | CP56: 501 | CQ56: -499 | CR56: 501 | CS56: 501 | CT56: 501 | CU56: 501 | CV56: -499 | CW56: 501 | CX56: 501 | CY56: 501 | CZ56: 501 | DA56: -499 | DB56: 501 | DC56: 501 | DD56: 501 | DE56: 501 | DF56: -499 | DG56: 501 | DH56: 501 | DI56: 501 | DJ56: 501 | DK56: -499 | DL56: 501 | DM56: 501 | DN56: 501 | DO56: 501 | DP56: -499 | DQ56: 501 | DR56: 501 | DS56: 501 | DT56: 501 | DU56: -499 | DV56: 501 | DW56: 501 | DX56: 501 | DY56: 501 | DZ56: -499 | EA56: 501 | EB56: 501 | EC56: 501 | ED56: 501 | EE56: =EE48-EE29 -> -499 | EF56: 501 | EG56: 501 | EH56: 501 | EI56: 501 | EJ56: -499 | EK56: 501 | EL56: 501 | EM56: 501 | EN56: 501 | EO56: -499 | EP56: 501 | EQ56: 501 | ER56: 501 | ES56: 501 | ET56: -499 | EU56: 501 | EV56: 501 | EW56: 501 | EX56: 501 | EY56: -499 | EZ56: 501 | FA56: 501 | FB56: 501 | FC56: 501 | FD56: -499 | FE56: 501 | FF56: 501 | FG56: 501 | FH56: 501 | FI56: -499 | FJ56: 501 | FK56: 501 | FL56: 501 | FM56: 501 | FN56: -499 | FO56: 501 | FP56: 501 | FQ56: 501 | FR56: 501 | FS56: -499 | FT56: 501 | FU56: 501 | FV56: 501 | FW56: 501 | FX56: -499 | FY56: 501 | FZ56: 501 | GA56: 501 | GB56: 501 | GC56: -499 | GD56: 501 | GE56: 501 | GF56: 501 | GG56: 501 | GH56: -499 | GI56: 501 | GJ56: 501 | GK56: 501 | GL56: 501 | GM56: -499 | GN56: 501 | GO56: 501 | GP56: 501 | GQ56: =GQ48-GQ29 -> 501 | GR56: -499 | GS56: 501 | GT56: 501 | GU56: 501 | GV56: 501 | GW56: -499 | GX56: 501 | GY56: 501 | GZ56: 501 | HA56: 501 | HB56: -499 | HC56: 501 | HD56: 501 | HE56: 501 | HF56: 501 | HG56: -499 | HH56: 501 | HI56: 501 | HJ56: 501 | HK56: 501 | HL56: -499 | HM56: 501 | HN56: 501 | HO56: 501 | HP56: 501 | HQ56: -499 | HR56: 501 | HS56: 501 | HT56: 501 | HU56: 501 | HV56: -499 | HW56: 501 | HX56: 501 | HY56: 501 | HZ56: 501 | IA56: -499 | IB56: 501 | IC56: 501 | ID56: 501 | IE56: 501 | IF56: -499 | IG56: 501 | IH56: 501 | II56: 501 | IJ56: 501 | IK56: -499 | IL56: 501 | IM56: 501 | IN56: 501 | IO56: 501 | IP56: -499 | IQ56: 501 | IR56: 501 | IS56: 501 | IT56: 501 | IU56: -499 | IV56: 501 | IW56: 501 | IX56: 501 | IY56: 501 | IZ56: -499 | JA56: 501 | JB56: 501 | JC56: =JC48-JC29 -> 501 | JD56: 501 | JE56: -499 | JF56: 501 | JG56: 501 | JH56: 501 | JI56: 501 | JJ56: -499 | JK56: 501 | JL56: 501 | JM56: 501 | JN56: 501 | JO56: -499 | JP56: 501 | JQ56: 501 | JR56: 501 | JS56: 501 | JT56: -499 | JU56: 501 | JV56: 501 | JW56: 501 | JX56: 501 | JY56: -499 | JZ56: 501 | KA56: 501 | KB56: 501 | KC56: 501 | KD56: -499 | KE56: 501 | KF56: 501 | KG56: 501 | KH56: 501 | KI56: -499 | KJ56: 501 | KK56: 501 | KL56: 501 | KM56: 501 | KN56: -499 | KO56: 501 | KP56: 501 | KQ56: 501 | KR56: 501 | KS56: -499 | KT56: 501 | KU56: 501 | KV56: 501 | KW56: 501 | KX56: -499 | KY56: 501 | KZ56: 501 | LA56: 501 | LB56: 501 | LC56: -499 | LD56: 501 | LE56: 501 | LF56: 501 | LG56: 501 | LH56: -499 | LI56: 501 | LJ56: 501 | LK56: 501 | LL56: 501 | LM56: -499 | LN56: 501 | LO56: =LO48-LO29 -> 501 | LP56: 501 | LQ56: 501 | LR56: -499 | LS56: 501 | LT56: 501 | LU56: 501 | LV56: 501 | LW56: -499 | LX56: 501 | LY56: 501 | LZ56: 501 | MA56: 501 | MB56: -499 | MC56: 501 | MD56: 501 | ME56: 501 | MF56: 501 | MG56: -499 | MH56: 501 | MI56: 501 | MJ56: 501 | MK56: 501 | ML56: -499 | MM56: 501 | MN56: 501 | MO56: 501 | MP56: 501 | MQ56: -499 | MR56: 501 | MS56: 501 | MT56: 501 | MU56: 501 | MV56: -499 | MW56: 501 | MX56: 501 | MY56: 501 | MZ56: 501 | NA56: -499 | NB56: 501 | NC56: 501 | ND56: 501 | NE56: 501 | NF56: -499 | NG56: 501 | NH56: 501 | NI56: 501 | NJ56: 501 | NK56: -499 | NL56: 501 | NM56: 501 | NN56: 501 | NO56: 501 | NP56: -499 | NQ56: 501 | NR56: 501 | NS56: 501 | NT56: 501 | NU56: -499 | NV56: 501 | NW56: 501 | NX56: 501 | NY56: 501 | NZ56: -499 | OA56: =OA48-OA29 -> 501 | OB56: 501 | OC56: 501 | OD56: 501 | OE56: -499 | OF56: 501 | OG56: 501 | OH56: 501 | OI56: 501 | OJ56: -499 | OK56: 501 | OL56: 501 | OM56: 501 | ON56: 501 | OO56: -499
C57: NPV | E57: =E15 -> 0.411617482 | F57: =NPV(E57,56:56) -> 1.12330409e-09
C60: Points:
C61: True Rate of Return is IRR
C62: Cannot Average ROIC
C63: With Lumpy Investements Does Not Stabalise
C64: Economic Depreciation Works
C66: Years in Graph | E66: 41
A68: Graphs | F68: =IF(F2<=$E$66,F2,NA()) -> 1 | G68: =IF(G2<=$E$66,G2,NA()) -> 2 | H68: 3 | I68: 4 | J68: 5 | K68: 6 | L68: 7 | M68: 8 | N68: 9 | O68: 10 | P68: 11 | Q68: 12 | R68: 13 | S68: 14 | T68: 15 | U68: 16 | V68: 17 | W68: 18 | X68: 19 | Y68: 20 | Z68: 21 | AA68: 22 | AB68: 23 | AC68: 24 | AD68: 25 | AE68: 26 | AF68: 27 | AG68: 28 | AH68: 29 | AI68: 30 | AJ68: 31 | AK68: 32 | AL68: 33 | AM68: 34 | AN68: 35 | AO68: 36 | AP68: 37 | AQ68: 38 | AR68: 39 | AS68: 40 | AT68: 41 | BS68: =IF(BS2<=$E$66,BS2,NA()) ->  | EE68: =IF(EE2<=$E$66,EE2,NA()) ->  | GQ68: =IF(GQ2<=$E$66,GQ2,NA()) ->  | JC68: =IF(JC2<=$E$66,JC2,NA()) ->  | LO68: =IF(LO2<=$E$66,LO2,NA()) ->  | OA68: =IF(OA2<=$E$66,OA2,NA()) -> 
C69: ROIC with SL Depreciation | F69: =F45 -> 0.301 | G69: =G45 -> 0.37625 | H69: 0.5016666667 | I69: 0.7525 | J69: 1.505 | K69: 0.301 | L69: 0.37625 | M69: 0.5016666667 | N69: 0.7525 | O69: 1.505 | P69: 0.301 | Q69: 0.37625 | R69: 0.5016666667 | S69: 0.7525 | T69: 1.505 | U69: 0.301 | V69: 0.37625 | W69: 0.5016666667 | X69: 0.7525 | Y69: 1.505 | Z69: 0.301 | AA69: 0.37625 | AB69: 0.5016666667 | AC69: 0.7525 | AD69: 1.505 | AE69: 0.301 | AF69: 0.37625 | AG69: 0.5016666667 | AH69: 0.7525 | AI69: 1.505 | AJ69: 0.301 | AK69: 0.37625 | AL69: 0.5016666667 | AM69: 0.7525 | AN69: 1.505 | AO69: 0.301 | AP69: 0.37625 | AQ69: 0.5016666667 | AR69: 0.7525 | AS69: 1.505 | AT69: 0.301 | AU69: 0.37625 | AV69: 0.5016666667 | AW69: 0.7525 | AX69: 1.505 | AY69: 0.301 | AZ69: 0.37625 | BA69: 0.5016666667 | BB69: 0.7525 | BC69: 1.505 | BD69: 0.301 | BE69: 0.37625 | BF69: 0.5016666667 | BG69: 0.7525 | BH69: 1.505 | BI69: 0.301 | BJ69: 0.37625 | BK69: 0.5016666667 | BL69: 0.7525 | BM69: 1.505 | BN69: 0.301 | BO69: 0.37625 | BP69: 0.5016666667 | BQ69: 0.7525 | BR69: 1.505 | BS69: =BS45 -> 0.301 | BT69: 0.37625 | BU69: 0.5016666667 | BV69: 0.7525 | BW69: 1.505 | BX69: 0.301 | BY69: 0.37625 | BZ69: 0.5016666667 | CA69: 0.7525 | CB69: 1.505 | CC69: 0.301 | CD69: 0.37625 | CE69: 0.5016666667 | CF69: 0.7525 | CG69: 1.505 | CH69: 0.301 | CI69: 0.37625 | CJ69: 0.5016666667 | CK69: 0.7525 | CL69: 1.505 | CM69: 0.301 | CN69: 0.37625 | CO69: 0.5016666667 | CP69: 0.7525 | CQ69: 1.505 | CR69: 0.301 | CS69: 0.37625 | CT69: 0.5016666667 | CU69: 0.7525 | CV69: 1.505 | CW69: 0.301 | CX69: 0.37625 | CY69: 0.5016666667 | CZ69: 0.7525 | DA69: 1.505 | DB69: 0.301 | DC69: 0.37625 | DD69: 0.5016666667 | DE69: 0.7525 | DF69: 1.505 | DG69: 0.301 | DH69: 0.37625 | DI69: 0.5016666667 | DJ69: 0.7525 | DK69: 1.505 | DL69: 0.301 | DM69: 0.37625 | DN69: 0.5016666667 | DO69: 0.7525 | DP69: 1.505 | DQ69: 0.301 | DR69: 0.37625 | DS69: 0.5016666667 | DT69: 0.7525 | DU69: 1.505 | DV69: 0.301 | DW69: 0.37625 | DX69: 0.5016666667 | DY69: 0.7525 | DZ69: 1.505 | EA69: 0.301 | EB69: 0.37625 | EC69: 0.5016666667 | ED69: 0.7525 | EE69: =EE45 -> 1.505 | EF69: 0.301 | EG69: 0.37625 | EH69: 0.5016666667 | EI69: 0.7525 | EJ69: 1.505 | EK69: 0.301 | EL69: 0.37625 | EM69: 0.5016666667 | EN69: 0.7525 | EO69: 1.505 | EP69: 0.301 | EQ69: 0.37625 | ER69: 0.5016666667 | ES69: 0.7525 | ET69: 1.505 | EU69: 0.301 | EV69: 0.37625 | EW69: 0.5016666667 | EX69: 0.7525 | EY69: 1.505 | EZ69: 0.301 | FA69: 0.37625 | FB69: 0.5016666667 | FC69: 0.7525 | FD69: 1.505 | FE69: 0.301 | FF69: 0.37625 | FG69: 0.5016666667 | FH69: 0.7525 | FI69: 1.505 | FJ69: 0.301 | FK69: 0.37625 | FL69: 0.5016666667 | FM69: 0.7525 | FN69: 1.505 | FO69: 0.301 | FP69: 0.37625 | FQ69: 0.5016666667 | FR69: 0.7525 | FS69: 1.505 | FT69: 0.301 | FU69: 0.37625 | FV69: 0.5016666667 | FW69: 0.7525 | FX69: 1.505 | FY69: 0.301 | FZ69: 0.37625 | GA69: 0.5016666667 | GB69: 0.7525 | GC69: 1.505 | GD69: 0.301 | GE69: 0.37625 | GF69: 0.5016666667 | GG69: 0.7525 | GH69: 1.505 | GI69: 0.301 | GJ69: 0.37625 | GK69: 0.5016666667 | GL69: 0.7525 | GM69: 1.505 | GN69: 0.301 | GO69: 0.37625 | GP69: 0.5016666667 | GQ69: =GQ45 -> 0.7525 | GR69: 1.505 | GS69: 0.301 | GT69: 0.37625 | GU69: 0.5016666667 | GV69: 0.7525 | GW69: 1.505 | GX69: 0.301 | GY69: 0.37625 | GZ69: 0.5016666667 | HA69: 0.7525 | HB69: 1.505 | HC69: 0.301 | HD69: 0.37625 | HE69: 0.5016666667 | HF69: 0.7525 | HG69: 1.505 | HH69: 0.301 | HI69: 0.37625 | HJ69: 0.5016666667 | HK69: 0.7525 | HL69: 1.505 | HM69: 0.301 | HN69: 0.37625 | HO69: 0.5016666667 | HP69: 0.7525 | HQ69: 1.505 | HR69: 0.301 | HS69: 0.37625 | HT69: 0.5016666667 | HU69: 0.7525 | HV69: 1.505 | HW69: 0.301 | HX69: 0.37625 | HY69: 0.5016666667 | HZ69: 0.7525 | IA69: 1.505 | IB69: 0.301 | IC69: 0.37625 | ID69: 0.5016666667 | IE69: 0.7525 | IF69: 1.505 | IG69: 0.301 | IH69: 0.37625 | II69: 0.5016666667 | IJ69: 0.7525 | IK69: 1.505 | IL69: 0.301 | IM69: 0.37625 | IN69: 0.5016666667 | IO69: 0.7525 | IP69: 1.505 | IQ69: 0.301 | IR69: 0.37625 | IS69: 0.5016666667 | IT69: 0.7525 | IU69: 1.505 | IV69: 0.301 | IW69: 0.37625 | IX69: 0.5016666667 | IY69: 0.7525 | IZ69: 1.505 | JA69: 0.301 | JB69: 0.37625 | JC69: =JC45 -> 0.5016666667 | JD69: 0.7525 | JE69: 1.505 | JF69: 0.301 | JG69: 0.37625 | JH69: 0.5016666667 | JI69: 0.7525 | JJ69: 1.505 | JK69: 0.301 | JL69: 0.37625 | JM69: 0.5016666667 | JN69: 0.7525 | JO69: 1.505 | JP69: 0.301 | JQ69: 0.37625 | JR69: 0.5016666667 | JS69: 0.7525 | JT69: 1.505 | JU69: 0.301 | JV69: 0.37625 | JW69: 0.5016666667 | JX69: 0.7525 | JY69: 1.505 | JZ69: 0.301 | KA69: 0.37625 | KB69: 0.5016666667 | KC69: 0.7525 | KD69: 1.505 | KE69: 0.301 | KF69: 0.37625 | KG69: 0.5016666667 | KH69: 0.7525 | KI69: 1.505 | KJ69: 0.301 | KK69: 0.37625 | KL69: 0.5016666667 | KM69: 0.7525 | KN69: 1.505 | KO69: 0.301 | KP69: 0.37625 | KQ69: 0.5016666667 | KR69: 0.7525 | KS69: 1.505 | KT69: 0.301 | KU69: 0.37625 | KV69: 0.5016666667 | KW69: 0.7525 | KX69: 1.505 | KY69: 0.301 | KZ69: 0.37625 | LA69: 0.5016666667 | LB69: 0.7525 | LC69: 1.505 | LD69: 0.301 | LE69: 0.37625 | LF69: 0.5016666667 | LG69: 0.7525 | LH69: 1.505 | LI69: 0.301 | LJ69: 0.37625 | LK69: 0.5016666667 | LL69: 0.7525 | LM69: 1.505 | LN69: 0.301 | LO69: =LO45 -> 0.37625 | LP69: 0.5016666667 | LQ69: 0.7525 | LR69: 1.505 | LS69: 0.301 | LT69: 0.37625 | LU69: 0.5016666667 | LV69: 0.7525 | LW69: 1.505 | LX69: 0.301 | LY69: 0.37625 | LZ69: 0.5016666667 | MA69: 0.7525 | MB69: 1.505 | MC69: 0.301 | MD69: 0.37625 | ME69: 0.5016666667 | MF69: 0.7525 | MG69: 1.505 | MH69: 0.301 | MI69: 0.37625 | MJ69: 0.5016666667 | MK69: 0.7525 | ML69: 1.505 | MM69: 0.301 | MN69: 0.37625 | MO69: 0.5016666667 | MP69: 0.7525 | MQ69: 1.505 | MR69: 0.301 | MS69: 0.37625 | MT69: 0.5016666667 | MU69: 0.7525 | MV69: 1.505 | MW69: 0.301 | MX69: 0.37625 | MY69: 0.5016666667 | MZ69: 0.7525 | NA69: 1.505 | NB69: 0.301 | NC69: 0.37625 | ND69: 0.5016666667 | NE69: 0.7525 | NF69: 1.505 | NG69: 0.301 | NH69: 0.37625 | NI69: 0.5016666667 | NJ69: 0.7525 | NK69: 1.505 | NL69: 0.301 | NM69: 0.37625 | NN69: 0.5016666667 | NO69: 0.7525 | NP69: 1.505 | NQ69: 0.301 | NR69: 0.37625 | NS69: 0.5016666667 | NT69: 0.7525 | NU69: 1.505 | NV69: 0.301 | NW69: 0.37625 | NX69: 0.5016666667 | NY69: 0.7525 | NZ69: 1.505 | OA69: =OA45 -> 0.301 | OB69: 0.37625 | OC69: 0.5016666667 | OD69: 0.7525 | OE69: 1.505 | OF69: 0.301 | OG69: 0.37625 | OH69: 0.5016666667 | OI69: 0.7525 | OJ69: 1.505 | OK69: 0.301 | OL69: 0.37625 | OM69: 0.5016666667 | ON69: 0.7525 | OO69: 1.505
C70: ROIC with Economic Depreciation | F70: =F54 -> 0.411617485 | G70: =G54 -> 0.4116174781 | H70: 0.4116174871 | I70: 0.411617481 | J70: 0.4116174568 | K70: 0.411617485 | L70: 0.4116174781 | M70: 0.4116174871 | N70: 0.411617481 | O70: 0.4116174568 | P70: 0.411617485 | Q70: 0.4116174781 | R70: 0.4116174871 | S70: 0.411617481 | T70: 0.4116174568 | U70: 0.411617485 | V70: 0.4116174781 | W70: 0.4116174871 | X70: 0.411617481 | Y70: 0.4116174568 | Z70: 0.411617485 | AA70: 0.4116174781 | AB70: 0.4116174871 | AC70: 0.411617481 | AD70: 0.4116174568 | AE70: 0.411617485 | AF70: 0.4116174781 | AG70: 0.4116174871 | AH70: 0.411617481 | AI70: 0.4116174568 | AJ70: 0.411617485 | AK70: 0.4116174781 | AL70: 0.4116174871 | AM70: 0.411617481 | AN70: 0.4116174568 | AO70: 0.411617485 | AP70: 0.4116174781 | AQ70: 0.4116174871 | AR70: 0.411617481 | AS70: 0.4116174568 | AT70: 0.411617485 | AU70: 0.4116174781 | AV70: 0.4116174871 | AW70: 0.411617481 | AX70: 0.4116174568 | AY70: 0.411617485 | AZ70: 0.4116174781 | BA70: 0.4116174871 | BB70: 0.411617481 | BC70: 0.4116174568 | BD70: 0.411617485 | BE70: 0.4116174781 | BF70: 0.4116174871 | BG70: 0.411617481 | BH70: 0.4116174568 | BI70: 0.411617485 | BJ70: 0.4116174781 | BK70: 0.4116174871 | BL70: 0.411617481 | BM70: 0.4116174568 | BN70: 0.411617485 | BO70: 0.4116174781 | BP70: 0.4116174871 | BQ70: 0.411617481 | BR70: 0.4116174568 | BS70: =BS54 -> 0.411617485 | BT70: 0.4116174781 | BU70: 0.4116174871 | BV70: 0.411617481 | BW70: 0.4116174568 | BX70: 0.411617485 | BY70: 0.4116174781 | BZ70: 0.4116174871 | CA70: 0.411617481 | CB70: 0.4116174568 | CC70: 0.411617485 | CD70: 0.4116174781 | CE70: 0.4116174871 | CF70: 0.411617481 | CG70: 0.4116174568 | CH70: 0.411617485 | CI70: 0.4116174781 | CJ70: 0.4116174871 | CK70: 0.411617481 | CL70: 0.4116174568 | CM70: 0.411617485 | CN70: 0.4116174781 | CO70: 0.4116174871 | CP70: 0.411617481 | CQ70: 0.4116174568 | CR70: 0.411617485 | CS70: 0.4116174781 | CT70: 0.4116174871 | CU70: 0.411617481 | CV70: 0.4116174568 | CW70: 0.411617485 | CX70: 0.4116174781 | CY70: 0.4116174871 | CZ70: 0.411617481 | DA70: 0.4116174568 | DB70: 0.411617485 | DC70: 0.4116174781 | DD70: 0.4116174871 | DE70: 0.411617481 | DF70: 0.4116174568 | DG70: 0.411617485 | DH70: 0.4116174781 | DI70: 0.4116174871 | DJ70: 0.411617481 | DK70: 0.4116174568 | DL70: 0.411617485 | DM70: 0.4116174781 | DN70: 0.4116174871 | DO70: 0.411617481 | DP70: 0.4116174568 | DQ70: 0.411617485 | DR70: 0.4116174781 | DS70: 0.4116174871 | DT70: 0.411617481 | DU70: 0.4116174568 | DV70: 0.411617485 | DW70: 0.4116174781 | DX70: 0.4116174871 | DY70: 0.411617481 | DZ70: 0.4116174568 | EA70: 0.411617485 | EB70: 0.4116174781 | EC70: 0.4116174871 | ED70: 0.411617481 | EE70: =EE54 -> 0.4116174568 | EF70: 0.411617485 | EG70: 0.4116174781 | EH70: 0.4116174871 | EI70: 0.411617481 | EJ70: 0.4116174568 | EK70: 0.411617485 | EL70: 0.4116174781 | EM70: 0.4116174871 | EN70: 0.411617481 | EO70: 0.4116174568 | EP70: 0.411617485 | EQ70: 0.4116174781 | ER70: 0.4116174871 | ES70: 0.411617481 | ET70: 0.4116174568 | EU70: 0.411617485 | EV70: 0.4116174781 | EW70: 0.4116174871 | EX70: 0.411617481 | EY70: 0.4116174568 | EZ70: 0.411617485 | FA70: 0.4116174781 | FB70: 0.4116174871 | FC70: 0.411617481 | FD70: 0.4116174568 | FE70: 0.411617485 | FF70: 0.4116174781 | FG70: 0.4116174871 | FH70: 0.411617481 | FI70: 0.4116174568 | FJ70: 0.411617485 | FK70: 0.4116174781 | FL70: 0.4116174871 | FM70: 0.411617481 | FN70: 0.4116174568 | FO70: 0.411617485 | FP70: 0.4116174781 | FQ70: 0.4116174871 | FR70: 0.411617481 | FS70: 0.4116174568 | FT70: 0.411617485 | FU70: 0.4116174781 | FV70: 0.4116174871 | FW70: 0.411617481 | FX70: 0.4116174568 | FY70: 0.411617485 | FZ70: 0.4116174781 | GA70: 0.4116174871 | GB70: 0.411617481 | GC70: 0.4116174568 | GD70: 0.411617485 | GE70: 0.4116174781 | GF70: 0.4116174871 | GG70: 0.411617481 | GH70: 0.4116174568 | GI70: 0.411617485 | GJ70: 0.4116174781 | GK70: 0.4116174871 | GL70: 0.411617481 | GM70: 0.4116174568 | GN70: 0.411617485 | GO70: 0.4116174781 | GP70: 0.4116174871 | GQ70: =GQ54 -> 0.411617481 | GR70: 0.4116174568 | GS70: 0.411617485 | GT70: 0.4116174781 | GU70: 0.4116174871 | GV70: 0.411617481 | GW70: 0.4116174568 | GX70: 0.411617485 | GY70: 0.4116174781 | GZ70: 0.4116174871 | HA70: 0.411617481 | HB70: 0.4116174568 | HC70: 0.411617485 | HD70: 0.4116174781 | HE70: 0.4116174871 | HF70: 0.411617481 | HG70: 0.4116174568 | HH70: 0.411617485 | HI70: 0.4116174781 | HJ70: 0.4116174871 | HK70: 0.411617481 | HL70: 0.4116174568 | HM70: 0.411617485 | HN70: 0.4116174781 | HO70: 0.4116174871 | HP70: 0.411617481 | HQ70: 0.4116174568 | HR70: 0.411617485 | HS70: 0.4116174781 | HT70: 0.4116174871 | HU70: 0.411617481 | HV70: 0.4116174568 | HW70: 0.411617485 | HX70: 0.4116174781 | HY70: 0.4116174871 | HZ70: 0.411617481 | IA70: 0.4116174568 | IB70: 0.411617485 | IC70: 0.4116174781 | ID70: 0.4116174871 | IE70: 0.411617481 | IF70: 0.4116174568 | IG70: 0.411617485 | IH70: 0.4116174781 | II70: 0.4116174871 | IJ70: 0.411617481 | IK70: 0.4116174568 | IL70: 0.411617485 | IM70: 0.4116174781 | IN70: 0.4116174871 | IO70: 0.411617481 | IP70: 0.4116174568 | IQ70: 0.411617485 | IR70: 0.4116174781 | IS70: 0.4116174871 | IT70: 0.411617481 | IU70: 0.4116174568 | IV70: 0.411617485 | IW70: 0.4116174781 | IX70: 0.4116174871 | IY70: 0.411617481 | IZ70: 0.4116174568 | JA70: 0.411617485 | JB70: 0.4116174781 | JC70: =JC54 -> 0.4116174871 | JD70: 0.411617481 | JE70: 0.4116174568 | JF70: 0.411617485 | JG70: 0.4116174781 | JH70: 0.4116174871 | JI70: 0.411617481 | JJ70: 0.4116174568 | JK70: 0.411617485 | JL70: 0.4116174781 | JM70: 0.4116174871 | JN70: 0.411617481 | JO70: 0.4116174568 | JP70: 0.411617485 | JQ70: 0.4116174781 | JR70: 0.4116174871 | JS70: 0.411617481 | JT70: 0.4116174568 | JU70: 0.411617485 | JV70: 0.4116174781 | JW70: 0.4116174871 | JX70: 0.411617481 | JY70: 0.4116174568 | JZ70: 0.411617485 | KA70: 0.4116174781 | KB70: 0.4116174871 | KC70: 0.411617481 | KD70: 0.4116174568 | KE70: 0.411617485 | KF70: 0.4116174781 | KG70: 0.4116174871 | KH70: 0.411617481 | KI70: 0.4116174568 | KJ70: 0.411617485 | KK70: 0.4116174781 | KL70: 0.4116174871 | KM70: 0.411617481 | KN70: 0.4116174568 | KO70: 0.411617485 | KP70: 0.4116174781 | KQ70: 0.4116174871 | KR70: 0.411617481 | KS70: 0.4116174568 | KT70: 0.411617485 | KU70: 0.4116174781 | KV70: 0.4116174871 | KW70: 0.411617481 | KX70: 0.4116174568 | KY70: 0.411617485 | KZ70: 0.4116174781 | LA70: 0.4116174871 | LB70: 0.411617481 | LC70: 0.4116174568 | LD70: 0.411617485 | LE70: 0.4116174781 | LF70: 0.4116174871 | LG70: 0.411617481 | LH70: 0.4116174568 | LI70: 0.411617485 | LJ70: 0.4116174781 | LK70: 0.4116174871 | LL70: 0.411617481 | LM70: 0.4116174568 | LN70: 0.411617485 | LO70: =LO54 -> 0.4116174781 | LP70: 0.4116174871 | LQ70: 0.411617481 | LR70: 0.4116174568 | LS70: 0.411617485 | LT70: 0.4116174781 | LU70: 0.4116174871 | LV70: 0.411617481 | LW70: 0.4116174568 | LX70: 0.411617485 | LY70: 0.4116174781 | LZ70: 0.4116174871 | MA70: 0.411617481 | MB70: 0.4116174568 | MC70: 0.411617485 | MD70: 0.4116174781 | ME70: 0.4116174871 | MF70: 0.411617481 | MG70: 0.4116174568 | MH70: 0.411617485 | MI70: 0.4116174781 | MJ70: 0.4116174871 | MK70: 0.411617481 | ML70: 0.4116174568 | MM70: 0.411617485 | MN70: 0.4116174781 | MO70: 0.4116174871 | MP70: 0.411617481 | MQ70: 0.4116174568 | MR70: 0.411617485 | MS70: 0.4116174781 | MT70: 0.4116174871 | MU70: 0.411617481 | MV70: 0.4116174568 | MW70: 0.411617485 | MX70: 0.4116174781 | MY70: 0.4116174871 | MZ70: 0.411617481 | NA70: 0.4116174568 | NB70: 0.411617485 | NC70: 0.4116174781 | ND70: 0.4116174871 | NE70: 0.411617481 | NF70: 0.4116174568 | NG70: 0.411617485 | NH70: 0.4116174781 | NI70: 0.4116174871 | NJ70: 0.411617481 | NK70: 0.4116174568 | NL70: 0.411617485 | NM70: 0.4116174781 | NN70: 0.4116174871 | NO70: 0.411617481 | NP70: 0.4116174568 | NQ70: 0.411617485 | NR70: 0.4116174781 | NS70: 0.4116174871 | NT70: 0.411617481 | NU70: 0.4116174568 | NV70: 0.411617485 | NW70: 0.4116174781 | NX70: 0.4116174871 | NY70: 0.411617481 | NZ70: 0.4116174568 | OA70: =OA54 -> 0.411617485 | OB70: 0.4116174781 | OC70: 0.4116174871 | OD70: 0.411617481 | OE70: 0.4116174568 | OF70: 0.411617485 | OG70: 0.4116174781 | OH70: 0.4116174871 | OI70: 0.411617481 | OJ70: 0.4116174568 | OK70: 0.411617485 | OL70: 0.4116174781 | OM70: 0.4116174871 | ON70: 0.411617481 | OO70: 0.4116174568
C73: Project IRR | F73: =E15 -> 0.411617482 | G73: Asset Life | H73: =E8 -> 5 | I73: Graph Period | K73: =E66 -> 41
A76: Valuation
B77: IRR | E77: =E15 -> 0.411617482
B78: Life | E78: =E8 -> 5
B79: Discount Rate | E79: 0.1
B81: SL Depreciation
C82: Exit Period | E82: =E5 -> 13 | F82: =F2=$E$82 -> FALSE | G82: =G2=$E$82 -> FALSE | H82: FALSE | I82: FALSE | J82: FALSE | K82: FALSE | L82: FALSE | M82: FALSE | N82: FALSE | O82: FALSE | P82: FALSE | Q82: FALSE | R82: TRUE | S82: FALSE | T82: FALSE | U82: FALSE | V82: FALSE | W82: FALSE | X82: FALSE | Y82: FALSE | Z82: FALSE | AA82: FALSE | AB82: FALSE | AC82: FALSE | AD82: FALSE | AE82: FALSE | AF82: FALSE | AG82: FALSE | AH82: FALSE | AI82: FALSE | AJ82: FALSE | AK82: FALSE | AL82: FALSE | AM82: FALSE | AN82: FALSE | AO82: FALSE | AP82: FALSE | AQ82: FALSE | AR82: FALSE | AS82: FALSE | AT82: FALSE | AU82: FALSE | AV82: FALSE | AW82: FALSE | AX82: FALSE | AY82: FALSE | AZ82: FALSE | BA82: FALSE | BB82: FALSE | BC82: FALSE | BD82: FALSE | BE82: FALSE | BF82: FALSE | BG82: FALSE | BH82: FALSE | BI82: FALSE | BJ82: FALSE | BK82: FALSE | BL82: FALSE | BM82: FALSE | BN82: FALSE | BO82: FALSE | BP82: FALSE | BQ82: FALSE | BR82: FALSE | BS82: =BS2=$E$82 -> FALSE | BT82: FALSE | BU82: FALSE | BV82: FALSE | BW82: FALSE | BX82: FALSE | BY82: FALSE | BZ82: FALSE | CA82: FALSE | CB82: FALSE | CC82: FALSE | CD82: FALSE | CE82: FALSE | CF82: FALSE | CG82: FALSE | CH82: FALSE | CI82: FALSE | CJ82: FALSE | CK82: FALSE | CL82: FALSE | CM82: FALSE | CN82: FALSE | CO82: FALSE | CP82: FALSE | CQ82: FALSE | CR82: FALSE | CS82: FALSE | CT82: FALSE | CU82: FALSE | CV82: FALSE | CW82: FALSE | CX82: FALSE | CY82: FALSE | CZ82: FALSE | DA82: FALSE | DB82: FALSE | DC82: FALSE | DD82: FALSE | DE82: FALSE | DF82: FALSE | DG82: FALSE | DH82: FALSE | DI82: FALSE | DJ82: FALSE | DK82: FALSE | DL82: FALSE | DM82: FALSE | DN82: FALSE | DO82: FALSE | DP82: FALSE | DQ82: FALSE | DR82: FALSE | DS82: FALSE | DT82: FALSE | DU82: FALSE | DV82: FALSE | DW82: FALSE | DX82: FALSE | DY82: FALSE | DZ82: FALSE | EA82: FALSE | EB82: FALSE | EC82: FALSE | ED82: FALSE | EE82: =EE2=$E$82 -> FALSE | EF82: FALSE | EG82: FALSE | EH82: FALSE | EI82: FALSE | EJ82: FALSE | EK82: FALSE | EL82: FALSE | EM82: FALSE | EN82: FALSE | EO82: FALSE | EP82: FALSE | EQ82: FALSE | ER82: FALSE | ES82: FALSE | ET82: FALSE | EU82: FALSE | EV82: FALSE | EW82: FALSE | EX82: FALSE | EY82: FALSE | EZ82: FALSE | FA82: FALSE | FB82: FALSE | FC82: FALSE | FD82: FALSE | FE82: FALSE | FF82: FALSE | FG82: FALSE | FH82: FALSE | FI82: FALSE | FJ82: FALSE | FK82: FALSE | FL82: FALSE | FM82: FALSE | FN82: FALSE | FO82: FALSE | FP82: FALSE | FQ82: FALSE | FR82: FALSE | FS82: FALSE | FT82: FALSE | FU82: FALSE | FV82: FALSE | FW82: FALSE | FX82: FALSE | FY82: FALSE | FZ82: FALSE | GA82: FALSE | GB82: FALSE | GC82: FALSE | GD82: FALSE | GE82: FALSE | GF82: FALSE | GG82: FALSE | GH82: FALSE | GI82: FALSE | GJ82: FALSE | GK82: FALSE | GL82: FALSE | GM82: FALSE | GN82: FALSE | GO82: FALSE | GP82: FALSE | GQ82: =GQ2=$E$82 -> FALSE | GR82: FALSE | GS82: FALSE | GT82: FALSE | GU82: FALSE | GV82: FALSE | GW82: FALSE | GX82: FALSE | GY82: FALSE | GZ82: FALSE | HA82: FALSE | HB82: FALSE | HC82: FALSE | HD82: FALSE | HE82: FALSE | HF82: FALSE | HG82: FALSE | HH82: FALSE | HI82: FALSE | HJ82: FALSE | HK82: FALSE | HL82: FALSE | HM82: FALSE | HN82: FALSE | HO82: FALSE | HP82: FALSE | HQ82: FALSE | HR82: FALSE | HS82: FALSE | HT82: FALSE | HU82: FALSE | HV82: FALSE | HW82: FALSE | HX82: FALSE | HY82: FALSE | HZ82: FALSE | IA82: FALSE | IB82: FALSE | IC82: FALSE | ID82: FALSE | IE82: FALSE | IF82: FALSE | IG82: FALSE | IH82: FALSE | II82: FALSE | IJ82: FALSE | IK82: FALSE | IL82: FALSE | IM82: FALSE | IN82: FALSE | IO82: FALSE | IP82: FALSE | IQ82: FALSE | IR82: FALSE | IS82: FALSE | IT82: FALSE | IU82: FALSE | IV82: FALSE | IW82: FALSE | IX82: FALSE | IY82: FALSE | IZ82: FALSE | JA82: FALSE | JB82: FALSE | JC82: =JC2=$E$82 -> FALSE | JD82: FALSE | JE82: FALSE | JF82: FALSE | JG82: FALSE | JH82: FALSE | JI82: FALSE | JJ82: FALSE | JK82: FALSE | JL82: FALSE | JM82: FALSE | JN82: FALSE | JO82: FALSE | JP82: FALSE | JQ82: FALSE | JR82: FALSE | JS82: FALSE | JT82: FALSE | JU82: FALSE | JV82: FALSE | JW82: FALSE | JX82: FALSE | JY82: FALSE | JZ82: FALSE | KA82: FALSE | KB82: FALSE | KC82: FALSE | KD82: FALSE | KE82: FALSE | KF82: FALSE | KG82: FALSE | KH82: FALSE | KI82: FALSE | KJ82: FALSE | KK82: FALSE | KL82: FALSE | KM82: FALSE | KN82: FALSE | KO82: FALSE | KP82: FALSE | KQ82: FALSE | KR82: FALSE | KS82: FALSE | KT82: FALSE | KU82: FALSE | KV82: FALSE | KW82: FALSE | KX82: FALSE | KY82: FALSE | KZ82: FALSE | LA82: FALSE | LB82: FALSE | LC82: FALSE | LD82: FALSE | LE82: FALSE | LF82: FALSE | LG82: FALSE | LH82: FALSE | LI82: FALSE | LJ82: FALSE | LK82: FALSE | LL82: FALSE | LM82: FALSE | LN82: FALSE | LO82: =LO2=$E$82 -> FALSE | LP82: FALSE | LQ82: FALSE | LR82: FALSE | LS82: FALSE | LT82: FALSE | LU82: FALSE | LV82: FALSE | LW82: FALSE | LX82: FALSE | LY82: FALSE | LZ82: FALSE | MA82: FALSE | MB82: FALSE | MC82: FALSE | MD82: FALSE | ME82: FALSE | MF82: FALSE | MG82: FALSE | MH82: FALSE | MI82: FALSE | MJ82: FALSE | MK82: FALSE | ML82: FALSE | MM82: FALSE | MN82: FALSE | MO82: FALSE | MP82: FALSE | MQ82: FALSE | MR82: FALSE | MS82: FALSE | MT82: FALSE | MU82: FALSE | MV82: FALSE | MW82: FALSE | MX82: FALSE | MY82: FALSE | MZ82: FALSE | NA82: FALSE | NB82: FALSE | NC82: FALSE | ND82: FALSE | NE82: FALSE | NF82: FALSE | NG82: FALSE | NH82: FALSE | NI82: FALSE | NJ82: FALSE | NK82: FALSE | NL82: FALSE | NM82: FALSE | NN82: FALSE | NO82: FALSE | NP82: FALSE | NQ82: FALSE | NR82: FALSE | NS82: FALSE | NT82: FALSE | NU82: FALSE | NV82: FALSE | NW82: FALSE | NX82: FALSE | NY82: FALSE | NZ82: FALSE | OA82: =OA2=$E$82 -> FALSE | OB82: FALSE | OC82: FALSE | OD82: FALSE | OE82: FALSE | OF82: FALSE | OG82: FALSE | OH82: FALSE | OI82: FALSE | OJ82: FALSE | OK82: FALSE | OL82: FALSE | OM82: FALSE | ON82: FALSE | OO82: FALSE
C83: Holding Period | E83: =E4 -> 6 | F83: =AND(F2>=$E$83,F2<=$E$82) -> FALSE | G83: =AND(G2>=$E$83,G2<=$E$82) -> FALSE | H83: FALSE | I83: FALSE | J83: FALSE | K83: TRUE | L83: TRUE | M83: TRUE | N83: TRUE | O83: TRUE | P83: TRUE | Q83: TRUE | R83: TRUE | S83: FALSE | T83: FALSE | U83: FALSE | V83: FALSE | W83: FALSE | X83: FALSE | Y83: FALSE | Z83: FALSE | AA83: FALSE | AB83: FALSE | AC83: FALSE | AD83: FALSE | AE83: FALSE | AF83: FALSE | AG83: FALSE | AH83: FALSE | AI83: FALSE | AJ83: FALSE | AK83: FALSE | AL83: FALSE | AM83: FALSE | AN83: FALSE | AO83: FALSE | AP83: FALSE | AQ83: FALSE | AR83: FALSE | AS83: FALSE | AT83: FALSE | AU83: FALSE | AV83: FALSE | AW83: FALSE | AX83: FALSE | AY83: FALSE | AZ83: FALSE | BA83: FALSE | BB83: FALSE | BC83: FALSE | BD83: FALSE | BE83: FALSE | BF83: FALSE | BG83: FALSE | BH83: FALSE | BI83: FALSE | BJ83: FALSE | BK83: FALSE | BL83: FALSE | BM83: FALSE | BN83: FALSE | BO83: FALSE | BP83: FALSE | BQ83: FALSE | BR83: FALSE | BS83: =AND(BS2>=$E$83,BS2<=$E$82) -> FALSE | BT83: FALSE | BU83: FALSE | BV83: FALSE | BW83: FALSE | BX83: FALSE | BY83: FALSE | BZ83: FALSE | CA83: FALSE | CB83: FALSE | CC83: FALSE | CD83: FALSE | CE83: FALSE | CF83: FALSE | CG83: FALSE | CH83: FALSE | CI83: FALSE | CJ83: FALSE | CK83: FALSE | CL83: FALSE | CM83: FALSE | CN83: FALSE | CO83: FALSE | CP83: FALSE | CQ83: FALSE | CR83: FALSE | CS83: FALSE | CT83: FALSE | CU83: FALSE | CV83: FALSE | CW83: FALSE | CX83: FALSE | CY83: FALSE | CZ83: FALSE | DA83: FALSE | DB83: FALSE | DC83: FALSE | DD83: FALSE | DE83: FALSE | DF83: FALSE | DG83: FALSE | DH83: FALSE | DI83: FALSE | DJ83: FALSE | DK83: FALSE | DL83: FALSE | DM83: FALSE | DN83: FALSE | DO83: FALSE | DP83: FALSE | DQ83: FALSE | DR83: FALSE | DS83: FALSE | DT83: FALSE | DU83: FALSE | DV83: FALSE | DW83: FALSE | DX83: FALSE | DY83: FALSE | DZ83: FALSE | EA83: FALSE | EB83: FALSE | EC83: FALSE | ED83: FALSE | EE83: =AND(EE2>=$E$83,EE2<=$E$82) -> FALSE | EF83: FALSE | EG83: FALSE | EH83: FALSE | EI83: FALSE | EJ83: FALSE | EK83: FALSE | EL83: FALSE | EM83: FALSE | EN83: FALSE | EO83: FALSE | EP83: FALSE | EQ83: FALSE | ER83: FALSE | ES83: FALSE | ET83: FALSE | EU83: FALSE | EV83: FALSE | EW83: FALSE | EX83: FALSE | EY83: FALSE | EZ83: FALSE | FA83: FALSE | FB83: FALSE | FC83: FALSE | FD83: FALSE | FE83: FALSE | FF83: FALSE | FG83: FALSE | FH83: FALSE | FI83: FALSE | FJ83: FALSE | FK83: FALSE | FL83: FALSE | FM83: FALSE | FN83: FALSE | FO83: FALSE | FP83: FALSE | FQ83: FALSE | FR83: FALSE | FS83: FALSE | FT83: FALSE | FU83: FALSE | FV83: FALSE | FW83: FALSE | FX83: FALSE | FY83: FALSE | FZ83: FALSE | GA83: FALSE | GB83: FALSE | GC83: FALSE | GD83: FALSE | GE83: FALSE | GF83: FALSE | GG83: FALSE | GH83: FALSE | GI83: FALSE | GJ83: FALSE | GK83: FALSE | GL83: FALSE | GM83: FALSE | GN83: FALSE | GO83: FALSE | GP83: FALSE | GQ83: =AND(GQ2>=$E$83,GQ2<=$E$82) -> FALSE | GR83: FALSE | GS83: FALSE | GT83: FALSE | GU83: FALSE | GV83: FALSE | GW83: FALSE | GX83: FALSE | GY83: FALSE | GZ83: FALSE | HA83: FALSE | HB83: FALSE | HC83: FALSE | HD83: FALSE | HE83: FALSE | HF83: FALSE | HG83: FALSE | HH83: FALSE | HI83: FALSE | HJ83: FALSE | HK83: FALSE | HL83: FALSE | HM83: FALSE | HN83: FALSE | HO83: FALSE | HP83: FALSE | HQ83: FALSE | HR83: FALSE | HS83: FALSE | HT83: FALSE | HU83: FALSE | HV83: FALSE | HW83: FALSE | HX83: FALSE | HY83: FALSE | HZ83: FALSE | IA83: FALSE | IB83: FALSE | IC83: FALSE | ID83: FALSE | IE83: FALSE | IF83: FALSE | IG83: FALSE | IH83: FALSE | II83: FALSE | IJ83: FALSE | IK83: FALSE | IL83: FALSE | IM83: FALSE | IN83: FALSE | IO83: FALSE | IP83: FALSE | IQ83: FALSE | IR83: FALSE | IS83: FALSE | IT83: FALSE | IU83: FALSE | IV83: FALSE | IW83: FALSE | IX83: FALSE | IY83: FALSE | IZ83: FALSE | JA83: FALSE | JB83: FALSE | JC83: =AND(JC2>=$E$83,JC2<=$E$82) -> FALSE | JD83: FALSE | JE83: FALSE | JF83: FALSE | JG83: FALSE | JH83: FALSE | JI83: FALSE | JJ83: FALSE | JK83: FALSE | JL83: FALSE | JM83: FALSE | JN83: FALSE | JO83: FALSE | JP83: FALSE | JQ83: FALSE | JR83: FALSE | JS83: FALSE | JT83: FALSE | JU83: FALSE | JV83: FALSE | JW83: FALSE | JX83: FALSE | JY83: FALSE | JZ83: FALSE | KA83: FALSE | KB83: FALSE | KC83: FALSE | KD83: FALSE | KE83: FALSE | KF83: FALSE | KG83: FALSE | KH83: FALSE | KI83: FALSE | KJ83: FALSE | KK83: FALSE | KL83: FALSE | KM83: FALSE | KN83: FALSE | KO83: FALSE | KP83: FALSE | KQ83: FALSE | KR83: FALSE | KS83: FALSE | KT83: FALSE | KU83: FALSE | KV83: FALSE | KW83: FALSE | KX83: FALSE | KY83: FALSE | KZ83: FALSE | LA83: FALSE | LB83: FALSE | LC83: FALSE | LD83: FALSE | LE83: FALSE | LF83: FALSE | LG83: FALSE | LH83: FALSE | LI83: FALSE | LJ83: FALSE | LK83: FALSE | LL83: FALSE | LM83: FALSE | LN83: FALSE | LO83: =AND(LO2>=$E$83,LO2<=$E$82) -> FALSE | LP83: FALSE | LQ83: FALSE | LR83: FALSE | LS83: FALSE | LT83: FALSE | LU83: FALSE | LV83: FALSE | LW83: FALSE | LX83: FALSE | LY83: FALSE | LZ83: FALSE | MA83: FALSE | MB83: FALSE | MC83: FALSE | MD83: FALSE | ME83: FALSE | MF83: FALSE | MG83: FALSE | MH83: FALSE | MI83: FALSE | MJ83: FALSE | MK83: FALSE | ML83: FALSE | MM83: FALSE | MN83: FALSE | MO83: FALSE | MP83: FALSE | MQ83: FALSE | MR83: FALSE | MS83: FALSE | MT83: FALSE | MU83: FALSE | MV83: FALSE | MW83: FALSE | MX83: FALSE | MY83: FALSE | MZ83: FALSE | NA83: FALSE | NB83: FALSE | NC83: FALSE | ND83: FALSE | NE83: FALSE | NF83: FALSE | NG83: FALSE | NH83: FALSE | NI83: FALSE | NJ83: FALSE | NK83: FALSE | NL83: FALSE | NM83: FALSE | NN83: FALSE | NO83: FALSE | NP83: FALSE | NQ83: FALSE | NR83: FALSE | NS83: FALSE | NT83: FALSE | NU83: FALSE | NV83: FALSE | NW83: FALSE | NX83: FALSE | NY83: FALSE | NZ83: FALSE | OA83: =AND(OA2>=$E$83,OA2<=$E$82) -> FALSE | OB83: FALSE | OC83: FALSE | OD83: FALSE | OE83: FALSE | OF83: FALSE | OG83: FALSE | OH83: FALSE | OI83: FALSE | OJ83: FALSE | OK83: FALSE | OL83: FALSE | OM83: FALSE | ON83: FALSE | OO83: FALSE
C85: EBITDA | F85: =IF(F83,F39) -> FALSE | G85: =IF(G83,G39) -> FALSE | H85: FALSE | I85: FALSE | J85: FALSE | K85: 501 | L85: 501 | M85: 501 | N85: 501 | O85: 501 | P85: 501 | Q85: 501 | R85: 501 | S85: FALSE | T85: FALSE | U85: FALSE | V85: FALSE | W85: FALSE | X85: FALSE | Y85: FALSE | Z85: FALSE | AA85: FALSE | AB85: FALSE | AC85: FALSE | AD85: FALSE | AE85: FALSE | AF85: FALSE | AG85: FALSE | AH85: FALSE | AI85: FALSE | AJ85: FALSE | AK85: FALSE | AL85: FALSE | AM85: FALSE | AN85: FALSE | AO85: FALSE | AP85: FALSE | AQ85: FALSE | AR85: FALSE | AS85: FALSE | AT85: FALSE | AU85: FALSE | AV85: FALSE | AW85: FALSE | AX85: FALSE | AY85: FALSE | AZ85: FALSE | BA85: FALSE | BB85: FALSE | BC85: FALSE | BD85: FALSE | BE85: FALSE | BF85: FALSE | BG85: FALSE | BH85: FALSE | BI85: FALSE | BJ85: FALSE | BK85: FALSE | BL85: FALSE | BM85: FALSE | BN85: FALSE | BO85: FALSE | BP85: FALSE | BQ85: FALSE | BR85: FALSE | BS85: =IF(BS83,BS39) -> FALSE | BT85: FALSE | BU85: FALSE | BV85: FALSE | BW85: FALSE | BX85: FALSE | BY85: FALSE | BZ85: FALSE | CA85: FALSE | CB85: FALSE | CC85: FALSE | CD85: FALSE | CE85: FALSE | CF85: FALSE | CG85: FALSE | CH85: FALSE | CI85: FALSE | CJ85: FALSE | CK85: FALSE | CL85: FALSE | CM85: FALSE | CN85: FALSE | CO85: FALSE | CP85: FALSE | CQ85: FALSE | CR85: FALSE | CS85: FALSE | CT85: FALSE | CU85: FALSE | CV85: FALSE | CW85: FALSE | CX85: FALSE | CY85: FALSE | CZ85: FALSE | DA85: FALSE | DB85: FALSE | DC85: FALSE | DD85: FALSE | DE85: FALSE | DF85: FALSE | DG85: FALSE | DH85: FALSE | DI85: FALSE | DJ85: FALSE | DK85: FALSE | DL85: FALSE | DM85: FALSE | DN85: FALSE | DO85: FALSE | DP85: FALSE | DQ85: FALSE | DR85: FALSE | DS85: FALSE | DT85: FALSE | DU85: FALSE | DV85: FALSE | DW85: FALSE | DX85: FALSE | DY85: FALSE | DZ85: FALSE | EA85: FALSE | EB85: FALSE | EC85: FALSE | ED85: FALSE | EE85: =IF(EE83,EE39) -> FALSE | EF85: FALSE | EG85: FALSE | EH85: FALSE | EI85: FALSE | EJ85: FALSE | EK85: FALSE | EL85: FALSE | EM85: FALSE | EN85: FALSE | EO85: FALSE | EP85: FALSE | EQ85: FALSE | ER85: FALSE | ES85: FALSE | ET85: FALSE | EU85: FALSE | EV85: FALSE | EW85: FALSE | EX85: FALSE | EY85: FALSE | EZ85: FALSE | FA85: FALSE | FB85: FALSE | FC85: FALSE | FD85: FALSE | FE85: FALSE | FF85: FALSE | FG85: FALSE | FH85: FALSE | FI85: FALSE | FJ85: FALSE | FK85: FALSE | FL85: FALSE | FM85: FALSE | FN85: FALSE | FO85: FALSE | FP85: FALSE | FQ85: FALSE | FR85: FALSE | FS85: FALSE | FT85: FALSE | FU85: FALSE | FV85: FALSE | FW85: FALSE | FX85: FALSE | FY85: FALSE | FZ85: FALSE | GA85: FALSE | GB85: FALSE | GC85: FALSE | GD85: FALSE | GE85: FALSE | GF85: FALSE | GG85: FALSE | GH85: FALSE | GI85: FALSE | GJ85: FALSE | GK85: FALSE | GL85: FALSE | GM85: FALSE | GN85: FALSE | GO85: FALSE | GP85: FALSE | GQ85: =IF(GQ83,GQ39) -> FALSE | GR85: FALSE | GS85: FALSE | GT85: FALSE | GU85: FALSE | GV85: FALSE | GW85: FALSE | GX85: FALSE | GY85: FALSE | GZ85: FALSE | HA85: FALSE | HB85: FALSE | HC85: FALSE | HD85: FALSE | HE85: FALSE | HF85: FALSE | HG85: FALSE | HH85: FALSE | HI85: FALSE | HJ85: FALSE | HK85: FALSE | HL85: FALSE | HM85: FALSE | HN85: FALSE | HO85: FALSE | HP85: FALSE | HQ85: FALSE | HR85: FALSE | HS85: FALSE | HT85: FALSE | HU85: FALSE | HV85: FALSE | HW85: FALSE | HX85: FALSE | HY85: FALSE | HZ85: FALSE | IA85: FALSE | IB85: FALSE | IC85: FALSE | ID85: FALSE | IE85: FALSE | IF85: FALSE | IG85: FALSE | IH85: FALSE | II85: FALSE | IJ85: FALSE | IK85: FALSE | IL85: FALSE | IM85: FALSE | IN85: FALSE | IO85: FALSE | IP85: FALSE | IQ85: FALSE | IR85: FALSE | IS85: FALSE | IT85: FALSE | IU85: FALSE | IV85: FALSE | IW85: FALSE | IX85: FALSE | IY85: FALSE | IZ85: FALSE | JA85: FALSE | JB85: FALSE | JC85: =IF(JC83,JC39) -> FALSE | JD85: FALSE | JE85: FALSE | JF85: FALSE | JG85: FALSE | JH85: FALSE | JI85: FALSE | JJ85: FALSE | JK85: FALSE | JL85: FALSE | JM85: FALSE | JN85: FALSE | JO85: FALSE | JP85: FALSE | JQ85: FALSE | JR85: FALSE | JS85: FALSE | JT85: FALSE | JU85: FALSE | JV85: FALSE | JW85: FALSE | JX85: FALSE | JY85: FALSE | JZ85: FALSE | KA85: FALSE | KB85: FALSE | KC85: FALSE | KD85: FALSE | KE85: FALSE | KF85: FALSE | KG85: FALSE | KH85: FALSE | KI85: FALSE | KJ85: FALSE | KK85: FALSE | KL85: FALSE | KM85: FALSE | KN85: FALSE | KO85: FALSE | KP85: FALSE | KQ85: FALSE | KR85: FALSE | KS85: FALSE | KT85: FALSE | KU85: FALSE | KV85: FALSE | KW85: FALSE | KX85: FALSE | KY85: FALSE | KZ85: FALSE | LA85: FALSE | LB85: FALSE | LC85: FALSE | LD85: FALSE | LE85: FALSE | LF85: FALSE | LG85: FALSE | LH85: FALSE | LI85: FALSE | LJ85: FALSE | LK85: FALSE | LL85: FALSE | LM85: FALSE | LN85: FALSE | LO85: =IF(LO83,LO39) -> FALSE | LP85: FALSE | LQ85: FALSE | LR85: FALSE | LS85: FALSE | LT85: FALSE | LU85: FALSE | LV85: FALSE | LW85: FALSE | LX85: FALSE | LY85: FALSE | LZ85: FALSE | MA85: FALSE | MB85: FALSE | MC85: FALSE | MD85: FALSE | ME85: FALSE | MF85: FALSE | MG85: FALSE | MH85: FALSE | MI85: FALSE | MJ85: FALSE | MK85: FALSE | ML85: FALSE | MM85: FALSE | MN85: FALSE | MO85: FALSE | MP85: FALSE | MQ85: FALSE | MR85: FALSE | MS85: FALSE | MT85: FALSE | MU85: FALSE | MV85: FALSE | MW85: FALSE | MX85: FALSE | MY85: FALSE | MZ85: FALSE | NA85: FALSE | NB85: FALSE | NC85: FALSE | ND85: FALSE | NE85: FALSE | NF85: FALSE | NG85: FALSE | NH85: FALSE | NI85: FALSE | NJ85: FALSE | NK85: FALSE | NL85: FALSE | NM85: FALSE | NN85: FALSE | NO85: FALSE | NP85: FALSE | NQ85: FALSE | NR85: FALSE | NS85: FALSE | NT85: FALSE | NU85: FALSE | NV85: FALSE | NW85: FALSE | NX85: FALSE | NY85: FALSE | NZ85: FALSE | OA85: =IF(OA83,OA39) -> FALSE | OB85: FALSE | OC85: FALSE | OD85: FALSE | OE85: FALSE | OF85: FALSE | OG85: FALSE | OH85: FALSE | OI85: FALSE | OJ85: FALSE | OK85: FALSE | OL85: FALSE | OM85: FALSE | ON85: FALSE | OO85: FALSE
C86: Less: Cap Exp | F86: =IF(F83,F29) -> FALSE | G86: =IF(G83,G29) -> FALSE | H86: FALSE | I86: FALSE | J86: FALSE | K86: FALSE | L86: FALSE | M86: FALSE | N86: FALSE | O86: 1000 | P86: FALSE | Q86: FALSE | R86: FALSE | S86: FALSE | T86: FALSE | U86: FALSE | V86: FALSE | W86: FALSE | X86: FALSE | Y86: FALSE | Z86: FALSE | AA86: FALSE | AB86: FALSE | AC86: FALSE | AD86: FALSE | AE86: FALSE | AF86: FALSE | AG86: FALSE | AH86: FALSE | AI86: FALSE | AJ86: FALSE | AK86: FALSE | AL86: FALSE | AM86: FALSE | AN86: FALSE | AO86: FALSE | AP86: FALSE | AQ86: FALSE | AR86: FALSE | AS86: FALSE | AT86: FALSE | AU86: FALSE | AV86: FALSE | AW86: FALSE | AX86: FALSE | AY86: FALSE | AZ86: FALSE | BA86: FALSE | BB86: FALSE | BC86: FALSE | BD86: FALSE | BE86: FALSE | BF86: FALSE | BG86: FALSE | BH86: FALSE | BI86: FALSE | BJ86: FALSE | BK86: FALSE | BL86: FALSE | BM86: FALSE | BN86: FALSE | BO86: FALSE | BP86: FALSE | BQ86: FALSE | BR86: FALSE | BS86: =IF(BS83,BS29) -> FALSE | BT86: FALSE | BU86: FALSE | BV86: FALSE | BW86: FALSE | BX86: FALSE | BY86: FALSE | BZ86: FALSE | CA86: FALSE | CB86: FALSE | CC86: FALSE | CD86: FALSE | CE86: FALSE | CF86: FALSE | CG86: FALSE | CH86: FALSE | CI86: FALSE | CJ86: FALSE | CK86: FALSE | CL86: FALSE | CM86: FALSE | CN86: FALSE | CO86: FALSE | CP86: FALSE | CQ86: FALSE | CR86: FALSE | CS86: FALSE | CT86: FALSE | CU86: FALSE | CV86: FALSE | CW86: FALSE | CX86: FALSE | CY86: FALSE | CZ86: FALSE | DA86: FALSE | DB86: FALSE | DC86: FALSE | DD86: FALSE | DE86: FALSE | DF86: FALSE | DG86: FALSE | DH86: FALSE | DI86: FALSE | DJ86: FALSE | DK86: FALSE | DL86: FALSE | DM86: FALSE | DN86: FALSE | DO86: FALSE | DP86: FALSE | DQ86: FALSE | DR86: FALSE | DS86: FALSE | DT86: FALSE | DU86: FALSE | DV86: FALSE | DW86: FALSE | DX86: FALSE | DY86: FALSE | DZ86: FALSE | EA86: FALSE | EB86: FALSE | EC86: FALSE | ED86: FALSE | EE86: =IF(EE83,EE29) -> FALSE | EF86: FALSE | EG86: FALSE | EH86: FALSE | EI86: FALSE | EJ86: FALSE | EK86: FALSE | EL86: FALSE | EM86: FALSE | EN86: FALSE | EO86: FALSE | EP86: FALSE | EQ86: FALSE | ER86: FALSE | ES86: FALSE | ET86: FALSE | EU86: FALSE | EV86: FALSE | EW86: FALSE | EX86: FALSE | EY86: FALSE | EZ86: FALSE | FA86: FALSE | FB86: FALSE | FC86: FALSE | FD86: FALSE | FE86: FALSE | FF86: FALSE | FG86: FALSE | FH86: FALSE | FI86: FALSE | FJ86: FALSE | FK86: FALSE | FL86: FALSE | FM86: FALSE | FN86: FALSE | FO86: FALSE | FP86: FALSE | FQ86: FALSE | FR86: FALSE | FS86: FALSE | FT86: FALSE | FU86: FALSE | FV86: FALSE | FW86: FALSE | FX86: FALSE | FY86: FALSE | FZ86: FALSE | GA86: FALSE | GB86: FALSE | GC86: FALSE | GD86: FALSE | GE86: FALSE | GF86: FALSE | GG86: FALSE | GH86: FALSE | GI86: FALSE | GJ86: FALSE | GK86: FALSE | GL86: FALSE | GM86: FALSE | GN86: FALSE | GO86: FALSE | GP86: FALSE | GQ86: =IF(GQ83,GQ29) -> FALSE | GR86: FALSE | GS86: FALSE | GT86: FALSE | GU86: FALSE | GV86: FALSE | GW86: FALSE | GX86: FALSE | GY86: FALSE | GZ86: FALSE | HA86: FALSE | HB86: FALSE | HC86: FALSE | HD86: FALSE | HE86: FALSE | HF86: FALSE | HG86: FALSE | HH86: FALSE | HI86: FALSE | HJ86: FALSE | HK86: FALSE | HL86: FALSE | HM86: FALSE | HN86: FALSE | HO86: FALSE | HP86: FALSE | HQ86: FALSE | HR86: FALSE | HS86: FALSE | HT86: FALSE | HU86: FALSE | HV86: FALSE | HW86: FALSE | HX86: FALSE | HY86: FALSE | HZ86: FALSE | IA86: FALSE | IB86: FALSE | IC86: FALSE | ID86: FALSE | IE86: FALSE | IF86: FALSE | IG86: FALSE | IH86: FALSE | II86: FALSE | IJ86: FALSE | IK86: FALSE | IL86: FALSE | IM86: FALSE | IN86: FALSE | IO86: FALSE | IP86: FALSE | IQ86: FALSE | IR86: FALSE | IS86: FALSE | IT86: FALSE | IU86: FALSE | IV86: FALSE | IW86: FALSE | IX86: FALSE | IY86: FALSE | IZ86: FALSE | JA86: FALSE | JB86: FALSE | JC86: =IF(JC83,JC29) -> FALSE | JD86: FALSE | JE86: FALSE | JF86: FALSE | JG86: FALSE | JH86: FALSE | JI86: FALSE | JJ86: FALSE | JK86: FALSE | JL86: FALSE | JM86: FALSE | JN86: FALSE | JO86: FALSE | JP86: FALSE | JQ86: FALSE | JR86: FALSE | JS86: FALSE | JT86: FALSE | JU86: FALSE | JV86: FALSE | JW86: FALSE | JX86: FALSE | JY86: FALSE | JZ86: FALSE | KA86: FALSE | KB86: FALSE | KC86: FALSE | KD86: FALSE | KE86: FALSE | KF86: FALSE | KG86: FALSE | KH86: FALSE | KI86: FALSE | KJ86: FALSE | KK86: FALSE | KL86: FALSE | KM86: FALSE | KN86: FALSE | KO86: FALSE | KP86: FALSE | KQ86: FALSE | KR86: FALSE | KS86: FALSE | KT86: FALSE | KU86: FALSE | KV86: FALSE | KW86: FALSE | KX86: FALSE | KY86: FALSE | KZ86: FALSE | LA86: FALSE | LB86: FALSE | LC86: FALSE | LD86: FALSE | LE86: FALSE | LF86: FALSE | LG86: FALSE | LH86: FALSE | LI86: FALSE | LJ86: FALSE | LK86: FALSE | LL86: FALSE | LM86: FALSE | LN86: FALSE | LO86: =IF(LO83,LO29) -> FALSE | LP86: FALSE | LQ86: FALSE | LR86: FALSE | LS86: FALSE | LT86: FALSE | LU86: FALSE | LV86: FALSE | LW86: FALSE | LX86: FALSE | LY86: FALSE | LZ86: FALSE | MA86: FALSE | MB86: FALSE | MC86: FALSE | MD86: FALSE | ME86: FALSE | MF86: FALSE | MG86: FALSE | MH86: FALSE | MI86: FALSE | MJ86: FALSE | MK86: FALSE | ML86: FALSE | MM86: FALSE | MN86: FALSE | MO86: FALSE | MP86: FALSE | MQ86: FALSE | MR86: FALSE | MS86: FALSE | MT86: FALSE | MU86: FALSE | MV86: FALSE | MW86: FALSE | MX86: FALSE | MY86: FALSE | MZ86: FALSE | NA86: FALSE | NB86: FALSE | NC86: FALSE | ND86: FALSE | NE86: FALSE | NF86: FALSE | NG86: FALSE | NH86: FALSE | NI86: FALSE | NJ86: FALSE | NK86: FALSE | NL86: FALSE | NM86: FALSE | NN86: FALSE | NO86: FALSE | NP86: FALSE | NQ86: FALSE | NR86: FALSE | NS86: FALSE | NT86: FALSE | NU86: FALSE | NV86: FALSE | NW86: FALSE | NX86: FALSE | NY86: FALSE | NZ86: FALSE | OA86: =IF(OA83,OA29) -> FALSE | OB86: FALSE | OC86: FALSE | OD86: FALSE | OE86: FALSE | OF86: FALSE | OG86: FALSE | OH86: FALSE | OI86: FALSE | OJ86: FALSE | OK86: FALSE | OL86: FALSE | OM86: FALSE | ON86: FALSE | OO86: FALSE
C87: Free Cash Flow | F87: =IF(F83,F85-F86) -> FALSE | G87: =IF(G83,G85-G86) -> FALSE | H87: FALSE | I87: FALSE | J87: FALSE | K87: 501 | L87: 501 | M87: 501 | N87: 501 | O87: -499 | P87: 501 | Q87: 501 | R87: 501 | S87: FALSE | T87: FALSE | U87: FALSE | V87: FALSE | W87: FALSE | X87: FALSE | Y87: FALSE | Z87: FALSE | AA87: FALSE | AB87: FALSE | AC87: FALSE | AD87: FALSE | AE87: FALSE | AF87: FALSE | AG87: FALSE | AH87: FALSE | AI87: FALSE | AJ87: FALSE | AK87: FALSE | AL87: FALSE | AM87: FALSE | AN87: FALSE | AO87: FALSE | AP87: FALSE | AQ87: FALSE | AR87: FALSE | AS87: FALSE | AT87: FALSE | AU87: FALSE | AV87: FALSE | AW87: FALSE | AX87: FALSE | AY87: FALSE | AZ87: FALSE | BA87: FALSE | BB87: FALSE | BC87: FALSE | BD87: FALSE | BE87: FALSE | BF87: FALSE | BG87: FALSE | BH87: FALSE | BI87: FALSE | BJ87: FALSE | BK87: FALSE | BL87: FALSE | BM87: FALSE | BN87: FALSE | BO87: FALSE | BP87: FALSE | BQ87: FALSE | BR87: FALSE | BS87: =IF(BS83,BS85-BS86) -> FALSE | BT87: FALSE | BU87: FALSE | BV87: FALSE | BW87: FALSE | BX87: FALSE | BY87: FALSE | BZ87: FALSE | CA87: FALSE | CB87: FALSE | CC87: FALSE | CD87: FALSE | CE87: FALSE | CF87: FALSE | CG87: FALSE | CH87: FALSE | CI87: FALSE | CJ87: FALSE | CK87: FALSE | CL87: FALSE | CM87: FALSE | CN87: FALSE | CO87: FALSE | CP87: FALSE | CQ87: FALSE | CR87: FALSE | CS87: FALSE | CT87: FALSE | CU87: FALSE | CV87: FALSE | CW87: FALSE | CX87: FALSE | CY87: FALSE | CZ87: FALSE | DA87: FALSE | DB87: FALSE | DC87: FALSE | DD87: FALSE | DE87: FALSE | DF87: FALSE | DG87: FALSE | DH87: FALSE | DI87: FALSE | DJ87: FALSE | DK87: FALSE | DL87: FALSE | DM87: FALSE | DN87: FALSE | DO87: FALSE | DP87: FALSE | DQ87: FALSE | DR87: FALSE | DS87: FALSE | DT87: FALSE | DU87: FALSE | DV87: FALSE | DW87: FALSE | DX87: FALSE | DY87: FALSE | DZ87: FALSE | EA87: FALSE | EB87: FALSE | EC87: FALSE | ED87: FALSE | EE87: =IF(EE83,EE85-EE86) -> FALSE | EF87: FALSE | EG87: FALSE | EH87: FALSE | EI87: FALSE | EJ87: FALSE | EK87: FALSE | EL87: FALSE | EM87: FALSE | EN87: FALSE | EO87: FALSE | EP87: FALSE | EQ87: FALSE | ER87: FALSE | ES87: FALSE | ET87: FALSE | EU87: FALSE | EV87: FALSE | EW87: FALSE | EX87: FALSE | EY87: FALSE | EZ87: FALSE | FA87: FALSE | FB87: FALSE | FC87: FALSE | FD87: FALSE | FE87: FALSE | FF87: FALSE | FG87: FALSE | FH87: FALSE | FI87: FALSE | FJ87: FALSE | FK87: FALSE | FL87: FALSE | FM87: FALSE | FN87: FALSE | FO87: FALSE | FP87: FALSE | FQ87: FALSE | FR87: FALSE | FS87: FALSE | FT87: FALSE | FU87: FALSE | FV87: FALSE | FW87: FALSE | FX87: FALSE | FY87: FALSE | FZ87: FALSE | GA87: FALSE | GB87: FALSE | GC87: FALSE | GD87: FALSE | GE87: FALSE | GF87: FALSE | GG87: FALSE | GH87: FALSE | GI87: FALSE | GJ87: FALSE | GK87: FALSE | GL87: FALSE | GM87: FALSE | GN87: FALSE | GO87: FALSE | GP87: FALSE | GQ87: =IF(GQ83,GQ85-GQ86) -> FALSE | GR87: FALSE | GS87: FALSE | GT87: FALSE | GU87: FALSE | GV87: FALSE | GW87: FALSE | GX87: FALSE | GY87: FALSE | GZ87: FALSE | HA87: FALSE | HB87: FALSE | HC87: FALSE | HD87: FALSE | HE87: FALSE | HF87: FALSE | HG87: FALSE | HH87: FALSE | HI87: FALSE | HJ87: FALSE | HK87: FALSE | HL87: FALSE | HM87: FALSE | HN87: FALSE | HO87: FALSE | HP87: FALSE | HQ87: FALSE | HR87: FALSE | HS87: FALSE | HT87: FALSE | HU87: FALSE | HV87: FALSE | HW87: FALSE | HX87: FALSE | HY87: FALSE | HZ87: FALSE | IA87: FALSE | IB87: FALSE | IC87: FALSE | ID87: FALSE | IE87: FALSE | IF87: FALSE | IG87: FALSE | IH87: FALSE | II87: FALSE | IJ87: FALSE | IK87: FALSE | IL87: FALSE | IM87: FALSE | IN87: FALSE | IO87: FALSE | IP87: FALSE | IQ87: FALSE | IR87: FALSE | IS87: FALSE | IT87: FALSE | IU87: FALSE | IV87: FALSE | IW87: FALSE | IX87: FALSE | IY87: FALSE | IZ87: FALSE | JA87: FALSE | JB87: FALSE | JC87: =IF(JC83,JC85-JC86) -> FALSE | JD87: FALSE | JE87: FALSE | JF87: FALSE | JG87: FALSE | JH87: FALSE | JI87: FALSE | JJ87: FALSE | JK87: FALSE | JL87: FALSE | JM87: FALSE | JN87: FALSE | JO87: FALSE | JP87: FALSE | JQ87: FALSE | JR87: FALSE | JS87: FALSE | JT87: FALSE | JU87: FALSE | JV87: FALSE | JW87: FALSE | JX87: FALSE | JY87: FALSE | JZ87: FALSE | KA87: FALSE | KB87: FALSE | KC87: FALSE | KD87: FALSE | KE87: FALSE | KF87: FALSE | KG87: FALSE | KH87: FALSE | KI87: FALSE | KJ87: FALSE | KK87: FALSE | KL87: FALSE | KM87: FALSE | KN87: FALSE | KO87: FALSE | KP87: FALSE | KQ87: FALSE | KR87: FALSE | KS87: FALSE | KT87: FALSE | KU87: FALSE | KV87: FALSE | KW87: FALSE | KX87: FALSE | KY87: FALSE | KZ87: FALSE | LA87: FALSE | LB87: FALSE | LC87: FALSE | LD87: FALSE | LE87: FALSE | LF87: FALSE | LG87: FALSE | LH87: FALSE | LI87: FALSE | LJ87: FALSE | LK87: FALSE | LL87: FALSE | LM87: FALSE | LN87: FALSE | LO87: =IF(LO83,LO85-LO86) -> FALSE | LP87: FALSE | LQ87: FALSE | LR87: FALSE | LS87: FALSE | LT87: FALSE | LU87: FALSE | LV87: FALSE | LW87: FALSE | LX87: FALSE | LY87: FALSE | LZ87: FALSE | MA87: FALSE | MB87: FALSE | MC87: FALSE | MD87: FALSE | ME87: FALSE | MF87: FALSE | MG87: FALSE | MH87: FALSE | MI87: FALSE | MJ87: FALSE | MK87: FALSE | ML87: FALSE | MM87: FALSE | MN87: FALSE | MO87: FALSE | MP87: FALSE | MQ87: FALSE | MR87: FALSE | MS87: FALSE | MT87: FALSE | MU87: FALSE | MV87: FALSE | MW87: FALSE | MX87: FALSE | MY87: FALSE | MZ87: FALSE | NA87: FALSE | NB87: FALSE | NC87: FALSE | ND87: FALSE | NE87: FALSE | NF87: FALSE | NG87: FALSE | NH87: FALSE | NI87: FALSE | NJ87: FALSE | NK87: FALSE | NL87: FALSE | NM87: FALSE | NN87: FALSE | NO87: FALSE | NP87: FALSE | NQ87: FALSE | NR87: FALSE | NS87: FALSE | NT87: FALSE | NU87: FALSE | NV87: FALSE | NW87: FALSE | NX87: FALSE | NY87: FALSE | NZ87: FALSE | OA87: =IF(OA83,OA85-OA86) -> FALSE | OB87: FALSE | OC87: FALSE | OD87: FALSE | OE87: FALSE | OF87: FALSE | OG87: FALSE | OH87: FALSE | OI87: FALSE | OJ87: FALSE | OK87: FALSE | OL87: FALSE | OM87: FALSE | ON87: FALSE | OO87: FALSE
C89: SL Depreciation | F89: =F34 -> 200 | G89: =G34 -> 200 | H89: 200 | I89: 200 | J89: 200 | K89: 200 | L89: 200 | M89: 200 | N89: 200 | O89: 200 | P89: 200 | Q89: 200 | R89: 200 | S89: 200 | T89: 200 | U89: 200 | V89: 200 | W89: 200 | X89: 200 | Y89: 200 | Z89: 200 | AA89: 200 | AB89: 200 | AC89: 200 | AD89: 200 | AE89: 200 | AF89: 200 | AG89: 200 | AH89: 200 | AI89: 200 | AJ89: 200 | AK89: 200 | AL89: 200 | AM89: 200 | AN89: 200 | AO89: 200 | AP89: 200 | AQ89: 200 | AR89: 200 | AS89: 200 | AT89: 200 | AU89: 200 | AV89: 200 | AW89: 200 | AX89: 200 | AY89: 200 | AZ89: 200 | BA89: 200 | BB89: 200 | BC89: 200 | BD89: 200 | BE89: 200 | BF89: 200 | BG89: 200 | BH89: 200 | BI89: 200 | BJ89: 200 | BK89: 200 | BL89: 200 | BM89: 200 | BN89: 200 | BO89: 200 | BP89: 200 | BQ89: 200 | BR89: 200 | BS89: =BS34 -> 200 | BT89: 200 | BU89: 200 | BV89: 200 | BW89: 200 | BX89: 200 | BY89: 200 | BZ89: 200 | CA89: 200 | CB89: 200 | CC89: 200 | CD89: 200 | CE89: 200 | CF89: 200 | CG89: 200 | CH89: 200 | CI89: 200 | CJ89: 200 | CK89: 200 | CL89: 200 | CM89: 200 | CN89: 200 | CO89: 200 | CP89: 200 | CQ89: 200 | CR89: 200 | CS89: 200 | CT89: 200 | CU89: 200 | CV89: 200 | CW89: 200 | CX89: 200 | CY89: 200 | CZ89: 200 | DA89: 200 | DB89: 200 | DC89: 200 | DD89: 200 | DE89: 200 | DF89: 200 | DG89: 200 | DH89: 200 | DI89: 200 | DJ89: 200 | DK89: 200 | DL89: 200 | DM89: 200 | DN89: 200 | DO89: 200 | DP89: 200 | DQ89: 200 | DR89: 200 | DS89: 200 | DT89: 200 | DU89: 200 | DV89: 200 | DW89: 200 | DX89: 200 | DY89: 200 | DZ89: 200 | EA89: 200 | EB89: 200 | EC89: 200 | ED89: 200 | EE89: =EE34 -> 200 | EF89: 200 | EG89: 200 | EH89: 200 | EI89: 200 | EJ89: 200 | EK89: 200 | EL89: 200 | EM89: 200 | EN89: 200 | EO89: 200 | EP89: 200 | EQ89: 200 | ER89: 200 | ES89: 200 | ET89: 200 | EU89: 200 | EV89: 200 | EW89: 200 | EX89: 200 | EY89: 200 | EZ89: 200 | FA89: 200 | FB89: 200 | FC89: 200 | FD89: 200 | FE89: 200 | FF89: 200 | FG89: 200 | FH89: 200 | FI89: 200 | FJ89: 200 | FK89: 200 | FL89: 200 | FM89: 200 | FN89: 200 | FO89: 200 | FP89: 200 | FQ89: 200 | FR89: 200 | FS89: 200 | FT89: 200 | FU89: 200 | FV89: 200 | FW89: 200 | FX89: 200 | FY89: 200 | FZ89: 200 | GA89: 200 | GB89: 200 | GC89: 200 | GD89: 200 | GE89: 200 | GF89: 200 | GG89: 200 | GH89: 200 | GI89: 200 | GJ89: 200 | GK89: 200 | GL89: 200 | GM89: 200 | GN89: 200 | GO89: 200 | GP89: 200 | GQ89: =GQ34 -> 200 | GR89: 200 | GS89: 200 | GT89: 200 | GU89: 200 | GV89: 200 | GW89: 200 | GX89: 200 | GY89: 200 | GZ89: 200 | HA89: 200 | HB89: 200 | HC89: 200 | HD89: 200 | HE89: 200 | HF89: 200 | HG89: 200 | HH89: 200 | HI89: 200 | HJ89: 200 | HK89: 200 | HL89: 200 | HM89: 200 | HN89: 200 | HO89: 200 | HP89: 200 | HQ89: 200 | HR89: 200 | HS89: 200 | HT89: 200 | HU89: 200 | HV89: 200 | HW89: 200 | HX89: 200 | HY89: 200 | HZ89: 200 | IA89: 200 | IB89: 200 | IC89: 200 | ID89: 200 | IE89: 200 | IF89: 200 | IG89: 200 | IH89: 200 | II89: 200 | IJ89: 200 | IK89: 200 | IL89: 200 | IM89: 200 | IN89: 200 | IO89: 200 | IP89: 200 | IQ89: 200 | IR89: 200 | IS89: 200 | IT89: 200 | IU89: 200 | IV89: 200 | IW89: 200 | IX89: 200 | IY89: 200 | IZ89: 200 | JA89: 200 | JB89: 200 | JC89: =JC34 -> 200 | JD89: 200 | JE89: 200 | JF89: 200 | JG89: 200 | JH89: 200 | JI89: 200 | JJ89: 200 | JK89: 200 | JL89: 200 | JM89: 200 | JN89: 200 | JO89: 200 | JP89: 200 | JQ89: 200 | JR89: 200 | JS89: 200 | JT89: 200 | JU89: 200 | JV89: 200 | JW89: 200 | JX89: 200 | JY89: 200 | JZ89: 200 | KA89: 200 | KB89: 200 | KC89: 200 | KD89: 200 | KE89: 200 | KF89: 200 | KG89: 200 | KH89: 200 | KI89: 200 | KJ89: 200 | KK89: 200 | KL89: 200 | KM89: 200 | KN89: 200 | KO89: 200 | KP89: 200 | KQ89: 200 | KR89: 200 | KS89: 200 | KT89: 200 | KU89: 200 | KV89: 200 | KW89: 200 | KX89: 200 | KY89: 200 | KZ89: 200 | LA89: 200 | LB89: 200 | LC89: 200 | LD89: 200 | LE89: 200 | LF89: 200 | LG89: 200 | LH89: 200 | LI89: 200 | LJ89: 200 | LK89: 200 | LL89: 200 | LM89: 200 | LN89: 200 | LO89: =LO34 -> 200 | LP89: 200 | LQ89: 200 | LR89: 200 | LS89: 200 | LT89: 200 | LU89: 200 | LV89: 200 | LW89: 200 | LX89: 200 | LY89: 200 | LZ89: 200 | MA89: 200 | MB89: 200 | MC89: 200 | MD89: 200 | ME89: 200 | MF89: 200 | MG89: 200 | MH89: 200 | MI89: 200 | MJ89: 200 | MK89: 200 | ML89: 200 | MM89: 200 | MN89: 200 | MO89: 200 | MP89: 200 | MQ89: 200 | MR89: 200 | MS89: 200 | MT89: 200 | MU89: 200 | MV89: 200 | MW89: 200 | MX89: 200 | MY89: 200 | MZ89: 200 | NA89: 200 | NB89: 200 | NC89: 200 | ND89: 200 | NE89: 200 | NF89: 200 | NG89: 200 | NH89: 200 | NI89: 200 | NJ89: 200 | NK89: 200 | NL89: 200 | NM89: 200 | NN89: 200 | NO89: 200 | NP89: 200 | NQ89: 200 | NR89: 200 | NS89: 200 | NT89: 200 | NU89: 200 | NV89: 200 | NW89: 200 | NX89: 200 | NY89: 200 | NZ89: 200 | OA89: =OA34 -> 200 | OB89: 200 | OC89: 200 | OD89: 200 | OE89: 200 | OF89: 200 | OG89: 200 | OH89: 200 | OI89: 200 | OJ89: 200 | OK89: 200 | OL89: 200 | OM89: 200 | ON89: 200 | OO89: 200
C90: Terminal Cap Exp | F90: =IF(F82,F89) -> FALSE | G90: =IF(G82,G89) -> FALSE | H90: FALSE | I90: FALSE | J90: FALSE | K90: FALSE | L90: FALSE | M90: FALSE | N90: FALSE | O90: FALSE | P90: FALSE | Q90: FALSE | R90: 200 | S90: FALSE | T90: FALSE | U90: FALSE | V90: FALSE | W90: FALSE | X90: FALSE | Y90: FALSE | Z90: FALSE | AA90: FALSE | AB90: FALSE | AC90: FALSE | AD90: FALSE | AE90: FALSE | AF90: FALSE | AG90: FALSE | AH90: FALSE | AI90: FALSE | AJ90: FALSE | AK90: FALSE | AL90: FALSE | AM90: FALSE | AN90: FALSE | AO90: FALSE | AP90: FALSE | AQ90: FALSE | AR90: FALSE | AS90: FALSE | AT90: FALSE | AU90: FALSE | AV90: FALSE | AW90: FALSE | AX90: FALSE | AY90: FALSE | AZ90: FALSE | BA90: FALSE | BB90: FALSE | BC90: FALSE | BD90: FALSE | BE90: FALSE | BF90: FALSE | BG90: FALSE | BH90: FALSE | BI90: FALSE | BJ90: FALSE | BK90: FALSE | BL90: FALSE | BM90: FALSE | BN90: FALSE | BO90: FALSE | BP90: FALSE | BQ90: FALSE | BR90: FALSE | BS90: =IF(BS82,BS89) -> FALSE | BT90: FALSE | BU90: FALSE | BV90: FALSE | BW90: FALSE | BX90: FALSE | BY90: FALSE | BZ90: FALSE | CA90: FALSE | CB90: FALSE | CC90: FALSE | CD90: FALSE | CE90: FALSE | CF90: FALSE | CG90: FALSE | CH90: FALSE | CI90: FALSE | CJ90: FALSE | CK90: FALSE | CL90: FALSE | CM90: FALSE | CN90: FALSE | CO90: FALSE | CP90: FALSE | CQ90: FALSE | CR90: FALSE | CS90: FALSE | CT90: FALSE | CU90: FALSE | CV90: FALSE | CW90: FALSE | CX90: FALSE | CY90: FALSE | CZ90: FALSE | DA90: FALSE | DB90: FALSE | DC90: FALSE | DD90: FALSE | DE90: FALSE | DF90: FALSE | DG90: FALSE | DH90: FALSE | DI90: FALSE | DJ90: FALSE | DK90: FALSE | DL90: FALSE | DM90: FALSE | DN90: FALSE | DO90: FALSE | DP90: FALSE | DQ90: FALSE | DR90: FALSE | DS90: FALSE | DT90: FALSE | DU90: FALSE | DV90: FALSE | DW90: FALSE | DX90: FALSE | DY90: FALSE | DZ90: FALSE | EA90: FALSE | EB90: FALSE | EC90: FALSE | ED90: FALSE | EE90: =IF(EE82,EE89) -> FALSE | EF90: FALSE | EG90: FALSE | EH90: FALSE | EI90: FALSE | EJ90: FALSE | EK90: FALSE | EL90: FALSE | EM90: FALSE | EN90: FALSE | EO90: FALSE | EP90: FALSE | EQ90: FALSE | ER90: FALSE | ES90: FALSE | ET90: FALSE | EU90: FALSE | EV90: FALSE | EW90: FALSE | EX90: FALSE | EY90: FALSE | EZ90: FALSE | FA90: FALSE | FB90: FALSE | FC90: FALSE | FD90: FALSE | FE90: FALSE | FF90: FALSE | FG90: FALSE | FH90: FALSE | FI90: FALSE | FJ90: FALSE | FK90: FALSE | FL90: FALSE | FM90: FALSE | FN90: FALSE | FO90: FALSE | FP90: FALSE | FQ90: FALSE | FR90: FALSE | FS90: FALSE | FT90: FALSE | FU90: FALSE | FV90: FALSE | FW90: FALSE | FX90: FALSE | FY90: FALSE | FZ90: FALSE | GA90: FALSE | GB90: FALSE | GC90: FALSE | GD90: FALSE | GE90: FALSE | GF90: FALSE | GG90: FALSE | GH90: FALSE | GI90: FALSE | GJ90: FALSE | GK90: FALSE | GL90: FALSE | GM90: FALSE | GN90: FALSE | GO90: FALSE | GP90: FALSE | GQ90: =IF(GQ82,GQ89) -> FALSE | GR90: FALSE | GS90: FALSE | GT90: FALSE | GU90: FALSE | GV90: FALSE | GW90: FALSE | GX90: FALSE | GY90: FALSE | GZ90: FALSE | HA90: FALSE | HB90: FALSE | HC90: FALSE | HD90: FALSE | HE90: FALSE | HF90: FALSE | HG90: FALSE | HH90: FALSE | HI90: FALSE | HJ90: FALSE | HK90: FALSE | HL90: FALSE | HM90: FALSE | HN90: FALSE | HO90: FALSE | HP90: FALSE | HQ90: FALSE | HR90: FALSE | HS90: FALSE | HT90: FALSE | HU90: FALSE | HV90: FALSE | HW90: FALSE | HX90: FALSE | HY90: FALSE | HZ90: FALSE | IA90: FALSE | IB90: FALSE | IC90: FALSE | ID90: FALSE | IE90: FALSE | IF90: FALSE | IG90: FALSE | IH90: FALSE | II90: FALSE | IJ90: FALSE | IK90: FALSE | IL90: FALSE | IM90: FALSE | IN90: FALSE | IO90: FALSE | IP90: FALSE | IQ90: FALSE | IR90: FALSE | IS90: FALSE | IT90: FALSE | IU90: FALSE | IV90: FALSE | IW90: FALSE | IX90: FALSE | IY90: FALSE | IZ90: FALSE | JA90: FALSE | JB90: FALSE | JC90: =IF(JC82,JC89) -> FALSE | JD90: FALSE | JE90: FALSE | JF90: FALSE | JG90: FALSE | JH90: FALSE | JI90: FALSE | JJ90: FALSE | JK90: FALSE | JL90: FALSE | JM90: FALSE | JN90: FALSE | JO90: FALSE | JP90: FALSE | JQ90: FALSE | JR90: FALSE | JS90: FALSE | JT90: FALSE | JU90: FALSE | JV90: FALSE | JW90: FALSE | JX90: FALSE | JY90: FALSE | JZ90: FALSE | KA90: FALSE | KB90: FALSE | KC90: FALSE | KD90: FALSE | KE90: FALSE | KF90: FALSE | KG90: FALSE | KH90: FALSE | KI90: FALSE | KJ90: FALSE | KK90: FALSE | KL90: FALSE | KM90: FALSE | KN90: FALSE | KO90: FALSE | KP90: FALSE | KQ90: FALSE | KR90: FALSE | KS90: FALSE | KT90: FALSE | KU90: FALSE | KV90: FALSE | KW90: FALSE | KX90: FALSE | KY90: FALSE | KZ90: FALSE | LA90: FALSE | LB90: FALSE | LC90: FALSE | LD90: FALSE | LE90: FALSE | LF90: FALSE | LG90: FALSE | LH90: FALSE | LI90: FALSE | LJ90: FALSE | LK90: FALSE | LL90: FALSE | LM90: FALSE | LN90: FALSE | LO90: =IF(LO82,LO89) -> FALSE | LP90: FALSE | LQ90: FALSE | LR90: FALSE | LS90: FALSE | LT90: FALSE | LU90: FALSE | LV90: FALSE | LW90: FALSE | LX90: FALSE | LY90: FALSE | LZ90: FALSE | MA90: FALSE | MB90: FALSE | MC90: FALSE | MD90: FALSE | ME90: FALSE | MF90: FALSE | MG90: FALSE | MH90: FALSE | MI90: FALSE | MJ90: FALSE | MK90: FALSE | ML90: FALSE | MM90: FALSE | MN90: FALSE | MO90: FALSE | MP90: FALSE | MQ90: FALSE | MR90: FALSE | MS90: FALSE | MT90: FALSE | MU90: FALSE | MV90: FALSE | MW90: FALSE | MX90: FALSE | MY90: FALSE | MZ90: FALSE | NA90: FALSE | NB90: FALSE | NC90: FALSE | ND90: FALSE | NE90: FALSE | NF90: FALSE | NG90: FALSE | NH90: FALSE | NI90: FALSE | NJ90: FALSE | NK90: FALSE | NL90: FALSE | NM90: FALSE | NN90: FALSE | NO90: FALSE | NP90: FALSE | NQ90: FALSE | NR90: FALSE | NS90: FALSE | NT90: FALSE | NU90: FALSE | NV90: FALSE | NW90: FALSE | NX90: FALSE | NY90: FALSE | NZ90: FALSE | OA90: =IF(OA82,OA89) -> FALSE | OB90: FALSE | OC90: FALSE | OD90: FALSE | OE90: FALSE | OF90: FALSE | OG90: FALSE | OH90: FALSE | OI90: FALSE | OJ90: FALSE | OK90: FALSE | OL90: FALSE | OM90: FALSE | ON90: FALSE | OO90: FALSE
C91: Terminal Cash Flow | F91: =IF(F82,F85-F89) -> FALSE | G91: =IF(G82,G85-G89) -> FALSE | H91: FALSE | I91: FALSE | J91: FALSE | K91: FALSE | L91: FALSE | M91: FALSE | N91: FALSE | O91: FALSE | P91: FALSE | Q91: FALSE | R91: 301 | S91: FALSE | T91: FALSE | U91: FALSE | V91: FALSE | W91: FALSE | X91: FALSE | Y91: FALSE | Z91: FALSE | AA91: FALSE | AB91: FALSE | AC91: FALSE | AD91: FALSE | AE91: FALSE | AF91: FALSE | AG91: FALSE | AH91: FALSE | AI91: FALSE | AJ91: FALSE | AK91: FALSE | AL91: FALSE | AM91: FALSE | AN91: FALSE | AO91: FALSE | AP91: FALSE | AQ91: FALSE | AR91: FALSE | AS91: FALSE | AT91: FALSE | AU91: FALSE | AV91: FALSE | AW91: FALSE | AX91: FALSE | AY91: FALSE | AZ91: FALSE | BA91: FALSE | BB91: FALSE | BC91: FALSE | BD91: FALSE | BE91: FALSE | BF91: FALSE | BG91: FALSE | BH91: FALSE | BI91: FALSE | BJ91: FALSE | BK91: FALSE | BL91: FALSE | BM91: FALSE | BN91: FALSE | BO91: FALSE | BP91: FALSE | BQ91: FALSE | BR91: FALSE | BS91: =IF(BS82,BS85-BS89) -> FALSE | BT91: FALSE | BU91: FALSE | BV91: FALSE | BW91: FALSE | BX91: FALSE | BY91: FALSE | BZ91: FALSE | CA91: FALSE | CB91: FALSE | CC91: FALSE | CD91: FALSE | CE91: FALSE | CF91: FALSE | CG91: FALSE | CH91: FALSE | CI91: FALSE | CJ91: FALSE | CK91: FALSE | CL91: FALSE | CM91: FALSE | CN91: FALSE | CO91: FALSE | CP91: FALSE | CQ91: FALSE | CR91: FALSE | CS91: FALSE | CT91: FALSE | CU91: FALSE | CV91: FALSE | CW91: FALSE | CX91: FALSE | CY91: FALSE | CZ91: FALSE | DA91: FALSE | DB91: FALSE | DC91: FALSE | DD91: FALSE | DE91: FALSE | DF91: FALSE | DG91: FALSE | DH91: FALSE | DI91: FALSE | DJ91: FALSE | DK91: FALSE | DL91: FALSE | DM91: FALSE | DN91: FALSE | DO91: FALSE | DP91: FALSE | DQ91: FALSE | DR91: FALSE | DS91: FALSE | DT91: FALSE | DU91: FALSE | DV91: FALSE | DW91: FALSE | DX91: FALSE | DY91: FALSE | DZ91: FALSE | EA91: FALSE | EB91: FALSE | EC91: FALSE | ED91: FALSE | EE91: =IF(EE82,EE85-EE89) -> FALSE | EF91: FALSE | EG91: FALSE | EH91: FALSE | EI91: FALSE | EJ91: FALSE | EK91: FALSE | EL91: FALSE | EM91: FALSE | EN91: FALSE | EO91: FALSE | EP91: FALSE | EQ91: FALSE | ER91: FALSE | ES91: FALSE | ET91: FALSE | EU91: FALSE | EV91: FALSE | EW91: FALSE | EX91: FALSE | EY91: FALSE | EZ91: FALSE | FA91: FALSE | FB91: FALSE | FC91: FALSE | FD91: FALSE | FE91: FALSE | FF91: FALSE | FG91: FALSE | FH91: FALSE | FI91: FALSE | FJ91: FALSE | FK91: FALSE | FL91: FALSE | FM91: FALSE | FN91: FALSE | FO91: FALSE | FP91: FALSE | FQ91: FALSE | FR91: FALSE | FS91: FALSE | FT91: FALSE | FU91: FALSE | FV91: FALSE | FW91: FALSE | FX91: FALSE | FY91: FALSE | FZ91: FALSE | GA91: FALSE | GB91: FALSE | GC91: FALSE | GD91: FALSE | GE91: FALSE | GF91: FALSE | GG91: FALSE | GH91: FALSE | GI91: FALSE | GJ91: FALSE | GK91: FALSE | GL91: FALSE | GM91: FALSE | GN91: FALSE | GO91: FALSE | GP91: FALSE | GQ91: =IF(GQ82,GQ85-GQ89) -> FALSE | GR91: FALSE | GS91: FALSE | GT91: FALSE | GU91: FALSE | GV91: FALSE | GW91: FALSE | GX91: FALSE | GY91: FALSE | GZ91: FALSE | HA91: FALSE | HB91: FALSE | HC91: FALSE | HD91: FALSE | HE91: FALSE | HF91: FALSE | HG91: FALSE | HH91: FALSE | HI91: FALSE | HJ91: FALSE | HK91: FALSE | HL91: FALSE | HM91: FALSE | HN91: FALSE | HO91: FALSE | HP91: FALSE | HQ91: FALSE | HR91: FALSE | HS91: FALSE | HT91: FALSE | HU91: FALSE | HV91: FALSE | HW91: FALSE | HX91: FALSE | HY91: FALSE | HZ91: FALSE | IA91: FALSE | IB91: FALSE | IC91: FALSE | ID91: FALSE | IE91: FALSE | IF91: FALSE | IG91: FALSE | IH91: FALSE | II91: FALSE | IJ91: FALSE | IK91: FALSE | IL91: FALSE | IM91: FALSE | IN91: FALSE | IO91: FALSE | IP91: FALSE | IQ91: FALSE | IR91: FALSE | IS91: FALSE | IT91: FALSE | IU91: FALSE | IV91: FALSE | IW91: FALSE | IX91: FALSE | IY91: FALSE | IZ91: FALSE | JA91: FALSE | JB91: FALSE | JC91: =IF(JC82,JC85-JC89) -> FALSE | JD91: FALSE | JE91: FALSE | JF91: FALSE | JG91: FALSE | JH91: FALSE | JI91: FALSE | JJ91: FALSE | JK91: FALSE | JL91: FALSE | JM91: FALSE | JN91: FALSE | JO91: FALSE | JP91: FALSE | JQ91: FALSE | JR91: FALSE | JS91: FALSE | JT91: FALSE | JU91: FALSE | JV91: FALSE | JW91: FALSE | JX91: FALSE | JY91: FALSE | JZ91: FALSE | KA91: FALSE | KB91: FALSE | KC91: FALSE | KD91: FALSE | KE91: FALSE | KF91: FALSE | KG91: FALSE | KH91: FALSE | KI91: FALSE | KJ91: FALSE | KK91: FALSE | KL91: FALSE | KM91: FALSE | KN91: FALSE | KO91: FALSE | KP91: FALSE | KQ91: FALSE | KR91: FALSE | KS91: FALSE | KT91: FALSE | KU91: FALSE | KV91: FALSE | KW91: FALSE | KX91: FALSE | KY91: FALSE | KZ91: FALSE | LA91: FALSE | LB91: FALSE | LC91: FALSE | LD91: FALSE | LE91: FALSE | LF91: FALSE | LG91: FALSE | LH91: FALSE | LI91: FALSE | LJ91: FALSE | LK91: FALSE | LL91: FALSE | LM91: FALSE | LN91: FALSE | LO91: =IF(LO82,LO85-LO89) -> FALSE | LP91: FALSE | LQ91: FALSE | LR91: FALSE | LS91: FALSE | LT91: FALSE | LU91: FALSE | LV91: FALSE | LW91: FALSE | LX91: FALSE | LY91: FALSE | LZ91: FALSE | MA91: FALSE | MB91: FALSE | MC91: FALSE | MD91: FALSE | ME91: FALSE | MF91: FALSE | MG91: FALSE | MH91: FALSE | MI91: FALSE | MJ91: FALSE | MK91: FALSE | ML91: FALSE | MM91: FALSE | MN91: FALSE | MO91: FALSE | MP91: FALSE | MQ91: FALSE | MR91: FALSE | MS91: FALSE | MT91: FALSE | MU91: FALSE | MV91: FALSE | MW91: FALSE | MX91: FALSE | MY91: FALSE | MZ91: FALSE | NA91: FALSE | NB91: FALSE | NC91: FALSE | ND91: FALSE | NE91: FALSE | NF91: FALSE | NG91: FALSE | NH91: FALSE | NI91: FALSE | NJ91: FALSE | NK91: FALSE | NL91: FALSE | NM91: FALSE | NN91: FALSE | NO91: FALSE | NP91: FALSE | NQ91: FALSE | NR91: FALSE | NS91: FALSE | NT91: FALSE | NU91: FALSE | NV91: FALSE | NW91: FALSE | NX91: FALSE | NY91: FALSE | NZ91: FALSE | OA91: =IF(OA82,OA85-OA89) -> FALSE | OB91: FALSE | OC91: FALSE | OD91: FALSE | OE91: FALSE | OF91: FALSE | OG91: FALSE | OH91: FALSE | OI91: FALSE | OJ91: FALSE | OK91: FALSE | OL91: FALSE | OM91: FALSE | ON91: FALSE | OO91: FALSE
C92: Value of Terminal Cash Flow | E92: =1/E79 -> 10 | F92: =$E$92*F91 -> 0 | G92: =$E$92*G91 -> 0 | H92: 0 | I92: 0 | J92: 0 | K92: 0 | L92: 0 | M92: 0 | N92: 0 | O92: 0 | P92: 0 | Q92: 0 | R92: 3010 | S92: 0 | T92: 0 | U92: 0 | V92: 0 | W92: 0 | X92: 0 | Y92: 0 | Z92: 0 | AA92: 0 | AB92: 0 | AC92: 0 | AD92: 0 | AE92: 0 | AF92: 0 | AG92: 0 | AH92: 0 | AI92: 0 | AJ92: 0 | AK92: 0 | AL92: 0 | AM92: 0 | AN92: 0 | AO92: 0 | AP92: 0 | AQ92: 0 | AR92: 0 | AS92: 0 | AT92: 0 | AU92: 0 | AV92: 0 | AW92: 0 | AX92: 0 | AY92: 0 | AZ92: 0 | BA92: 0 | BB92: 0 | BC92: 0 | BD92: 0 | BE92: 0 | BF92: 0 | BG92: 0 | BH92: 0 | BI92: 0 | BJ92: 0 | BK92: 0 | BL92: 0 | BM92: 0 | BN92: 0 | BO92: 0 | BP92: 0 | BQ92: 0 | BR92: 0 | BS92: =$E$92*BS91 -> 0 | BT92: 0 | BU92: 0 | BV92: 0 | BW92: 0 | BX92: 0 | BY92: 0 | BZ92: 0 | CA92: 0 | CB92: 0 | CC92: 0 | CD92: 0 | CE92: 0 | CF92: 0 | CG92: 0 | CH92: 0 | CI92: 0 | CJ92: 0 | CK92: 0 | CL92: 0 | CM92: 0 | CN92: 0 | CO92: 0 | CP92: 0 | CQ92: 0 | CR92: 0 | CS92: 0 | CT92: 0 | CU92: 0 | CV92: 0 | CW92: 0 | CX92: 0 | CY92: 0 | CZ92: 0 | DA92: 0 | DB92: 0 | DC92: 0 | DD92: 0 | DE92: 0 | DF92: 0 | DG92: 0 | DH92: 0 | DI92: 0 | DJ92: 0 | DK92: 0 | DL92: 0 | DM92: 0 | DN92: 0 | DO92: 0 | DP92: 0 | DQ92: 0 | DR92: 0 | DS92: 0 | DT92: 0 | DU92: 0 | DV92: 0 | DW92: 0 | DX92: 0 | DY92: 0 | DZ92: 0 | EA92: 0 | EB92: 0 | EC92: 0 | ED92: 0 | EE92: =$E$92*EE91 -> 0 | EF92: 0 | EG92: 0 | EH92: 0 | EI92: 0 | EJ92: 0 | EK92: 0 | EL92: 0 | EM92: 0 | EN92: 0 | EO92: 0 | EP92: 0 | EQ92: 0 | ER92: 0 | ES92: 0 | ET92: 0 | EU92: 0 | EV92: 0 | EW92: 0 | EX92: 0 | EY92: 0 | EZ92: 0 | FA92: 0 | FB92: 0 | FC92: 0 | FD92: 0 | FE92: 0 | FF92: 0 | FG92: 0 | FH92: 0 | FI92: 0 | FJ92: 0 | FK92: 0 | FL92: 0 | FM92: 0 | FN92: 0 | FO92: 0 | FP92: 0 | FQ92: 0 | FR92: 0 | FS92: 0 | FT92: 0 | FU92: 0 | FV92: 0 | FW92: 0 | FX92: 0 | FY92: 0 | FZ92: 0 | GA92: 0 | GB92: 0 | GC92: 0 | GD92: 0 | GE92: 0 | GF92: 0 | GG92: 0 | GH92: 0 | GI92: 0 | GJ92: 0 | GK92: 0 | GL92: 0 | GM92: 0 | GN92: 0 | GO92: 0 | GP92: 0 | GQ92: =$E$92*GQ91 -> 0 | GR92: 0 | GS92: 0 | GT92: 0 | GU92: 0 | GV92: 0 | GW92: 0 | GX92: 0 | GY92: 0 | GZ92: 0 | HA92: 0 | HB92: 0 | HC92: 0 | HD92: 0 | HE92: 0 | HF92: 0 | HG92: 0 | HH92: 0 | HI92: 0 | HJ92: 0 | HK92: 0 | HL92: 0 | HM92: 0 | HN92: 0 | HO92: 0 | HP92: 0 | HQ92: 0 | HR92: 0 | HS92: 0 | HT92: 0 | HU92: 0 | HV92: 0 | HW92: 0 | HX92: 0 | HY92: 0 | HZ92: 0 | IA92: 0 | IB92: 0 | IC92: 0 | ID92: 0 | IE92: 0 | IF92: 0 | IG92: 0 | IH92: 0 | II92: 0 | IJ92: 0 | IK92: 0 | IL92: 0 | IM92: 0 | IN92: 0 | IO92: 0 | IP92: 0 | IQ92: 0 | IR92: 0 | IS92: 0 | IT92: 0 | IU92: 0 | IV92: 0 | IW92: 0 | IX92: 0 | IY92: 0 | IZ92: 0 | JA92: 0 | JB92: 0 | JC92: =$E$92*JC91 -> 0 | JD92: 0 | JE92: 0 | JF92: 0 | JG92: 0 | JH92: 0 | JI92: 0 | JJ92: 0 | JK92: 0 | JL92: 0 | JM92: 0 | JN92: 0 | JO92: 0 | JP92: 0 | JQ92: 0 | JR92: 0 | JS92: 0 | JT92: 0 | JU92: 0 | JV92: 0 | JW92: 0 | JX92: 0 | JY92: 0 | JZ92: 0 | KA92: 0 | KB92: 0 | KC92: 0 | KD92: 0 | KE92: 0 | KF92: 0 | KG92: 0 | KH92: 0 | KI92: 0 | KJ92: 0 | KK92: 0 | KL92: 0 | KM92: 0 | KN92: 0 | KO92: 0 | KP92: 0 | KQ92: 0 | KR92: 0 | KS92: 0 | KT92: 0 | KU92: 0 | KV92: 0 | KW92: 0 | KX92: 0 | KY92: 0 | KZ92: 0 | LA92: 0 | LB92: 0 | LC92: 0 | LD92: 0 | LE92: 0 | LF92: 0 | LG92: 0 | LH92: 0 | LI92: 0 | LJ92: 0 | LK92: 0 | LL92: 0 | LM92: 0 | LN92: 0 | LO92: =$E$92*LO91 -> 0 | LP92: 0 | LQ92: 0 | LR92: 0 | LS92: 0 | LT92: 0 | LU92: 0 | LV92: 0 | LW92: 0 | LX92: 0 | LY92: 0 | LZ92: 0 | MA92: 0 | MB92: 0 | MC92: 0 | MD92: 0 | ME92: 0 | MF92: 0 | MG92: 0 | MH92: 0 | MI92: 0 | MJ92: 0 | MK92: 0 | ML92: 0 | MM92: 0 | MN92: 0 | MO92: 0 | MP92: 0 | MQ92: 0 | MR92: 0 | MS92: 0 | MT92: 0 | MU92: 0 | MV92: 0 | MW92: 0 | MX92: 0 | MY92: 0 | MZ92: 0 | NA92: 0 | NB92: 0 | NC92: 0 | ND92: 0 | NE92: 0 | NF92: 0 | NG92: 0 | NH92: 0 | NI92: 0 | NJ92: 0 | NK92: 0 | NL92: 0 | NM92: 0 | NN92: 0 | NO92: 0 | NP92: 0 | NQ92: 0 | NR92: 0 | NS92: 0 | NT92: 0 | NU92: 0 | NV92: 0 | NW92: 0 | NX92: 0 | NY92: 0 | NZ92: 0 | OA92: =$E$92*OA91 -> 0 | OB92: 0 | OC92: 0 | OD92: 0 | OE92: 0 | OF92: 0 | OG92: 0 | OH92: 0 | OI92: 0 | OJ92: 0 | OK92: 0 | OL92: 0 | OM92: 0 | ON92: 0 | OO92: 0
C94: Total Cash Flow | F94: =IF(F83,F87+F92) -> FALSE | G94: =IF(G83,G87+G92) -> FALSE | H94: FALSE | I94: FALSE | J94: FALSE | K94: 501 | L94: 501 | M94: 501 | N94: 501 | O94: -499 | P94: 501 | Q94: 501 | R94: 3511 | S94: FALSE | T94: FALSE | U94: FALSE | V94: FALSE | W94: FALSE | X94: FALSE | Y94: FALSE | Z94: FALSE | AA94: FALSE | AB94: FALSE | AC94: FALSE | AD94: FALSE | AE94: FALSE | AF94: FALSE | AG94: FALSE | AH94: FALSE | AI94: FALSE | AJ94: FALSE | AK94: FALSE | AL94: FALSE | AM94: FALSE | AN94: FALSE | AO94: FALSE | AP94: FALSE | AQ94: FALSE | AR94: FALSE | AS94: FALSE | AT94: FALSE | AU94: FALSE | AV94: FALSE | AW94: FALSE | AX94: FALSE | AY94: FALSE | AZ94: FALSE | BA94: FALSE | BB94: FALSE | BC94: FALSE | BD94: FALSE | BE94: FALSE | BF94: FALSE | BG94: FALSE | BH94: FALSE | BI94: FALSE | BJ94: FALSE | BK94: FALSE | BL94: FALSE | BM94: FALSE | BN94: FALSE | BO94: FALSE | BP94: FALSE | BQ94: FALSE | BR94: FALSE | BS94: =IF(BS83,BS87+BS92) -> FALSE | BT94: FALSE | BU94: FALSE | BV94: FALSE | BW94: FALSE | BX94: FALSE | BY94: FALSE | BZ94: FALSE | CA94: FALSE | CB94: FALSE | CC94: FALSE | CD94: FALSE | CE94: FALSE | CF94: FALSE | CG94: FALSE | CH94: FALSE | CI94: FALSE | CJ94: FALSE | CK94: FALSE | CL94: FALSE | CM94: FALSE | CN94: FALSE | CO94: FALSE | CP94: FALSE | CQ94: FALSE | CR94: FALSE | CS94: FALSE | CT94: FALSE | CU94: FALSE | CV94: FALSE | CW94: FALSE | CX94: FALSE | CY94: FALSE | CZ94: FALSE | DA94: FALSE | DB94: FALSE | DC94: FALSE | DD94: FALSE | DE94: FALSE | DF94: FALSE | DG94: FALSE | DH94: FALSE | DI94: FALSE | DJ94: FALSE | DK94: FALSE | DL94: FALSE | DM94: FALSE | DN94: FALSE | DO94: FALSE | DP94: FALSE | DQ94: FALSE | DR94: FALSE | DS94: FALSE | DT94: FALSE | DU94: FALSE | DV94: FALSE | DW94: FALSE | DX94: FALSE | DY94: FALSE | DZ94: FALSE | EA94: FALSE | EB94: FALSE | EC94: FALSE | ED94: FALSE | EE94: =IF(EE83,EE87+EE92) -> FALSE | EF94: FALSE | EG94: FALSE | EH94: FALSE | EI94: FALSE | EJ94: FALSE | EK94: FALSE | EL94: FALSE | EM94: FALSE | EN94: FALSE | EO94: FALSE | EP94: FALSE | EQ94: FALSE | ER94: FALSE | ES94: FALSE | ET94: FALSE | EU94: FALSE | EV94: FALSE | EW94: FALSE | EX94: FALSE | EY94: FALSE | EZ94: FALSE | FA94: FALSE | FB94: FALSE | FC94: FALSE | FD94: FALSE | FE94: FALSE | FF94: FALSE | FG94: FALSE | FH94: FALSE | FI94: FALSE | FJ94: FALSE | FK94: FALSE | FL94: FALSE | FM94: FALSE | FN94: FALSE | FO94: FALSE | FP94: FALSE | FQ94: FALSE | FR94: FALSE | FS94: FALSE | FT94: FALSE | FU94: FALSE | FV94: FALSE | FW94: FALSE | FX94: FALSE | FY94: FALSE | FZ94: FALSE | GA94: FALSE | GB94: FALSE | GC94: FALSE | GD94: FALSE | GE94: FALSE | GF94: FALSE | GG94: FALSE | GH94: FALSE | GI94: FALSE | GJ94: FALSE | GK94: FALSE | GL94: FALSE | GM94: FALSE | GN94: FALSE | GO94: FALSE | GP94: FALSE | GQ94: =IF(GQ83,GQ87+GQ92) -> FALSE | GR94: FALSE | GS94: FALSE | GT94: FALSE | GU94: FALSE | GV94: FALSE | GW94: FALSE | GX94: FALSE | GY94: FALSE | GZ94: FALSE | HA94: FALSE | HB94: FALSE | HC94: FALSE | HD94: FALSE | HE94: FALSE | HF94: FALSE | HG94: FALSE | HH94: FALSE | HI94: FALSE | HJ94: FALSE | HK94: FALSE | HL94: FALSE | HM94: FALSE | HN94: FALSE | HO94: FALSE | HP94: FALSE | HQ94: FALSE | HR94: FALSE | HS94: FALSE | HT94: FALSE | HU94: FALSE | HV94: FALSE | HW94: FALSE | HX94: FALSE | HY94: FALSE | HZ94: FALSE | IA94: FALSE | IB94: FALSE | IC94: FALSE | ID94: FALSE | IE94: FALSE | IF94: FALSE | IG94: FALSE | IH94: FALSE | II94: FALSE | IJ94: FALSE | IK94: FALSE | IL94: FALSE | IM94: FALSE | IN94: FALSE | IO94: FALSE | IP94: FALSE | IQ94: FALSE | IR94: FALSE | IS94: FALSE | IT94: FALSE | IU94: FALSE | IV94: FALSE | IW94: FALSE | IX94: FALSE | IY94: FALSE | IZ94: FALSE | JA94: FALSE | JB94: FALSE | JC94: =IF(JC83,JC87+JC92) -> FALSE | JD94: FALSE | JE94: FALSE | JF94: FALSE | JG94: FALSE | JH94: FALSE | JI94: FALSE | JJ94: FALSE | JK94: FALSE | JL94: FALSE | JM94: FALSE | JN94: FALSE | JO94: FALSE | JP94: FALSE | JQ94: FALSE | JR94: FALSE | JS94: FALSE | JT94: FALSE | JU94: FALSE | JV94: FALSE | JW94: FALSE | JX94: FALSE | JY94: FALSE | JZ94: FALSE | KA94: FALSE | KB94: FALSE | KC94: FALSE | KD94: FALSE | KE94: FALSE | KF94: FALSE | KG94: FALSE | KH94: FALSE | KI94: FALSE | KJ94: FALSE | KK94: FALSE | KL94: FALSE | KM94: FALSE | KN94: FALSE | KO94: FALSE | KP94: FALSE | KQ94: FALSE | KR94: FALSE | KS94: FALSE | KT94: FALSE | KU94: FALSE | KV94: FALSE | KW94: FALSE | KX94: FALSE | KY94: FALSE | KZ94: FALSE | LA94: FALSE | LB94: FALSE | LC94: FALSE | LD94: FALSE | LE94: FALSE | LF94: FALSE | LG94: FALSE | LH94: FALSE | LI94: FALSE | LJ94: FALSE | LK94: FALSE | LL94: FALSE | LM94: FALSE | LN94: FALSE | LO94: =IF(LO83,LO87+LO92) -> FALSE | LP94: FALSE | LQ94: FALSE | LR94: FALSE | LS94: FALSE | LT94: FALSE | LU94: FALSE | LV94: FALSE | LW94: FALSE | LX94: FALSE | LY94: FALSE | LZ94: FALSE | MA94: FALSE | MB94: FALSE | MC94: FALSE | MD94: FALSE | ME94: FALSE | MF94: FALSE | MG94: FALSE | MH94: FALSE | MI94: FALSE | MJ94: FALSE | MK94: FALSE | ML94: FALSE | MM94: FALSE | MN94: FALSE | MO94: FALSE | MP94: FALSE | MQ94: FALSE | MR94: FALSE | MS94: FALSE | MT94: FALSE | MU94: FALSE | MV94: FALSE | MW94: FALSE | MX94: FALSE | MY94: FALSE | MZ94: FALSE | NA94: FALSE | NB94: FALSE | NC94: FALSE | ND94: FALSE | NE94: FALSE | NF94: FALSE | NG94: FALSE | NH94: FALSE | NI94: FALSE | NJ94: FALSE | NK94: FALSE | NL94: FALSE | NM94: FALSE | NN94: FALSE | NO94: FALSE | NP94: FALSE | NQ94: FALSE | NR94: FALSE | NS94: FALSE | NT94: FALSE | NU94: FALSE | NV94: FALSE | NW94: FALSE | NX94: FALSE | NY94: FALSE | NZ94: FALSE | OA94: =IF(OA83,OA87+OA92) -> FALSE | OB94: FALSE | OC94: FALSE | OD94: FALSE | OE94: FALSE | OF94: FALSE | OG94: FALSE | OH94: FALSE | OI94: FALSE | OJ94: FALSE | OK94: FALSE | OL94: FALSE | OM94: FALSE | ON94: FALSE | OO94: FALSE
C96: Valuation | E96: =NPV(E79,94:94) -> 3456.063917
C98: True Value
C99: Valuation Switch | E99: =E83 -> 6 | F99: =F2>=$E$99 -> FALSE | G99: =G2>=$E$99 -> FALSE | H99: FALSE | I99: FALSE | J99: FALSE | K99: TRUE | L99: TRUE | M99: TRUE | N99: TRUE | O99: TRUE | P99: TRUE | Q99: TRUE | R99: TRUE | S99: TRUE | T99: TRUE | U99: TRUE | V99: TRUE | W99: TRUE | X99: TRUE | Y99: TRUE | Z99: TRUE | AA99: TRUE | AB99: TRUE | AC99: TRUE | AD99: TRUE | AE99: TRUE | AF99: TRUE | AG99: TRUE | AH99: TRUE | AI99: TRUE | AJ99: TRUE | AK99: TRUE | AL99: TRUE | AM99: TRUE | AN99: TRUE | AO99: TRUE | AP99: TRUE | AQ99: TRUE | AR99: TRUE | AS99: TRUE | AT99: TRUE | AU99: TRUE | AV99: TRUE | AW99: TRUE | AX99: TRUE | AY99: TRUE | AZ99: TRUE | BA99: TRUE | BB99: TRUE | BC99: TRUE | BD99: TRUE | BE99: TRUE | BF99: TRUE | BG99: TRUE | BH99: TRUE | BI99: TRUE | BJ99: TRUE | BK99: TRUE | BL99: TRUE | BM99: TRUE | BN99: TRUE | BO99: TRUE | BP99: TRUE | BQ99: TRUE | BR99: TRUE | BS99: =BS2>=$E$99 -> TRUE | BT99: TRUE | BU99: TRUE | BV99: TRUE | BW99: TRUE | BX99: TRUE | BY99: TRUE | BZ99: TRUE | CA99: TRUE | CB99: TRUE | CC99: TRUE | CD99: TRUE | CE99: TRUE | CF99: TRUE | CG99: TRUE | CH99: TRUE | CI99: TRUE | CJ99: TRUE | CK99: TRUE | CL99: TRUE | CM99: TRUE | CN99: TRUE | CO99: TRUE | CP99: TRUE | CQ99: TRUE | CR99: TRUE | CS99: TRUE | CT99: TRUE | CU99: TRUE | CV99: TRUE | CW99: TRUE | CX99: TRUE | CY99: TRUE | CZ99: TRUE | DA99: TRUE | DB99: TRUE | DC99: TRUE | DD99: TRUE | DE99: TRUE | DF99: TRUE | DG99: TRUE | DH99: TRUE | DI99: TRUE | DJ99: TRUE | DK99: TRUE | DL99: TRUE | DM99: TRUE | DN99: TRUE | DO99: TRUE | DP99: TRUE | DQ99: TRUE | DR99: TRUE | DS99: TRUE | DT99: TRUE | DU99: TRUE | DV99: TRUE | DW99: TRUE | DX99: TRUE | DY99: TRUE | DZ99: TRUE | EA99: TRUE | EB99: TRUE | EC99: TRUE | ED99: TRUE | EE99: =EE2>=$E$99 -> TRUE | EF99: TRUE | EG99: TRUE | EH99: TRUE | EI99: TRUE | EJ99: TRUE | EK99: TRUE | EL99: TRUE | EM99: TRUE | EN99: TRUE | EO99: TRUE | EP99: TRUE | EQ99: TRUE | ER99: TRUE | ES99: TRUE | ET99: TRUE | EU99: TRUE | EV99: TRUE | EW99: TRUE | EX99: TRUE | EY99: TRUE | EZ99: TRUE | FA99: TRUE | FB99: TRUE | FC99: TRUE | FD99: TRUE | FE99: TRUE | FF99: TRUE | FG99: TRUE | FH99: TRUE | FI99: TRUE | FJ99: TRUE | FK99: TRUE | FL99: TRUE | FM99: TRUE | FN99: TRUE | FO99: TRUE | FP99: TRUE | FQ99: TRUE | FR99: TRUE | FS99: TRUE | FT99: TRUE | FU99: TRUE | FV99: TRUE | FW99: TRUE | FX99: TRUE | FY99: TRUE | FZ99: TRUE | GA99: TRUE | GB99: TRUE | GC99: TRUE | GD99: TRUE | GE99: TRUE | GF99: TRUE | GG99: TRUE | GH99: TRUE | GI99: TRUE | GJ99: TRUE | GK99: TRUE | GL99: TRUE | GM99: TRUE | GN99: TRUE | GO99: TRUE | GP99: TRUE | GQ99: =GQ2>=$E$99 -> TRUE | GR99: TRUE | GS99: TRUE | GT99: TRUE | GU99: TRUE | GV99: TRUE | GW99: TRUE | GX99: TRUE | GY99: TRUE | GZ99: TRUE | HA99: TRUE | HB99: TRUE | HC99: TRUE | HD99: TRUE | HE99: TRUE | HF99: TRUE | HG99: TRUE | HH99: TRUE | HI99: TRUE | HJ99: TRUE | HK99: TRUE | HL99: TRUE | HM99: TRUE | HN99: TRUE | HO99: TRUE | HP99: TRUE | HQ99: TRUE | HR99: TRUE | HS99: TRUE | HT99: TRUE | HU99: TRUE | HV99: TRUE | HW99: TRUE | HX99: TRUE | HY99: TRUE | HZ99: TRUE | IA99: TRUE | IB99: TRUE | IC99: TRUE | ID99: TRUE | IE99: TRUE | IF99: TRUE | IG99: TRUE | IH99: TRUE | II99: TRUE | IJ99: TRUE | IK99: TRUE | IL99: TRUE | IM99: TRUE | IN99: TRUE | IO99: TRUE | IP99: TRUE | IQ99: TRUE | IR99: TRUE | IS99: TRUE | IT99: TRUE | IU99: TRUE | IV99: TRUE | IW99: TRUE | IX99: TRUE | IY99: TRUE | IZ99: TRUE | JA99: TRUE | JB99: TRUE | JC99: =JC2>=$E$99 -> TRUE | JD99: TRUE | JE99: TRUE | JF99: TRUE | JG99: TRUE | JH99: TRUE | JI99: TRUE | JJ99: TRUE | JK99: TRUE | JL99: TRUE | JM99: TRUE | JN99: TRUE | JO99: TRUE | JP99: TRUE | JQ99: TRUE | JR99: TRUE | JS99: TRUE | JT99: TRUE | JU99: TRUE | JV99: TRUE | JW99: TRUE | JX99: TRUE | JY99: TRUE | JZ99: TRUE | KA99: TRUE | KB99: TRUE | KC99: TRUE | KD99: TRUE | KE99: TRUE | KF99: TRUE | KG99: TRUE | KH99: TRUE | KI99: TRUE | KJ99: TRUE | KK99: TRUE | KL99: TRUE | KM99: TRUE | KN99: TRUE | KO99: TRUE | KP99: TRUE | KQ99: TRUE | KR99: TRUE | KS99: TRUE | KT99: TRUE | KU99: TRUE | KV99: TRUE | KW99: TRUE | KX99: TRUE | KY99: TRUE | KZ99: TRUE | LA99: TRUE | LB99: TRUE | LC99: TRUE | LD99: TRUE | LE99: TRUE | LF99: TRUE | LG99: TRUE | LH99: TRUE | LI99: TRUE | LJ99: TRUE | LK99: TRUE | LL99: TRUE | LM99: TRUE | LN99: TRUE | LO99: =LO2>=$E$99 -> TRUE | LP99: TRUE | LQ99: TRUE | LR99: TRUE | LS99: TRUE | LT99: TRUE | LU99: TRUE | LV99: TRUE | LW99: TRUE | LX99: TRUE | LY99: TRUE | LZ99: TRUE | MA99: TRUE | MB99: TRUE | MC99: TRUE | MD99: TRUE | ME99: TRUE | MF99: TRUE | MG99: TRUE | MH99: TRUE | MI99: TRUE | MJ99: TRUE | MK99: TRUE | ML99: TRUE | MM99: TRUE | MN99: TRUE | MO99: TRUE | MP99: TRUE | MQ99: TRUE | MR99: TRUE | MS99: TRUE | MT99: TRUE | MU99: TRUE | MV99: TRUE | MW99: TRUE | MX99: TRUE | MY99: TRUE | MZ99: TRUE | NA99: TRUE | NB99: TRUE | NC99: TRUE | ND99: TRUE | NE99: TRUE | NF99: TRUE | NG99: TRUE | NH99: TRUE | NI99: TRUE | NJ99: TRUE | NK99: TRUE | NL99: TRUE | NM99: TRUE | NN99: TRUE | NO99: TRUE | NP99: TRUE | NQ99: TRUE | NR99: TRUE | NS99: TRUE | NT99: TRUE | NU99: TRUE | NV99: TRUE | NW99: TRUE | NX99: TRUE | NY99: TRUE | NZ99: TRUE | OA99: =OA2>=$E$99 -> TRUE | OB99: TRUE | OC99: TRUE | OD99: TRUE | OE99: TRUE | OF99: TRUE | OG99: TRUE | OH99: TRUE | OI99: TRUE | OJ99: TRUE | OK99: TRUE | OL99: TRUE | OM99: TRUE | ON99: TRUE | OO99: TRUE
C100: Cash Flow | F100: =IF(F99,F39-F29) -> FALSE | G100: =IF(G99,G39-G29) -> FALSE | H100: FALSE | I100: FALSE | J100: FALSE | K100: 501 | L100: 501 | M100: 501 | N100: 501 | O100: -499 | P100: 501 | Q100: 501 | R100: 501 | S100: 501 | T100: -499 | U100: 501 | V100: 501 | W100: 501 | X100: 501 | Y100: -499 | Z100: 501 | AA100: 501 | AB100: 501 | AC100: 501 | AD100: -499 | AE100: 501 | AF100: 501 | AG100: 501 | AH100: 501 | AI100: -499 | AJ100: 501 | AK100: 501 | AL100: 501 | AM100: 501 | AN100: -499 | AO100: 501 | AP100: 501 | AQ100: 501 | AR100: 501 | AS100: -499 | AT100: 501 | AU100: 501 | AV100: 501 | AW100: 501 | AX100: -499 | AY100: 501 | AZ100: 501 | BA100: 501 | BB100: 501 | BC100: -499 | BD100: 501 | BE100: 501 | BF100: 501 | BG100: 501 | BH100: -499 | BI100: 501 | BJ100: 501 | BK100: 501 | BL100: 501 | BM100: -499 | BN100: 501 | BO100: 501 | BP100: 501 | BQ100: 501 | BR100: -499 | BS100: =IF(BS99,BS39-BS29) -> 501 | BT100: 501 | BU100: 501 | BV100: 501 | BW100: -499 | BX100: 501 | BY100: 501 | BZ100: 501 | CA100: 501 | CB100: -499 | CC100: 501 | CD100: 501 | CE100: 501 | CF100: 501 | CG100: -499 | CH100: 501 | CI100: 501 | CJ100: 501 | CK100: 501 | CL100: -499 | CM100: 501 | CN100: 501 | CO100: 501 | CP100: 501 | CQ100: -499 | CR100: 501 | CS100: 501 | CT100: 501 | CU100: 501 | CV100: -499 | CW100: 501 | CX100: 501 | CY100: 501 | CZ100: 501 | DA100: -499 | DB100: 501 | DC100: 501 | DD100: 501 | DE100: 501 | DF100: -499 | DG100: 501 | DH100: 501 | DI100: 501 | DJ100: 501 | DK100: -499 | DL100: 501 | DM100: 501 | DN100: 501 | DO100: 501 | DP100: -499 | DQ100: 501 | DR100: 501 | DS100: 501 | DT100: 501 | DU100: -499 | DV100: 501 | DW100: 501 | DX100: 501 | DY100: 501 | DZ100: -499 | EA100: 501 | EB100: 501 | EC100: 501 | ED100: 501 | EE100: =IF(EE99,EE39-EE29) -> -499 | EF100: 501 | EG100: 501 | EH100: 501 | EI100: 501 | EJ100: -499 | EK100: 501 | EL100: 501 | EM100: 501 | EN100: 501 | EO100: -499 | EP100: 501 | EQ100: 501 | ER100: 501 | ES100: 501 | ET100: -499 | EU100: 501 | EV100: 501 | EW100: 501 | EX100: 501 | EY100: -499 | EZ100: 501 | FA100: 501 | FB100: 501 | FC100: 501 | FD100: -499 | FE100: 501 | FF100: 501 | FG100: 501 | FH100: 501 | FI100: -499 | FJ100: 501 | FK100: 501 | FL100: 501 | FM100: 501 | FN100: -499 | FO100: 501 | FP100: 501 | FQ100: 501 | FR100: 501 | FS100: -499 | FT100: 501 | FU100: 501 | FV100: 501 | FW100: 501 | FX100: -499 | FY100: 501 | FZ100: 501 | GA100: 501 | GB100: 501 | GC100: -499 | GD100: 501 | GE100: 501 | GF100: 501 | GG100: 501 | GH100: -499 | GI100: 501 | GJ100: 501 | GK100: 501 | GL100: 501 | GM100: -499 | GN100: 501 | GO100: 501 | GP100: 501 | GQ100: =IF(GQ99,GQ39-GQ29) -> 501 | GR100: -499 | GS100: 501 | GT100: 501 | GU100: 501 | GV100: 501 | GW100: -499 | GX100: 501 | GY100: 501 | GZ100: 501 | HA100: 501 | HB100: -499 | HC100: 501 | HD100: 501 | HE100: 501 | HF100: 501 | HG100: -499 | HH100: 501 | HI100: 501 | HJ100: 501 | HK100: 501 | HL100: -499 | HM100: 501 | HN100: 501 | HO100: 501 | HP100: 501 | HQ100: -499 | HR100: 501 | HS100: 501 | HT100: 501 | HU100: 501 | HV100: -499 | HW100: 501 | HX100: 501 | HY100: 501 | HZ100: 501 | IA100: -499 | IB100: 501 | IC100: 501 | ID100: 501 | IE100: 501 | IF100: -499 | IG100: 501 | IH100: 501 | II100: 501 | IJ100: 501 | IK100: -499 | IL100: 501 | IM100: 501 | IN100: 501 | IO100: 501 | IP100: -499 | IQ100: 501 | IR100: 501 | IS100: 501 | IT100: 501 | IU100: -499 | IV100: 501 | IW100: 501 | IX100: 501 | IY100: 501 | IZ100: -499 | JA100: 501 | JB100: 501 | JC100: =IF(JC99,JC39-JC29) -> 501 | JD100: 501 | JE100: -499 | JF100: 501 | JG100: 501 | JH100: 501 | JI100: 501 | JJ100: -499 | JK100: 501 | JL100: 501 | JM100: 501 | JN100: 501 | JO100: -499 | JP100: 501 | JQ100: 501 | JR100: 501 | JS100: 501 | JT100: -499 | JU100: 501 | JV100: 501 | JW100: 501 | JX100: 501 | JY100: -499 | JZ100: 501 | KA100: 501 | KB100: 501 | KC100: 501 | KD100: -499 | KE100: 501 | KF100: 501 | KG100: 501 | KH100: 501 | KI100: -499 | KJ100: 501 | KK100: 501 | KL100: 501 | KM100: 501 | KN100: -499 | KO100: 501 | KP100: 501 | KQ100: 501 | KR100: 501 | KS100: -499 | KT100: 501 | KU100: 501 | KV100: 501 | KW100: 501 | KX100: -499 | KY100: 501 | KZ100: 501 | LA100: 501 | LB100: 501 | LC100: -499 | LD100: 501 | LE100: 501 | LF100: 501 | LG100: 501 | LH100: -499 | LI100: 501 | LJ100: 501 | LK100: 501 | LL100: 501 | LM100: -499 | LN100: 501 | LO100: =IF(LO99,LO39-LO29) -> 501 | LP100: 501 | LQ100: 501 | LR100: -499 | LS100: 501 | LT100: 501 | LU100: 501 | LV100: 501 | LW100: -499 | LX100: 501 | LY100: 501 | LZ100: 501 | MA100: 501 | MB100: -499 | MC100: 501 | MD100: 501 | ME100: 501 | MF100: 501 | MG100: -499 | MH100: 501 | MI100: 501 | MJ100: 501 | MK100: 501 | ML100: -499 | MM100: 501 | MN100: 501 | MO100: 501 | MP100: 501 | MQ100: -499 | MR100: 501 | MS100: 501 | MT100: 501 | MU100: 501 | MV100: -499 | MW100: 501 | MX100: 501 | MY100: 501 | MZ100: 501 | NA100: -499 | NB100: 501 | NC100: 501 | ND100: 501 | NE100: 501 | NF100: -499 | NG100: 501 | NH100: 501 | NI100: 501 | NJ100: 501 | NK100: -499 | NL100: 501 | NM100: 501 | NN100: 501 | NO100: 501 | NP100: -499 | NQ100: 501 | NR100: 501 | NS100: 501 | NT100: 501 | NU100: -499 | NV100: 501 | NW100: 501 | NX100: 501 | NY100: 501 | NZ100: -499 | OA100: =IF(OA99,OA39-OA29) -> 501 | OB100: 501 | OC100: 501 | OD100: 501 | OE100: -499 | OF100: 501 | OG100: 501 | OH100: 501 | OI100: 501 | OJ100: -499 | OK100: 501 | OL100: 501 | OM100: 501 | ON100: 501 | OO100: -499
C102: PV of Cash Flow | E102: =NPV(E79,100:100) -> 3372.025192
C104: NOPAT with Economic Depr | F104: =IF(F83,F50) -> FALSE | G104: =IF(G83,G50) -> FALSE | H104: FALSE | I104: FALSE | J104: FALSE | K104: 411.617485 | L104: 374.8260727 | M104: 322.890686 | N104: 249.577774 | O104: 146.0879822 | P104: 411.617485 | Q104: 374.8260727 | R104: 322.890686 | S104: FALSE | T104: FALSE | U104: FALSE | V104: FALSE | W104: FALSE | X104: FALSE | Y104: FALSE | Z104: FALSE | AA104: FALSE | AB104: FALSE | AC104: FALSE | AD104: FALSE | AE104: FALSE | AF104: FALSE | AG104: FALSE | AH104: FALSE | AI104: FALSE | AJ104: FALSE | AK104: FALSE | AL104: FALSE | AM104: FALSE | AN104: FALSE | AO104: FALSE | AP104: FALSE | AQ104: FALSE | AR104: FALSE | AS104: FALSE | AT104: FALSE | AU104: FALSE | AV104: FALSE | AW104: FALSE | AX104: FALSE | AY104: FALSE | AZ104: FALSE | BA104: FALSE | BB104: FALSE | BC104: FALSE | BD104: FALSE | BE104: FALSE | BF104: FALSE | BG104: FALSE | BH104: FALSE | BI104: FALSE | BJ104: FALSE | BK104: FALSE | BL104: FALSE | BM104: FALSE | BN104: FALSE | BO104: FALSE | BP104: FALSE | BQ104: FALSE | BR104: FALSE | BS104: =IF(BS83,BS50) -> FALSE | BT104: FALSE | BU104: FALSE | BV104: FALSE | BW104: FALSE | BX104: FALSE | BY104: FALSE | BZ104: FALSE | CA104: FALSE | CB104: FALSE | CC104: FALSE | CD104: FALSE | CE104: FALSE | CF104: FALSE | CG104: FALSE | CH104: FALSE | CI104: FALSE | CJ104: FALSE | CK104: FALSE | CL104: FALSE | CM104: FALSE | CN104: FALSE | CO104: FALSE | CP104: FALSE | CQ104: FALSE | CR104: FALSE | CS104: FALSE | CT104: FALSE | CU104: FALSE | CV104: FALSE | CW104: FALSE | CX104: FALSE | CY104: FALSE | CZ104: FALSE | DA104: FALSE | DB104: FALSE | DC104: FALSE | DD104: FALSE | DE104: FALSE | DF104: FALSE | DG104: FALSE | DH104: FALSE | DI104: FALSE | DJ104: FALSE | DK104: FALSE | DL104: FALSE | DM104: FALSE | DN104: FALSE | DO104: FALSE | DP104: FALSE | DQ104: FALSE | DR104: FALSE | DS104: FALSE | DT104: FALSE | DU104: FALSE | DV104: FALSE | DW104: FALSE | DX104: FALSE | DY104: FALSE | DZ104: FALSE | EA104: FALSE | EB104: FALSE | EC104: FALSE | ED104: FALSE | EE104: =IF(EE83,EE50) -> FALSE | EF104: FALSE | EG104: FALSE | EH104: FALSE | EI104: FALSE | EJ104: FALSE | EK104: FALSE | EL104: FALSE | EM104: FALSE | EN104: FALSE | EO104: FALSE | EP104: FALSE | EQ104: FALSE | ER104: FALSE | ES104: FALSE | ET104: FALSE | EU104: FALSE | EV104: FALSE | EW104: FALSE | EX104: FALSE | EY104: FALSE | EZ104: FALSE | FA104: FALSE | FB104: FALSE | FC104: FALSE | FD104: FALSE | FE104: FALSE | FF104: FALSE | FG104: FALSE | FH104: FALSE | FI104: FALSE | FJ104: FALSE | FK104: FALSE | FL104: FALSE | FM104: FALSE | FN104: FALSE | FO104: FALSE | FP104: FALSE | FQ104: FALSE | FR104: FALSE | FS104: FALSE | FT104: FALSE | FU104: FALSE | FV104: FALSE | FW104: FALSE | FX104: FALSE | FY104: FALSE | FZ104: FALSE | GA104: FALSE | GB104: FALSE | GC104: FALSE | GD104: FALSE | GE104: FALSE | GF104: FALSE | GG104: FALSE | GH104: FALSE | GI104: FALSE | GJ104: FALSE | GK104: FALSE | GL104: FALSE | GM104: FALSE | GN104: FALSE | GO104: FALSE | GP104: FALSE | GQ104: =IF(GQ83,GQ50) -> FALSE | GR104: FALSE | GS104: FALSE | GT104: FALSE | GU104: FALSE | GV104: FALSE | GW104: FALSE | GX104: FALSE | GY104: FALSE | GZ104: FALSE | HA104: FALSE | HB104: FALSE | HC104: FALSE | HD104: FALSE | HE104: FALSE | HF104: FALSE | HG104: FALSE | HH104: FALSE | HI104: FALSE | HJ104: FALSE | HK104: FALSE | HL104: FALSE | HM104: FALSE | HN104: FALSE | HO104: FALSE | HP104: FALSE | HQ104: FALSE | HR104: FALSE | HS104: FALSE | HT104: FALSE | HU104: FALSE | HV104: FALSE | HW104: FALSE | HX104: FALSE | HY104: FALSE | HZ104: FALSE | IA104: FALSE | IB104: FALSE | IC104: FALSE | ID104: FALSE | IE104: FALSE | IF104: FALSE | IG104: FALSE | IH104: FALSE | II104: FALSE | IJ104: FALSE | IK104: FALSE | IL104: FALSE | IM104: FALSE | IN104: FALSE | IO104: FALSE | IP104: FALSE | IQ104: FALSE | IR104: FALSE | IS104: FALSE | IT104: FALSE | IU104: FALSE | IV104: FALSE | IW104: FALSE | IX104: FALSE | IY104: FALSE | IZ104: FALSE | JA104: FALSE | JB104: FALSE | JC104: =IF(JC83,JC50) -> FALSE | JD104: FALSE | JE104: FALSE | JF104: FALSE | JG104: FALSE | JH104: FALSE | JI104: FALSE | JJ104: FALSE | JK104: FALSE | JL104: FALSE | JM104: FALSE | JN104: FALSE | JO104: FALSE | JP104: FALSE | JQ104: FALSE | JR104: FALSE | JS104: FALSE | JT104: FALSE | JU104: FALSE | JV104: FALSE | JW104: FALSE | JX104: FALSE | JY104: FALSE | JZ104: FALSE | KA104: FALSE | KB104: FALSE | KC104: FALSE | KD104: FALSE | KE104: FALSE | KF104: FALSE | KG104: FALSE | KH104: FALSE | KI104: FALSE | KJ104: FALSE | KK104: FALSE | KL104: FALSE | KM104: FALSE | KN104: FALSE | KO104: FALSE | KP104: FALSE | KQ104: FALSE | KR104: FALSE | KS104: FALSE | KT104: FALSE | KU104: FALSE | KV104: FALSE | KW104: FALSE | KX104: FALSE | KY104: FALSE | KZ104: FALSE | LA104: FALSE | LB104: FALSE | LC104: FALSE | LD104: FALSE | LE104: FALSE | LF104: FALSE | LG104: FALSE | LH104: FALSE | LI104: FALSE | LJ104: FALSE | LK104: FALSE | LL104: FALSE | LM104: FALSE | LN104: FALSE | LO104: =IF(LO83,LO50) -> FALSE | LP104: FALSE | LQ104: FALSE | LR104: FALSE | LS104: FALSE | LT104: FALSE | LU104: FALSE | LV104: FALSE | LW104: FALSE | LX104: FALSE | LY104: FALSE | LZ104: FALSE | MA104: FALSE | MB104: FALSE | MC104: FALSE | MD104: FALSE | ME104: FALSE | MF104: FALSE | MG104: FALSE | MH104: FALSE | MI104: FALSE | MJ104: FALSE | MK104: FALSE | ML104: FALSE | MM104: FALSE | MN104: FALSE | MO104: FALSE | MP104: FALSE | MQ104: FALSE | MR104: FALSE | MS104: FALSE | MT104: FALSE | MU104: FALSE | MV104: FALSE | MW104: FALSE | MX104: FALSE | MY104: FALSE | MZ104: FALSE | NA104: FALSE | NB104: FALSE | NC104: FALSE | ND104: FALSE | NE104: FALSE | NF104: FALSE | NG104: FALSE | NH104: FALSE | NI104: FALSE | NJ104: FALSE | NK104: FALSE | NL104: FALSE | NM104: FALSE | NN104: FALSE | NO104: FALSE | NP104: FALSE | NQ104: FALSE | NR104: FALSE | NS104: FALSE | NT104: FALSE | NU104: FALSE | NV104: FALSE | NW104: FALSE | NX104: FALSE | NY104: FALSE | NZ104: FALSE | OA104: =IF(OA83,OA50) -> FALSE | OB104: FALSE | OC104: FALSE | OD104: FALSE | OE104: FALSE | OF104: FALSE | OG104: FALSE | OH104: FALSE | OI104: FALSE | OJ104: FALSE | OK104: FALSE | OL104: FALSE | OM104: FALSE | ON104: FALSE | OO104: FALSE
C105: Average NOPAT | E105: =AVERAGE(104:104) -> 326.7917805
C106: Terminal | F106: =$E$105*F82 -> 0 | G106: =$E$105*G82 -> 0 | H106: 0 | I106: 0 | J106: 0 | K106: 0 | L106: 0 | M106: 0 | N106: 0 | O106: 0 | P106: 0 | Q106: 0 | R106: 326.7917805 | S106: 0 | T106: 0 | U106: 0 | V106: 0 | W106: 0 | X106: 0 | Y106: 0 | Z106: 0 | AA106: 0 | AB106: 0 | AC106: 0 | AD106: 0 | AE106: 0 | AF106: 0 | AG106: 0 | AH106: 0 | AI106: 0 | AJ106: 0 | AK106: 0 | AL106: 0 | AM106: 0 | AN106: 0 | AO106: 0 | AP106: 0 | AQ106: 0 | AR106: 0 | AS106: 0 | AT106: 0 | AU106: 0 | AV106: 0 | AW106: 0 | AX106: 0 | AY106: 0 | AZ106: 0 | BA106: 0 | BB106: 0 | BC106: 0 | BD106: 0 | BE106: 0 | BF106: 0 | BG106: 0 | BH106: 0 | BI106: 0 | BJ106: 0 | BK106: 0 | BL106: 0 | BM106: 0 | BN106: 0 | BO106: 0 | BP106: 0 | BQ106: 0 | BR106: 0 | BS106: =$E$105*BS82 -> 0 | BT106: 0 | BU106: 0 | BV106: 0 | BW106: 0 | BX106: 0 | BY106: 0 | BZ106: 0 | CA106: 0 | CB106: 0 | CC106: 0 | CD106: 0 | CE106: 0 | CF106: 0 | CG106: 0 | CH106: 0 | CI106: 0 | CJ106: 0 | CK106: 0 | CL106: 0 | CM106: 0 | CN106: 0 | CO106: 0 | CP106: 0 | CQ106: 0 | CR106: 0 | CS106: 0 | CT106: 0 | CU106: 0 | CV106: 0 | CW106: 0 | CX106: 0 | CY106: 0 | CZ106: 0 | DA106: 0 | DB106: 0 | DC106: 0 | DD106: 0 | DE106: 0 | DF106: 0 | DG106: 0 | DH106: 0 | DI106: 0 | DJ106: 0 | DK106: 0 | DL106: 0 | DM106: 0 | DN106: 0 | DO106: 0 | DP106: 0 | DQ106: 0 | DR106: 0 | DS106: 0 | DT106: 0 | DU106: 0 | DV106: 0 | DW106: 0 | DX106: 0 | DY106: 0 | DZ106: 0 | EA106: 0 | EB106: 0 | EC106: 0 | ED106: 0 | EE106: =$E$105*EE82 -> 0 | EF106: 0 | EG106: 0 | EH106: 0 | EI106: 0 | EJ106: 0 | EK106: 0 | EL106: 0 | EM106: 0 | EN106: 0 | EO106: 0 | EP106: 0 | EQ106: 0 | ER106: 0 | ES106: 0 | ET106: 0 | EU106: 0 | EV106: 0 | EW106: 0 | EX106: 0 | EY106: 0 | EZ106: 0 | FA106: 0 | FB106: 0 | FC106: 0 | FD106: 0 | FE106: 0 | FF106: 0 | FG106: 0 | FH106: 0 | FI106: 0 | FJ106: 0 | FK106: 0 | FL106: 0 | FM106: 0 | FN106: 0 | FO106: 0 | FP106: 0 | FQ106: 0 | FR106: 0 | FS106: 0 | FT106: 0 | FU106: 0 | FV106: 0 | FW106: 0 | FX106: 0 | FY106: 0 | FZ106: 0 | GA106: 0 | GB106: 0 | GC106: 0 | GD106: 0 | GE106: 0 | GF106: 0 | GG106: 0 | GH106: 0 | GI106: 0 | GJ106: 0 | GK106: 0 | GL106: 0 | GM106: 0 | GN106: 0 | GO106: 0 | GP106: 0 | GQ106: =$E$105*GQ82 -> 0 | GR106: 0 | GS106: 0 | GT106: 0 | GU106: 0 | GV106: 0 | GW106: 0 | GX106: 0 | GY106: 0 | GZ106: 0 | HA106: 0 | HB106: 0 | HC106: 0 | HD106: 0 | HE106: 0 | HF106: 0 | HG106: 0 | HH106: 0 | HI106: 0 | HJ106: 0 | HK106: 0 | HL106: 0 | HM106: 0 | HN106: 0 | HO106: 0 | HP106: 0 | HQ106: 0 | HR106: 0 | HS106: 0 | HT106: 0 | HU106: 0 | HV106: 0 | HW106: 0 | HX106: 0 | HY106: 0 | HZ106: 0 | IA106: 0 | IB106: 0 | IC106: 0 | ID106: 0 | IE106: 0 | IF106: 0 | IG106: 0 | IH106: 0 | II106: 0 | IJ106: 0 | IK106: 0 | IL106: 0 | IM106: 0 | IN106: 0 | IO106: 0 | IP106: 0 | IQ106: 0 | IR106: 0 | IS106: 0 | IT106: 0 | IU106: 0 | IV106: 0 | IW106: 0 | IX106: 0 | IY106: 0 | IZ106: 0 | JA106: 0 | JB106: 0 | JC106: =$E$105*JC82 -> 0 | JD106: 0 | JE106: 0 | JF106: 0 | JG106: 0 | JH106: 0 | JI106: 0 | JJ106: 0 | JK106: 0 | JL106: 0 | JM106: 0 | JN106: 0 | JO106: 0 | JP106: 0 | JQ106: 0 | JR106: 0 | JS106: 0 | JT106: 0 | JU106: 0 | JV106: 0 | JW106: 0 | JX106: 0 | JY106: 0 | JZ106: 0 | KA106: 0 | KB106: 0 | KC106: 0 | KD106: 0 | KE106: 0 | KF106: 0 | KG106: 0 | KH106: 0 | KI106: 0 | KJ106: 0 | KK106: 0 | KL106: 0 | KM106: 0 | KN106: 0 | KO106: 0 | KP106: 0 | KQ106: 0 | KR106: 0 | KS106: 0 | KT106: 0 | KU106: 0 | KV106: 0 | KW106: 0 | KX106: 0 | KY106: 0 | KZ106: 0 | LA106: 0 | LB106: 0 | LC106: 0 | LD106: 0 | LE106: 0 | LF106: 0 | LG106: 0 | LH106: 0 | LI106: 0 | LJ106: 0 | LK106: 0 | LL106: 0 | LM106: 0 | LN106: 0 | LO106: =$E$105*LO82 -> 0 | LP106: 0 | LQ106: 0 | LR106: 0 | LS106: 0 | LT106: 0 | LU106: 0 | LV106: 0 | LW106: 0 | LX106: 0 | LY106: 0 | LZ106: 0 | MA106: 0 | MB106: 0 | MC106: 0 | MD106: 0 | ME106: 0 | MF106: 0 | MG106: 0 | MH106: 0 | MI106: 0 | MJ106: 0 | MK106: 0 | ML106: 0 | MM106: 0 | MN106: 0 | MO106: 0 | MP106: 0 | MQ106: 0 | MR106: 0 | MS106: 0 | MT106: 0 | MU106: 0 | MV106: 0 | MW106: 0 | MX106: 0 | MY106: 0 | MZ106: 0 | NA106: 0 | NB106: 0 | NC106: 0 | ND106: 0 | NE106: 0 | NF106: 0 | NG106: 0 | NH106: 0 | NI106: 0 | NJ106: 0 | NK106: 0 | NL106: 0 | NM106: 0 | NN106: 0 | NO106: 0 | NP106: 0 | NQ106: 0 | NR106: 0 | NS106: 0 | NT106: 0 | NU106: 0 | NV106: 0 | NW106: 0 | NX106: 0 | NY106: 0 | NZ106: 0 | OA106: =$E$105*OA82 -> 0 | OB106: 0 | OC106: 0 | OD106: 0 | OE106: 0 | OF106: 0 | OG106: 0 | OH106: 0 | OI106: 0 | OJ106: 0 | OK106: 0 | OL106: 0 | OM106: 0 | ON106: 0 | OO106: 0
C107: Value of Terminal | E107: =E92 -> 10 | F107: =F106*$E$107 -> 0 | G107: =G106*$E$107 -> 0 | H107: 0 | I107: 0 | J107: 0 | K107: 0 | L107: 0 | M107: 0 | N107: 0 | O107: 0 | P107: 0 | Q107: 0 | R107: 3267.917805 | S107: 0 | T107: 0 | U107: 0 | V107: 0 | W107: 0 | X107: 0 | Y107: 0 | Z107: 0 | AA107: 0 | AB107: 0 | AC107: 0 | AD107: 0 | AE107: 0 | AF107: 0 | AG107: 0 | AH107: 0 | AI107: 0 | AJ107: 0 | AK107: 0 | AL107: 0 | AM107: 0 | AN107: 0 | AO107: 0 | AP107: 0 | AQ107: 0 | AR107: 0 | AS107: 0 | AT107: 0 | AU107: 0 | AV107: 0 | AW107: 0 | AX107: 0 | AY107: 0 | AZ107: 0 | BA107: 0 | BB107: 0 | BC107: 0 | BD107: 0 | BE107: 0 | BF107: 0 | BG107: 0 | BH107: 0 | BI107: 0 | BJ107: 0 | BK107: 0 | BL107: 0 | BM107: 0 | BN107: 0 | BO107: 0 | BP107: 0 | BQ107: 0 | BR107: 0 | BS107: =BS106*$E$107 -> 0 | BT107: 0 | BU107: 0 | BV107: 0 | BW107: 0 | BX107: 0 | BY107: 0 | BZ107: 0 | CA107: 0 | CB107: 0 | CC107: 0 | CD107: 0 | CE107: 0 | CF107: 0 | CG107: 0 | CH107: 0 | CI107: 0 | CJ107: 0 | CK107: 0 | CL107: 0 | CM107: 0 | CN107: 0 | CO107: 0 | CP107: 0 | CQ107: 0 | CR107: 0 | CS107: 0 | CT107: 0 | CU107: 0 | CV107: 0 | CW107: 0 | CX107: 0 | CY107: 0 | CZ107: 0 | DA107: 0 | DB107: 0 | DC107: 0 | DD107: 0 | DE107: 0 | DF107: 0 | DG107: 0 | DH107: 0 | DI107: 0 | DJ107: 0 | DK107: 0 | DL107: 0 | DM107: 0 | DN107: 0 | DO107: 0 | DP107: 0 | DQ107: 0 | DR107: 0 | DS107: 0 | DT107: 0 | DU107: 0 | DV107: 0 | DW107: 0 | DX107: 0 | DY107: 0 | DZ107: 0 | EA107: 0 | EB107: 0 | EC107: 0 | ED107: 0 | EE107: =EE106*$E$107 -> 0 | EF107: 0 | EG107: 0 | EH107: 0 | EI107: 0 | EJ107: 0 | EK107: 0 | EL107: 0 | EM107: 0 | EN107: 0 | EO107: 0 | EP107: 0 | EQ107: 0 | ER107: 0 | ES107: 0 | ET107: 0 | EU107: 0 | EV107: 0 | EW107: 0 | EX107: 0 | EY107: 0 | EZ107: 0 | FA107: 0 | FB107: 0 | FC107: 0 | FD107: 0 | FE107: 0 | FF107: 0 | FG107: 0 | FH107: 0 | FI107: 0 | FJ107: 0 | FK107: 0 | FL107: 0 | FM107: 0 | FN107: 0 | FO107: 0 | FP107: 0 | FQ107: 0 | FR107: 0 | FS107: 0 | FT107: 0 | FU107: 0 | FV107: 0 | FW107: 0 | FX107: 0 | FY107: 0 | FZ107: 0 | GA107: 0 | GB107: 0 | GC107: 0 | GD107: 0 | GE107: 0 | GF107: 0 | GG107: 0 | GH107: 0 | GI107: 0 | GJ107: 0 | GK107: 0 | GL107: 0 | GM107: 0 | GN107: 0 | GO107: 0 | GP107: 0 | GQ107: =GQ106*$E$107 -> 0 | GR107: 0 | GS107: 0 | GT107: 0 | GU107: 0 | GV107: 0 | GW107: 0 | GX107: 0 | GY107: 0 | GZ107: 0 | HA107: 0 | HB107: 0 | HC107: 0 | HD107: 0 | HE107: 0 | HF107: 0 | HG107: 0 | HH107: 0 | HI107: 0 | HJ107: 0 | HK107: 0 | HL107: 0 | HM107: 0 | HN107: 0 | HO107: 0 | HP107: 0 | HQ107: 0 | HR107: 0 | HS107: 0 | HT107: 0 | HU107: 0 | HV107: 0 | HW107: 0 | HX107: 0 | HY107: 0 | HZ107: 0 | IA107: 0 | IB107: 0 | IC107: 0 | ID107: 0 | IE107: 0 | IF107: 0 | IG107: 0 | IH107: 0 | II107: 0 | IJ107: 0 | IK107: 0 | IL107: 0 | IM107: 0 | IN107: 0 | IO107: 0 | IP107: 0 | IQ107: 0 | IR107: 0 | IS107: 0 | IT107: 0 | IU107: 0 | IV107: 0 | IW107: 0 | IX107: 0 | IY107: 0 | IZ107: 0 | JA107: 0 | JB107: 0 | JC107: =JC106*$E$107 -> 0 | JD107: 0 | JE107: 0 | JF107: 0 | JG107: 0 | JH107: 0 | JI107: 0 | JJ107: 0 | JK107: 0 | JL107: 0 | JM107: 0 | JN107: 0 | JO107: 0 | JP107: 0 | JQ107: 0 | JR107: 0 | JS107: 0 | JT107: 0 | JU107: 0 | JV107: 0 | JW107: 0 | JX107: 0 | JY107: 0 | JZ107: 0 | KA107: 0 | KB107: 0 | KC107: 0 | KD107: 0 | KE107: 0 | KF107: 0 | KG107: 0 | KH107: 0 | KI107: 0 | KJ107: 0 | KK107: 0 | KL107: 0 | KM107: 0 | KN107: 0 | KO107: 0 | KP107: 0 | KQ107: 0 | KR107: 0 | KS107: 0 | KT107: 0 | KU107: 0 | KV107: 0 | KW107: 0 | KX107: 0 | KY107: 0 | KZ107: 0 | LA107: 0 | LB107: 0 | LC107: 0 | LD107: 0 | LE107: 0 | LF107: 0 | LG107: 0 | LH107: 0 | LI107: 0 | LJ107: 0 | LK107: 0 | LL107: 0 | LM107: 0 | LN107: 0 | LO107: =LO106*$E$107 -> 0 | LP107: 0 | LQ107: 0 | LR107: 0 | LS107: 0 | LT107: 0 | LU107: 0 | LV107: 0 | LW107: 0 | LX107: 0 | LY107: 0 | LZ107: 0 | MA107: 0 | MB107: 0 | MC107: 0 | MD107: 0 | ME107: 0 | MF107: 0 | MG107: 0 | MH107: 0 | MI107: 0 | MJ107: 0 | MK107: 0 | ML107: 0 | MM107: 0 | MN107: 0 | MO107: 0 | MP107: 0 | MQ107: 0 | MR107: 0 | MS107: 0 | MT107: 0 | MU107: 0 | MV107: 0 | MW107: 0 | MX107: 0 | MY107: 0 | MZ107: 0 | NA107: 0 | NB107: 0 | NC107: 0 | ND107: 0 | NE107: 0 | NF107: 0 | NG107: 0 | NH107: 0 | NI107: 0 | NJ107: 0 | NK107: 0 | NL107: 0 | NM107: 0 | NN107: 0 | NO107: 0 | NP107: 0 | NQ107: 0 | NR107: 0 | NS107: 0 | NT107: 0 | NU107: 0 | NV107: 0 | NW107: 0 | NX107: 0 | NY107: 0 | NZ107: 0 | OA107: =OA106*$E$107 -> 0 | OB107: 0 | OC107: 0 | OD107: 0 | OE107: 0 | OF107: 0 | OG107: 0 | OH107: 0 | OI107: 0 | OJ107: 0 | OK107: 0 | OL107: 0 | OM107: 0 | ON107: 0 | OO107: 0
C109: Total Cash Flow | F109: =IF(F83,F107+F87) -> FALSE | G109: =IF(G83,G107+G87) -> FALSE | H109: FALSE | I109: FALSE | J109: FALSE | K109: 501 | L109: 501 | M109: 501 | N109: 501 | O109: -499 | P109: 501 | Q109: 501 | R109: 3768.917805 | S109: FALSE | T109: FALSE | U109: FALSE | V109: FALSE | W109: FALSE | X109: FALSE | Y109: FALSE | Z109: FALSE | AA109: FALSE | AB109: FALSE | AC109: FALSE | AD109: FALSE | AE109: FALSE | AF109: FALSE | AG109: FALSE | AH109: FALSE | AI109: FALSE | AJ109: FALSE | AK109: FALSE | AL109: FALSE | AM109: FALSE | AN109: FALSE | AO109: FALSE | AP109: FALSE | AQ109: FALSE | AR109: FALSE | AS109: FALSE | AT109: FALSE | AU109: FALSE | AV109: FALSE | AW109: FALSE | AX109: FALSE | AY109: FALSE | AZ109: FALSE | BA109: FALSE | BB109: FALSE | BC109: FALSE | BD109: FALSE | BE109: FALSE | BF109: FALSE | BG109: FALSE | BH109: FALSE | BI109: FALSE | BJ109: FALSE | BK109: FALSE | BL109: FALSE | BM109: FALSE | BN109: FALSE | BO109: FALSE | BP109: FALSE | BQ109: FALSE | BR109: FALSE | BS109: =IF(BS83,BS107+BS87) -> FALSE | BT109: FALSE | BU109: FALSE | BV109: FALSE | BW109: FALSE | BX109: FALSE | BY109: FALSE | BZ109: FALSE | CA109: FALSE | CB109: FALSE | CC109: FALSE | CD109: FALSE | CE109: FALSE | CF109: FALSE | CG109: FALSE | CH109: FALSE | CI109: FALSE | CJ109: FALSE | CK109: FALSE | CL109: FALSE | CM109: FALSE | CN109: FALSE | CO109: FALSE | CP109: FALSE | CQ109: FALSE | CR109: FALSE | CS109: FALSE | CT109: FALSE | CU109: FALSE | CV109: FALSE | CW109: FALSE | CX109: FALSE | CY109: FALSE | CZ109: FALSE | DA109: FALSE | DB109: FALSE | DC109: FALSE | DD109: FALSE | DE109: FALSE | DF109: FALSE | DG109: FALSE | DH109: FALSE | DI109: FALSE | DJ109: FALSE | DK109: FALSE | DL109: FALSE | DM109: FALSE | DN109: FALSE | DO109: FALSE | DP109: FALSE | DQ109: FALSE | DR109: FALSE | DS109: FALSE | DT109: FALSE | DU109: FALSE | DV109: FALSE | DW109: FALSE | DX109: FALSE | DY109: FALSE | DZ109: FALSE | EA109: FALSE | EB109: FALSE | EC109: FALSE | ED109: FALSE | EE109: =IF(EE83,EE107+EE87) -> FALSE | EF109: FALSE | EG109: FALSE | EH109: FALSE | EI109: FALSE | EJ109: FALSE | EK109: FALSE | EL109: FALSE | EM109: FALSE | EN109: FALSE | EO109: FALSE | EP109: FALSE | EQ109: FALSE | ER109: FALSE | ES109: FALSE | ET109: FALSE | EU109: FALSE | EV109: FALSE | EW109: FALSE | EX109: FALSE | EY109: FALSE | EZ109: FALSE | FA109: FALSE | FB109: FALSE | FC109: FALSE | FD109: FALSE | FE109: FALSE | FF109: FALSE | FG109: FALSE | FH109: FALSE | FI109: FALSE | FJ109: FALSE | FK109: FALSE | FL109: FALSE | FM109: FALSE | FN109: FALSE | FO109: FALSE | FP109: FALSE | FQ109: FALSE | FR109: FALSE | FS109: FALSE | FT109: FALSE | FU109: FALSE | FV109: FALSE | FW109: FALSE | FX109: FALSE | FY109: FALSE | FZ109: FALSE | GA109: FALSE | GB109: FALSE | GC109: FALSE | GD109: FALSE | GE109: FALSE | GF109: FALSE | GG109: FALSE | GH109: FALSE | GI109: FALSE | GJ109: FALSE | GK109: FALSE | GL109: FALSE | GM109: FALSE | GN109: FALSE | GO109: FALSE | GP109: FALSE | GQ109: =IF(GQ83,GQ107+GQ87) -> FALSE | GR109: FALSE | GS109: FALSE | GT109: FALSE | GU109: FALSE | GV109: FALSE | GW109: FALSE | GX109: FALSE | GY109: FALSE | GZ109: FALSE | HA109: FALSE | HB109: FALSE | HC109: FALSE | HD109: FALSE | HE109: FALSE | HF109: FALSE | HG109: FALSE | HH109: FALSE | HI109: FALSE | HJ109: FALSE | HK109: FALSE | HL109: FALSE | HM109: FALSE | HN109: FALSE | HO109: FALSE | HP109: FALSE | HQ109: FALSE | HR109: FALSE | HS109: FALSE | HT109: FALSE | HU109: FALSE | HV109: FALSE | HW109: FALSE | HX109: FALSE | HY109: FALSE | HZ109: FALSE | IA109: FALSE | IB109: FALSE | IC109: FALSE | ID109: FALSE | IE109: FALSE | IF109: FALSE | IG109: FALSE | IH109: FALSE | II109: FALSE | IJ109: FALSE | IK109: FALSE | IL109: FALSE | IM109: FALSE | IN109: FALSE | IO109: FALSE | IP109: FALSE | IQ109: FALSE | IR109: FALSE | IS109: FALSE | IT109: FALSE | IU109: FALSE | IV109: FALSE | IW109: FALSE | IX109: FALSE | IY109: FALSE | IZ109: FALSE | JA109: FALSE | JB109: FALSE | JC109: =IF(JC83,JC107+JC87) -> FALSE | JD109: FALSE | JE109: FALSE | JF109: FALSE | JG109: FALSE | JH109: FALSE | JI109: FALSE | JJ109: FALSE | JK109: FALSE | JL109: FALSE | JM109: FALSE | JN109: FALSE | JO109: FALSE | JP109: FALSE | JQ109: FALSE | JR109: FALSE | JS109: FALSE | JT109: FALSE | JU109: FALSE | JV109: FALSE | JW109: FALSE | JX109: FALSE | JY109: FALSE | JZ109: FALSE | KA109: FALSE | KB109: FALSE | KC109: FALSE | KD109: FALSE | KE109: FALSE | KF109: FALSE | KG109: FALSE | KH109: FALSE | KI109: FALSE | KJ109: FALSE | KK109: FALSE | KL109: FALSE | KM109: FALSE | KN109: FALSE | KO109: FALSE | KP109: FALSE | KQ109: FALSE | KR109: FALSE | KS109: FALSE | KT109: FALSE | KU109: FALSE | KV109: FALSE | KW109: FALSE | KX109: FALSE | KY109: FALSE | KZ109: FALSE | LA109: FALSE | LB109: FALSE | LC109: FALSE | LD109: FALSE | LE109: FALSE | LF109: FALSE | LG109: FALSE | LH109: FALSE | LI109: FALSE | LJ109: FALSE | LK109: FALSE | LL109: FALSE | LM109: FALSE | LN109: FALSE | LO109: =IF(LO83,LO107+LO87) -> FALSE | LP109: FALSE | LQ109: FALSE | LR109: FALSE | LS109: FALSE | LT109: FALSE | LU109: FALSE | LV109: FALSE | LW109: FALSE | LX109: FALSE | LY109: FALSE | LZ109: FALSE | MA109: FALSE | MB109: FALSE | MC109: FALSE | MD109: FALSE | ME109: FALSE | MF109: FALSE | MG109: FALSE | MH109: FALSE | MI109: FALSE | MJ109: FALSE | MK109: FALSE | ML109: FALSE | MM109: FALSE | MN109: FALSE | MO109: FALSE | MP109: FALSE | MQ109: FALSE | MR109: FALSE | MS109: FALSE | MT109: FALSE | MU109: FALSE | MV109: FALSE | MW109: FALSE | MX109: FALSE | MY109: FALSE | MZ109: FALSE | NA109: FALSE | NB109: FALSE | NC109: FALSE | ND109: FALSE | NE109: FALSE | NF109: FALSE | NG109: FALSE | NH109: FALSE | NI109: FALSE | NJ109: FALSE | NK109: FALSE | NL109: FALSE | NM109: FALSE | NN109: FALSE | NO109: FALSE | NP109: FALSE | NQ109: FALSE | NR109: FALSE | NS109: FALSE | NT109: FALSE | NU109: FALSE | NV109: FALSE | NW109: FALSE | NX109: FALSE | NY109: FALSE | NZ109: FALSE | OA109: =IF(OA83,OA107+OA87) -> FALSE | OB109: FALSE | OC109: FALSE | OD109: FALSE | OE109: FALSE | OF109: FALSE | OG109: FALSE | OH109: FALSE | OI109: FALSE | OJ109: FALSE | OK109: FALSE | OL109: FALSE | OM109: FALSE | ON109: FALSE | OO109: FALSE
C111: NPV of Cash Flow | E111: =NPV(E79,109:109) -> 3576.384476
C113: NOPAT with SL Depreciation | F113: =IF(F83,F41) -> FALSE | G113: =IF(G83,G41) -> FALSE | H113: FALSE | I113: FALSE | J113: FALSE | K113: 301 | L113: 301 | M113: 301 | N113: 301 | O113: 301 | P113: 301 | Q113: 301 | R113: 301 | S113: FALSE | T113: FALSE | U113: FALSE | V113: FALSE | W113: FALSE | X113: FALSE | Y113: FALSE | Z113: FALSE | AA113: FALSE | AB113: FALSE | AC113: FALSE | AD113: FALSE | AE113: FALSE | AF113: FALSE | AG113: FALSE | AH113: FALSE | AI113: FALSE | AJ113: FALSE | AK113: FALSE | AL113: FALSE | AM113: FALSE | AN113: FALSE | AO113: FALSE | AP113: FALSE | AQ113: FALSE | AR113: FALSE | AS113: FALSE | AT113: FALSE | AU113: FALSE | AV113: FALSE | AW113: FALSE | AX113: FALSE | AY113: FALSE | AZ113: FALSE | BA113: FALSE | BB113: FALSE | BC113: FALSE | BD113: FALSE | BE113: FALSE | BF113: FALSE | BG113: FALSE | BH113: FALSE | BI113: FALSE | BJ113: FALSE | BK113: FALSE | BL113: FALSE | BM113: FALSE | BN113: FALSE | BO113: FALSE | BP113: FALSE | BQ113: FALSE | BR113: FALSE | BS113: =IF(BS83,BS41) -> FALSE | BT113: FALSE | BU113: FALSE | BV113: FALSE | BW113: FALSE | BX113: FALSE | BY113: FALSE | BZ113: FALSE | CA113: FALSE | CB113: FALSE | CC113: FALSE | CD113: FALSE | CE113: FALSE | CF113: FALSE | CG113: FALSE | CH113: FALSE | CI113: FALSE | CJ113: FALSE | CK113: FALSE | CL113: FALSE | CM113: FALSE | CN113: FALSE | CO113: FALSE | CP113: FALSE | CQ113: FALSE | CR113: FALSE | CS113: FALSE | CT113: FALSE | CU113: FALSE | CV113: FALSE | CW113: FALSE | CX113: FALSE | CY113: FALSE | CZ113: FALSE | DA113: FALSE | DB113: FALSE | DC113: FALSE | DD113: FALSE | DE113: FALSE | DF113: FALSE | DG113: FALSE | DH113: FALSE | DI113: FALSE | DJ113: FALSE | DK113: FALSE | DL113: FALSE | DM113: FALSE | DN113: FALSE | DO113: FALSE | DP113: FALSE | DQ113: FALSE | DR113: FALSE | DS113: FALSE | DT113: FALSE | DU113: FALSE | DV113: FALSE | DW113: FALSE | DX113: FALSE | DY113: FALSE | DZ113: FALSE | EA113: FALSE | EB113: FALSE | EC113: FALSE | ED113: FALSE | EE113: =IF(EE83,EE41) -> FALSE | EF113: FALSE | EG113: FALSE | EH113: FALSE | EI113: FALSE | EJ113: FALSE | EK113: FALSE | EL113: FALSE | EM113: FALSE | EN113: FALSE | EO113: FALSE | EP113: FALSE | EQ113: FALSE | ER113: FALSE | ES113: FALSE | ET113: FALSE | EU113: FALSE | EV113: FALSE | EW113: FALSE | EX113: FALSE | EY113: FALSE | EZ113: FALSE | FA113: FALSE | FB113: FALSE | FC113: FALSE | FD113: FALSE | FE113: FALSE | FF113: FALSE | FG113: FALSE | FH113: FALSE | FI113: FALSE | FJ113: FALSE | FK113: FALSE | FL113: FALSE | FM113: FALSE | FN113: FALSE | FO113: FALSE | FP113: FALSE | FQ113: FALSE | FR113: FALSE | FS113: FALSE | FT113: FALSE | FU113: FALSE | FV113: FALSE | FW113: FALSE | FX113: FALSE | FY113: FALSE | FZ113: FALSE | GA113: FALSE | GB113: FALSE | GC113: FALSE | GD113: FALSE | GE113: FALSE | GF113: FALSE | GG113: FALSE | GH113: FALSE | GI113: FALSE | GJ113: FALSE | GK113: FALSE | GL113: FALSE | GM113: FALSE | GN113: FALSE | GO113: FALSE | GP113: FALSE | GQ113: =IF(GQ83,GQ41) -> FALSE | GR113: FALSE | GS113: FALSE | GT113: FALSE | GU113: FALSE | GV113: FALSE | GW113: FALSE | GX113: FALSE | GY113: FALSE | GZ113: FALSE | HA113: FALSE | HB113: FALSE | HC113: FALSE | HD113: FALSE | HE113: FALSE | HF113: FALSE | HG113: FALSE | HH113: FALSE | HI113: FALSE | HJ113: FALSE | HK113: FALSE | HL113: FALSE | HM113: FALSE | HN113: FALSE | HO113: FALSE | HP113: FALSE | HQ113: FALSE | HR113: FALSE | HS113: FALSE | HT113: FALSE | HU113: FALSE | HV113: FALSE | HW113: FALSE | HX113: FALSE | HY113: FALSE | HZ113: FALSE | IA113: FALSE | IB113: FALSE | IC113: FALSE | ID113: FALSE | IE113: FALSE | IF113: FALSE | IG113: FALSE | IH113: FALSE | II113: FALSE | IJ113: FALSE | IK113: FALSE | IL113: FALSE | IM113: FALSE | IN113: FALSE | IO113: FALSE | IP113: FALSE | IQ113: FALSE | IR113: FALSE | IS113: FALSE | IT113: FALSE | IU113: FALSE | IV113: FALSE | IW113: FALSE | IX113: FALSE | IY113: FALSE | IZ113: FALSE | JA113: FALSE | JB113: FALSE | JC113: =IF(JC83,JC41) -> FALSE | JD113: FALSE | JE113: FALSE | JF113: FALSE | JG113: FALSE | JH113: FALSE | JI113: FALSE | JJ113: FALSE | JK113: FALSE | JL113: FALSE | JM113: FALSE | JN113: FALSE | JO113: FALSE | JP113: FALSE | JQ113: FALSE | JR113: FALSE | JS113: FALSE | JT113: FALSE | JU113: FALSE | JV113: FALSE | JW113: FALSE | JX113: FALSE | JY113: FALSE | JZ113: FALSE | KA113: FALSE | KB113: FALSE | KC113: FALSE | KD113: FALSE | KE113: FALSE | KF113: FALSE | KG113: FALSE | KH113: FALSE | KI113: FALSE | KJ113: FALSE | KK113: FALSE | KL113: FALSE | KM113: FALSE | KN113: FALSE | KO113: FALSE | KP113: FALSE | KQ113: FALSE | KR113: FALSE | KS113: FALSE | KT113: FALSE | KU113: FALSE | KV113: FALSE | KW113: FALSE | KX113: FALSE | KY113: FALSE | KZ113: FALSE | LA113: FALSE | LB113: FALSE | LC113: FALSE | LD113: FALSE | LE113: FALSE | LF113: FALSE | LG113: FALSE | LH113: FALSE | LI113: FALSE | LJ113: FALSE | LK113: FALSE | LL113: FALSE | LM113: FALSE | LN113: FALSE | LO113: =IF(LO83,LO41) -> FALSE | LP113: FALSE | LQ113: FALSE | LR113: FALSE | LS113: FALSE | LT113: FALSE | LU113: FALSE | LV113: FALSE | LW113: FALSE | LX113: FALSE | LY113: FALSE | LZ113: FALSE | MA113: FALSE | MB113: FALSE | MC113: FALSE | MD113: FALSE | ME113: FALSE | MF113: FALSE | MG113: FALSE | MH113: FALSE | MI113: FALSE | MJ113: FALSE | MK113: FALSE | ML113: FALSE | MM113: FALSE | MN113: FALSE | MO113: FALSE | MP113: FALSE | MQ113: FALSE | MR113: FALSE | MS113: FALSE | MT113: FALSE | MU113: FALSE | MV113: FALSE | MW113: FALSE | MX113: FALSE | MY113: FALSE | MZ113: FALSE | NA113: FALSE | NB113: FALSE | NC113: FALSE | ND113: FALSE | NE113: FALSE | NF113: FALSE | NG113: FALSE | NH113: FALSE | NI113: FALSE | NJ113: FALSE | NK113: FALSE | NL113: FALSE | NM113: FALSE | NN113: FALSE | NO113: FALSE | NP113: FALSE | NQ113: FALSE | NR113: FALSE | NS113: FALSE | NT113: FALSE | NU113: FALSE | NV113: FALSE | NW113: FALSE | NX113: FALSE | NY113: FALSE | NZ113: FALSE | OA113: =IF(OA83,OA41) -> FALSE | OB113: FALSE | OC113: FALSE | OD113: FALSE | OE113: FALSE | OF113: FALSE | OG113: FALSE | OH113: FALSE | OI113: FALSE | OJ113: FALSE | OK113: FALSE | OL113: FALSE | OM113: FALSE | ON113: FALSE | OO113: FALSE
C115: P/E Ratio | E115: =E92 -> 10
E116: =AVERAGE(113:113) -> 301
E117: =E115*E116 -> 3010
B119: Valuation with IRR as Yield | F119: Current | G119: Prior Yr
C120: Investment Balance in First Year | E120: =E83 -> 6 | F120: =LOOKUP(E120,2:2,52:52) -> 1000 | G120: =LOOKUP(E120-1,2:2,52:52) -> 354.9120178
C121: Perpuity Yield (IRR) | F121: =E77 -> 0.411617482 | G121: =F121 -> 0.411617482
C122: Constant Cash Flow | F122: =F120*F121 -> 411.617482 | G122: =G121*G120 -> 146.0879911
C123: Discount Rate | F123: =E79 -> 0.1 | G123: =F123 -> 0.1
C124: Perpuity Value | F124: =F122/F123 -> 4116.17482 | G124: =G122/G123 -> 1460.879911
D126: DCF Value with Dep=Cap Exp | E126: =E96 -> 3456.063917
D127: True Cash Flow | E127: =E102 -> 3372.025192
D128: Multiple with Econ Dep | E128: =E117 -> 3010
D129: Value with IRR as Yield | E129: =F124 -> 4116.17482
G131: Start of Valuation | I131: =E4 -> 6 | J131: Exit Period | L131: =E82 -> 13 | M131: Asset Life | N131: =E78 -> 5 | O131: Project IRR | P131: =E15 -> 0.411617482 | Q131: Discount Rate | S131: =E79 -> 0.1

Sheet Growth Spreadsheet
A1: Time Line
B2: Year | E2: 0 | F2: 1 | G2: 2 | H2: 3 | I2: 4 | J2: 5 | K2: 6 | L2: 7 | M2: 8 | N2: 9 | O2: 10 | P2: 11 | Q2: 12 | R2: 13 | S2: 14 | T2: 15 | U2: 16 | V2: 17 | W2: 18 | X2: 19 | Y2: 20 | Z2: 21 | AA2: 22 | AB2: 23 | AC2: 24 | AD2: 25 | AE2: 26 | AF2: 27 | AG2: 28 | AH2: 29 | AI2: 30 | AJ2: 31 | AK2: 32 | AL2: 33 | AM2: 34 | AN2: 35 | AO2: 36 | AP2: 37 | AQ2: 38 | AR2: 39 | AS2: 40 | AT2: 41 | AU2: 42 | AV2: 43 | AW2: 44 | AX2: 45 | AY2: 46 | AZ2: 47 | BA2: 48 | BB2: 49 | BC2: 50 | BD2: 51 | BE2: 52 | BF2: 53 | BG2: 54 | BH2: 55 | BI2: 56 | BJ2: 57 | BK2: 58 | BL2: 59 | BM2: 60 | BN2: 61 | BO2: 62 | BP2: 63 | BQ2: 64 | BR2: 65 | BS2: 66 | BT2: 67 | BU2: 68 | BV2: 69 | BW2: 70 | BX2: 71 | BY2: 72 | BZ2: 73 | CA2: 74 | CB2: 75 | CC2: 76 | CD2: 77 | CE2: 78 | CF2: 79 | CG2: 80 | CH2: 81 | CI2: 82 | CJ2: 83 | CK2: 84 | CL2: 85 | CM2: 86 | CN2: 87 | CO2: 88 | CP2: 89 | CQ2: 90 | CR2: 91 | CS2: 92 | CT2: 93 | CU2: 94 | CV2: 95 | CW2: 96 | CX2: 97 | CY2: 98 | CZ2: 99 | DA2: 100 | DB2: 101 | DC2: 102 | DD2: 103 | DE2: 104 | DF2: 105 | DG2: 106 | DH2: 107 | DI2: 108 | DJ2: 109 | DK2: 110 | DL2: 111 | DM2: 112 | DN2: 113 | DO2: 114 | DP2: 115 | DQ2: 116 | DR2: 117 | DS2: 118 | DT2: 119 | DU2: 120 | DV2: 121 | DW2: 122 | DX2: 123 | DY2: 124 | DZ2: 125 | EA2: 126 | EB2: 127 | EC2: 128 | ED2: 129 | EE2: 130 | EF2: 131 | EG2: 132 | EH2: 133 | EI2: 134 | EJ2: 135 | EK2: 136 | EL2: 137 | EM2: 138 | EN2: 139 | EO2: 140 | EP2: 141 | EQ2: 142 | ER2: 143 | ES2: 144 | ET2: 145 | EU2: 146 | EV2: 147 | EW2: 148 | EX2: 149 | EY2: 150 | EZ2: 151 | FA2: 152 | FB2: 153 | FC2: 154 | FD2: 155 | FE2: 156 | FF2: 157 | FG2: 158 | FH2: 159 | FI2: 160 | FJ2: 161 | FK2: 162 | FL2: 163 | FM2: 164 | FN2: 165 | FO2: 166 | FP2: 167 | FQ2: 168 | FR2: 169 | FS2: 170 | FT2: 171 | FU2: 172 | FV2: 173 | FW2: 174 | FX2: 175 | FY2: 176 | FZ2: 177 | GA2: 178 | GB2: 179 | GC2: 180 | GD2: 181 | GE2: 182 | GF2: 183 | GG2: 184 | GH2: 185 | GI2: 186 | GJ2: 187 | GK2: 188 | GL2: 189 | GM2: 190 | GN2: 191 | GO2: 192 | GP2: 193 | GQ2: 194 | GR2: 195 | GS2: 196 | GT2: 197 | GU2: 198 | GV2: 199 | GW2: 200 | GX2: 201 | GY2: 202 | GZ2: 203 | HA2: 204 | HB2: 205 | HC2: 206 | HD2: 207 | HE2: 208 | HF2: 209 | HG2: 210 | HH2: 211 | HI2: 212 | HJ2: 213 | HK2: 214 | HL2: 215 | HM2: 216 | HN2: 217 | HO2: 218 | HP2: 219 | HQ2: 220 | HR2: 221 | HS2: 222 | HT2: 223 | HU2: 224 | HV2: 225 | HW2: 226 | HX2: 227 | HY2: 228 | HZ2: 229 | IA2: 230 | IB2: 231 | IC2: 232 | ID2: 233 | IE2: 234 | IF2: 235 | IG2: 236 | IH2: 237 | II2: 238 | IJ2: 239 | IK2: 240 | IL2: 241 | IM2: 242 | IN2: 243 | IO2: 244 | IP2: 245 | IQ2: 246 | IR2: 247 | IS2: 248 | IT2: 249 | IU2: 250 | IV2: 251 | IW2: 252 | IX2: 253 | IY2: 254 | IZ2: 255 | JA2: 256 | JB2: 257 | JC2: 258 | JD2: 259 | JE2: 260 | JF2: 261 | JG2: 262 | JH2: 263 | JI2: 264 | JJ2: 265 | JK2: 266 | JL2: 267 | JM2: 268 | JN2: 269 | JO2: 270 | JP2: 271 | JQ2: 272 | JR2: 273 | JS2: 274 | JT2: 275 | JU2: 276 | JV2: 277 | JW2: 278 | JX2: 279 | JY2: 280 | JZ2: 281 | KA2: 282 | KB2: 283 | KC2: 284 | KD2: 285 | KE2: 286 | KF2: 287 | KG2: 288 | KH2: 289 | KI2: 290 | KJ2: 291 | KK2: 292 | KL2: 293 | KM2: 294 | KN2: 295 | KO2: 296 | KP2: 297 | KQ2: 298 | KR2: 299 | KS2: 300 | KT2: 301 | KU2: 302 | KV2: 303 | KW2: 304 | KX2: 305 | KY2: 306 | KZ2: 307 | LA2: 308 | LB2: 309 | LC2: 310 | LD2: 311 | LE2: 312 | LF2: 313 | LG2: 314 | LH2: 315 | LI2: 316 | LJ2: 317 | LK2: 318 | LL2: 319 | LM2: 320 | LN2: 321 | LO2: 322 | LP2: 323 | LQ2: 324 | LR2: 325 | LS2: 326 | LT2: 327 | LU2: 328 | LV2: 329 | LW2: 330 | LX2: 331 | LY2: 332 | LZ2: 333 | MA2: 334 | MB2: 335 | MC2: 336 | MD2: 337 | ME2: 338 | MF2: 339 | MG2: 340 | MH2: 341 | MI2: 342 | MJ2: 343 | MK2: 344 | ML2: 345 | MM2: 346 | MN2: 347 | MO2: 348 | MP2: 349 | MQ2: 350 | MR2: 351 | MS2: 352 | MT2: 353 | MU2: 354 | MV2: 355 | MW2: 356 | MX2: 357 | MY2: 358 | MZ2: 359 | NA2: 360 | NB2: 361 | NC2: 362 | ND2: 363 | NE2: 364 | NF2: 365 | NG2: 366 | NH2: 367 | NI2: 368 | NJ2: 369 | NK2: 370 | NL2: 371 | NM2: 372 | NN2: 373 | NO2: 374 | NP2: 375 | NQ2: 376 | NR2: 377 | NS2: 378 | NT2: 379 | NU2: 380 | NV2: 381 | NW2: 382 | NX2: 383 | NY2: 384 | NZ2: 385 | OA2: 386 | OB2: 387 | OC2: 388 | OD2: 389 | OE2: 390 | OF2: 391 | OG2: 392 | OH2: 393 | OI2: 394 | OJ2: 395 | OK2: 396 | OL2: 397 | OM2: 398 | ON2: 399 | OO2: 400
A3: Assumptions
B4: Life | E4: 7
B5: Inflation | E5: 0
F6: 1 | G6: 2 | H6: 3 | I6: 4 | J6: 5 | K6: 6 | L6: 7 | M6: 8 | N6: 9 | O6: 10
F7: =F6<=$E$4 -> TRUE | G7: =G6<=$E$4 -> TRUE | H7: TRUE | I7: TRUE | J7: TRUE | K7: TRUE | L7: TRUE | M7: FALSE | N7: FALSE | O7: FALSE
B8: EBITDA | F8: 250 | G8: =F8*G7 -> 250 | H8: =G8*H7 -> 250 | I8: 250 | J8: 250 | K8: 250 | L8: 250 | M8: 0 | N8: 0 | O8: 0
B9: Cap Exp | E9: 1000
B10: Cash Flow | E10: =E8-E9 -> -1000 | F10: =F8-F9 -> 250 | G10: 250 | H10: 250 | I10: 250 | J10: 250 | K10: 250 | L10: 250 | M10: 0 | N10: 0 | O10: 0
B11: IRR | E11: =IRR(10:10) -> 0.1632670902
B12: Yield | F12: =F8/E9 -> 0.25
B14: Econ Depreciation | F14: =IFERROR(PPMT($E$11,F6,$E$4,-1),0) -> 0.08673290976 | G14: =IFERROR(PPMT($E$11,G6,$E$4,-1),0) -> 0.1008935396 | H14: 0.1173661342 | I14: 0.1365281614 | J14: 0.1588187171 | K14: 0.1847485869 | L14: 0.2149119511 | M14: 0 | N14: 0 | O14: 0
B15: SL Depreciation Rate | F15: =1/$E$4*F7 -> 0.1428571429 | G15: =1/$E$4*G7 -> 0.1428571429 | H15: 0.1428571429 | I15: 0.1428571429 | J15: 0.1428571429 | K15: 0.1428571429 | L15: 0.1428571429 | M15: 0 | N15: 0 | O15: 0
B17: Retirement Distribution | E17: =1/(E4*2) -> 0.07142857143
A19: Corporate Model
B20: Growth | E20: =F20/100 -> 0.01 | F20: 1
B22: Asset
C23: Growth Cap Exp | E23: 1000 | F23: =E23*(1+$E$20) -> 1010 | G23: =F23*(1+$E$20) -> 1020.1 | H23: 1030.301 | I23: 1040.60401 | J23: 1051.01005 | K23: 1061.520151 | L23: 1072.135352 | M23: 1082.856706 | N23: 1093.685273 | O23: 1104.622125 | P23: 1115.668347 | Q23: 1126.82503 | R23: 1138.09328 | S23: 1149.474213 | T23: 1160.968955 | U23: 1172.578645 | V23: 1184.304431 | W23: 1196.147476 | X23: 1208.10895 | Y23: 1220.19004 | Z23: =Y23*(1+$E$20) -> 1232.39194 | AA23: =Z23*(1+$E$20) -> 1244.71586 | AB23: =AA23*(1+$E$20) -> 1257.163018 | AC23: =AB23*(1+$E$20) -> 1269.734649 | AD23: =AC23*(1+$E$20) -> 1282.431995 | AE23: =AD23*(1+$E$20) -> 1295.256315 | AF23: =AE23*(1+$E$20) -> 1308.208878 | AG23: =AF23*(1+$E$20) -> 1321.290967 | AH23: =AG23*(1+$E$20) -> 1334.503877 | AI23: =AH23*(1+$E$20) -> 1347.848915 | AJ23: =AI23*(1+$E$20) -> 1361.327404 | AK23: =AJ23*(1+$E$20) -> 1374.940679 | AL23: =AK23*(1+$E$20) -> 1388.690085 | AM23: =AL23*(1+$E$20) -> 1402.576986 | AN23: =AM23*(1+$E$20) -> 1416.602756 | AO23: =AN23*(1+$E$20) -> 1430.768784 | AP23: =AO23*(1+$E$20) -> 1445.076471 | AQ23: =AP23*(1+$E$20) -> 1459.527236 | AR23: =AQ23*(1+$E$20) -> 1474.122509 | AS23: =AR23*(1+$E$20) -> 1488.863734 | AT23: =AS23*(1+$E$20) -> 1503.752371 | AU23: =AT23*(1+$E$20) -> 1518.789895 | AV23: =AU23*(1+$E$20) -> 1533.977794 | AW23: =AV23*(1+$E$20) -> 1549.317572 | AX23: =AW23*(1+$E$20) -> 1564.810747 | AY23: =AX23*(1+$E$20) -> 1580.458855 | AZ23: =AY23*(1+$E$20) -> 1596.263443 | BA23: =AZ23*(1+$E$20) -> 1612.226078 | BB23: =BA23*(1+$E$20) -> 1628.348338 | BC23: =BB23*(1+$E$20) -> 1644.631822 | BD23: =BC23*(1+$E$20) -> 1661.07814 | BE23: =BD23*(1+$E$20) -> 1677.688921 | BF23: =BE23*(1+$E$20) -> 1694.465811 | BG23: =BF23*(1+$E$20) -> 1711.410469 | BH23: =BG23*(1+$E$20) -> 1728.524573 | BI23: =BH23*(1+$E$20) -> 1745.809819 | BJ23: =BI23*(1+$E$20) -> 1763.267917 | BK23: =BJ23*(1+$E$20) -> 1780.900597 | BL23: =BK23*(1+$E$20) -> 1798.709603 | BM23: =BL23*(1+$E$20) -> 1816.696699 | BN23: =BM23*(1+$E$20) -> 1834.863666 | BO23: =BN23*(1+$E$20) -> 1853.212302 | BP23: =BO23*(1+$E$20) -> 1871.744425 | BQ23: =BP23*(1+$E$20) -> 1890.461869 | BR23: =BQ23*(1+$E$20) -> 1909.366488 | BS23: =BR23*(1+$E$20) -> 1928.460153 | BT23: =BS23*(1+$E$20) -> 1947.744755 | BU23: =BT23*(1+$E$20) -> 1967.222202 | BV23: =BU23*(1+$E$20) -> 1986.894424 | BW23: =BV23*(1+$E$20) -> 2006.763368 | BX23: =BW23*(1+$E$20) -> 2026.831002 | BY23: =BX23*(1+$E$20) -> 2047.099312 | BZ23: =BY23*(1+$E$20) -> 2067.570305 | CA23: =BZ23*(1+$E$20) -> 2088.246008 | CB23: =CA23*(1+$E$20) -> 2109.128468 | CC23: =CB23*(1+$E$20) -> 2130.219753 | CD23: =CC23*(1+$E$20) -> 2151.521951 | CE23: =CD23*(1+$E$20) -> 2173.03717 | CF23: =CE23*(1+$E$20) -> 2194.767542 | CG23: =CF23*(1+$E$20) -> 2216.715217 | CH23: =CG23*(1+$E$20) -> 2238.882369 | CI23: =CH23*(1+$E$20) -> 2261.271193 | CJ23: =CI23*(1+$E$20) -> 2283.883905 | CK23: =CJ23*(1+$E$20) -> 2306.722744 | CL23: =CK23*(1+$E$20) -> 2329.789971 | CM23: =CL23*(1+$E$20) -> 2353.087871 | CN23: =CM23*(1+$E$20) -> 2376.61875 | CO23: =CN23*(1+$E$20) -> 2400.384937 | CP23: =CO23*(1+$E$20) -> 2424.388787 | CQ23: =CP23*(1+$E$20) -> 2448.632675 | CR23: =CQ23*(1+$E$20) -> 2473.119001 | CS23: =CR23*(1+$E$20) -> 2497.850191 | CT23: =CS23*(1+$E$20) -> 2522.828693 | CU23: =CT23*(1+$E$20) -> 2548.05698 | CV23: =CU23*(1+$E$20) -> 2573.53755 | CW23: =CV23*(1+$E$20) -> 2599.272926 | CX23: =CW23*(1+$E$20) -> 2625.265655 | CY23: =CX23*(1+$E$20) -> 2651.518311 | CZ23: =CY23*(1+$E$20) -> 2678.033494 | DA23: =CZ23*(1+$E$20) -> 2704.813829 | DB23: =DA23*(1+$E$20) -> 2731.861968 | DC23: =DB23*(1+$E$20) -> 2759.180587 | DD23: =DC23*(1+$E$20) -> 2786.772393 | DE23: =DD23*(1+$E$20) -> 2814.640117 | DF23: =DE23*(1+$E$20) -> 2842.786518 | DG23: =DF23*(1+$E$20) -> 2871.214384 | DH23: =DG23*(1+$E$20) -> 2899.926527 | DI23: =DH23*(1+$E$20) -> 2928.925793 | DJ23: =DI23*(1+$E$20) -> 2958.215051 | DK23: =DJ23*(1+$E$20) -> 2987.797201 | DL23: =DK23*(1+$E$20) -> 3017.675173 | DM23: =DL23*(1+$E$20) -> 3047.851925 | DN23: =DM23*(1+$E$20) -> 3078.330444 | DO23: =DN23*(1+$E$20) -> 3109.113749 | DP23: =DO23*(1+$E$20) -> 3140.204886 | DQ23: =DP23*(1+$E$20) -> 3171.606935 | DR23: =DQ23*(1+$E$20) -> 3203.323004 | DS23: =DR23*(1+$E$20) -> 3235.356234 | DT23: =DS23*(1+$E$20) -> 3267.709797 | DU23: =DT23*(1+$E$20) -> 3300.386895 | DV23: =DU23*(1+$E$20) -> 3333.390764 | DW23: =DV23*(1+$E$20) -> 3366.724671 | DX23: =DW23*(1+$E$20) -> 3400.391918 | DY23: =DX23*(1+$E$20) -> 3434.395837 | DZ23: =DY23*(1+$E$20) -> 3468.739795 | EA23: =DZ23*(1+$E$20) -> 3503.427193 | EB23: =EA23*(1+$E$20) -> 3538.461465 | EC23: =EB23*(1+$E$20) -> 3573.84608 | ED23: =EC23*(1+$E$20) -> 3609.584541 | EE23: =ED23*(1+$E$20) -> 3645.680386 | EF23: =EE23*(1+$E$20) -> 3682.13719 | EG23: =EF23*(1+$E$20) -> 3718.958562 | EH23: =EG23*(1+$E$20) -> 3756.148148 | EI23: =EH23*(1+$E$20) -> 3793.709629 | EJ23: =EI23*(1+$E$20) -> 3831.646725 | EK23: =EJ23*(1+$E$20) -> 3869.963193 | EL23: =EK23*(1+$E$20) -> 3908.662824 | EM23: =EL23*(1+$E$20) -> 3947.749453 | EN23: =EM23*(1+$E$20) -> 3987.226947 | EO23: =EN23*(1+$E$20) -> 4027.099217 | EP23: =EO23*(1+$E$20) -> 4067.370209 | EQ23: =EP23*(1+$E$20) -> 4108.043911 | ER23: =EQ23*(1+$E$20) -> 4149.12435 | ES23: =ER23*(1+$E$20) -> 4190.615594 | ET23: =ES23*(1+$E$20) -> 4232.52175 | EU23: =ET23*(1+$E$20) -> 4274.846967 | EV23: =EU23*(1+$E$20) -> 4317.595437 | EW23: =EV23*(1+$E$20) -> 4360.771391 | EX23: =EW23*(1+$E$20) -> 4404.379105 | EY23: =EX23*(1+$E$20) -> 4448.422896 | EZ23: =EY23*(1+$E$20) -> 4492.907125 | FA23: =EZ23*(1+$E$20) -> 4537.836196 | FB23: =FA23*(1+$E$20) -> 4583.214558 | FC23: =FB23*(1+$E$20) -> 4629.046704 | FD23: =FC23*(1+$E$20) -> 4675.337171 | FE23: =FD23*(1+$E$20) -> 4722.090543 | FF23: =FE23*(1+$E$20) -> 4769.311448 | FG23: =FF23*(1+$E$20) -> 4817.004562 | FH23: =FG23*(1+$E$20) -> 4865.174608 | FI23: =FH23*(1+$E$20) -> 4913.826354 | FJ23: =FI23*(1+$E$20) -> 4962.964618 | FK23: =FJ23*(1+$E$20) -> 5012.594264 | FL23: =FK23*(1+$E$20) -> 5062.720206 | FM23: =FL23*(1+$E$20) -> 5113.347409 | FN23: =FM23*(1+$E$20) -> 5164.480883 | FO23: =FN23*(1+$E$20) -> 5216.125691 | FP23: =FO23*(1+$E$20) -> 5268.286948 | FQ23: =FP23*(1+$E$20) -> 5320.969818 | FR23: =FQ23*(1+$E$20) -> 5374.179516 | FS23: =FR23*(1+$E$20) -> 5427.921311 | FT23: =FS23*(1+$E$20) -> 5482.200524 | FU23: =FT23*(1+$E$20) -> 5537.02253 | FV23: =FU23*(1+$E$20) -> 5592.392755 | FW23: =FV23*(1+$E$20) -> 5648.316682 | FX23: =FW23*(1+$E$20) -> 5704.799849 | FY23: =FX23*(1+$E$20) -> 5761.847848 | FZ23: =FY23*(1+$E$20) -> 5819.466326 | GA23: =FZ23*(1+$E$20) -> 5877.660989 | GB23: =GA23*(1+$E$20) -> 5936.437599 | GC23: =GB23*(1+$E$20) -> 5995.801975 | GD23: =GC23*(1+$E$20) -> 6055.759995 | GE23: =GD23*(1+$E$20) -> 6116.317595 | GF23: =GE23*(1+$E$20) -> 6177.480771 | GG23: =GF23*(1+$E$20) -> 6239.255579 | GH23: =GG23*(1+$E$20) -> 6301.648135 | GI23: =GH23*(1+$E$20) -> 6364.664616 | GJ23: =GI23*(1+$E$20) -> 6428.311262 | GK23: =GJ23*(1+$E$20) -> 6492.594375 | GL23: =GK23*(1+$E$20) -> 6557.520318 | GM23: =GL23*(1+$E$20) -> 6623.095522 | GN23: =GM23*(1+$E$20) -> 6689.326477 | GO23: =GN23*(1+$E$20) -> 6756.219742 | GP23: =GO23*(1+$E$20) -> 6823.781939 | GQ23: =GP23*(1+$E$20) -> 6892.019758 | GR23: =GQ23*(1+$E$20) -> 6960.939956 | GS23: =GR23*(1+$E$20) -> 7030.549355 | GT23: =GS23*(1+$E$20) -> 7100.854849 | GU23: =GT23*(1+$E$20) -> 7171.863398 | GV23: =GU23*(1+$E$20) -> 7243.582032 | GW23: =GV23*(1+$E$20) -> 7316.017852 | GX23: =GW23*(1+$E$20) -> 7389.17803 | GY23: =GX23*(1+$E$20) -> 7463.069811 | GZ23: =GY23*(1+$E$20) -> 7537.700509 | HA23: =GZ23*(1+$E$20) -> 7613.077514 | HB23: =HA23*(1+$E$20) -> 7689.208289 | HC23: =HB23*(1+$E$20) -> 7766.100372 | HD23: =HC23*(1+$E$20) -> 7843.761376 | HE23: =HD23*(1+$E$20) -> 7922.198989 | HF23: =HE23*(1+$E$20) -> 8001.420979 | HG23: =HF23*(1+$E$20) -> 8081.435189 | HH23: =HG23*(1+$E$20) -> 8162.249541 | HI23: =HH23*(1+$E$20) -> 8243.872036 | HJ23: =HI23*(1+$E$20) -> 8326.310757 | HK23: =HJ23*(1+$E$20) -> 8409.573864 | HL23: =HK23*(1+$E$20) -> 8493.669603 | HM23: =HL23*(1+$E$20) -> 8578.606299 | HN23: =HM23*(1+$E$20) -> 8664.392362 | HO23: =HN23*(1+$E$20) -> 8751.036286 | HP23: =HO23*(1+$E$20) -> 8838.546648 | HQ23: =HP23*(1+$E$20) -> 8926.932115 | HR23: =HQ23*(1+$E$20) -> 9016.201436 | HS23: =HR23*(1+$E$20) -> 9106.36345 | HT23: =HS23*(1+$E$20) -> 9197.427085 | HU23: =HT23*(1+$E$20) -> 9289.401356 | HV23: =HU23*(1+$E$20) -> 9382.295369 | HW23: =HV23*(1+$E$20) -> 9476.118323 | HX23: =HW23*(1+$E$20) -> 9570.879506 | HY23: =HX23*(1+$E$20) -> 9666.588301 | HZ23: =HY23*(1+$E$20) -> 9763.254184 | IA23: =HZ23*(1+$E$20) -> 9860.886726 | IB23: =IA23*(1+$E$20) -> 9959.495593 | IC23: =IB23*(1+$E$20) -> 10059.09055 | ID23: =IC23*(1+$E$20) -> 10159.68145 | IE23: =ID23*(1+$E$20) -> 10261.27827 | IF23: =IE23*(1+$E$20) -> 10363.89105 | IG23: =IF23*(1+$E$20) -> 10467.52996 | IH23: =IG23*(1+$E$20) -> 10572.20526 | II23: =IH23*(1+$E$20) -> 10677.92731 | IJ23: =II23*(1+$E$20) -> 10784.70659 | IK23: =IJ23*(1+$E$20) -> 10892.55365 | IL23: =IK23*(1+$E$20) -> 11001.47919 | IM23: =IL23*(1+$E$20) -> 11111.49398 | IN23: =IM23*(1+$E$20) -> 11222.60892 | IO23: =IN23*(1+$E$20) -> 11334.83501 | IP23: =IO23*(1+$E$20) -> 11448.18336 | IQ23: =IP23*(1+$E$20) -> 11562.6652 | IR23: =IQ23*(1+$E$20) -> 11678.29185 | IS23: =IR23*(1+$E$20) -> 11795.07477 | IT23: =IS23*(1+$E$20) -> 11913.02551 | IU23: =IT23*(1+$E$20) -> 12032.15577 | IV23: =IU23*(1+$E$20) -> 12152.47733 | IW23: =IV23*(1+$E$20) -> 12274.0021 | IX23: =IW23*(1+$E$20) -> 12396.74212 | IY23: =IX23*(1+$E$20) -> 12520.70954 | IZ23: =IY23*(1+$E$20) -> 12645.91664 | JA23: =IZ23*(1+$E$20) -> 12772.3758 | JB23: =JA23*(1+$E$20) -> 12900.09956 | JC23: =JB23*(1+$E$20) -> 13029.10056 | JD23: =JC23*(1+$E$20) -> 13159.39156 | JE23: =JD23*(1+$E$20) -> 13290.98548 | JF23: =JE23*(1+$E$20) -> 13423.89533 | JG23: =JF23*(1+$E$20) -> 13558.13429 | JH23: =JG23*(1+$E$20) -> 13693.71563 | JI23: =JH23*(1+$E$20) -> 13830.65279 | JJ23: =JI23*(1+$E$20) -> 13968.95931 | JK23: =JJ23*(1+$E$20) -> 14108.64891 | JL23: =JK23*(1+$E$20) -> 14249.7354 | JM23: =JL23*(1+$E$20) -> 14392.23275 | JN23: =JM23*(1+$E$20) -> 14536.15508 | JO23: =JN23*(1+$E$20) -> 14681.51663 | JP23: =JO23*(1+$E$20) -> 14828.33179 | JQ23: =JP23*(1+$E$20) -> 14976.61511 | JR23: =JQ23*(1+$E$20) -> 15126.38126 | JS23: =JR23*(1+$E$20) -> 15277.64508 | JT23: =JS23*(1+$E$20) -> 15430.42153 | JU23: =JT23*(1+$E$20) -> 15584.72574 | JV23: =JU23*(1+$E$20) -> 15740.573 | JW23: =JV23*(1+$E$20) -> 15897.97873 | JX23: =JW23*(1+$E$20) -> 16056.95852 | JY23: =JX23*(1+$E$20) -> 16217.5281 | JZ23: =JY23*(1+$E$20) -> 16379.70338 | KA23: =JZ23*(1+$E$20) -> 16543.50042 | KB23: =KA23*(1+$E$20) -> 16708.93542 | KC23: =KB23*(1+$E$20) -> 16876.02477 | KD23: =KC23*(1+$E$20) -> 17044.78502 | KE23: =KD23*(1+$E$20) -> 17215.23287 | KF23: =KE23*(1+$E$20) -> 17387.3852 | KG23: =KF23*(1+$E$20) -> 17561.25905 | KH23: =KG23*(1+$E$20) -> 17736.87164 | KI23: =KH23*(1+$E$20) -> 17914.24036 | KJ23: =KI23*(1+$E$20) -> 18093.38276 | KK23: =KJ23*(1+$E$20) -> 18274.31659 | KL23: =KK23*(1+$E$20) -> 18457.05976 | KM23: =KL23*(1+$E$20) -> 18641.63036 | KN23: =KM23*(1+$E$20) -> 18828.04666 | KO23: =KN23*(1+$E$20) -> 19016.32713 | KP23: =KO23*(1+$E$20) -> 19206.4904 | KQ23: =KP23*(1+$E$20) -> 19398.5553 | KR23: =KQ23*(1+$E$20) -> 19592.54085 | KS23: =KR23*(1+$E$20) -> 19788.46626 | KT23: =KS23*(1+$E$20) -> 19986.35092 | KU23: =KT23*(1+$E$20) -> 20186.21443 | KV23: =KU23*(1+$E$20) -> 20388.07658 | KW23: =KV23*(1+$E$20) -> 20591.95734 | KX23: =KW23*(1+$E$20) -> 20797.87692 | KY23: =KX23*(1+$E$20) -> 21005.85569 | KZ23: =KY23*(1+$E$20) -> 21215.91424 | LA23: =KZ23*(1+$E$20) -> 21428.07339 | LB23: =LA23*(1+$E$20) -> 21642.35412 | LC23: =LB23*(1+$E$20) -> 21858.77766 | LD23: =LC23*(1+$E$20) -> 22077.36544 | LE23: =LD23*(1+$E$20) -> 22298.13909 | LF23: =LE23*(1+$E$20) -> 22521.12048 | LG23: =LF23*(1+$E$20) -> 22746.33169 | LH23: =LG23*(1+$E$20) -> 22973.795 | LI23: =LH23*(1+$E$20) -> 23203.53295 | LJ23: =LI23*(1+$E$20) -> 23435.56828 | LK23: =LJ23*(1+$E$20) -> 23669.92397 | LL23: =LK23*(1+$E$20) -> 23906.62321 | LM23: =LL23*(1+$E$20) -> 24145.68944 | LN23: =LM23*(1+$E$20) -> 24387.14633 | LO23: =LN23*(1+$E$20) -> 24631.0178 | LP23: =LO23*(1+$E$20) -> 24877.32797 | LQ23: =LP23*(1+$E$20) -> 25126.10125 | LR23: =LQ23*(1+$E$20) -> 25377.36227 | LS23: =LR23*(1+$E$20) -> 25631.13589 | LT23: =LS23*(1+$E$20) -> 25887.44725 | LU23: =LT23*(1+$E$20) -> 26146.32172 | LV23: =LU23*(1+$E$20) -> 26407.78494 | LW23: =LV23*(1+$E$20) -> 26671.86279 | LX23: =LW23*(1+$E$20) -> 26938.58142 | LY23: =LX23*(1+$E$20) -> 27207.96723 | LZ23: =LY23*(1+$E$20) -> 27480.0469 | MA23: =LZ23*(1+$E$20) -> 27754.84737 | MB23: =MA23*(1+$E$20) -> 28032.39584 | MC23: =MB23*(1+$E$20) -> 28312.7198 | MD23: =MC23*(1+$E$20) -> 28595.847 | ME23: =MD23*(1+$E$20) -> 28881.80547 | MF23: =ME23*(1+$E$20) -> 29170.62353 | MG23: =MF23*(1+$E$20) -> 29462.32976 | MH23: =MG23*(1+$E$20) -> 29756.95306 | MI23: =MH23*(1+$E$20) -> 30054.52259 | MJ23: =MI23*(1+$E$20) -> 30355.06781 | MK23: =MJ23*(1+$E$20) -> 30658.61849 | ML23: =MK23*(1+$E$20) -> 30965.20468 | MM23: =ML23*(1+$E$20) -> 31274.85672 | MN23: =MM23*(1+$E$20) -> 31587.60529 | MO23: =MN23*(1+$E$20) -> 31903.48134 | MP23: =MO23*(1+$E$20) -> 32222.51616 | MQ23: =MP23*(1+$E$20) -> 32544.74132 | MR23: =MQ23*(1+$E$20) -> 32870.18873 | MS23: =MR23*(1+$E$20) -> 33198.89062 | MT23: =MS23*(1+$E$20) -> 33530.87953 | MU23: =MT23*(1+$E$20) -> 33866.18832 | MV23: =MU23*(1+$E$20) -> 34204.85021 | MW23: =MV23*(1+$E$20) -> 34546.89871 | MX23: =MW23*(1+$E$20) -> 34892.36769 | MY23: =MX23*(1+$E$20) -> 35241.29137 | MZ23: =MY23*(1+$E$20) -> 35593.70428 | NA23: =MZ23*(1+$E$20) -> 35949.64133 | NB23: =NA23*(1+$E$20) -> 36309.13774 | NC23: =NB23*(1+$E$20) -> 36672.22912 | ND23: =NC23*(1+$E$20) -> 37038.95141 | NE23: =ND23*(1+$E$20) -> 37409.34092 | NF23: =NE23*(1+$E$20) -> 37783.43433 | NG23: =NF23*(1+$E$20) -> 38161.26868 | NH23: =NG23*(1+$E$20) -> 38542.88136 | NI23: =NH23*(1+$E$20) -> 38928.31018 | NJ23: =NI23*(1+$E$20) -> 39317.59328 | NK23: =NJ23*(1+$E$20) -> 39710.76921 | NL23: =NK23*(1+$E$20) -> 40107.8769 | NM23: =NL23*(1+$E$20) -> 40508.95567 | NN23: =NM23*(1+$E$20) -> 40914.04523 | NO23: =NN23*(1+$E$20) -> 41323.18568 | NP23: =NO23*(1+$E$20) -> 41736.41754 | NQ23: =NP23*(1+$E$20) -> 42153.78171 | NR23: =NQ23*(1+$E$20) -> 42575.31953 | NS23: =NR23*(1+$E$20) -> 43001.07273 | NT23: =NS23*(1+$E$20) -> 43431.08345 | NU23: =NT23*(1+$E$20) -> 43865.39429 | NV23: =NU23*(1+$E$20) -> 44304.04823 | NW23: =NV23*(1+$E$20) -> 44747.08871 | NX23: =NW23*(1+$E$20) -> 45194.5596 | NY23: =NX23*(1+$E$20) -> 45646.5052 | NZ23: =NY23*(1+$E$20) -> 46102.97025 | OA23: =NZ23*(1+$E$20) -> 46563.99995 | OB23: =OA23*(1+$E$20) -> 47029.63995 | OC23: =OB23*(1+$E$20) -> 47499.93635 | OD23: =OC23*(1+$E$20) -> 47974.93571 | OE23: =OD23*(1+$E$20) -> 48454.68507 | OF23: =OE23*(1+$E$20) -> 48939.23192 | OG23: =OF23*(1+$E$20) -> 49428.62424 | OH23: =OG23*(1+$E$20) -> 49922.91048 | OI23: =OH23*(1+$E$20) -> 50422.13959 | OJ23: =OI23*(1+$E$20) -> 50926.36098 | OK23: =OJ23*(1+$E$20) -> 51435.62459 | OL23: =OK23*(1+$E$20) -> 51949.98084 | OM23: =OL23*(1+$E$20) -> 52469.48065 | ON23: =OM23*(1+$E$20) -> 52994.17545 | OO23: =ON23*(1+$E$20) -> 53524.11721
